Workbook

Sheet Plant
A2: P&M Category | B2: Replacement value 2022-2023 | D2: Replacement value 2023-2024
A3: Communication System Equipment | B3: ='Communication Equipment'!B4 -> R 168,961,221.28 | D3: ='Communication Equipment'!D2 -> R 180,788,506.76
A4: HV Cables | B4: ='HV Cable'!B6 -> R 427,126,100.54 | D4: ='HV Cable'!D4 -> R 457,024,927.58
A5: HV Overhead Lines | B5: ='HV Overhead lines'!B6 -> R 2,900,924,751.49 | D5: ='HV Overhead lines'!D4 -> R 3,103,989,484.09
A6: Load Management System Equipment | B6: ='Load Management system Equip'!B10 -> R 360,926,880.92 | D6: ='Load Management system Equip'!D10 -> R 386,191,762.58
A7: LV Cables | B7: ='LV Cable'!B6 -> R 4,588,143,840.40 | D7: ='LV Cable'!D6 -> R 4,909,313,909.22
A8: Meters | B8: =Meters!B6 -> R 1,533,901,394.08 | D8: =Meters!D6 -> R 1,641,274,491.67
A9: MV Network | B9: ='MV Network '!B5 -> R 18,161,841,407.20 | D9: ='MV Network '!D5 -> R 19,433,170,305.71
A10: Public Lighting | B10: ='Public Lighting'!B4 -> R 5,303,786,031.00 | D10: ='Public Lighting'!D4 -> R 5,675,051,053.17
A11: Switching Equipment | B11: ='SW Equipment'!B209 -> R 7,245,018,960.54 | D11: ='SW Equipment'!D209 -> R 7,752,170,287.77
A12: Substation Equipment | B12: ='Substation Equipment'!B95 -> R 11,582,979,500.00 | D12: ='Substation Equipment'!D95 -> R 12,393,788,065.00
A13: Total Replacement Cost | B13: =SUM(B3:B12) -> R 52,273,610,087.44 | D13: =SUM(D3:D12) -> R 55,932,762,793.56
A16: Buildings | B16: =Buildings!B196 -> 1,229,712,042.06 | D16: =Buildings!D196 -> 1,315,791,885.00
A19: TOTAL | B19: =B13+B16 -> R 53,503,322,129.50 | C19: =B19*C2 -> 0 | D19: =D13+D16 -> R 57,248,554,678.56

Sheet Buildings
C1: 7%
A2: Substation Building | B2: Replacement Value 2022-2023 | C2: Inflation Value | D2: Replacement Value 2023-2024
A3: 7Th Str Delarey | B3: 513,954.91 | C3: =B3*C$1 -> 35,976.84 | D3: =B3+C3 -> 549,931.75
A4: Abbattoir | B4: 513,954.91 | C4: =B4*C$1 -> 35,976.84 | D4: =B4+C4 -> 549,931.75
A5: Aeroton | B5: 513,954.91 | C5: 35,976.84 | D5: 549,931.75
A6: Airport | B6: 513,954.91 | C6: 35,976.84 | D6: 549,931.75
A7: Alexandra (Lombardy East) | B7: 1,284,887.27 | C7: 89,942.11 | D7: 1,374,829.38
A8: Alexandra Str(V/D Hooven Park) | B8: 513,954.91 | C8: 35,976.84 | D8: 549,931.75
A9: Allendale | B9: 1,284,887.27 | C9: 89,942.11 | D9: 1,374,829.38
A10: Anton Hartman | B10: 411,163.93 | C10: 28,781.47 | D10: 439,945.40
A11: Arbor Rd Cresta Shopping Mall | B11: 411,163.93 | C11: 28,781.47 | D11: 439,945.40
A12: Argyll | B12: 411,163.93 | C12: 28,781.47 | D12: 439,945.40
A13: Auroele | B13: 411,163.93 | C13: 28,781.47 | D13: 439,945.40
A14: Banfield Rd | B14: 411,163.93 | C14: 28,781.47 | D14: 439,945.40
A15: Bank City Jhb | B15: 411,163.93 | C15: 28,781.47 | D15: 439,945.40
A16: Bankor | B16: 411,163.93 | C16: 28,781.47 | D16: 439,945.40
A17: Baragwanath | B17: 616,745.89 | C17: 43,172.21 | D17: 659,918.10
A18: Beaulieu | B18: 513,954.91 | C18: 35,976.84 | D18: 549,931.75
A19: Bekker Str | B19: 513,954.91 | C19: 35,976.84 | D19: 549,931.75
A20: Bellevue | B20: 1,027,909.81 | C20: 71,953.69 | D20: 1,099,863.50
A21: Beyers | B21: 1,284,887.27 | C21: 89,942.11 | D21: 1,374,829.38
A22: Bond | B22: 1,027,909.81 | C22: 71,953.69 | D22: 1,099,863.50
A23: Boothill | B23: 513,954.91 | C23: 35,976.84 | D23: 549,931.75
A24: Bordeaux | B24: 1,027,909.81 | C24: 71,953.69 | D24: 1,099,863.50
A25: Braamfontein | B25: 10,279,098.15 | C25: 719,536.87 | D25: 10,998,635.02
A26: Bree Street | B26: 10,279,098.15 | C26: 719,536.87 | D26: 10,998,635.02
A27: Bryanston | B27: 1,027,909.81 | C27: 71,953.69 | D27: 1,099,863.50
A28: Brynorth | B28: 1,027,909.81 | C28: 71,953.69 | D28: 1,099,863.50
A29: Bushkoppies | B29: 513,954.91 | C29: 35,976.84 | D29: 549,931.75
A30: C R Swart | B30: 513,954.91 | C30: 35,976.84 | D30: 549,931.75
A31: Canary Str | B31: 513,954.91 | C31: 35,976.84 | D31: 549,931.75
A32: Carina | B32: 513,954.91 | C32: 35,976.84 | D32: 549,931.75
A33: Carlton Centre | B33: 513,954.91 | C33: 35,976.84 | D33: 549,931.75
A34: Cbd Ennerdale | B34: 513,954.91 | C34: 35,976.84 | D34: 549,931.75
A35: Cbd Midrand | B35: 513,954.91 | C35: 35,976.84 | D35: 549,931.75
A36: Central A | B36: 10,279,098.15 | C36: 719,536.87 | D36: 10,998,635.02
A37: Central B | B37: 10,279,098.15 | C37: 719,536.87 | D37: 10,998,635.02
A38: Christiaan De Wet | B38: 1,027,909.81 | C38: 71,953.69 | D38: 1,099,863.50
A39: City Gen | B39: 1,027,909.81 | C39: 71,953.69 | D39: 1,099,863.50
A40: Claremont | B40: 513,954.91 | C40: 35,976.84 | D40: 549,931.75
A41: Clay | B41: 513,954.91 | C41: 35,976.84 | D41: 549,931.75
A42: Clover | B42: 513,954.91 | C42: 35,976.84 | D42: 549,931.75
A43: Commercia | B43: 513,954.91 | C43: 35,976.84 | D43: 549,931.75
A44: Conradie | B44: 513,954.91 | C44: 35,976.84 | D44: 549,931.75
A45: Container Depot | B45: 513,954.91 | C45: 35,976.84 | D45: 549,931.75
A46: Cottesloe | B46: 513,954.91 | C46: 35,976.84 | D46: 549,931.75
A47: Country View | B47: 770,932.36 | C47: 53,965.27 | D47: 824,897.63
A48: Country View Ext 3 | B48: 411,163.93 | C48: 28,781.47 | D48: 439,945.40
A49: Crown | B49: 1,284,887.27 | C49: 89,942.11 | D49: 1,374,829.38
A50: Cydna | B50: 1,541,864.72 | C50: 107,930.53 | D50: 1,649,795.25
A51: Dainfern | B51: 1,027,909.81 | C51: 71,953.69 | D51: 1,099,863.50
A52: Dave Simpson Circle | B52: 411,163.93 | C52: 28,781.47 | D52: 439,945.40
A53: Debonair | B53: 411,163.93 | C53: 28,781.47 | D53: 439,945.40
A54: Delta | B54: 10,279,098.15 | C54: 719,536.87 | D54: 10,998,635.02
A55: Eikenhof | B55: 2,055,819.63 | C55: 143,907.37 | D55: 2,199,727.00
A56: Eldorado | B56: 1,798,842.18 | C56: 125,918.95 | D56: 1,924,761.13
A57: Ennerdale | B57: 1,284,887.27 | C57: 89,942.11 | D57: 1,374,829.38
A58: Florida | B58: 770,932.36 | C58: 53,965.27 | D58: 824,897.63
A59: Florida Glen | B59: 770,932.36 | C59: 53,965.27 | D59: 824,897.63
A60: Florida North | B60: 770,932.36 | C60: 53,965.27 | D60: 824,897.63
A61: Florin | B61: 513,954.91 | C61: 35,976.84 | D61: 549,931.75
A62: Fnb Ferndale (1997) | B62: 513,954.91 | C62: 35,976.84 | D62: 549,931.75
A63: Fnb Ferndale (1999) | B63: 513,954.91 | C63: 35,976.84 | D63: 549,931.75
A64: Fontainbleau | B64: 770,932.36 | C64: 53,965.27 | D64: 824,897.63
A65: Fordsburg | B65: 10,279,098.15 | C65: 719,536.87 | D65: 10,998,635.02
A66: Fort | B66: 5,139,549.07 | C66: 359,768.44 | D66: 5,499,317.51
A67: Goudkoppies | B67: 513,954.91 | C67: 35,976.84 | D67: 549,931.75
A68: Grand Central | B68: 1,284,887.27 | C68: =B68*C$1 -> 89,942.11 | D68: =B68+C68 -> 1,374,829.38
A69: Gresswold | B69: 2,055,819.63 | C69: 143,907.37 | D69: 2,199,727.00
A70: Haggie | B70: 513,954.91 | C70: 35,976.84 | D70: 549,931.75
A71: Harley St | B71: 1,027,909.81 | C71: 71,953.69 | D71: 1,099,863.50
A72: Hopefield | B72: 1,027,909.81 | C72: 71,953.69 | D72: 1,099,863.50
A73: Houtkoppen | B73: 1,027,909.81 | C73: 71,953.69 | D73: 1,099,863.50
A74: Hurlingham | B74: 513,954.91 | C74: 35,976.84 | D74: 549,931.75
A75: Industria | B75: 1,027,909.81 | C75: 71,953.69 | D75: 1,099,863.50
A76: J.G.Strydom | B76: 513,954.91 | C76: 35,976.84 | D76: 549,931.75
A77: James Crescent | B77: 513,954.91 | C77: 35,976.84 | D77: 549,931.75
A78: Jeppe | B78: 411,163.93 | C78: 28,781.47 | D78: 439,945.40
A79: John Ware | B79: 3,083,729.44 | C79: 215,861.06 | D79: 3,299,590.51
A80: John Ware B | B80: 3,083,729.44 | C80: 215,861.06 | D80: 3,299,590.51
A81: Kazerne | B81: 1,284,887.27 | C81: 89,942.11 | D81: 1,374,829.38
A82: Khanyisa | B82: 1,541,864.72 | C82: 107,930.53 | D82: 1,649,795.25
A83: Klipfontein View | B83: 513,954.91 | C83: 35,976.84 | D83: 549,931.75
A84: Kloofendal | B84: 770,932.36 | C84: 53,965.27 | D84: 824,897.63
A85: Kya Sand Industrial | B85: 513,954.91 | C85: 35,976.84 | D85: 549,931.75
A86: Kyalami Estate | B86: 1,284,887.27 | C86: 89,942.11 | D86: 1,374,829.38
A87: Kyalami Park | B87: 1,284,887.27 | C87: 89,942.11 | D87: 1,374,829.38
A88: Lea Glenn | B88: 411,163.93 | C88: 28,781.47 | D88: 439,945.40
A89: Lehae | B89: 1,284,887.27 | C89: 89,942.11 | D89: 1,374,829.38
A90: Lenasia | B90: 513,954.91 | C90: 35,976.84 | D90: 549,931.75
A91: Lenasia South | B91: 1,284,887.27 | C91: 89,942.11 | D91: 1,374,829.38
A92: Lotus (Pillam) | B92: 513,954.91 | C92: 35,976.84 | D92: 549,931.75
A93: Lunar | B93: 513,954.91 | C93: 35,976.84 | D93: 549,931.75
A94: Manufacta | B94: 770,932.36 | C94: 53,965.27 | D94: 824,897.63
A95: Maraisburg | B95: 513,954.91 | C95: 35,976.84 | D95: 549,931.75
A96: Market Boundary | B96: 513,954.91 | C96: 35,976.84 | D96: 549,931.75
A97: Mayfair | B97: 1,027,909.81 | C97: 71,953.69 | D97: 1,099,863.50
A98: Mayfield Park | B98: 513,954.91 | C98: 35,976.84 | D98: 549,931.75
A99: Mechanical Workshops | B99: 513,954.91 | C99: 35,976.84 | D99: 549,931.75
A100: Metropolitan | B100: 513,954.91 | C100: 35,976.84 | D100: 549,931.75
A101: Microwave | B101: 513,954.91 | C101: 35,976.84 | D101: 549,931.75
A102: Midrand | B102: 513,954.91 | C102: 35,976.84 | D102: 549,931.75
A103: Moffat | B103: 513,954.91 | C103: 35,976.84 | D103: 549,931.75
A104: Mondeor | B104: 1,284,887.27 | C104: 89,942.11 | D104: 1,374,829.38
A105: Montgomery | B105: 51,395.49 | C105: 3,597.68 | D105: 54,993.18
A106: Morningside | B106: 1,027,909.81 | C106: 71,953.69 | D106: 1,099,863.50
A107: Mulbarton | B107: 1,027,909.81 | C107: 71,953.69 | D107: 1,099,863.50
A108: Nancefield | B108: 1,284,887.27 | C108: 89,942.11 | D108: 1,374,829.38
A109: Nasrec Soccer City | B109: 1,027,909.81 | C109: 71,953.69 | D109: 1,099,863.50
A110: New Road | B110: 10,279,098.15 | C110: 719,536.87 | D110: 10,998,635.02
A111: Nirvana | B111: 1,284,887.27 | C111: 89,942.11 | D111: 1,374,829.38
A112: Noordwyk | B112: 770,932.36 | C112: 53,965.27 | D112: 824,897.63
A113: Northgate Shopping Centre | B113: 513,954.91 | C113: 35,976.84 | D113: 549,931.75
A114: Northriding | B114: 1,284,887.27 | C114: 89,942.11 | D114: 1,374,829.38
A115: Nursery | B115: 770,932.36 | C115: 53,965.27 | D115: 824,897.63
A116: Observatory | B116: 10,279,098.15 | C116: 719,536.87 | D116: 10,998,635.02
A117: Olievenhout | B117: 513,954.91 | C117: 35,976.84 | D117: 549,931.75
A118: Olifantsvlei | B118: 513,954.91 | C118: 35,976.84 | D118: 549,931.75
A119: Olivedale | B119: 1,284,887.27 | C119: 89,942.11 | D119: 1,374,829.38
A120: Olivedale Clinic | B120: 513,954.91 | C120: 35,976.84 | D120: 549,931.75
A121: Ontdekkers | B121: 770,932.36 | C121: 53,965.27 | D121: 824,897.63
A122: Orchards | B122: 1,027,909.81 | C122: 71,953.69 | D122: 1,099,863.50
A123: Panorama | B123: 770,932.36 | C123: 53,965.27 | D123: 824,897.63
A124: Parkhurst | B124: 1,027,909.81 | C124: 71,953.69 | D124: 1,099,863.50
A125: Pennyville | B125: 1,284,887.27 | C125: 89,942.11 | D125: 1,374,829.38
A126: Peter Rd | B126: 770,932.36 | C126: 53,965.27 | D126: 824,897.63
A127: Ppc Jupiter | B127: 513,954.91 | C127: 35,976.84 | D127: 549,931.75
A128: Pritchard | B128: 10,279,098.15 | C128: 719,536.87 | D128: 10,998,635.02
A129: Prospect | B129: 10,279,098.15 | C129: 719,536.87 | D129: 10,998,635.02
A130: Rabie Ridge | B130: 770,932.36 | C130: 53,965.27 | D130: 824,897.63
A131: Randburg | B131: 513,954.91 | C131: 35,976.84 | D131: 549,931.75
A132: Randburg Waterfront | B132: 513,954.91 | C132: =B132*C$1 -> 35,976.84 | D132: =B132+C132 -> 549,931.75
A133: Randjiespark Ext 72 | B133: 513,954.91 | C133: 35,976.84 | D133: 549,931.75
A134: Randjiespark Ext 75 | B134: 513,954.91 | C134: 35,976.84 | D134: 549,931.75
A135: Rau | B135: 513,954.91 | C135: 35,976.84 | D135: 549,931.75
A136: Reefhaven | B136: 513,954.91 | C136: 35,976.84 | D136: 549,931.75
A137: Remote Monitoring | B137: 513,954.91 | C137: 35,976.84 | D137: 549,931.75
A138: Reyger Str | B138: 513,954.91 | C138: 35,976.84 | D138: 549,931.75
A139: Rhinocerus | B139: 513,954.91 | C139: 35,976.84 | D139: 549,931.75
A140: Ridge | B140: 1,284,887.27 | C140: 89,942.11 | D140: 1,374,829.38
A141: Ridge Rd | B141: 513,954.91 | C141: 35,976.84 | D141: 549,931.75
A142: Riviera | B142: 513,954.91 | C142: 35,976.84 | D142: 549,931.75
A143: Robertsham | B143: 1,284,887.27 | C143: 89,942.11 | D143: 1,374,829.38
A144: Robertsville | B144: 1,027,909.81 | C144: 71,953.69 | D144: 1,099,863.50
A145: Roodepoort | B145: 1,541,864.72 | C145: 107,930.53 | D145: 1,649,795.25
A146: Roodetown | B146: 1,027,909.81 | C146: 71,953.69 | D146: 1,099,863.50
A147: Rooseveldt Alexandra | B147: 770,932.36 | C147: 53,965.27 | D147: 824,897.63
A148: Roosevelt Park | B148: 1,541,864.72 | C148: 107,930.53 | D148: 1,649,795.25
A149: Rosebank | B149: 1,541,864.72 | C149: 107,930.53 | D149: 1,649,795.25
A150: Rp 37 | B150: 411,163.93 | C150: 28,781.47 | D150: 439,945.40
A151: Ruimsig | B151: 513,954.91 | C151: 35,976.84 | D151: 549,931.75
A152: S A R Kazerne | B152: 770,932.36 | C152: 53,965.27 | D152: 824,897.63
A153: Sabc Boundary | B153: 770,932.36 | C153: 53,965.27 | D153: 824,897.63
A154: Sage Wood | B154: 513,954.91 | C154: 35,976.84 | D154: 549,931.75
A155: Sanlam Ferndale | B155: 513,954.91 | C155: 35,976.84 | D155: 549,931.75
A156: Sebenza | B156: 11,222,819.31 | C156: 785,597.35 | D156: 12,008,416.67
A157: Selby | B157: 1,027,909.81 | C157: 71,953.69 | D157: 1,099,863.50
A158: Sentraal Roodepoort | B158: 770,932.36 | C158: 53,965.27 | D158: 824,897.63
A159: Show Grounds | B159: 411,163.93 | C159: 28,781.47 | D159: 439,945.40
A160: Siemans Park | B160: 411,163.93 | C160: 28,781.47 | D160: 439,945.40
A161: Siemert Rd Substation | B161: 1,284,887.27 | C161: 89,942.11 | D161: 1,374,829.38
A162: South African Development Bank | B162: 770,932.36 | C162: 53,965.27 | D162: 824,897.63
A163: Southgate | B163: 513,954.91 | C163: 35,976.84 | D163: 549,931.75
A164: Soweto | B164: 770,932.36 | C164: 53,965.27 | D164: 824,897.63
A165: Soweto Local | B165: 513,954.91 | C165: 35,976.84 | D165: 549,931.75
A166: Spokeshave | B166: 513,954.91 | C166: 35,976.84 | D166: 549,931.75
A167: Star Point | B167: 513,954.91 | C167: 35,976.84 | D167: 549,931.75
A168: Stauch Vorster | B168: 513,954.91 | C168: 35,976.84 | D168: 549,931.75
A169: Staugh Vorster | B169: 513,954.91 | C169: 35,976.84 | D169: 549,931.75
A170: Std Bank Fox | B170: 513,954.91 | C170: 35,976.84 | D170: 549,931.75
A171: Std Bank Frederick | B171: 513,954.91 | C171: 35,976.84 | D171: 549,931.75
A172: Stormhill | B172: 513,954.91 | C172: 35,976.84 | D172: 549,931.75
A173: Stormill Ext.1 | B173: 411,163.93 | C173: 28,781.47 | D173: 439,945.40
A174: Strydom Str | B174: 411,163.93 | C174: 28,781.47 | D174: 439,945.40
A175: Swanepoel Park | B175: 411,163.93 | C175: 28,781.47 | D175: 439,945.40
A176: Telkor | B176: 411,163.93 | C176: 28,781.47 | D176: 439,945.40
A177: Timber Str | B177: 411,163.93 | C177: 28,781.47 | D177: 439,945.40
A178: Transformer Refurbishment | B178: 411,163.93 | C178: 28,781.47 | D178: 439,945.40
A179: Transport Str | B179: 411,163.93 | C179: 28,781.47 | D179: 439,945.40
A180: Tshepisong East and west | B180: 411,163.93 | C180: 28,781.47 | D180: 439,945.40
A181: Turffontein | B181: 411,163.93 | C181: 28,781.47 | D181: 439,945.40
A182: Vaalbos | B182: 411,163.93 | C182: 28,781.47 | D182: 439,945.40
A183: Van Beek Street | B183: 770,932.36 | C183: 53,965.27 | D183: 824,897.63
A184: Vasco Da Gama | B184: 513,954.91 | C184: 35,976.84 | D184: 549,931.75
A185: Voda World | B185: 411,163.93 | C185: 28,781.47 | D185: 439,945.40
A186: Vorna Valley | B186: 770,932.36 | C186: 53,965.27 | D186: 824,897.63
A187: Vrededorp | B187: 513,954.91 | C187: 35,976.84 | D187: 549,931.75
A188: Waterval | B188: 770,932.36 | C188: 53,965.27 | D188: 824,897.63
A189: Wemmer | B189: 770,932.36 | C189: 53,965.27 | D189: 824,897.63
A190: Westfield | B190: 1,284,887.27 | C190: 89,942.11 | D190: 1,374,829.38
A191: Wilropark | B191: 12,077,940.33 | C191: 845,455.82 | D191: 12,923,396.15
A192: Windsor | B192: 513,954.91 | C192: 35,976.84 | D192: 549,931.75
A193: Office Blocks | B193: 440,651,390.26 | C193: 30,845,597.32 | D193: 471,496,987.57
A194: Workshops | B194: 522,350,847.99 | C194: 36,564,559.36 | D194: 558,915,407.35
A196: Total | B196: =SUM(B3:B195) -> 1,229,712,042.06 | C196: =SUM(C3:C195) -> 86,079,842.94 | D196: 1,315,791,885.00

Sheet Communication Equipment
B1: Replacement Value 2022-2023 | C1: 7% | D1: Replacement Value 2022-2023
A2: All City Power areas of supply | B2: 168,961,221.28 | C2: =B2*C1 -> 11,827,285.49 | D2: =B2+C2 -> 180,788,506.76
B4: =SUM(B2:B3) -> 168,961,221.28

Sheet HV Cable
B2: Replacement Value 2022-2023 | C2: 7% | D2: Replacement Value 2023-2024
A4: All City Power areas of supply | B4: 427,126,100.54 | C4: =B4*C2 -> 29,898,827.04 | D4: =B4+C4 -> 457,024,927.58
B6: =B4+B5 -> 427,126,100.54

Sheet HV Overhead lines
B1: Replacement Value 2022-2023 | D1: Replacement Value 2023-2024
C3: 7%
A4: All City Power areas of supply | B4: 2,900,924,751.49 | C4: =B4*C3 -> 203,064,732.60 | D4: =B4+C4 -> 3,103,989,484.09
B6: =SUM(B4:B5) -> 2,900,924,751.49

Sheet Load Management system Equip
B2: Replacement Value 2022-2023 | C2: 7% | D2: Replacement Value 2023-2024
A3: Johannesburg North | B3: 108,868,537.70 | C3: =B3*C$2 -> 7,620,797.64 | D3: =B3+C3 -> 116,489,335.34
A4: Johannesburg South | B4: 25,833,212.34 | C4: =B4*C$2 -> 1,808,324.86 | D4: =B4+C4 -> 27,641,537.20
A5: Lenasia | B5: 7,995,994.29 | C5: 559,719.60 | D5: =B5+C5 -> 8,555,713.89
A6: Midrand | B6: 32,599,053.66 | C6: 2,281,933.76 | D6: 34,880,987.42
A7: Randburg -Delta | B7: 41,210,124.44 | C7: 2,884,708.71 | D7: 44,094,833.15
A8: Roodepoort | B8: 144,419,958.49 | C8: 10,109,397.09 | D8: 154,529,355.58
D9: 0
A10: Total | B10: =SUM(B3:B9) -> 360,926,880.92 | D10: 386,191,762.58

Sheet LV Cable
B2: Replacement Value 2022-2023 | C2: 7% | D2: Replacement Value 2023-2024
A4: All City Power areas of supply | B4: 4,588,143,840.40 | C4: =B4*C2 -> 321,170,068.83 | D4: =B4+C4 -> 4,909,313,909.22
B6: =B4+B5 -> 4,588,143,840.40 | C6: 321,170,068.83 | D6: 4,909,313,909.22

Sheet LV Network (hidden)
B2: Replacement value 2018 | C2: 4% | D2: Replacement value 2018
A3: HURSTHILL | B3: 9,814,245.21 | C3: =B3*$C$2 -> 392,569.81 | D3: =B3+C3 -> 10,206,815.02
A4: ROODEPOORT | B4: 10,078,201.80 | C4: =B4*$C$2 -> 403,128.07 | D4: =B4+C4 -> 10,481,329.88
A5: LENASIA | B5: 8,400,764.94 | C5: 336,030.60 | D5: 8,736,795.54
A6: RANDBURG | B6: 3,835,300.24 | C6: 153,412.01 | D6: 3,988,712.25
A7: MIDRAND | B7: 3,835,300.24 | C7: 153,412.01 | D7: 3,988,712.25
A8: REUVEN | B8: 8,338,239.31 | C8: 333,529.57 | D8: 8,671,768.89
A9: SIEMERT | B9: 8,259,489.83 | C9: 330,379.59 | D9: 8,589,869.43
A10: ALEXANDRA | B10: 5,119,718.86 | C10: 204,788.75 | D10: 5,324,507.61
A12: Total | B12: =SUM(B3:B11) -> 57,681,260.45 | C12: 2,307,250.42 | D12: 59,988,510.87
C16: Asset Management

Sheet Meters
B1: Replacement Value 2022-2023 | C1: 7% | D1: Replacement Value 2023-2024
A3: All City Power areas of supply | B3: 1,533,901,394.08 | C3: =B3*C1 -> 107,373,097.59 | D3: =B3+C3 -> 1,641,274,491.67
B6: =SUM(B3:B5) -> 1,533,901,394.08 | C6: 107,373,097.59 | D6: 1,641,274,491.67

Sheet MV Network (hidden)
B2: Replacement value 2018 | C2: 4% | E2: 2017-2018 Budget | F2: Replacement Value
A3: HURSTHILL | B3: 2,569,465,374.25 | C3: =B3*$C$2 -> 102,778,614.97 | D3: =B3+C3 -> 2,672,243,989.22 | E3: =D3/$D$12*$E$12 -> 16,233,824.04 | F3: =D3+E3 -> 2,688,477,813.27 | G3: 113428000
A4: ROODEPOORT | B4: 3,677,084,707.40 | C4: =B4*$C$2 -> 147,083,388.30 | D4: =B4+C4 -> 3,824,168,095.69 | E4: =D4/$D$12*$E$12 -> 23,231,737.91 | F4: =D4+E4 -> 3,847,399,833.60
A5: LENASIA | B5: 1,136,036,774.27 | C5: 45,441,470.97 | D5: 1,181,478,245.24 | E5: 7,177,454.61 | F5: 1,188,655,699.85
A6: RANDBURG | B6: 2,515,273,974.90 | C6: 100,610,959.00 | D6: 2,615,884,933.90 | E6: 15,891,444.01 | F6: 2,631,776,377.91
A7: MIDRAND | B7: 987,340,861.40 | C7: 39,493,634.46 | D7: 1,026,834,495.86 | E7: 6,237,997.20 | F7: 1,033,072,493.06
A8: REUVEN | B8: 2,055,968,821.84 | C8: 82,238,752.87 | D8: 2,138,207,574.71 | E8: 12,989,564.46 | F8: 2,151,197,139.17
A9: SIEMERT | B9: 3,564,736,684.34 | C9: 142,589,467.37 | D9: 3,707,326,151.72 | E9: 22,521,925.64 | F9: 3,729,848,077.36
A10: ALEXANDRA | B10: 1,447,306,885.19 | C10: 57,892,275.41 | D10: 1,505,199,160.60 | E10: 9,144,052.12 | F10: 1,514,343,212.72
A12: Total | B12: =SUM(B3:B11) -> 17,953,214,083.59 | C12: 718,128,563.34 | D12: 18,671,342,646.94 | E12: 113,428,000.00 | F12: =SUM(F3:F10) -> 18,784,770,646.94
C15: Johan Kotze

Sheet MV Network
B2: Replacement Value 2022-2023 | C2: 7% | D2: Replacement Value 2023-2024
A3: All City Power areas of supply | B3: 18,161,841,407.20 | C3: =B3*C2 -> 1,271,328,898.50 | D3: =B3+C3 -> 19,433,170,305.71
B5: =SUM(B3:B4) -> 18,161,841,407.20 | C5: 1,271,328,898.50 | D5: 19,433,170,305.71

Sheet Network Transformers (hidden)
A2: Substation | B2: Unit | C2: Serial No. | D2: MVA | E2: Year | F2: Age | G2: Replacement value 2018 | H2: 4% | I2: Replacement Value
A3: Alexandra | B3: Alexandra Trfr Bay 4 | C3: 30303201 | D3: 45 | E3: 2008 | F3: 8 | G3: 18,144,000.00 | H3: =G3*$H$2 -> 725,760.00 | I3: =G3+H3 -> 18,869,760.00
A4: Alexandra | B4: Alexandra Trfr Bay 2 | C4: 8631112 | D4: 45 | E4: 2008 | F4: 8 | G4: 18,144,000.00 | H4: =G4*$H$2 -> 725,760.00 | I4: =G4+H4 -> 18,869,760.00
A5: Baragwanath | B5: Baragwanath Trfr Bay 2 | C5: 128846 | D5: 11 | E5: 1936 | F5: 80 | G5: 6,048,000.00 | H5: 241,920.00 | I5: 6,289,920.00
A6: Bellevue | B6: Bellevue Trfr Bay 3 | C6: 21563 | D6: 45 | E6: 1967 | F6: 49 | G6: 18,144,000.00 | H6: 725,760.00 | I6: 18,869,760.00
A7: Bellevue | B7: Bellevue Trfr Bay 4 | C7: 21564 | D7: 45 | E7: 1967 | F7: 49 | G7: 18,144,000.00 | H7: 725,760.00 | I7: 18,869,760.00
A8: Bond | B8: Bond STR Trfr Bay 1 | C8: 29730 | D8: 30 | E8: 1996 | F8: 20 | G8: 14,515,200.00 | H8: 580,608.00 | I8: 15,095,808.00
A9: Bond | B9: Bond STR Trfr Bay 2 | C9: 29729 | D9: 30 | E9: 1996 | F9: 20 | G9: 14,515,200.00 | H9: 580,608.00 | I9: 15,095,808.00
A10: Braamfontein | B10: Braamfontein Trfr Bay 1 | C10: 26221 | D10: 45 | E10: 1971 | F10: 45 | G10: 18,144,000.00 | H10: 725,760.00 | I10: 18,869,760.00
A11: Braamfontein | B11: Braamfontein Trfr Bay 2 | C11: 26222 | D11: 45 | E11: 1971 | F11: 45 | G11: 18,144,000.00 | H11: 725,760.00 | I11: 18,869,760.00
A12: Braamfontein | B12: Braamfontein Trfr Bay 4 | C12: 26824 | D12: 45 | E12: 1975 | F12: 41 | G12: 18,144,000.00 | H12: 725,760.00 | I12: 18,869,760.00
A13: Bree | B13: Bree STR Trfr Bay 3 | C13: 29252 | D13: 45 | E13: 1991 | F13: 25 | G13: 18,144,000.00 | H13: 725,760.00 | I13: 18,869,760.00
A14: Bree | B14: Bree STR Trfr Bay 4 | C14: 250601 | D14: 45 | E14: 2006 | F14: 10 | G14: 18,144,000.00 | H14: 725,760.00 | I14: 18,869,760.00
A15: Bree | B15: Bree STR Trfr Bay 2 | C15: 26225 | D15: 45 | E15: 1971 | F15: 45 | G15: 18,144,000.00 | H15: 725,760.00 | I15: 18,869,760.00
A16: Bryanston | B16: Bryanston Trfr Bay 1 | C16: 2340 | D16: 10 | E16: 2006 | F16: 10 | G16: 6,048,000.00 | H16: 241,920.00 | I16: 6,289,920.00
A17: Bryanston | B17: Bryanston Trfr Bay 2 | C17: 2341 | D17: 10 | E17: 2006 | F17: 10 | G17: 6,048,000.00 | H17: 241,920.00 | I17: 6,289,920.00
A18: Johannesburg Central A | B18: Johannesburg Central A Trfr Bay 1 | C18: 109845 | D18: 11 | E18: 1936 | F18: 80 | G18: 6,048,000.00 | H18: 241,920.00 | I18: 6,289,920.00
A19: Johannesburg Central A | B19: Johannesburg Central A Trfr Bay 2 | C19: 101046 | D19: 11 | E19: 1936 | F19: 80 | G19: 6,048,000.00 | H19: 241,920.00 | I19: 6,289,920.00
A20: Johannesburg Central B | B20: Johannesburg Central B Trfr Bay 1A | C20: 30671 | D20: 45 | E20: 2006 | F20: 10 | G20: 18,144,000.00 | H20: 725,760.00 | I20: 18,869,760.00
A21: Johannesburg Central B | B21: Johannesburg Central B Trfr Bay 1B | C21: 27658 | D21: 45 | E21: 1981 | F21: 35 | G21: 18,144,000.00 | H21: 725,760.00 | I21: 18,869,760.00
A22: Johannesburg Central B | B22: Johannesburg Central B Trfr Bay 4A | C22: 30673 | D22: 45 | E22: 2006 | F22: 10 | G22: 18,144,000.00 | H22: 725,760.00 | I22: 18,869,760.00
A23: Johannesburg Central B | B23: Johannesburg Central B Trfr Bay 4B | C23: 26825 | D23: 45 | E23: 1976 | F23: 40 | G23: 18,144,000.00 | H23: 725,760.00 | I23: 18,869,760.00
A24: Christiaan de Wet | B24: Christiaan de Wet Trfr Bay 1 | C24: L232-1 | D24: 40 | E24: 1983 | F24: 33 | G24: 15,724,800.00 | H24: 628,992.00 | I24: 16,353,792.00
A25: Christiaan de Wet | B25: Christiaan de Wet Trfr Bay 2 | C25: L232-2 | D25: 40 | E25: 1983 | F25: 33 | G25: 15,724,800.00 | H25: 628,992.00 | I25: 16,353,792.00
A26: Christiaan de Wet | B26: Christiaan de Wet Trfr Bay 3 | C26: T2358 | D26: 40 | E26: 1997 | F26: 19 | G26: 15,724,800.00 | H26: 628,992.00 | I26: 16,353,792.00
A27: Cleveland | B27: Cleveland Trfr Bay 1A | C27: BE09278-1 | D27: 45 | E27: 2007 | F27: 9 | G27: 18,144,000.00 | H27: 725,760.00 | I27: 18,869,760.00
A28: Cleveland | B28: Cleveland Trfr Bay 2B | C28: IA3238-5 | D28: 40 | E28: 1957 | F28: 59 | G28: 15,724,800.00 | H28: 628,992.00 | I28: 16,353,792.00
A29: Cleveland | B29: Cleveland Trfr Bay 3 | C29: 28942 | D29: 45 | E29: 1988 | F29: 28 | G29: 18,144,000.00 | H29: 725,760.00 | I29: 18,869,760.00
A30: Cleveland | B30: Cleveland Trfr Bay 4 | C30: 14449 | D30: 45 | E30: 1967 | F30: 49 | G30: 18,144,000.00 | H30: 725,760.00 | I30: 18,869,760.00
A31: Cottesloe | B31: Cottesloe Trfr Bay 1 | C31: 27473 | D31: 53 | E31: 1979 | F31: 37 | G31: 19,353,600.00 | H31: 774,144.00 | I31: 20,127,744.00
A32: Crown | B32: Crown Trfr Bay 1 | C32: HT1733/12818 | D32: 45 | E32: 2007 | F32: 9 | G32: 18,144,000.00 | H32: 725,760.00 | I32: 18,869,760.00
A33: Crown | B33: Crown Trfr Bay 2 | C33: HT1733/12819 | D33: 45 | E33: 2007 | F33: 9 | G33: 18,144,000.00 | H33: 725,760.00 | I33: 18,869,760.00
A34: Cydna | B34: ex - Cydna Trfr Bay 1 (Transformer Bay) | C34: 28491 | D34: 45 | E34: 1985 | F34: 31 | G34: 18,144,000.00 | H34: 725,760.00 | I34: 18,869,760.00
A35: Cydna | B35: Cydna Trfr Bay 2 | C35: 30288002 | D35: 45 | E35: 2005 | F35: 11 | G35: 18,144,000.00 | H35: 725,760.00 | I35: 18,869,760.00
A36: Cydna | B36: Ex- Cydna 3A (Transformer Bay) to be scrapped | C36: 26619 | D36: 45 | E36: 1970 | F36: 46 | G36: 18,144,000.00 | H36: 725,760.00 | I36: 18,869,760.00
A37: Cydna | B37: Cydna Trfr Bay 1 | C37: 30303204 | D37: 45 | E37: 2008 | F37: 8 | G37: 18,144,000.00 | H37: 725,760.00 | I37: 18,869,760.00
A38: Cydna | B38: Cydna Trfr Bay 3 | C38: 30303202 | D38: 45 | E38: 2008 | F38: 8 | G38: 18,144,000.00 | H38: 725,760.00 | I38: 18,869,760.00
A39: Cydna | B39: Cydna Trfr Bay 4 | C39: 30303203 | D39: 45 | E39: 2008 | F39: 8 | G39: 18,144,000.00 | H39: 725,760.00 | I39: 18,869,760.00
A40: Cleveland | B40: Cleveland no. 1B | C40: IEE1957-2 | D40: 40 | E40: 1936 | F40: 80 | G40: 15,724,800.00 | H40: 628,992.00 | I40: 16,353,792.00
A41: Eikenhof | B41: Eikenhof Trfr Bay 1B (Ex- Cydna 4A) | C41: 26615 | D41: 45 | E41: 1974 | F41: 42 | G41: 18,144,000.00 | H41: 725,760.00 | I41: 18,869,760.00
A42: John Ware | B42: John Ware B Trfr Bay 4A (Ex Cydna 4B) | C42: IA3238-3 | D42: 40 | E42: 1936 | F42: 80 | G42: 15,724,800.00 | H42: 628,992.00 | I42: 16,353,792.00
A43: Dainfern | B43: Dainfern Trfr Bay 1 | C43: T1895-2 | D43: 5 | E43: 1990 | F43: 26 | G43: 3,628,800.00 | H43: 145,152.00 | I43: 3,773,952.00
A44: Dainfern | B44: Dainfern Trfr Bay 2 (Refurbished by SPM) | C44: T1895-1 | D44: 5 | E44: 1990 | F44: 26 | G44: 3,628,800.00 | H44: 145,152.00 | I44: 3,773,952.00
A45: Dainfern | B45: Dainfern Trfr Bay 3 | C45: T2920-1 | D45: 5 | E45: 2002 | F45: 14 | G45: 3,628,800.00 | H45: 145,152.00 | I45: 3,773,952.00
A46: Delta | B46: Delta Trfr Bay 1 | C46: 319130 | D46: 250 | E46: 2008 | F46: 8 | G46: 60,480,000.00 | H46: 2,419,200.00 | I46: 62,899,200.00
A47: Delta | B47: Delta Trfr Bay 2 | C47: S252095 | D47: 250 | E47: 1983 | F47: 33 | G47: 60,480,000.00 | H47: 2,419,200.00 | I47: 62,899,200.00
A48: Delta | B48: Delta Trfr Bay 3 | C48: S252096 | D48: 250 | E48: 1983 | F48: 33 | G48: 60,480,000.00 | H48: 2,419,200.00 | I48: 62,899,200.00
A49: Eikenhof | B49: Eikenhof Trfr Bay 1B | C49: 29557 | D49: 45 | E49: 1994 | F49: 22 | G49: 18,144,000.00 | H49: 725,760.00 | I49: 18,869,760.00
A50: Eikenhof | B50: Eikenhof Trfr Bay 2A | C50: BE09373/3 | D50: 45 | E50: 2008 | F50: 8 | G50: 18,144,000.00 | H50: 725,760.00 | I50: 18,869,760.00
A51: Eikenhof | B51: Eikenhof Trfr Bay 2B | C51: 29251 | D51: 45 | E51: 1991 | F51: 25 | G51: 18,144,000.00 | H51: 725,760.00 | I51: 18,869,760.00
A52: Elderado | B52: Elderado Trfr Bay 1 | C52: 26822 | D52: 45 | E52: 1975 | F52: 41 | G52: 18,144,000.00 | H52: 725,760.00 | I52: 18,869,760.00
A53: Elderado | B53: Elderado Trfr Bay 2 | C53: 26823 | D53: 45 | E53: 1975 | F53: 41 | G53: 18,144,000.00 | H53: 725,760.00 | I53: 18,869,760.00
A54: Elderado | B54: Elderado Trfr Bay 3 | C54: 14452 | D54: 45 | E54: 1967 | F54: 49 | G54: 18,144,000.00 | H54: 725,760.00 | I54: 18,869,760.00
A55: Ex Ennerdale - Ennerdale S/S | B55: Ennerdale Trfr Bay 2 (Disconnected- To be used as a spare) | C55: 82-149 | D55: 10 | E55: 1983 | F55: 33 | G55: 6,048,000.00 | H55: 241,920.00 | I55: 6,289,920.00
A56: Ennerdale | B56: Ennerdale Trfr Bay 3 | C56: 30878 | D56: 45 | E56: 2008 | F56: 8 | G56: 18,144,000.00 | H56: 725,760.00 | I56: 18,869,760.00
A57: Florida Glen | B57: Florida Glen Trfr Bay 1 | C57: 26051 | D57: 20 | E57: 1970 | F57: 46 | G57: 12,096,000.00 | H57: 483,840.00 | I57: 12,579,840.00
A58: Florida Glen | B58: Florida Glen Trfr Bay 2 | C58: 26050 | D58: 20 | E58: 1970 | F58: 46 | G58: 12,096,000.00 | H58: 483,840.00 | I58: 12,579,840.00
A59: Florida North | B59: Florida North Trfr Bay 1 | C59: 89-173 | D59: 20 | E59: 1990 | F59: 26 | G59: 12,096,000.00 | H59: 483,840.00 | I59: 12,579,840.00
A60: Florida North | B60: Florida North Trfr Bay 2 | C60: 89-174 | D60: 20 | E60: 1990 | F60: 26 | G60: 12,096,000.00 | H60: 483,840.00 | I60: 12,579,840.00
A61: Florida | B61: Florida Trfr Bay 1 | C61: 7738-2 | D61: 20 | E61: 1977 | F61: 39 | G61: 12,096,000.00 | H61: 483,840.00 | I61: 12,579,840.00
A62: Florida | B62: Florida Trfr Bay 2 | C62: 7738-1 | D62: 20 | E62: 1977 | F62: 39 | G62: 12,096,000.00 | H62: 483,840.00 | I62: 12,579,840.00
A63: Fordsburg | B63: Fordsburg Trfr Bay 1 | C63: 26257 | D63: 250 | E63: 1973 | F63: 43 | G63: 60,480,000.00 | H63: 2,419,200.00 | I63: 62,899,200.00
A64: Fordsburg | B64: Fordsburg Trfr Bay 2 | C64: 27452 | D64: 250 | E64: 1979 | F64: 37 | G64: 60,480,000.00 | H64: 2,419,200.00 | I64: 62,899,200.00
A65: Fordsburg | B65: Fordsburg Trfr Bay 4 | C65: 26256 | D65: 250 | E65: 1973 | F65: 43 | G65: 60,480,000.00 | H65: 2,419,200.00 | I65: 62,899,200.00
A66: Fordsburg | B66: Fordsburg Trfr Bay 3 | C66: 28245 | D66: 250 | E66: 1985 | F66: 31 | G66: 60,480,000.00 | H66: 2,419,200.00 | I66: 62,899,200.00
A67: Fort | B67: Fort Trfr Bay 1A | C67: A06073 | D67: 45 | E67: 2007 | F67: 9 | G67: 18,144,000.00 | H67: 725,760.00 | I67: 18,869,760.00
A68: Fort | B68: Fort Trfr Bay 1B | C68: A06072 | D68: 45 | E68: 2007 | F68: 9 | G68: 18,144,000.00 | H68: =G68*$H$2 -> 725,760.00 | I68: =G68+H68 -> 18,869,760.00
A69: Fort | B69: Fort Trfr Bay 2A | C69: 3716056 | D69: 30 | E69: 1980 | F69: 36 | G69: 14,515,200.00 | H69: 580,608.00 | I69: 15,095,808.00
A70: Fort | B70: Fort Trfr Bay 2B | C70: 247680 | D70: 45 | E70: 2007 | F70: 9 | G70: 18,144,000.00 | H70: 725,760.00 | I70: 18,869,760.00
A71: Grand Central | B71: Grand Central Trfr Bay 1 | C71: 29877 | D71: 30 | E71: 1997 | F71: 19 | G71: 14,515,200.00 | H71: 580,608.00 | I71: 15,095,808.00
A72: Grand Central | B72: Grand Central Trfr Bay 2 | C72: 29876 | D72: 30 | E72: 1997 | F72: 19 | G72: 14,515,200.00 | H72: 580,608.00 | I72: 15,095,808.00
A73: Grand Central | B73: Grand Central Trfr Bay 3 | C73: 30761 | D73: 40 | E73: 2006 | F73: 10 | G73: 15,724,800.00 | H73: 628,992.00 | I73: 16,353,792.00
A74: Gresswold | B74: Gresswold Trfr Bay 2A | C74: 26546 | D74: 45 | E74: 1974 | F74: 42 | G74: 18,144,000.00 | H74: 725,760.00 | I74: 18,869,760.00
A75: Gresswold | B75: Gresswold Trfr Bay 1A (Refurbished Transformer by LHM - Ex Mulbarton) | C75: 28724 | D75: 45 | E75: 1987 | F75: 29 | G75: 18,144,000.00 | H75: 725,760.00 | I75: 18,869,760.00
A76: Gresswold | B76: Gresswold Trfr Bay 1B | C76: 28486 | D76: 45 | E76: 1985 | F76: 31 | G76: 18,144,000.00 | H76: 725,760.00 | I76: 18,869,760.00
A77: Gresswold | B77: Gresswold Trfr Bay 2B | C77: 28485 | D77: 45 | E77: 1985 | F77: 31 | G77: 18,144,000.00 | H77: 725,760.00 | I77: 18,869,760.00
A78: Haggie | B78: Haggie Trfr Bay 1A | C78: T95785 | D78: 6 | E78: 1936 | F78: 80 | G78: 4,233,600.00 | H78: 169,344.00 | I78: 4,402,944.00
A79: Haggie | B79: Haggie Trfr Bay 1B | C79: T95779 | D79: 6 | E79: 1936 | F79: 80 | G79: 4,233,600.00 | H79: 169,344.00 | I79: 4,402,944.00
A80: Haggie | B80: Haggie Trfr Bay 2A | C80: T95789 | D80: 6 | E80: 1936 | F80: 80 | G80: 4,233,600.00 | H80: 169,344.00 | I80: 4,402,944.00
A81: Haggie | B81: Haggie Trfr Bay 2B | C81: T95782 | D81: 6 | E81: 1936 | F81: 80 | G81: 4,233,600.00 | H81: 169,344.00 | I81: 4,402,944.00
A82: Hopefield | B82: Hopefield Trfr Bay 1 | C82: T3470-1Z | D82: 20 | E82: 2007 | F82: 9 | G82: 12,096,000.00 | H82: 483,840.00 | I82: 12,579,840.00
A83: Hopefield | B83: Hopefield Trfr Bay 2 | C83: T1669-1 | D83: 20 | E83: 1988 | F83: 28 | G83: 12,096,000.00 | H83: 483,840.00 | I83: 12,579,840.00
A84: Hopefield | B84: Hopefield Trfr Bay 3 | C84: T1669-2 | D84: 20 | E84: 1988 | F84: 28 | G84: 12,096,000.00 | H84: 483,840.00 | I84: 12,579,840.00
A85: Hursthill | B85: Hursthill Trfr Bay 1 | C85: LEL105303 | D85: 45 | E85: 2007 | F85: 9 | G85: 18,144,000.00 | H85: 725,760.00 | I85: 18,869,760.00
A86: Hursthill | B86: Hursthill Trfr Bay 2 | C86: BE09278-6 | D86: 45 | E86: 2007 | F86: 9 | G86: 18,144,000.00 | H86: 725,760.00 | I86: 18,869,760.00
A87: Hursthill | B87: Hursthill Trfr Bay 3 | C87: BE09278-3 | D87: 45 | E87: 2007 | F87: 9 | G87: 18,144,000.00 | H87: 725,760.00 | I87: 18,869,760.00
A88: Industria | B88: Industria Trfr Bay 1A | C88: 26616 | D88: 45 | E88: 1974 | F88: 42 | G88: 18,144,000.00 | H88: 725,760.00 | I88: 18,869,760.00
A89: Industria | B89: Industria Trfr Bay 2A | C89: 26618 | D89: 45 | E89: 1974 | F89: 42 | G89: 18,144,000.00 | H89: 725,760.00 | I89: 18,869,760.00
A90: Industria | B90: Industria Trfr Bay 1B | C90: 27659 | D90: 45 | E90: 1981 | F90: 35 | G90: 18,144,000.00 | H90: 725,760.00 | I90: 18,869,760.00
A91: Industria | B91: Industria Trfr Bay 2B | C91: 29253 | D91: 45 | E91: 1991 | F91: 25 | G91: 18,144,000.00 | H91: 725,760.00 | I91: 18,869,760.00
A92: Jeppe | B92: Jeppe Trfr Bay 1A | C92: 90925 | D92: 6 | E92: 1927 | F92: 89 | G92: 4,233,600.00 | H92: 169,344.00 | I92: 4,402,944.00
A93: Jeppe | B93: Jeppe Trfr Bay 1B | C93: 90924 | D93: 6 | E93: 1927 | F93: 89 | G93: 4,233,600.00 | H93: 169,344.00 | I93: 4,402,944.00
A94: Jeppe | B94: Jeppe Trfr Bay 2A | C94: JEP2A | D94: 6 | E94: 1927 | F94: 89 | G94: 4,233,600.00 | H94: 169,344.00 | I94: 4,402,944.00
A95: Jeppe | B95: Jeppe Trfr Bay 2B | C95: 92666 | D95: 6 | E95: 1927 | F95: 89 | G95: 4,233,600.00 | H95: 169,344.00 | I95: 4,402,944.00
A96: John Ware | B96: John Ware B Trfr Bay 3B | C96: 28722 | D96: 45 | E96: 1988 | F96: 28 | G96: 18,144,000.00 | H96: 725,760.00 | I96: 18,869,760.00
A97: John Ware | B97: John Ware B Trfr Bay 4B | C97: 28723 | D97: 45 | E97: 1986 | F97: 30 | G97: 18,144,000.00 | H97: 725,760.00 | I97: 18,869,760.00
A98: John Ware Gas Turbine | B98: John Ware Gas Turbine Trfr Bay 2C | C98: 27474 | D98: 53 | E98: 1979 | F98: 37 | G98: 19,353,600.00 | H98: 774,144.00 | I98: 20,127,744.00
A99: John Ware | B99: John Ware B Trfr Bay 1 | C99: 92663 | D99: 6 | E99: 1936 | F99: 80 | G99: 4,233,600.00 | H99: 169,344.00 | I99: 4,402,944.00
A100: John Ware | B100: John Ware B Trfr Bay 1A | C100: 26617 | D100: 45 | E100: 1974 | F100: 42 | G100: 18,144,000.00 | H100: 725,760.00 | I100: 18,869,760.00
A101: John Ware | B101: John Ware B Trfr Bay 2 (Interposing Trfr) | C101: 92665 | D101: 6 | E101: 1936 | F101: 80 | G101: 4,233,600.00 | H101: 169,344.00 | I101: 4,402,944.00
A102: John Ware | B102: John Ware B Trfr Bay 3A | C102: 26223 | D102: 40 | E102: 1971 | F102: 45 | G102: 15,724,800.00 | H102: 628,992.00 | I102: 16,353,792.00
A103: Kazerne | B103: Kazerne Trfr Bay 1 | C103: 29651 | D103: 45 | E103: 1995 | F103: 21 | G103: 18,144,000.00 | H103: 725,760.00 | I103: 18,869,760.00
A104: Kazerne | B104: Kazerne Trfr Bay 2 | C104: 29650 | D104: 45 | E104: 1995 | F104: 21 | G104: 18,144,000.00 | H104: 725,760.00 | I104: 18,869,760.00
A105: Khanyisa | B105: Khanyisa Trfr Bay 1 | C105: 30757 | D105: 40 | E105: 2007 | F105: 9 | G105: 15,724,800.00 | H105: 628,992.00 | I105: 16,353,792.00
A106: Khanyisa | B106: Khanyisa Trfr Bay 2 | C106: 30760 | D106: 40 | E106: 2007 | F106: 9 | G106: 15,724,800.00 | H106: 628,992.00 | I106: 16,353,792.00
A107: Khanyisa | B107: Khanyisa Trfr Bay 3 | C107: 30756 | D107: 40 | E107: 2007 | F107: 9 | G107: 15,724,800.00 | H107: 628,992.00 | I107: 16,353,792.00
A108: Klipfontein View | B108: Klipfontein View Trfr Bay 2 | C108: 98-21 | D108: 10 | E108: 1998 | F108: 18 | G108: 6,048,000.00 | H108: 241,920.00 | I108: 6,289,920.00
A109: Kloofendal | B109: Kloofendal Trfr Bay 1 | C109: 5195-2 | D109: 80 | E109: 1976 | F109: 40 | G109: 24,192,000.00 | H109: 967,680.00 | I109: 25,159,680.00
A110: Kloofendal | B110: Kloofendal Trfr Bay 2 | C110: 5195-1 | D110: 80 | E110: 1976 | F110: 40 | G110: 24,192,000.00 | H110: 967,680.00 | I110: 25,159,680.00
A111: Kloofendal | B111: Kloofendal Trfr Bay 3 | C111: 1904-2 | D111: 20 | E111: 1973 | F111: 43 | G111: 12,096,000.00 | H111: 483,840.00 | I111: 12,579,840.00
A112: Kloofendal | B112: Kloofendal Trfr Bay 4 | C112: 1904-1 | D112: 20 | E112: 1973 | F112: 43 | G112: 12,096,000.00 | H112: 483,840.00 | I112: 12,579,840.00
A113: Lea Glen | B113: Lea Glen Trfr Bay 1 | C113: 26362 | D113: 22.5 | E113: 1972 | F113: 44 | G113: 12,096,000.00 | H113: 483,840.00 | I113: 12,579,840.00
A114: Lea Glen | B114: Lea Glen Trfr Bay 2 | C114: 81-3424 | D114: 22.5 | E114: 1982 | F114: 34 | G114: 12,096,000.00 | H114: 483,840.00 | I114: 12,579,840.00
A115: Lunar | B115: Lunar no. 2 | C115: 28455 | D115: 20 | E115: 1984 | F115: 32 | G115: 12,096,000.00 | H115: 483,840.00 | I115: 12,579,840.00
A116: Lenasia South | B116: Lenasia South no. 2 | C116: 15629 | D116: 30 | F116: n/a | G116: 14,515,200.00 | H116: 580,608.00 | I116: 15,095,808.00
A117: Lenasia South | B117: Lenasia South Trfr Bay 1 | C117: 28454 | D117: 20 | E117: 1984 | F117: 32 | G117: 12,096,000.00 | H117: 483,840.00 | I117: 12,579,840.00
A118: Lotus | B118: Lotus Trfr Bay 2 | C118: 29183 | D118: 20 | E118: 1990 | F118: 26 | G118: 12,096,000.00 | H118: 483,840.00 | I118: 12,579,840.00
A119: Lotus | B119: Lotus Trfr Bay 3 | C119: 29180 | D119: 20 | E119: 1990 | F119: 26 | G119: 12,096,000.00 | H119: 483,840.00 | I119: 12,579,840.00
A120: Lunar | B120: Lunar no. 1 | C120: 29182 | D120: 20 | E120: 1990 | F120: 26 | G120: 12,096,000.00 | H120: 483,840.00 | I120: 12,579,840.00
A121: Manufacta | B121: Manufacta Trfr Bay 1 | C121: 77-415 | D121: 20 | E121: 1978 | F121: 38 | G121: 12,096,000.00 | H121: 483,840.00 | I121: 12,579,840.00
A122: Manufacta | B122: Manufacta Trfr Bay 2 | C122: 77-416 | D122: 20 | E122: 1978 | F122: 38 | G122: 12,096,000.00 | H122: 483,840.00 | I122: 12,579,840.00
A123: Mayfair | B123: Mayfair Trfr Bay 1B | C123: BE09373-2 | D123: 45 | E123: 2007 | F123: 9 | G123: 18,144,000.00 | H123: 725,760.00 | I123: 18,869,760.00
A124: Mayfair | B124: Mayfair Trfr Bay 2A | C124: 26219 | D124: 45 | E124: 1971 | F124: 45 | G124: 18,144,000.00 | H124: 725,760.00 | I124: 18,869,760.00
A125: Mayfair | B125: Mayfair Trfr Bay 2B | C125: 28945 | D125: 45 | E125: 1990 | F125: 26 | G125: 18,144,000.00 | H125: 725,760.00 | I125: 18,869,760.00
A126: Peter Rd | B126: Peter Rd Trfr Bay 1 (Ex Mayfair refurbished by SPM0 | C126: 247402 | D126: 45 | E126: 2007 | F126: 9 | G126: 18,144,000.00 | H126: 725,760.00 | I126: 18,869,760.00
A127: Nirvana | B127: Nirvana no. 1A | C127: 247605 | D127: 45 | E127: 2007 | F127: 9 | G127: 18,144,000.00 | H127: 725,760.00 | I127: 18,869,760.00
A128: Ex Mayfair (Reuven Yard) | B128: Ex- Mayfair - Refurbished by Transformer Bay | C128: 28487 | D128: 45 | E128: 1985 | F128: 31 | G128: 18,144,000.00 | H128: 725,760.00 | I128: 18,869,760.00
A129: Moffat | B129: Moffat Trfr Bay 1 | C129: 27655 | D129: 45 | E129: 1980 | F129: 36 | G129: 18,144,000.00 | H129: 725,760.00 | I129: 18,869,760.00
A130: Moffat | B130: Moffat Trfr Bay 2 | C130: BE09278-5 | D130: 45 | E130: 2007 | F130: 9 | G130: 18,144,000.00 | H130: 725,760.00 | I130: 18,869,760.00
A131: Mondeor | B131: Mondeor Trfr Bay 1 | C131: 28944 | D131: 45 | E131: 1989 | F131: 27 | G131: 18,144,000.00 | H131: 725,760.00 | I131: 18,869,760.00
A132: Mondeor | B132: Mondeor Trfr Bay 1 | C132: 193974 | D132: 5 | E132: 1970 | F132: 46 | G132: 3,628,800.00 | H132: =G132*$H$2 -> 145,152.00 | I132: =G132+H132 -> 3,773,952.00
A133: Mondeor | B133: Mondeor Trfr Bay 2 | C133: 29250 | D133: 45 | E133: 1991 | F133: 25 | G133: 18,144,000.00 | H133: 725,760.00 | I133: 18,869,760.00
A134: Mondeor | B134: Mondeor Trfr Bay 2 | C134: 193974-1 | D134: 5 | E134: 1970 | F134: 46 | G134: 3,628,800.00 | H134: 145,152.00 | I134: 3,773,952.00
A135: Mulbarton | B135: Mulbarton Trfr Bay 1 | C135: 28725 | D135: 45 | E135: 1987 | F135: 29 | G135: 18,144,000.00 | H135: 725,760.00 | I135: 18,869,760.00
A136: Mulbarton | B136: Mulbarton Trfr Bay 2 | C136: BE09278-2 | D136: 45 | E136: 2007 | F136: 8 | G136: 18,144,000.00 | H136: 725,760.00 | I136: 18,869,760.00
A137: Nancefield | B137: Nancefield Trfr Bay 1 | C137: HT1732/01 (EPG113/53668) | D137: 45 | E137: 2007 | F137: 9 | G137: 18,144,000.00 | H137: 725,760.00 | I137: 18,869,760.00
A138: Nancefield | B138: Nancefield Trfr Bay 2 | C138: NANTX2 | D138: 45 | E138: 1995 | F138: 21 | G138: 18,144,000.00 | H138: 725,760.00 | I138: 18,869,760.00
A139: New Road | B139: New Road Trfr Bay 1 | C139: 30758 | D139: 40 | E139: 2007 | F139: 9 | G139: 15,724,800.00 | H139: 628,992.00 | I139: 16,353,792.00
A140: New Road | B140: New Road Trfr Bay 2 | C140: 30759 | D140: 40 | E140: 2007 | F140: 9 | G140: 15,724,800.00 | H140: 628,992.00 | I140: 16,353,792.00
A141: New Road | B141: New Road Trfr Bay 3 | C141: 30880 | D141: 40 | E141: 2007 | G141: 15,724,800.00 | H141: 628,992.00 | I141: 16,353,792.00
A142: Nirvana | B142: Nirvana no. 2A | C142: 28490 | D142: 45 | E142: 1985 | F142: 31 | G142: 18,144,000.00 | H142: 725,760.00 | I142: 18,869,760.00
A143: Nursery | B143: Nursery Trfr Bay 1 (Being Refurbished by SPM) | C143: 3651 | D143: 10 | E143: 1965 | F143: 51 | G143: 6,048,000.00 | H143: 241,920.00 | I143: 6,289,920.00
A144: Nursery | B144: Nursery Trfr Bay 2 | C144: 3653 | D144: 10 | E144: 1965 | F144: 51 | G144: 6,048,000.00 | H144: 241,920.00 | I144: 6,289,920.00
A145: Nursery | B145: Nursery Trfr Bay 3 | C145: 3654 | D145: 10 | E145: 1965 | F145: 51 | G145: 6,048,000.00 | H145: 241,920.00 | I145: 6,289,920.00
A146: Nursery | B146: Nursery Trfr Bay 4 | C146: 3652 | D146: 10 | E146: 1965 | F146: 51 | G146: 6,048,000.00 | H146: 241,920.00 | I146: 6,289,920.00
A147: Nursery | B147: Nursery Trfr Bay 5 | C147: 3007 | D147: 10 | E147: 1963 | F147: 53 | G147: 6,048,000.00 | H147: 241,920.00 | I147: 6,289,920.00
A148: Observatory | B148: Observatory Trfr Bay 1 | C148: 26224 | D148: 45 | E148: 1971 | F148: 45 | G148: 18,144,000.00 | H148: 725,760.00 | I148: 18,869,760.00
A149: Observatory | B149: Observatory Trfr Bay 2 | C149: 28943 | D149: 45 | E149: 1988 | F149: 28 | G149: 18,144,000.00 | H149: 725,760.00 | I149: 18,869,760.00
A150: Observatory | B150: Observatory Trfr Bay 3 | C150: 29254 | D150: 45 | E150: 1991 | F150: 25 | G150: 18,144,000.00 | H150: 725,760.00 | I150: 18,869,760.00
A151: Ontdekkers | B151: Ontdekkers Trfr Bay 1 | C151: R394-1 | D151: 22.5 | E151: 1969 | F151: 47 | G151: 12,096,000.00 | H151: 483,840.00 | I151: 12,579,840.00
A152: Ontdekkers | B152: Ontdekkers Trfr Bay 2 | C152: R394-2 | D152: 22.5 | E152: 1957 | F152: 59 | G152: 12,096,000.00 | H152: 483,840.00 | I152: 12,579,840.00
A153: Orchards | B153: Orchards Trfr Bay 2 | C153: 29345 | D153: 45 | E153: 1992 | F153: 24 | G153: 18,144,000.00 | H153: 725,760.00 | I153: 18,869,760.00
A154: Orchards | B154: Orchards Trfr Bay 1 | C154: 29340 | D154: 45 | E154: 1992 | F154: 24 | G154: 18,144,000.00 | H154: 725,760.00 | I154: 18,869,760.00
A155: Parkhurst | B155: Parkhurst Trfr Bay 1A | C155: 30288004 | D155: 45 | E155: 2005 | F155: 11 | G155: 18,144,000.00 | H155: 725,760.00 | I155: 18,869,760.00
A156: Parkhurst | B156: Parkhurst Trfr Bay 1B | C156: 3716053 | D156: 30 | E156: 1960 | F156: 56 | G156: 14,515,200.00 | H156: 580,608.00 | I156: 15,095,808.00
A157: Parkhurst | B157: Parkhurst Trfr Bay 2A | C157: 30288003 | D157: 45 | E157: 2005 | F157: 11 | G157: 18,144,000.00 | H157: 725,760.00 | I157: 18,869,760.00
A158: Penny | B158: Penny Trfr Bay 1 | C158: 96-52 | D158: 20 | E158: 1969 | F158: 47 | G158: 12,096,000.00 | H158: 483,840.00 | I158: 12,579,840.00
A159: Penny | B159: Penny Trfr Bay 2A | C159: 02-V-2128 | D159: 5 | E159: 1969 | F159: 47 | G159: 3,628,800.00 | H159: 145,152.00 | I159: 3,773,952.00
A160: Penny | B160: Penny Trfr Bay 2B | C160: 02-V-2129 | D160: 5 | E160: 1969 | F160: 47 | G160: 3,628,800.00 | H160: 145,152.00 | I160: 3,773,952.00
A161: Penny | B161: Penny Trfr Bay 3A | C161: 02-V-2127 | D161: 5 | E161: 1969 | F161: 47 | G161: 3,628,800.00 | H161: 145,152.00 | I161: 3,773,952.00
A162: Penny | B162: Penny Trfr Bay 3B | C162: 02-V-2132 | D162: 5 | E162: 1969 | F162: 47 | G162: 3,628,800.00 | H162: 145,152.00 | I162: 3,773,952.00
A163: Pennyville | B163: Penny Trfr Bay 1 | C163: HT1732/01 (EPG113/53668) | D163: 45 | E163: 2007 | F163: 5 | G163: 18,144,000.00 | H163: 725,760.00 | I163: 18,869,760.00
A164: Pennyville | B164: Penny Trfr Bay 2 | C164: HT1732/01 (EPG113/53668) | D164: 45 | E164: 2007 | F164: 5 | G164: 18,144,000.00 | H164: 725,760.00 | I164: 18,869,760.00
A165: Soweto | B165: Soweto no.2 | C165: T2285 | D165: 40 | E165: 1978 | F165: 38 | G165: 15,724,800.00 | H165: 628,992.00 | I165: 16,353,792.00
A166: Peter Rd | B166: Peter RD Trfr Bay 2 | C166: 29641 | D166: 40 | E166: 1995 | F166: 21 | G166: 15,724,800.00 | H166: 628,992.00 | I166: 16,353,792.00
A167: PPC Jupiter | B167: PPC Jupiter Trfr Bay 1A | C167: 192921-3 | D167: 1.5 | E167: 1962 | F167: 54 | G167: 1,814,400.00 | H167: 72,576.00 | I167: 1,886,976.00
A168: PPC Jupiter | B168: PPC Jupiter Trfr Bay 1B | C168: 69-321 | D168: 3 | E168: 1969 | F168: 47 | G168: 2,419,200.00 | H168: 96,768.00 | I168: 2,515,968.00
A169: PPC Jupiter | B169: PPC Jupiter Trfr Bay 1C | C169: 193237 | D169: 3 | E169: 1965 | F169: 51 | G169: 2,419,200.00 | H169: 96,768.00 | I169: 2,515,968.00
A170: PPC Jupiter | B170: PPC Jupiter Trfr Bay 2A (Disconnected) | C170: 69-320 | D170: 3 | E170: 1969 | F170: 47 | G170: 2,419,200.00 | H170: 96,768.00 | I170: 2,515,968.00
A171: PPC Jupiter | B171: PPC Jupiter Trfr Bay 2B | C171: 193147 | D171: 3 | E171: 1964 | F171: 52 | G171: 2,419,200.00 | H171: 96,768.00 | I171: 2,515,968.00
A172: PPC Jupiter | B172: PPC Jupiter Trfr Bay 2C (Disconnected) | C172: 192921-2 | D172: 1.5 | E172: 1962 | F172: 54 | G172: 1,814,400.00 | H172: 72,576.00 | I172: 1,886,976.00
A173: PPC Jupiter | B173: PPC Jupiter Trfr Bay 2D | C173: 192921-4 | D173: 1.5 | E173: 1962 | F173: 54 | G173: 1,814,400.00 | H173: 72,576.00 | I173: 1,886,976.00
A174: Pritchard | B174: Pritchard Trfr Bay 2 | C174: 26935 | D174: 45 | E174: 1976 | F174: 40 | G174: 18,144,000.00 | H174: 725,760.00 | I174: 18,869,760.00
A175: Prospect | B175: Prospect Trfr Bay 1 | C175: 28466 | D175: 250 | E175: 1984 | F175: 32 | G175: 60,480,000.00 | H175: 2,419,200.00 | I175: 62,899,200.00
A176: Prospect | B176: Prospect Trfr Bay 2 | C176: 26259 | D176: 250 | E176: 1974 | F176: 42 | G176: 60,480,000.00 | H176: 2,419,200.00 | I176: 62,899,200.00
A177: Prospect | B177: Prospect Trfr Bay 3 | C177: 27453 | D177: 250 | E177: 1979 | F177: 37 | G177: 60,480,000.00 | H177: 2,419,200.00 | I177: 62,899,200.00
A178: Prospect | B178: Prospect Trfr Bay 4 | C178: 27454 | D178: 250 | E178: 1979 | F178: 37 | G178: 60,480,000.00 | H178: 2,419,200.00 | I178: 62,899,200.00
A179: Ridge | B179: Ridge Trfr Bay 1A | C179: 3716050 | D179: 30 | E179: 1959 | F179: 57 | G179: 14,515,200.00 | H179: 580,608.00 | I179: 15,095,808.00
A180: Ridge | B180: Ridge Trfr Bay 1B | C180: 3716049 | D180: 30 | E180: 1959 | F180: 57 | G180: 14,515,200.00 | H180: 580,608.00 | I180: 15,095,808.00
A181: Ridge | B181: Ridge Trfr Bay 2 | C181: 15633 | D181: 30 | E181: 1965 | F181: 51 | G181: 14,515,200.00 | H181: 580,608.00 | I181: 15,095,808.00
A182: Riviera | B182: Riviera Trfr Bay 1 | C182: 109846 | D182: 11 | E182: 1936 | F182: 80 | G182: 6,048,000.00 | H182: 241,920.00 | I182: 6,289,920.00
A183: Riviera | B183: Riviera Trfr Bay 2 | C183: 109847 | D183: 11 | E183: 1936 | F183: 80 | G183: 6,048,000.00 | H183: 241,920.00 | I183: 6,289,920.00
A184: Robertsham | B184: Robertsham Trfr Bay 1A | C184: 28488 | D184: 45 | E184: 1985 | F184: 31 | G184: 18,144,000.00 | H184: 725,760.00 | I184: 18,869,760.00
A185: Robertsham | B185: Robertsham Trfr Bay 1B | C185: HT1732/01 (EPG113/53668) | D185: 45 | E185: 2007 | F185: 9 | G185: 18,144,000.00 | H185: 725,760.00 | I185: 18,869,760.00
A186: Robertsham | B186: Robertsham Trfr Bay 2A | C186: 27069 | D186: 45 | E186: 1977 | F186: 39 | G186: 18,144,000.00 | H186: 725,760.00 | I186: 18,869,760.00
A187: Robertsham | B187: Robertsham Trfr Bay 2B | C187: BE09278-4 | D187: 45 | E187: 2007 | F187: 9 | G187: 18,144,000.00 | H187: 725,760.00 | I187: 18,869,760.00
A188: Robertsville | B188: Robertsville Trfr Bay 1 | C188: K221-1 | D188: 40 | E188: 1983 | F188: 33 | G188: 15,724,800.00 | H188: 628,992.00 | I188: 16,353,792.00
A189: Robertsville | B189: Robertsville Trfr Bay 2 | C189: K221-2 | D189: 45 | E189: 1983 | F189: 33 | G189: 18,144,000.00 | H189: 725,760.00 | I189: 18,869,760.00
A190: Roodepoort | B190: Roodepoort Trfr Bay 1 | C190: 4867 | D190: 10 | E190: 1966 | F190: 50 | G190: 6,048,000.00 | H190: 241,920.00 | I190: 6,289,920.00
A191: Roodepoort | B191: Roodepoort Trfr Bay 2 | C191: 3655 | D191: 10 | E191: 1965 | F191: 51 | G191: 6,048,000.00 | H191: 241,920.00 | I191: 6,289,920.00
A192: Roodepoort | B192: Roodepoort Trfr Bay 3 | C192: 3656 | D192: 10 | E192: 1965 | F192: 51 | G192: 6,048,000.00 | H192: 241,920.00 | I192: 6,289,920.00
A193: Roodetown | B193: Roodetown Trfr Bay 1 | C193: 26885 | D193: 40 | E193: 1976 | F193: 40 | G193: 15,724,800.00 | H193: 628,992.00 | I193: 16,353,792.00
A194: Sentraal Roodepoort | B194: Roodetown Trfr Bay 2 | C194: 26886 | D194: 40 | E194: 1976 | F194: 40 | G194: 15,724,800.00 | H194: 628,992.00 | I194: 16,353,792.00
A195: Roosevelt Park | B195: Roosevelt Park Trfr Bay 1A | C195: LEL10018 | D195: 45 | E195: 2005 | F195: 11 | G195: 18,144,000.00 | H195: 725,760.00 | I195: 18,869,760.00
A196: Roosevelt Park | B196: Roosevelt Park Trfr Bay 1B | C196: TAAC2 | D196: 45 | E196: 1995 | F196: 21 | G196: 18,144,000.00 | H196: =G196*$H$2 -> 725,760.00 | I196: =G196+H196 -> 18,869,760.00
A197: Roosevelt Park | B197: Roosevelt Park Trfr Bay 2A | C197: BE09373/1 | D197: 45 | E197: 2008 | F197: 8 | G197: 18,144,000.00 | H197: 725,760.00 | I197: 18,869,760.00
A198: Roosevelt Park | B198: Roosevelt Park Trfr Bay 2B | C198: 15634 | D198: 30 | E198: 1965 | F198: 51 | G198: 14,515,200.00 | H198: 580,608.00 | I198: 15,095,808.00
A199: Rosebank | B199: Rosebank Trfr Bay 1 | C199: LEL99484 | D199: 45 | E199: 2005 | F199: 11 | G199: 18,144,000.00 | H199: 725,760.00 | I199: 18,869,760.00
A200: Rosebank | B200: Rosebank Trfr Bay 2 (Not there) | C200: 29249 | D200: 45 | E200: 1991 | F200: 25 | G200: 18,144,000.00 | H200: 725,760.00 | I200: 18,869,760.00
A201: Rosebank | B201: Rosebank Trfr Bay 3 | C201: 27070 | D201: 45 | E201: 1979 | F201: 37 | G201: 18,144,000.00 | H201: 725,760.00 | I201: 18,869,760.00
... 36 more rows

Sheet Public Lighting
B1: Replacement Value 2022-2023 | C1: 7% | D1: Replacement Value 2023-2024
A2: All City Power areas of supply | B2: 5,303,786,031.00 | C2: =B2*C1 -> 371,265,022.17 | D2: =B2+C2 -> 5,675,051,053.17
B4: =B2 -> 5,303,786,031.00 | C4: 371,265,022.17 | D4: 5,675,051,053.17

Sheet SW Equipment
A1: Substation | B1: Replacement Value 2022-2023 | C1: 7% | D1: Replacement Value 2023-2024
A3: 7Th Str Delarey | B3: 10,155,576.03 | C3: =B3*C$1 -> 710,890.32 | D3: =B3+C3 -> 10,866,466.35
A4: Abbattoir | B4: 2,391,764.30 | C4: =B4*C$1 -> 167,423.50 | D4: =B4+C4 -> 2,559,187.80
A5: Aeroton | B5: 15,374,922.53 | C5: 1,076,244.58 | D5: 16,451,167.11
A6: Airport | B6: 5,432,648.83 | C6: 380,285.42 | D6: 5,812,934.25
A7: Alexandra Str(V/D Hooven Park) | B7: 4,965,296.06 | C7: 347,570.72 | D7: 5,312,866.79
A8: Allendale | B8: 11,879,690.09 | C8: 831,578.31 | D8: 12,711,268.39
A9: Anton Hartman | B9: 5,741,222.06 | C9: 401,885.54 | D9: 6,143,107.61
A10: Arbor Rd Cresta Shopping Mall | B10: 2,306,644.25 | C10: 161,465.10 | D10: 2,468,109.35
A11: Argyll | B11: 6,289,268.28 | C11: 440,248.78 | D11: 6,729,517.06
A12: Auroele | B12: 8,111,148.82 | C12: 567,780.42 | D12: 8,678,929.24
A13: Banfield Rd | B13: 8,173,512.01 | C13: 572,145.84 | D13: 8,745,657.86
A14: Bank City Jhb | B14: 6,289,957.99 | C14: 440,297.06 | D14: 6,730,255.05
A15: Bankor | B15: 6,569,229.42 | C15: 459,846.06 | D15: 7,029,075.47
A16: Baragwanath | B16: 56,358,786.08 | C16: 3,945,115.03 | D16: 60,303,901.11
A17: Beaulieu | B17: 8,196,662.21 | C17: 573,766.35 | D17: 8,770,428.56
A18: Bekker Str | B18: 11,320,114.67 | C18: 792,408.03 | D18: 12,112,522.70
A19: Bernie Str | B19: 10,723,317.48 | C19: 750,632.22 | D19: 11,473,949.70
A20: Boothill | B20: 10,505,397.55 | C20: 735,377.83 | D20: 11,240,775.38
A21: Boulders Str | B21: 3,890,365.36 | C21: 272,325.58 | D21: 4,162,690.94
A22: BTU's | B22: 16,082,613.73 | C22: 1,125,782.96 | D22: 17,208,396.69
A23: Bushkoppies | B23: 4,397,071.48 | C23: 307,795.00 | D23: 4,704,866.49
A24: C R Swart | B24: 7,504,937.82 | C24: 525,345.65 | D24: 8,030,283.47
A25: Canary Str | B25: 8,941,422.12 | C25: 625,899.55 | D25: 9,567,321.67
A26: Carina | B26: 5,509,293.05 | C26: 385,650.51 | D26: 5,894,943.56
A27: Carlton Centre | B27: 4,276,176.89 | C27: 299,332.38 | D27: 4,575,509.27
A28: Cbd Ennerdale | B28: 11,017,469.62 | C28: 771,222.87 | D28: 11,788,692.50
A29: Cbd Midrand | B29: 4,961,170.64 | C29: 347,281.94 | D29: 5,308,452.58
A30: City Gen | B30: 7,034,334.69 | C30: 492,403.43 | D30: 7,526,738.12
A31: Claremont | B31: 5,326,406.14 | C31: 372,848.43 | D31: 5,699,254.57
A32: Clay | B32: 8,752,061.05 | C32: 612,644.27 | D32: 9,364,705.32
A33: Clover | B33: 6,131,104.42 | C33: 429,177.31 | D33: 6,560,281.73
A34: Commercia | B34: 5,712,375.26 | C34: 399,866.27 | D34: 6,112,241.52
A35: Conradie | B35: 4,951,342.00 | C35: 346,593.94 | D35: 5,297,935.94
A36: Container Depot | B36: 5,712,375.26 | C36: 399,866.27 | D36: 6,112,241.52
A37: Cottesloe | B37: 1,023,110,221.76 | C37: 71,617,715.52 | D37: 1,094,727,937.28
A38: Cottesloe 88Kv Yard | B38: 68,487,629.64 | C38: 4,794,134.07 | D38: 73,281,763.71
A39: Country View | B39: 4,724,044.53 | C39: 330,683.12 | D39: 5,054,727.65
A40: Country View Ext 3 | B40: 4,144,474.86 | C40: 290,113.24 | D40: 4,434,588.10
A41: Dave Simpson Circle | B41: 7,107,404.08 | C41: 497,518.29 | D41: 7,604,922.36
A42: Debonair | B42: 6,326,330.61 | C42: 442,843.14 | D42: 6,769,173.76
A43: Delta G | B43: 4,835,850.99 | C43: 338,509.57 | D43: 5,174,360.55
A44: Devland Ext 4 | B44: 4,123,415.00 | C44: 288,639.05 | D44: 4,412,054.05
A45: Domkrag Str | B45: 6,902,993.66 | C45: 483,209.56 | D45: 7,386,203.22
A46: Drakens Ave | B46: 4,697,819.19 | C46: 328,847.34 | D46: 5,026,666.54
A47: Durban | B47: 980,197,140.21 | C47: 68,613,799.81 | D47: 1,048,810,940.03
A48: Durban Street Junction Yard | B48: 41,037,381.86 | C48: 2,872,616.73 | D48: 43,909,998.59
A49: Eg X 28 | B49: 2,741,689.78 | C49: 191,918.28 | D49: 2,933,608.06
A50: Eg X 53 | B50: 2,283,384.14 | C50: 159,836.89 | D50: 2,443,221.03
A51: Eg X 62 | B51: 2,741,689.78 | C51: 191,918.28 | D51: 2,933,608.06
A52: Elke Drive | B52: 7,192,388.62 | C52: 503,467.20 | D52: 7,695,855.82
A53: Ellis Park Athletic Stadium | B53: 5,281,967.30 | C53: 369,737.71 | D53: 5,651,705.01
A54: Ennerdale Ext 6 | B54: 6,211,719.29 | C54: 434,820.35 | D54: 6,646,539.64
A55: Ethor Johnson 318 | B55: 5,034,061.60 | C55: 352,384.31 | D55: 5,386,445.91
A56: Fieldhouse | B56: 7,107,404.08 | C56: 497,518.29 | D56: 7,604,922.36
A57: Fire Station | B57: 4,817,384.77 | C57: 337,216.93 | D57: 5,154,601.71
A58: First Ave | B58: 3,411,968.42 | C58: 238,837.79 | D58: 3,650,806.21
A59: Florin | B59: 7,921,457.90 | C59: 554,502.05 | D59: 8,475,959.96
A60: Fnb Ferndale (1997) | B60: 5,069,796.62 | C60: 354,885.76 | D60: 5,424,682.38
A61: Fnb Ferndale (1999) | B61: 5,902,449.92 | C61: 413,171.49 | D61: 6,315,621.41
A62: Forest Town | B62: 13,590,234.07 | C62: 951,316.39 | D62: 14,541,550.46
A63: Gallagher Estate Hwh 78 | B63: 2,450,078.54 | C63: 171,505.50 | D63: 2,621,584.04
A64: Gas Turbines | B64: 201,072,618.02 | C64: 14,075,083.26 | D64: 215,147,701.28
A65: George | B65: 6,054,479.85 | C65: 423,813.59 | D65: 6,478,293.44
A66: Glaxo | B66: 5,368,068.91 | C66: 375,764.82 | D66: 5,743,833.74
A67: Glen Lea | B67: 124,482,929.32 | C67: 8,713,805.05 | D67: 133,196,734.37
A68: Golf Club Terrace | B68: 8,403,137.16 | C68: =B68*C$1 -> 588,219.60 | D68: =B68+C68 -> 8,991,356.76
A69: Goudkoppies | B69: 6,210,368.72 | C69: 434,725.81 | D69: 6,645,094.53
A70: Grand Central | B70: 144,529,179.73 | C70: 10,117,042.58 | D70: 154,646,222.31
A71: Granville Ave North | B71: 5,447,509.91 | C71: 381,325.69 | D71: 5,828,835.60
A72: Groblersrus | B72: 2,616,035.26 | C72: 183,122.47 | D72: 2,799,157.73
A73: Haggie | B73: 131,017,563.03 | C73: 9,171,229.41 | D73: 140,188,792.44
A74: Halfway House Ext41 | B74: 5,450,673.64 | C74: 381,547.15 | D74: 5,832,220.79
A75: Hammer | B75: 9,083,640.58 | C75: 635,854.84 | D75: 9,719,495.42
A76: Harry Galaun | B76: 4,657,294.27 | C76: 326,010.60 | D76: 4,983,304.87
A77: Hawken Ave | B77: 8,521,649.92 | C77: 596,515.49 | D77: 9,118,165.41
A78: Helderkruin | B78: 15,102,379.59 | C78: 1,057,166.57 | D78: 16,159,546.16
A79: High Point - | B79: 6,440,994.79 | C79: 450,869.64 | D79: 6,891,864.43
A80: Holding 6 | B80: 9,181,887.20 | C80: 642,732.10 | D80: 9,824,619.31
A81: Hull Str | B81: 6,792,026.48 | C81: 475,441.85 | D81: 7,267,468.33
A82: Hwg X 100 | B82: 3,210,207.90 | C82: 224,714.55 | D82: 3,434,922.45
A83: Ibg | B83: 3,115,248.21 | C83: 218,067.37 | D83: 3,333,315.59
A84: Isle Of Houghton | B84: 5,010,056.59 | C84: 350,703.96 | D84: 5,360,760.56
A85: J G Strydom Hosp | B85: 8,364,856.49 | C85: 585,539.95 | D85: 8,950,396.45
A86: J.G.Strydom | B86: 15,747,232.57 | C86: 1,102,306.28 | D86: 16,849,538.85
A87: James Crescent | B87: 12,706,736.02 | C87: 889,471.52 | D87: 13,596,207.54
A88: Jan Smuts | B88: 6,499,843.98 | C88: 454,989.08 | D88: 6,954,833.06
A89: Jhb Prison | B89: 5,712,375.26 | C89: 399,866.27 | D89: 6,112,241.52
A90: John Ware B | B90: 421,897,382.72 | C90: 29,532,816.79 | D90: 451,430,199.51
A91: John Ware Gas Turbine | B91: 66,708,873.81 | C91: 4,669,621.17 | D91: 71,378,494.98
A92: Kannabos | B92: 7,896,084.10 | C92: 552,725.89 | D92: 8,448,809.98
A93: Kelvin Power Station | B93: 1,260,705,971.92 | C93: 88,249,418.03 | D93: 1,348,955,389.96
A94: Kerk Str | B94: 5,282,360.28 | C94: 369,765.22 | D94: 5,652,125.50
A95: Kibler Park | B95: 6,440,994.79 | C95: 450,869.64 | D95: 6,891,864.43
A96: Kiepersol | B96: 7,896,084.10 | C96: 552,725.89 | D96: 8,448,809.98
A97: Kliptown | B97: 8,805,430.60 | C97: 616,380.14 | D97: 9,421,810.75
A98: Knoppiesdoring | B98: 8,751,424.38 | C98: 612,599.71 | D98: 9,364,024.09
A99: Koeberg | B99: 3,326,109.83 | C99: 232,827.69 | D99: 3,558,937.52
A100: Kosmos | B100: 3,274,045.93 | C100: 229,183.21 | D100: 3,503,229.14
A101: KPS | B101: 17,543,346.63 | C101: 1,228,034.26 | D101: 18,771,380.90
A102: Kya Sand - 108 | B102: 6,592,876.02 | C102: 461,501.32 | D102: 7,054,377.34
A103: Kya Sand Industrial | B103: 3,281,703.66 | C103: 229,719.26 | D103: 3,511,422.92
A104: Kyalami Estate | B104: 5,541,470.34 | C104: 387,902.92 | D104: 5,929,373.27
A105: Kyalami Park | B105: 6,374,885.77 | C105: 446,242.00 | D105: 6,821,127.77
A106: Lawley | B106: 135,617,393.16 | C106: 9,493,217.52 | D106: 145,110,610.68
A107: Lenasia | B107: 12,743,384.97 | C107: 892,036.95 | D107: 13,635,421.92
A108: Lenasia Ext 10 | B108: 4,221,280.40 | C108: 295,489.63 | D108: 4,516,770.03
A109: Lenasia Ext 4 | B109: 3,185,574.23 | C109: 222,990.20 | D109: 3,408,564.42
A110: Lens | B110: 14,782,342.80 | C110: 1,034,764.00 | D110: 15,817,106.80
A111: Liebenberg | B111: 9,202,378.32 | C111: 644,166.48 | D111: 9,846,544.80
A112: Load Management | B112: 1,571,918.72 | C112: 110,034.31 | D112: 1,681,953.03
A113: Logos | B113: 6,730,893.02 | C113: 471,162.51 | D113: 7,202,055.53
A114: Longmeadow Estate | B114: 4,992,368.00 | C114: 349,465.76 | D114: 5,341,833.76
A115: Lutz | B115: 104,070,116.18 | C115: 7,284,908.13 | D115: 111,355,024.31
A116: Maraisburg | B116: 4,317,650.44 | C116: 302,235.53 | D116: 4,619,885.97
A117: Market Boundary | B117: 11,084,650.09 | C117: 775,925.51 | D117: 11,860,575.59
A118: Mayfair | B118: 96,423,728.40 | C118: 6,749,660.99 | D118: 103,173,389.39
A119: Mayfield Park | B119: 2,818,937.83 | C119: 197,325.65 | D119: 3,016,263.48
A120: Mechanical Workshops | B120: 7,895,046.90 | C120: 552,653.28 | D120: 8,447,700.18
A121: Metropolitan | B121: 10,539,182.97 | C121: 737,742.81 | D121: 11,276,925.78
A122: Microwave | B122: 10,539,182.97 | C122: 737,742.81 | D122: 11,276,925.78
A123: Midrand | B123: 3,472,726.31 | C123: 243,090.84 | D123: 3,715,817.15
A124: Montgomery | B124: 14,684,712.71 | C124: 1,027,929.89 | D124: 15,712,642.60
A125: Mulbarton | B125: 118,903,654.60 | C125: 8,323,255.82 | D125: 127,226,910.42
A126: Nasrec Soccer City | B126: 3,678,675.08 | C126: 257,507.26 | D126: 3,936,182.33
A127: Nefdt Str | B127: 8,336,686.99 | C127: 583,568.09 | D127: 8,920,255.08
A128: Newmarket 15 | B128: 8,438,667.63 | C128: 590,706.73 | D128: 9,029,374.36
A129: Nirvana Steel Kiosk | B129: 2,108,921.68 | C129: 147,624.52 | D129: 2,256,546.19
A130: Noordwyk Ext 43 | B130: 4,487,063.36 | C130: 314,094.43 | D130: 4,801,157.79
A131: Noordwyk Ext 7 | B131: 6,440,994.79 | C131: 450,869.64 | D131: 6,891,864.43
A132: Northcliff X19 | B132: 5,284,723.77 | C132: =B132*C$1 -> 369,930.66 | D132: =B132+C132 -> 5,654,654.43
A133: Northgate Shopping Centre | B133: 8,552,871.62 | C133: 598,701.01 | D133: 9,151,572.63
A134: Observatory J/Yard | B134: 5,587,705.95 | C134: 391,139.42 | D134: 5,978,845.37
A135: Olievenhout | B135: 8,480,036.11 | C135: 593,602.53 | D135: 9,073,638.63
A136: Olifantsvlei | B136: 10,270,221.37 | C136: 718,915.50 | D136: 10,989,136.86
A137: Olivedale Clinic | B137: 7,127,532.94 | C137: 498,927.31 | D137: 7,626,460.25
A138: Oranje | B138: 5,077,958.19 | C138: 355,457.07 | D138: 5,433,415.26
A139: Orlando | B139: 295,313,117.00 | C139: 20,671,918.19 | D139: 315,985,035.19
A140: Panorama | B140: 23,196,184.25 | C140: 1,623,732.90 | D140: 24,819,917.15
A141: Paul Kruger | B141: 6,470,633.14 | C141: 452,944.32 | D141: 6,923,577.45
A142: Pennyville | B142: 96,423,728.40 | C142: 6,749,660.99 | D142: 103,173,389.39
A143: Percy | B143: 4,576,878.05 | C143: 320,381.46 | D143: 4,897,259.51
A144: Ppc Jupiter | B144: 65,707,370.91 | C144: 4,599,515.96 | D144: 70,306,886.88
A145: Precision Str 3 | B145: 5,712,375.26 | C145: 399,866.27 | D145: 6,112,241.52
A146: President Square | B146: 7,803,496.50 | C146: 546,244.75 | D146: 8,349,741.25
A147: Primary Plant | B147: 1,859,808.78 | C147: 130,186.61 | D147: 1,989,995.39
A148: Princess Estates | B148: 2,010,730.59 | C148: 140,751.14 | D148: 2,151,481.73
A149: Produce Market | B149: 4,541,199.08 | C149: 317,883.94 | D149: 4,859,083.02
A150: Protea Hotel Nw X 20 | B150: 3,042,466.62 | C150: 212,972.66 | D150: 3,255,439.28
A151: Protection Equipment | B151: 148,909,802.65 | C151: 10,423,686.19 | D151: 159,333,488.83
A152: Q Data 15 | B152: 2,464,966.88 | C152: 172,547.68 | D152: 2,637,514.56
A153: Rabie Ridge | B153: 4,998,368.89 | C153: 349,885.82 | D153: 5,348,254.72
A154: Randburg Waterfront | B154: 7,492,357.65 | C154: 524,465.04 | D154: 8,016,822.68
A155: Randjiespark Ext 72 | B155: 7,349,181.30 | C155: 514,442.69 | D155: 7,863,623.99
A156: Randjiespark Ext 75 | B156: 7,803,550.74 | C156: 546,248.55 | D156: 8,349,799.29
A157: Rau | B157: 3,558,077.70 | C157: 249,065.44 | D157: 3,807,143.14
A158: Reefhaven | B158: 9,430,235.79 | C158: 660,116.51 | D158: 10,090,352.30
A159: Remote Monitoring | B159: 23,782,598.59 | C159: 1,664,781.90 | D159: 25,447,380.50
A160: Reyger Str | B160: 7,141,211.78 | C160: 499,884.82 | D160: 7,641,096.60
A161: Rhinocerus | B161: 11,299,822.45 | C161: 790,987.57 | D161: 12,090,810.02
A162: Ridge Rd | B162: 12,817,886.75 | C162: 897,252.07 | D162: 13,715,138.83
A163: Riviera | B163: 74,551,499.58 | C163: 5,218,604.97 | D163: 79,770,104.55
A164: Rooseveldt Alexandra | B164: 11,298,281.95 | C164: 790,879.74 | D164: 12,089,161.68
A165: Rp 37 | B165: 5,094,727.80 | C165: 356,630.95 | D165: 5,451,358.75
A166: Ruimsig | B166: 5,956,855.67 | C166: 416,979.90 | D166: 6,373,835.57
A167: S A R Kazerne | B167: 5,977,471.07 | C167: 418,422.97 | D167: 6,395,894.04
A168: Sa Clay | B168: 7,193,280.71 | C168: 503,529.65 | D168: 7,696,810.35
A169: Sabc Boundary | B169: 11,246,761.82 | C169: 787,273.33 | D169: 12,034,035.14
A170: Sage Wood | B170: 2,666,084.36 | C170: 186,625.91 | D170: 2,852,710.27
A171: Sandringham Link Yard | B171: 4,705,328.34 | C171: 329,372.98 | D171: 5,034,701.33
A172: Sanlam Ferndale | B172: 6,440,994.79 | C172: 450,869.64 | D172: 6,891,864.43
A173: Sans Souci Linking Yard | B173: 9,991,398.38 | C173: 699,397.89 | D173: 10,690,796.27
A174: Selby | B174: 114,026,397.10 | C174: 7,981,847.80 | D174: 122,008,244.89
A175: Sergi | B175: 80,202,109.15 | C175: 5,614,147.64 | D175: 85,816,256.79
A176: Show Grounds | B176: 7,580,418.80 | C176: 530,629.32 | D176: 8,111,048.11
A177: Siemans Park | B177: 3,210,207.90 | C177: 224,714.55 | D177: 3,434,922.45
A178: South African Development Bank | B178: 4,276,176.89 | C178: 299,332.38 | D178: 4,575,509.27
A179: Southgate | B179: 5,010,056.59 | C179: 350,703.96 | D179: 5,360,760.56
A180: Soweto Local | B180: 70,215,593.12 | C180: 4,915,091.52 | D180: 75,130,684.64
A181: Spokeshave | B181: 6,121,480.92 | C181: 428,503.66 | D181: 6,549,984.59
A182: Star Point | B182: 3,511,046.90 | C182: 245,773.28 | D182: 3,756,820.19
A183: Stauch Vorster | B183: 3,747,483.26 | C183: 262,323.83 | D183: 4,009,807.09
A184: Staugh Vorster | B184: 11,042,421.22 | C184: 772,969.49 | D184: 11,815,390.71
A185: Std Bank Fox | B185: 9,308,553.72 | C185: 651,598.76 | D185: 9,960,152.48
A186: Std Bank Frederick | B186: 3,789,460.62 | C186: 265,262.24 | D186: 4,054,722.86
A187: Stormhill | B187: 4,719,141.95 | C187: 330,339.94 | D187: 5,049,481.89
A188: Stormill Ext.1 | B188: 7,882,433.34 | C188: 551,770.33 | D188: 8,434,203.67
A189: Strydom Str | B189: 2,965,999.04 | C189: 207,619.93 | D189: 3,173,618.98
A190: Swanepoel Park | B190: 7,107,404.08 | C190: 497,518.29 | D190: 7,604,922.36
A191: Telkor | B191: 7,316,235.38 | C191: 512,136.48 | D191: 7,828,371.85
A192: Timber Str | B192: 9,430,235.79 | C192: 660,116.51 | D192: 10,090,352.30
A193: Transformer Refurbishment | B193: 38,619,060.54 | C193: 2,703,334.24 | D193: 41,322,394.78
A194: Transport Str | B194: 6,218,336.61 | C194: 435,283.56 | D194: 6,653,620.17
A195: Tshepisong East and west | B195: 27,227,131.87 | C195: 1,905,899.23 | D195: 29,133,031.10
A196: Turffontein | B196: 3,781,535.98 | C196: =B196*C$1 -> 264,707.52 | D196: =B196+C196 -> 4,046,243.50
A197: Vaalbos | B197: 6,326,330.61 | C197: 442,843.14 | D197: 6,769,173.76
A198: Vasco Da Gama | B198: 12,647,857.61 | C198: 885,350.03 | D198: 13,533,207.64
A199: Voda World | B199: 2,741,689.78 | C199: 191,918.28 | D199: 2,933,608.06
A200: Vrededorp | B200: 11,954,340.65 | C200: 836,803.85 | D200: 12,791,144.50
A201: W N L A | B201: 2,818,937.83 | C201: 197,325.65 | D201: 3,016,263.48
... 9 more rows

Sheet Substation Equipment
A1: Substation Name | B1: Replacement Value | C1: 7% | D1: Replacement Value 2023-2024
A2: Alexandra 88_11kV SS(Missing) | B2: 170,150,000.00 | C2: =B2*C$1 -> 11,910,500.00 | D2: =B2+C2 -> 182,060,500.00
A3: Bellevue 88_11kV SS | B3: 55,599,000.00 | C3: =B3*C$1 -> 3,891,930.00 | D3: =B3+C3 -> 59,490,930.00
A4: Beyers 88_11kV SS | B4: 41,045,000.00 | C4: 2,873,150.00 | D4: 43,918,150.00
A5: Bond St 88_11kV SS | B5: 109,000,000.00 | C5: 7,630,000.00 | D5: 116,630,000.00
A6: Bordeaux 88_6.6kV SS | B6: 13,170,000.00 | C6: 921,900.00 | D6: 14,091,900.00
A7: Braamfontein 88_11kV SS | B7: 99,171,000.00 | C7: 6,941,970.00 | D7: 106,112,970.00
A8: Bree 88_11kV SS | B8: 160,445,000.00 | C8: 11,231,150.00 | D8: 171,676,150.00
A9: Bryanston 44_6.6kV SS | B9: 20,670,000.00 | C9: 1,446,900.00 | D9: 22,116,900.00
A10: Bryanston Temp 11_6.6kV SS | B10: 57,100,000.00 | C10: 3,997,000.00 | D10: 61,097,000.00
A11: Brynorth 88_6.6kV SS | B11: 35,890,000.00 | C11: 2,512,300.00 | D11: 38,402,300.00
A12: C.De Wet 88_11kV SS | B12: 104,557,000.00 | C12: 7,318,990.00 | D12: 111,875,990.00
A13: Central A+B SS | B13: 557,340,000.00 | C13: 39,013,800.00 | D13: 596,353,800.00
A14: Cleveland 88_11kV SS(Missing) | B14: 150,135,000.00 | C14: 10,509,450.00 | D14: 160,644,450.00
A15: Crown 132_11kV SS | B15: 125,990,000.00 | C15: 8,819,300.00 | D15: 134,809,300.00
A16: Cydna 88_11kV SS | B16: 150,106,000.00 | C16: 10,507,420.00 | D16: 160,613,420.00
A17: Dainfern 22_11KV SS | B17: 78,360,000.00 | C17: 5,485,200.00 | D17: 83,845,200.00
A18: Delta 275_88_11kV SS | B18: 440,215,000.00 | C18: 30,815,050.00 | D18: 471,030,050.00
A19: Eikenhof 88_11kV SS(Miss) | B19: 119,515,000.00 | C19: 8,366,050.00 | D19: 127,881,050.00
A20: Eldorado 88_11kV SS | B20: 104,127,000.00 | C20: 7,288,890.00 | D20: 111,415,890.00
A21: Ennerdale 88_11kV | B21: 79,514,000.00 | C21: 5,565,980.00 | D21: 85,079,980.00
A22: Florida 33_6.6kV SS | B22: 184,120,000.00 | C22: 12,888,400.00 | D22: 197,008,400.00
A23: Florida Glen 33_6.6kV SS | B23: 94,840,000.00 | C23: 6,638,800.00 | D23: 101,478,800.00
A24: Florida North 33_6.6kV SS | B24: 86,030,000.00 | C24: 6,022,100.00 | D24: 92,052,100.00
A25: Fordsburg | B25: 602,010,000.00 | C25: 42,140,700.00 | D25: 644,150,700.00
A26: Fort 88_11kV SS | B26: 140,585,000.00 | C26: 9,840,950.00 | D26: 150,425,950.00
A27: Fountainbleau 88_11kV SS | B27: 82,920,000.00 | C27: 5,804,400.00 | D27: 88,724,400.00
A28: Gresswold 88_11kV SS | B28: 142,595,000.00 | C28: 9,981,650.00 | D28: 152,576,650.00
A29: Grnd Central 88_11kV SS(Miss) | B29: 156,120,000.00 | C29: 10,928,400.00 | D29: 167,048,400.00
A30: Harley St 88_11KV SS | B30: 32,940,000.00 | C30: 2,305,800.00 | D30: 35,245,800.00
A31: Heriotdale 88_11_6.6kVSS | B31: 139,993,000.00 | C31: 9,799,510.00 | D31: 149,792,510.00
A32: Hopefield 88_11kV SS | B32: 46,253,000.00 | C32: 3,237,710.00 | D32: 49,490,710.00
A33: HoutkoppenV 88_11KV SS | B33: 20,190,000.00 | C33: 1,413,300.00 | D33: 21,603,300.00
A34: Hurlingham 88_11kV SS | B34: 100,471,000.00 | C34: 7,032,970.00 | D34: 107,503,970.00
A35: Hursthill 88_11kV SS | B35: 128,052,000.00 | C35: 8,963,640.00 | D35: 137,015,640.00
A36: Industria 88_11kV SS | B36: 193,610,000.00 | C36: 13,552,700.00 | D36: 207,162,700.00
A37: Jeppe 20.5_6.6kV SS | B37: 19,790,000.00 | C37: 1,385,300.00 | D37: 21,175,300.00
A38: Jware 88_20.5_11_6.6kV SS | B38: 359,190,000.00 | C38: 25,143,300.00 | D38: 384,333,300.00
A39: Kazerne 88_11kV SS | B39: 106,430,000.00 | C39: 7,450,100.00 | D39: 113,880,100.00
A40: Khanyisa 88_11kV SS | B40: 106,432,000.00 | C40: 7,450,240.00 | D40: 113,882,240.00
A41: Klipfontein 44_11kV SS | B41: 42,790,000.00 | C41: 2,995,300.00 | D41: 45,785,300.00
A42: Kloofendal 88_11kV SS | B42: 154,600,000.00 | C42: 10,822,000.00 | D42: 165,422,000.00
A43: Lea Glen 33_6.6kV SS | B43: 47,210,000.00 | C43: 3,304,700.00 | D43: 50,514,700.00
A44: Lehae 88_11kV SS | B44: 83,007,000.00 | C44: 5,810,490.00 | D44: 88,817,490.00
A45: Lenasia 88_6.6kV SS | B45: 17,765,000.00 | C45: 1,243,550.00 | D45: 19,008,550.00
A46: Lens South 88_11kV SS | B46: 58,095,000.00 | C46: 4,066,650.00 | D46: 62,161,650.00
A47: Longlake 88_11kV SS(Miss) | B47: 155,560,000.00 | C47: 10,889,200.00 | D47: 166,449,200.00
A48: Lotus 88_11kV SS | B48: 388,098,000.00 | C48: 27,166,860.00 | D48: 415,264,860.00
A49: Lufhereng 88_11kV SS | B49: 82,089,000.00 | C49: 5,746,230.00 | D49: 87,835,230.00
A50: Lunar 88_11kV SS(MISS) | B50: 62,113,000.00 | C50: 4,347,910.00 | D50: 66,460,910.00
A51: Manufata 33_6.6kV SS | B51: 77,340,000.00 | C51: 5,413,800.00 | D51: 82,753,800.00
A52: Mayfair 88_11kV SS | B52: 155,260,000.00 | C52: 10,868,200.00 | D52: 166,128,200.00
A53: Moffat 88_11kV SS | B53: 60,407,000.00 | C53: 4,228,490.00 | D53: 64,635,490.00
A54: Mondeor 88_11kV SS (Missing) | B54: 148,825,000.00 | C54: 10,417,750.00 | D54: 159,242,750.00
A55: Morningside 44_6.6kV SS | B55: 12,260,000.00 | C55: 858,200.00 | D55: 13,118,200.00
A56: Nancefield 88_11kV SS | B56: 125,091,000.00 | C56: 8,756,370.00 | D56: 133,847,370.00
A57: New Rd 88_11kV SS | B57: 159,230,000.00 | C57: 11,146,100.00 | D57: 170,376,100.00
A58: Nirvana 88_11kV | B58: 124,111,000.00 | C58: 8,687,770.00 | D58: 132,798,770.00
A59: Noordwyk 88_11kV SS(MISS) | B59: 31,900,000.00 | C59: 2,233,000.00 | D59: 34,133,000.00
A60: Northriding 88_11KV SS | B60: 40,720,000.00 | C60: 2,850,400.00 | D60: 43,570,400.00
A61: Nursery 33_6.6kV SS | B61: 151,765,000.00 | C61: 10,623,550.00 | D61: 162,388,550.00
A62: Observatory 88_11kV SS | B62: 109,061,000.00 | C62: 7,634,270.00 | D62: 116,695,270.00
A63: Olivedale 88_11KV SS | B63: 41,700,000.00 | C63: 2,919,000.00 | D63: 44,619,000.00
A64: Ontdekkers 33_6.6kV SS | B64: 101,510,000.00 | C64: 7,105,700.00 | D64: 108,615,700.00
A65: Orchards 88_11kV SS | B65: 65,236,000.00 | C65: 4,566,520.00 | D65: 69,802,520.00
A66: Parkhurst 88_11kV | B66: 125,838,000.00 | C66: 8,808,660.00 | D66: 134,646,660.00
A67: Penny St 33_6.6kV SS | B67: 136,530,000.00 | C67: =B67*C$1 -> 9,557,100.00 | D67: =B67+C67 -> 146,087,100.00
A68: Pennyville 88_11kV SS | B68: 69,554,000.00 | C68: 4,868,780.00 | D68: 74,422,780.00
A69: Peter Rd 88_11kV SS(MISS) | B69: 103,010,000.00 | C69: 7,210,700.00 | D69: 110,220,700.00
A70: Pritchard 88_11kV SS | B70: 114,820,000.00 | C70: 8,037,400.00 | D70: 122,857,400.00
A71: Prospect 275_88_11kV SS | B71: 645,380,000.00 | C71: 45,176,600.00 | D71: 690,556,600.00
A72: R_Sentraal 88_33kV SS | B72: 174,690,000.00 | C72: 12,228,300.00 | D72: 186,918,300.00
A73: Randburg 88_11kV SS | B73: 38,350,000.00 | C73: 2,684,500.00 | D73: 41,034,500.00
A74: Randburg 88_6.6kV SS | B74: 18,030,000.00 | C74: 1,262,100.00 | D74: 19,292,100.00
A75: Ridge 88_11kV SS | B75: 95,317,000.00 | C75: 6,672,190.00 | D75: 101,989,190.00
A76: Robertsham 88_11kV SS | B76: 137,690,000.00 | C76: 9,638,300.00 | D76: 147,328,300.00
A77: Robertville 88_11kV SS | B77: 63,192,000.00 | C77: 4,423,440.00 | D77: 67,615,440.00
A78: Roodepoort 11_6.6kV SS | B78: 70,010,000.00 | C78: 4,900,700.00 | D78: 74,910,700.00
A79: Roodepoort 88_11kV SS | B79: 113,281,000.00 | C79: 7,929,670.00 | D79: 121,210,670.00
A80: Roodetown 88_33kV SS | B80: 113,510,000.00 | C80: 7,945,700.00 | D80: 121,455,700.00
A81: Roosevelt 88_11kV SS | B81: 149,149,000.00 | C81: 10,440,430.00 | D81: 159,589,430.00
A82: Rosebank 88_11kV SS | B82: 155,629,000.00 | C82: 10,894,030.00 | D82: 166,523,030.00
A83: Sebenza 275_88kV SS | B83: 594,779,000.00 | C83: 41,634,530.00 | D83: 636,413,530.00
A84: Selby 20.5_6.6kV SS | B84: 29,950,000.00 | C84: 2,096,500.00 | D84: 32,046,500.00
A85: Siemert Rd 88_11kV SS | B85: 122,339,000.00 | C85: 8,563,730.00 | D85: 130,902,730.00
A86: Soweto Local 88_11kV SS | B86: 99,263,000.00 | C86: 6,948,410.00 | D86: 106,211,410.00
A87: Van Beek 88_20.5_6.6kV SS | B87: 22,590,000.00 | C87: 1,581,300.00 | D87: 24,171,300.00
A88: Vorna Valley 88_11kV SS(MISS) | B88: 29,240,000.00 | C88: 2,046,800.00 | D88: 31,286,800.00
A89: Waterfall 88_11kV SS | B89: 20,070,000.00 | C89: 1,404,900.00 | D89: 21,474,900.00
A90: Wemmer 88_11kV SS | B90: 135,092,000.00 | C90: 9,456,440.00 | D90: 144,548,440.00
A91: Westfield 88_11kV SS(MISS) | B91: 164,808,500.00 | C91: 11,536,595.00 | D91: 176,345,095.00
A92: Wilro Park 88_11kV SS | B92: 112,115,000.00 | C92: 7,848,050.00 | D92: 119,963,050.00
A93: Windsor 88_6.6kV SS | B93: 18,340,000.00 | C93: 1,283,800.00 | D93: 19,623,800.00
A95: Grand Total | B95: =SUM(B2:B94) -> 11,582,979,500.00 | C95: =SUM(C2:C94) -> 810,808,565.00 | D95: 12,393,788,065.00

Sheet Northriding 88_11kV SS
A1: Location | G1: Accountability | J1: Acquisition | K1: Asset Identifier | P1: Technical Data | S1: Perfomance | U1: Additional Information | Y1: Comments
A2: Date of Completion | B2: Street Address | C2: Suburb | D2: GPS Coordinates | E2: GPS Coordinates | F2: Functional Location | G2: Asset Description | H2: Department/ Planner Group | I2: Replacement Cost (Rands) | J2: Project ID | K2: Manufacturer | L2: Year of Manufacture | M2: Model No. | N2: Serial Number (Switchgear) | O2: Serial Number (Panels) | P2: Insulating Medium (Oil,Vacuum, SF6) | Q2: Current Ratings | R2: Voltage Rating | S2: Warranty | T2: Estimated Useful Life | U2: Supplier/Contractor | V2: Panel Control Cables Designation | W2: Length(m) | X2: Manual & Drawings (Y/N) | AA2: Replacement Cost (Rands) 2023-2024
G3: Northriding 88/11kV Substation
G4: 11kV Switchgear (FB 3) | Z4: 7%
B5: OLIEVENHOUT AVENUE | C5: NORTHRIDING A H | D5: 27°56'28.572"E | E5: 26°3'46.512"S | G5: Northriding 88/11kV SS 185MM Cable to MSS 01847 STD 4926 Randpark Ridge Amakoekoe Apple Str Dist. (Bay 38) | I5: 600,000.00 | K5: Alstom | L5: 2009 | M5: SBV3/800/25/SI | N5: 10386/2009 | O5: 10373/2009 | P5: Vacuum | Q5: 800A | R5: 12kV | X5: SLD | Z5: =I5*Z$4 -> 42,000.00 | AA5: =I5+Z5 -> 642,000.00
G6: Northriding 88/11kV SS MSS 02977 Valley Road Dist. (Bay 39) | I6: 600,000.00 | K6: Alstom | L6: 2009 | M6: SBV3E/800/25/SI | N6: 10373/2009 | O6: 10374/2009 | P6: Vacuum | Q6: 800A | R6: 12kV | X6: SLD | Y6: Breaker belongs to Panel 38 | Z6: =I6*Z$4 -> 42,000.00 | AA6: =I6+Z6 -> 642,000.00
G7: Northriding 88/11kV SS 185X3CU no 782 Bellairs Drive Bellairs Park 9 Dist. (Bay 40) | I7: 600,000.00 | K7: Alstom | L7: 2009 | M7: SBV3/800/25/SI | N7: 10375/2009 | O7: 10375/2009 | P7: Vacuum | Q7: 800A | R7: 12kV | X7: SLD | Z7: 42,000.00 | AA7: 642,000.00
F8: C-NRTHR-FB2B-CLBTN1 | G8: Northriding 88/11kV SS Celebration Distributor 1 185X3CU To BMK 00342 Northgate Street Dist. (Bay 41) | I8: 600,000.00 | K8: Alstom | L8: 2009 | M8: SBV3/800/25/SI | N8: 10377/2009 | O8: 10376/2009 | P8: Vacuum | Q8: 800A | R8: 12kV | X8: SLD | Y8: Breaker belongs to Panel 42 | Z8: 42,000.00 | AA8: 642,000.00
F9: C-NRTHR-FB2B-CLBTN2 | G9: Northriding 88/11kV SS Celebration Distributor 2 185X3CU To BMK 00343 Aureole Ave Dist. (Bay 42) | I9: 600,000.00 | K9: Alstom | L9: 2009 | M9: SBV3E/800/25/SI | N9: 1584/16 | O9: 10377/2009 | P9: Vacuum | Q9: 800A | R9: 12kV | X9: SLD | Z9: 42,000.00 | AA9: 642,000.00
F10: C-NRTHR-FB2B-SPAR43 | G10: Northriding 88/11kV SS Spare Dist. (Bay 43) | I10: 600,000.00 | K10: Alstom | L10: 2009 | M10: SBV3/800/25/SI | N10: No breaker | O10: 10378/2009 | P10: Vacuum | Q10: 800A | R10: 12kV | X10: SLD | Z10: 42,000.00 | AA10: 642,000.00
F11: C-NRTHR-FB2B-BNDRYS | G11: Northriding 88/11kV SS Boundary Park 11kV Standby Dist. (Bay 44) | I11: 600,000.00 | K11: Alstom | L11: 2009 | M11: SBV3/800/25/SI | N11: 10383/2009 | O11: 1379/2009 | P11: Vacuum | Q11: 800A | R11: 12kV | X11: SLD | Z11: 42,000.00 | AA11: 642,000.00
G12: Northriding 88/11kV SS Bus Section (Bay 45) | I12: 650,000.00 | K12: Alstom | L12: 2009 | M12: SBV3E/2500/40/S | N12: 10385/2009 | O12: 10372/2009 | P12: Vacuum | Q12: 2500A | R12: 12kV | X12: SLD | Z12: 45,500.00 | AA12: 695,500.00
F13: C-NRTHR-FB1A-PRCSN | G13: Northriding 88/11kV SS Precision S/S 111 Dist. (Bay 46) | I13: 600,000.00 | K13: Alstom | L13: 2009 | M13: SBV3E/800/25/SI | N13: 15833/18 | O13: No cover | P13: Vacuum | Q13: 800A | R13: 12kV | X13: SLD | Z13: 42,000.00 | AA13: 642,000.00
F14: C-NRTHR-FB2C-RM2820 | G14: Northriding 88/11kV SS RMU 00768 S/S 2820 Boundary RD Dist. (Bay 47) | I14: 600,000.00 | K14: Alstom | L14: 2009 | M14: SBV3E/800/25/SI | N14: 10257/2009 | O14: 10382/2009 | P14: Vacuum | Q14: 800A | R14: 12kV | X14: SLD | Z14: 42,000.00 | AA14: 642,000.00
F15: C-NRTHR-FB2C-ARL246 | G15: Northriding 88/11kV SS Aureole 246 SWS No.1 Dist. (Bay 48) | I15: 600,000.00 | K15: Alstom | L15: 2009 | M15: SBV3/800/25/SI | N15: 10374/2009 | O15: No cover | P15: Vacuum | Q15: 800A | R15: 12kV | X15: SLD | Z15: 42,000.00 | AA15: 642,000.00
F16: C-NRTHR-FB2C-NWMRKT | G16: Northriding 88/11kV SS New Market St S/S 189 Hoogland 24 185X3Core CU Dist. (Bay 49) | I16: 600,000.00 | K16: Alstom | L16: 2009 | M16: No nameplate | N16: No nameplate | O16: 10384/2009 | P16: Vacuum | Q16: 800A | R16: 12kV | X16: SLD | Z16: 42,000.00 | AA16: 642,000.00
F17: C-NRTHR-FB2C-OL1257 | G17: Northriding 88/11kV SS S/S 1275 Olievenhout Avenue Sundownern Extension 40 Dist. (Bay 50) | I17: 600,000.00 | K17: Alstom | L17: 2009 | M17: SBV3/800/25/SI | N17: 10379/2009 | O17: 10385/2009 | P17: Vacuum | Q17: 800A | R17: 12kV | X17: SLD | Z17: 42,000.00 | AA17: 642,000.00
F18: C-NRTHR-FB2C-OLV409 | G18: Northriding 88/11kV SS 185X3 To T-Swicth 409 Olievenhout Dist. (Bay 51) | I18: 600,000.00 | K18: Alstom | L18: 2009 | M18: SBV3/800/25/SI | N18: 10376/2009 | O18: 10386/2009 | P18: Vacuum | Q18: 800A | R18: 12kV | X18: SLD | Z18: 42,000.00 | AA18: 642,000.00
F19: C-NRTHR-FB2C-QRN288 | G19: Northriding 88/11kV SS TSS 288 Quorn Drive Northriding Estate Extention 1 Dist. (Bay 52) | I19: 600,000.00 | K19: Alstom | L19: 2009 | M19: SBV3/800/25/SI | N19: 10387/2009 | O19: 10387/2009 | P19: Vacuum | Q19: 800A | R19: 12kV | X19: SLD | Z19: 42,000.00 | AA19: 642,000.00
F20: C-NRTHR-FB2C-TRFR03 | G20: Northriding 88/11kV SS Incomer 3 (3TO Bay 53) | I20: 650,000.00 | K20: Alstom | L20: 2009 | M20: SBV3E/2500/40/S | N20: 10371/2009 | O20: 10371/2009 | P20: Vacuum | Q20: 2500A | R20: 12kV | X20: SLD | Y20: 1XTest Block | Z20: 45,500.00 | AA20: 695,500.00
G21: Sub Total | I21: =SUM(I5:I20) -> 9,700,000.00 | Z21: 679,000.00 | AA21: 10,379,000.00
G22: 11kV Switchgear (FB 2) | Z22: 0 | AA22: 0
F23: C-NRTHR-FB2A-INTFB1 | G23: Northriding 88/11kV SS Interconnector to FB1 (2SO Bay 35) | I23: 650,000.00 | K23: Alstom | L23: 2009 | M23: SBV3E/2500/40/S | N23: 10380/2009 | O23: 10380/2009 | P23: Vacuum | Q23: 2500A | R23: 12kV | X23: SLD | Z23: 45,500.00 | AA23: 695,500.00
F24: C-NRTHR-TR02 | G24: Northriding 88/11kV SS Incomer 2 (2TO Bay 36) | I24: 650,000.00 | K24: Alstom | L24: 2009 | M24: SBV3E/2500/40/S | N24: 10370/2009 | O24: 10370/2009 | P24: Vacuum | Q24: 2500A | R24: 12kV | X24: SLD | Y24: 1XTest Block | Z24: 45,500.00 | AA24: 695,500.00
F25: C-NRTHR-BS03 | G25: Northriding 88/11kV SS Bus Section (3CO Bay 45) | I25: 650,000.00 | K25: Alstom | L25: 2009 | M25: SBV3E/2500/40/S | N25: 10372/2009 | O25: 10388/2009 | P25: Vacuum | Q25: 2500A | R25: 12kV | X25: SLD | Y25: 1XTest Block | Z25: 45,500.00 | AA25: 695,500.00
G26: Sub Total | I26: =SUM(I23:I25) -> 1,950,000.00 | Z26: 136,500.00 | AA26: 2,086,500.00
G27: 11kV Switchgear (FB1 Old Building) | Z27: 0 | AA27: 0
F28: C-NRTHR-FB1A-TRFR01 | G28: Northriding 88/11kV SS Transformer 1 Incomer (Bay 1) | I28: 650,000.00 | K28: Alstom | L28: 2003 | M28: SBV3E/2000/40-SBI | N28: 7443/2003 | O28: 7443/2003 | P28: Vacuum | Q28: 2000A | R28: 12kV | Z28: 45,500.00 | AA28: 695,500.00
F29: C-NRTHR-FB1A-QRN302 | G29: Northriding 88/11kV SS Quorn 302 Dist. (Bay 2) | I29: 600,000.00 | K29: Alstom | L29: 2003 | M29: SBV3E/800/25-SBI | N29: 7442/2003 | O29: 7442/2003 | P29: Vacuum | Q29: 800A | R29: 12kV | Z29: 42,000.00 | AA29: 642,000.00
F30: C-NRTHR-FB1A-OVH263 | G30: Northriding 88/11kV SS Olievenhout Ave 253 11kV Dist. (Bay 3) | I30: 600,000.00 | K30: Alstom | L30: 2003 | M30: SBV3E/800/25-SBI | N30: 7428/2003 | O30: 7428/2003 | P30: Vacuum | Q30: 800A | R30: 12kV | Z30: 42,000.00 | AA30: 642,000.00
F31: C-NRTHR-FB1A-BEL197 | G31: Northriding 88/11kV SS Bellaires Dr 197 Dist. (Bay 4) | I31: 600,000.00 | K31: Alstom | L31: 2003 | M31: SBV3E/800/25-SBI | N31: 7434/2003 | O31: 7434/2003 | P31: Vacuum | Q31: 800A | R31: 12kV | Z31: 42,000.00 | AA31: 642,000.00
F32: C-NRTHR-FB1A-NTH275 | G32: Northriding 88/11kV SS Northumberland 275 Dist. (Bay 5) | I32: 600,000.00 | K32: Alstom | L32: 2003 | M32: SBV3E/800/25-SBI | N32: 7431/2003 | O32: 7431/2003 | P32: Vacuum | Q32: 800A | R32: 12kV | Z32: 42,000.00 | AA32: 642,000.00
F33: C-NRTHR-FB1A-NTHG01 | G33: Northriding 88/11kV SS Northgate 1 Dist. (Bay 6) | I33: 600,000.00 | K33: Alstom | L33: 2003 | M33: SBV3E/800/25-SBI | N33: 7432/2003 | O33: 7432/2003 | P33: Vacuum | Q33: 800A | R33: 12kV | Z33: 42,000.00 | AA33: 642,000.00
F34: C-NRTHR-FB1A-PRCSN | G34: Northriding 88/11kV SS Precision Switching Station (Bay 7) | I34: 600,000.00 | K34: Alstom | L34: 2003 | M34: SBV3E/800/25-SBI | N34: 7433/2003 | O34: 7433/2003 | P34: Vacuum | Q34: 800A | R34: 12kV | Z34: 42,000.00 | AA34: 642,000.00
F35: C-NRTHR-FB1A-DOME01 | G35: Northriding 88/11kV SS Dome 1 Dist. (Bay 8) | I35: 600,000.00 | K35: Alstom | L35: 2003 | M35: SBV3E/800/25-SBI | N35: 7429/2003 | O35: 7429/2003 | P35: Vacuum | Q35: 800A | R35: 12kV | Z35: 42,000.00 | AA35: 642,000.00
G36: Northriding 88/11kV SS Bus Section (9CO Bay 9) | I36: 650,000.00 | K36: Alstom | L36: 2003 | M36: SBV3E/2000/40-SBI | N36: 7427/2003 | O36: 7427/2003 | P36: Vacuum | Q36: 2000A | R36: 12kV | Z36: 45,500.00 | AA36: 695,500.00
F37: C-NRTHR-FB1B-PERMRD | G37: Northriding 88/11kV SS Perm Road Dist. Bay 10 | I37: 600,000.00 | K37: Alstom | L37: 2003 | M37: SBV3E/800/25-SBI | N37: 7436/2003 | O37: 7436/2003 | P37: Vacuum | Q37: 800A | R37: 12kV | Z37: 42,000.00 | AA37: 642,000.00
F38: C-NRTHR-FB1B-TRMLIN | G38: Northriding 88/11kV SS Tourmaline Dist. (Bay 11) | I38: 600,000.00 | K38: Alstom | L38: 2003 | M38: SBV3E/800/25-SBI | N38: 7437/2003 | O38: 7437/2003 | P38: Vacuum | Q38: 800A | R38: 12kV | Z38: 42,000.00 | AA38: 642,000.00
F39: C-NRTHR-FB1B-TAURUS | G39: Northriding 88/11kV SS Taurus Road Dist. (Bay 12) | I39: 600,000.00 | K39: Alstom | L39: 2003 | M39: SBV3E/800/25-SBI | N39: 7438/2003 | O39: 7438/2003 | P39: Vacuum | Q39: 800A | R39: 12kV | Z39: 42,000.00 | AA39: 642,000.00
F40: C-NRTHR-FB2A-AURL02 | G40: Northriding 88/11kV SS Aureole Switching Station 2 Dist. (Bay 13) | I40: 600,000.00 | K40: Alstom | L40: 2003 | M40: SBV3E/800/25-SBI | N40: 7439/2003 | O40: 7439/2003 | P40: Vacuum | Q40: 800A | R40: 12kV | Z40: 42,000.00 | AA40: 642,000.00
F41: C-NRTHR-FB1B-OVH162 | G41: Northriding 88/11kV SS Olievenhout 162 Dist. (Bay 14) | I41: 600,000.00 | K41: Alstom | L41: 2003 | M41: SBV3E/800/25-SBI | N41: 7441/2003 | O41: 7441/2003 | P41: Vacuum | Q41: 800A | R41: 12kV | Z41: 42,000.00 | AA41: 642,000.00
F42: C-NRTHR-FB1B-DOME02 | G42: Northriding 88/11kV SS Dome 2 Dist. (Bay 15) | I42: 600,000.00 | K42: Alstom | L42: 2003 | M42: SBV3E/800/25-SBI | N42: 7430/2003 | O42: 7430/2003 | P42: Vacuum | Q42: 800A | R42: 12kV | Z42: 42,000.00 | AA42: 642,000.00
F43: C-NRTHR-FB1B-NTHG02 | G43: Northriding 88/11kV SS Northgate 2 Dist. (Bay 16) | I43: 600,000.00 | K43: Alstom | L43: 2003 | M43: SBV3E/800/25-SBI | N43: 7440/2003 | O43: 7440/2003 | P43: Vacuum | Q43: 800A | R43: 12kV | Z43: 42,000.00 | AA43: 642,000.00
F44: C-NRTHR-FB1B-INTFB2 | G44: Northriding 88/11kV SS Interconnector to FB 02 (Bay 17) | I44: 650,000.00 | K44: Alstom | L44: 2003 | M44: SBV3E/2000/40-SBI | N44: 7435/2003 | O44: 7435/2003 | P44: Vacuum | Q44: 200A | R44: 12kV | Z44: 45,500.00 | AA44: 695,500.00
G45: Sub Total | I45: =SUM(I28:I44) -> 10,350,000.00 | Z45: 724,500.00 | AA45: 11,074,500.00
G46: Relays (New Control Room) | Z46: 0 | AA46: 0
G47: Northriding 88/11kV SS Bus Section Control and Main Protection (4SO Bay 34) | I47: 200,000.00 | K47: SEL | L47: Not Specified | M47: SEL-751 | N47: 2008255406 | Q47: 1-5A | R47: 110V | Y47: 8XTest Blocks | Z47: 14,000.00 | AA47: 214,000.00
G48: Northriding 88/11kV SS Diff Protection (Bay 35) | I48: 150,000.00 | K48: Alstom | L48: Not Specified | M48: MHOB04N115AAA | N48: 721123/04/03 | Q48: 1A | R48: 110V | Z48: 10,500.00 | AA48: 160,500.00
G49: Northriding 88/11kV SS Interconnector Bay Control and Main Protection (Bay 35) | I49: 150,000.00 | K49: SEL | L49: Not Specified | M49: SEL-751 | N49: 2008269523 | Q49: 1-5A | R49: 110V | Z49: 10,500.00 | AA49: 160,500.00
G50: Northriding 88/11kV SS Incomer Bay Control and Main Protection (2TO Bay 36) | I50: 200,000.00 | K50: SEL | L50: Not Specified | M50: SEL-451 | N50: 2008261272 | Q50: 1-5A | R50: 110V | Z50: 14,000.00 | AA50: 214,000.00
G51: Northriding 88/11kV SS Eskom Intertrip Lockout 1 | I51: 150,000.00 | K51: Matrix | L51: Not Specified | M51: 2HSM515B2 | N51: 122586/1 | Q51: Not Specified | R51: 110V | Z51: 10,500.00 | AA51: 160,500.00
G52: Northriding 88/11kV SS Incomer Backup Protection (2TO Bay 36) | I52: 200,000.00 | K52: SEL | L52: Not Specified | M52: SEL-751 | N52: 2008255416 | Q52: 1-5A | R52: 110V | Z52: 14,000.00 | AA52: 214,000.00
G53: Northriding 88/11kV SS Voice Frequency relay (Bay 34,35 and 36) | I53: 150,000.00 | K53: SEL | L53: Not Specified | M53: SEL-2505 | N53: Nameplate Inaccessible | Q53: Nameplate Inaccessible | R53: 110V | Z53: 10,500.00 | AA53: 160,500.00
G54: Northriding 88/11kV SS Voice Frequency relay (Bay 34, 35 and 36) | I54: 150,000.00 | K54: SEL | L54: Not Specified | M54: SEL-2505 | N54: 2008344117 | Q54: Nameplate Inaccessible | R54: 110V | Z54: 10,500.00 | AA54: 160,500.00
G55: Northriding 88/11kV SS Bus Section Control and Main Protection (3SO Bay 37) | I55: 200,000.00 | K55: SEL | L55: Not Specified | M55: SEL-751 | N55: 2008269528 | Q55: 1-5A | R55: 110V | Y55: 5XTest Blocks | Z55: 14,000.00 | AA55: 214,000.00
G56: Northriding 88/11kV SS Feeder Bay Control and Main Protection (Bay 38) | I56: 150,000.00 | K56: SEL | L56: Not Specified | M56: SEL-751 | N56: 2008255404 | Q56: 1-5A | R56: 110V | Z56: 10,500.00 | AA56: 160,500.00
G57: Northriding 88/11kV SS Voice Frequency relay (Bay 37 and 38) | I57: 150,000.00 | K57: SEL | L57: Not Specified | M57: SEL-2505 | N57: Nameplate Inaccessible | Q57: Nameplate Inaccessible | R57: 110V | Z57: 10,500.00 | AA57: 160,500.00
G58: Northriding 88/11kV SS Voice Frequency relay (Bay 37 and 38) | I58: 150,000.00 | K58: SEL | L58: Not Specified | M58: SEL-2505 | N58: 2008270072 | Q58: Nameplate Inaccessible | R58: 110V | Z58: 10,500.00 | AA58: 160,500.00
G59: Northriding 88/11kV SS Feeder Bay Control and Main Protection (Bay 39) | I59: 150,000.00 | K59: SEL | L59: Not Specified | M59: SEL-751 | N59: 2008269525 | Q59: 1-5A | R59: 110V | Z59: 10,500.00 | AA59: 160,500.00
G60: Northriding 88/11kV SS Feeder Bay Control and Main Protection (Bay 40) | I60: 150,000.00 | K60: SEL | L60: Not Specified | M60: SEL-751 | N60: 2008269151 | Q60: 1-5A | R60: 110V | Z60: 10,500.00 | AA60: 160,500.00
G61: Northriding 88/11kV SS Feeder Bay Control and Main Protection (Bay 41) | I61: 150,000.00 | K61: SEL | L61: Not Specified | M61: SEL-751 | N61: 2008255411 | Q61: 1-5A | R61: 110V | Z61: 10,500.00 | AA61: 160,500.00
G62: Northriding 88/11kV SS Voice Frequency relay (Bay 39, 40 and 41) | I62: 150,000.00 | K62: SEL | L62: Not Specified | M62: SEL-2505 | N62: Nameplate Inaccessible | Q62: Nameplate Inaccessible | R62: 110V | Z62: 10,500.00 | AA62: 160,500.00
G63: Northriding 88/11kV SS Voice Frequency relay (Bay 39, 40 and 41) | I63: 150,000.00 | K63: SEL | L63: Not Specified | M63: SEL-2505 | N63: 2008255046 | Q63: Nameplate Inaccessible | R63: 110V | Z63: 10,500.00 | AA63: 160,500.00
G64: Northriding 88/11kV SS Voice Frequency relay (Bay 39, 40 and 41) | I64: 150,000.00 | K64: SEL | L64: Not Specified | M64: SEL-2505 | N64: 2008255036 | Q64: Nameplate Inaccessible | R64: 110V | Z64: 10,500.00 | AA64: 160,500.00
G65: Northriding 88/11kV SS Feeder Bay Control and Main Protection (Bay 42) | I65: 150,000.00 | K65: SEL | L65: Not Specified | M65: SEL-751 | N65: 2008255414 | Q65: 1-5A | R65: 110V | Y65: 9XTest Blocks | Z65: 10,500.00 | AA65: 160,500.00
G66: Northriding 88/11kV SS Feeder Bay Control and Main Protection (Bay 43) | I66: 150,000.00 | K66: SEL | L66: Not Specified | M66: SEL-751 | N66: 2008255408 | Q66: 1-5A | R66: 110V | Z66: 10,500.00 | AA66: 160,500.00
G67: Northriding 88/11kV SS Feeder Bay Control and Main Protection (Bay 44) | I67: 150,000.00 | K67: SEL | L67: Not Specified | M67: SEL-751 | N67: 2008255410 | Q67: 1-5A | R67: 110V | Z67: 10,500.00 | AA67: 160,500.00
G68: Northriding 88/11kV SS Diff Protection (Bay 44) | I68: 150,000.00 | K68: Areva | L68: Not Specified | M68: Micom P521 | N68: Not Specified | Q68: Nameplate Inaccessible | R68: 110V | Z68: 10,500.00 | AA68: 160,500.00
G69: Northriding 88/11kV SS Voice Frequency relay (Bay 42, 43 and 44) | I69: 150,000.00 | K69: SEL | L69: Not Specified | M69: SEL-2505 | N69: Nameplate Inaccessible | Q69: Nameplate Inaccessible | R69: 110V | Z69: 10,500.00 | AA69: 160,500.00
G70: Northriding 88/11kV SS Voice Frequency relay (Bay 42, 43 and 44) | I70: 150,000.00 | K70: SEL | L70: Not Specified | M70: SEL-2505 | N70: 2008273168 | Q70: Nameplate Inaccessible | R70: 110V | Z70: =I70*Z$4 -> 10,500.00 | AA70: =I70+Z70 -> 160,500.00
G71: Northriding 88/11kV SS Voice Frequency relay (Bay 42, 43 and 44) | I71: 150,000.00 | K71: SEL | L71: Not Specified | M71: SEL-2506 | N71: 2008273167 | Q71: Nameplate Inaccessible | R71: 110V | Z71: 10,500.00 | AA71: 160,500.00
G72: Northriding 88/11kV SS Bus Section Bay Control and Main Protection (3CO Bay 45) | I72: 200,000.00 | K72: SEL | L72: Not Specified | M72: SEL-751 | N72: 2008269517 | Q72: 1-5A | R72: 110V | Y72: 8XTest Blocks | Z72: 14,000.00 | AA72: 214,000.00
G73: Northriding 88/11kV SS Feeder Bay Control and Main Protection (Bay 46) | I73: 150,000.00 | K73: SEL | L73: Not Specified | M73: SEL-751 | N73: 2008269520 | Q73: 1-5A | R73: 110V | Z73: 10,500.00 | AA73: 160,500.00
G74: Northriding 88/11kV SS Feeder Bay Control and Main Protection (Bay 47) | I74: 150,000.00 | K74: SEL | L74: Not Specified | M74: SEL-751 | N74: 2008269518 | Q74: 1-5A | R74: 110V | Z74: 10,500.00 | AA74: 160,500.00
G75: Northriding 88/11kV SS Diff Protection (Bay 46) | I75: 150,000.00 | K75: Areva | L75: Not Specified | M75: Micom P521 | N75: Not Specified | Q75: 1-5A | R75: 110V | Z75: 10,500.00 | AA75: 160,500.00
G76: Northriding 88/11kV SS Diff Protection (Bay 47) | I76: 150,000.00 | K76: Areva | L76: Not Specified | M76: Micom P521 | N76: Not Specified | Q76: 1-5A | R76: 110V | Z76: 10,500.00 | AA76: 160,500.00
G77: Northriding 88/11kV SS Voice Frequency relay (Bay 45, 46 and 47) | I77: 150,000.00 | K77: SEL | L77: Not Specified | M77: SEL-2505 | N77: Nameplate Inaccessible | Q77: Nameplate Inaccessible | R77: 110V | Z77: 10,500.00 | AA77: 160,500.00
G78: Northriding 88/11kV SS Voice Frequency relay (Bay 45, 46 and 47) | I78: 150,000.00 | K78: SEL | L78: Not Specified | M78: SEL-2505 | N78: 2008344115 | Q78: Nameplate Inaccessible | R78: 110V | Z78: 10,500.00 | AA78: 160,500.00
G79: Northriding 88/11kV SS Voice Frequency relay (Bay 45, 46 and 47) | I79: 150,000.00 | K79: SEL | L79: Not Specified | M79: SEL-2505 | N79: 2008344112 | Q79: Nameplate Inaccessible | R79: 110V | Z79: 10,500.00 | AA79: 160,500.00
G80: Northriding 88/11kV SS Feeder Bay Control and Main Protection (Bay 48) | I80: 150,000.00 | K80: SEL | L80: Not Specified | M80: SEL-751 | N80: 2008255413 | Q80: 1-5A | R80: 110V | Y80: 9XTest Blocks | Z80: 10,500.00 | AA80: 160,500.00
G81: Northriding 88/11kV SS Feeder Bay Control and Main Protection (Bay 49) | I81: 150,000.00 | K81: SEL | L81: Not Specified | M81: SEL-751 | N81: 2008269530 | Q81: 1-5A | R81: 110V | Z81: 10,500.00 | AA81: 160,500.00
G82: Northriding 88/11kV SS Feeder Bay Control and Main Protection (Bay 50) | I82: 150,000.00 | K82: SEL | L82: Not Specified | M82: SEL-751 | N82: 2008255403 | Q82: 1-5A | R82: 110V | Z82: 10,500.00 | AA82: 160,500.00
G83: Northriding 88/11kV SS Voice Frequency relay (Bay 48, 49 and 50) | I83: 150,000.00 | K83: SEL | L83: Not Specified | M83: SEL-2505 | N83: Nameplate Inaccessible | Q83: Nameplate Inaccessible | R83: 110V | Z83: 10,500.00 | AA83: 160,500.00
G84: Northriding 88/11kV SS Voice Frequency relay (Bay 48, 49 and 50) | I84: 150,000.00 | K84: SEL | L84: Not Specified | M84: SEL-2505 | N84: 2008344113 | Q84: Nameplate Inaccessible | R84: 110V | Z84: 10,500.00 | AA84: 160,500.00
G85: Northriding 88/11kV SS Voice Frequency relay (Bay 48, 49 and 50) | I85: 150,000.00 | K85: SEL | L85: Not Specified | M85: SEL-2505 | N85: 2008344110 | Q85: Nameplate Inaccessible | R85: 110V | Z85: 10,500.00 | AA85: 160,500.00
G86: Northriding 88/11kV SS Feeder Bay Control and Main Protection (Bay 51) | I86: 150,000.00 | K86: SEL | L86: Not Specified | M86: SEL-751 | N86: 2008255412 | Q86: 1-5A | R86: 110V | Y86: 9XTest Blocks | Z86: 10,500.00 | AA86: 160,500.00
G87: Northriding 88/11kV SS Feeder Bay Control and Main Protection (Bay 52) | I87: 150,000.00 | K87: SEL | L87: Not Specified | M87: SEL-751 | N87: 2008255409 | Q87: 1-5A | R87: 110V | Z87: 10,500.00 | AA87: 160,500.00
G88: Northriding 88/11kV SS Incomer Bay Control and Main Protection (Bay 53) | I88: 200,000.00 | K88: SEL | L88: Not Specified | M88: SEL-451 | N88: 2008276503 | Q88: 1-5A | R88: 110V | Z88: 14,000.00 | AA88: 214,000.00
G89: Northriding 88/11kV SS Incomer Backup Protection (Bay 53) | I89: 200,000.00 | K89: SEL | L89: Not Specified | M89: SEL-751 | N89: 2008255415 | Q89: 1-5A | R89: 110V | Z89: 14,000.00 | AA89: 214,000.00
G90: Northriding 88/11kV SS Voice Frequency relay (Bay 51, 52 and 53) | I90: 150,000.00 | K90: SEL | L90: Not Specified | M90: SEL-2505 | N90: Nameplate Inaccessible | Q90: Nameplate Inaccessible | R90: 110V | Z90: 10,500.00 | AA90: 160,500.00
G91: Northriding 88/11kV SS Voice Frequency relay (Bay 51, 52 and 53) | I91: 150,000.00 | K91: SEL | L91: Not Specified | M91: SEL-2505 | N91: 2008273160 | Q91: Nameplate Inaccessible | R91: 110V | Z91: 10,500.00 | AA91: 160,500.00
G92: Northriding 88/11kV SS Eskom Intertrip Lockout 1 | I92: 150,000.00 | K92: Matrix | L92: Not Specified | M92: 2HSM515B2 | N92: 122588/3 | Q92: Not Specified | R92: 110V | Z92: 10,500.00 | AA92: 160,500.00
G93: Sub Total | I93: =SUM(I47:I92) -> 7,250,000.00 | Z93: 507,500.00 | AA93: 7,757,500.00
G94: Relays (Old Control Room) | Z94: 0 | AA94: 0
G95: Northriding 88/11kV SS Incomer Protection and Control (Bay 1) | I95: 200,000.00 | K95: SEL | L95: Not Specified | M95: SEL-351S | N95: 20022352073 | Q95: 1-5A | R95: 110V | Y95: 5XTest Blocks | Z95: 14,000.00 | AA95: 214,000.00
G96: Northriding 88/11kV SS Feeder Protection and Control (Bay 2) | I96: 150,000.00 | K96: SEL | L96: Not Specified | M96: SEL-351S | N96: 20022352070 | Q96: 1-5A | R96: 110V | Z96: 10,500.00 | AA96: 160,500.00
G97: Northriding 88/11kV SS Eskom Intertrip (Bay 1) | I97: 150,000.00 | K97: GEC Alsthom | L97: Not Specified | M97: VAJ | N97: Namplate Inaccessible | Q97: Namplate Inaccessible | R97: 110V | Z97: 10,500.00 | AA97: 160,500.00
G98: Northriding 88/11kV SS Feeder Protection and Control (Bay 3) | I98: 150,000.00 | K98: SEL | L98: Not Specified | M98: SEL-351S | N98: 2003168060 | Q98: 1-5A | R98: 110V | Y98: 9XTest Blocks | Z98: 10,500.00 | AA98: 160,500.00
G99: Northriding 88/11kV SS Feeder Protection and Control (Bay 4) | I99: 150,000.00 | K99: SEL | L99: Not Specified | M99: SEL-351S | N99: 2003168062 | Q99: 1-5A | R99: 110V | Z99: 10,500.00 | AA99: 160,500.00
G100: Northriding 88/11kV SS Feeder Protection and Control (Bay 5) | I100: 150,000.00 | K100: SEL | L100: Not Specified | M100: SEL-351S | N100: 2003168078 | Q100: 1-5A | R100: 110V | Z100: 10,500.00 | AA100: 160,500.00
G101: Northriding 88/11kV SS Feeder Protection and Control (Bay 6) | I101: 150,000.00 | K101: SEL | L101: Not Specified | M101: SEL-351S | N101: 2003168079 | Q101: 1-5A | R101: 110V | Y101: 9XTest Blocks | Z101: 10,500.00 | AA101: 160,500.00
G102: Northriding 88/11kV SS Feeder Protection and Control (Bay 7) | I102: 150,000.00 | K102: SEL | L102: Not Specified | M102: SEL-351S | N102: 2003168073 | Q102: 1-5A | R102: 110V | Z102: 10,500.00 | AA102: 160,500.00
G103: Northriding 88/11kV SS Feeder Protection and Control (Bay 8) | I103: 150,000.00 | K103: SEL | L103: Not Specified | M103: SEL-351S | N103: 2003168063 | Q103: 1-5A | R103: 110V | Z103: 10,500.00 | AA103: 160,500.00
G104: Northriding 88/11kV SS Feeder Protection and Control (Bay 9) | I104: 150,000.00 | K104: SEL | L104: Not Specified | M104: SEL-351S | N104: 2005159007 | Q104: 1-5A | R104: 110V | Y104: 8XTest Blocks | Z104: 10,500.00 | AA104: 160,500.00
G105: Northriding 88/11kV SS Feeder Protection and Control (Bay 10) | I105: 150,000.00 | K105: SEL | L105: Not Specified | M105: SEL-351S | N105: 2003668069 | Q105: 1-5A | R105: 110V | Z105: 10,500.00 | AA105: 160,500.00
G106: Northriding 88/11kV SS Feeder Protection and Control (Bay 11) | I106: 150,000.00 | K106: SEL | L106: Not Specified | M106: SEL-351S | N106: 2003168070 | Q106: 1-5A | R106: 110V | Z106: 10,500.00 | AA106: 160,500.00
G107: Northriding 88/11kV SS Feeder Protection and Control (Bay 12) | I107: 150,000.00 | K107: SEL | L107: Not Specified | M107: SEL-351S | N107: 2003168068 | Q107: 1-5A | R107: 110V | Y107: 9XTest Blocks | Z107: 10,500.00 | AA107: 160,500.00
G108: Northriding 88/11kV SS Feeder Protection and Control (Bay 13) | I108: 150,000.00 | K108: SEL | L108: Not Specified | M108: SEL-351S | N108: 2003168074 | Q108: 1-5A | R108: 110V | Z108: 10,500.00 | AA108: 160,500.00
G109: Northriding 88/11kV SS Feeder Protection and Control (Bay 14) | I109: 150,000.00 | K109: SEL | L109: Not Specified | M109: SEL-351S | N109: 2003168077 | Q109: 1-5A | R109: 110V | Z109: 10,500.00 | AA109: 160,500.00
G110: Northriding 88/11kV SS Feeder Protection and Control (Bay 15) | I110: 150,000.00 | K110: SEL | L110: Not Specified | M110: SEL-351S | N110: 2006240231 | Q110: 1-5A | R110: 110V | Y110: 9XTest Blocks | Z110: 10,500.00 | AA110: 160,500.00
G111: Northriding 88/11kV SS Feeder Protection and Control (Bay 16) | I111: 150,000.00 | K111: SEL | L111: Not Specified | M111: SEL-351S | N111: 2006240230 | Q111: 1-5A | R111: 110V | Z111: 10,500.00 | AA111: 160,500.00
G112: Northriding 88/11kV SS Interconnector Protection and Control (Bay 17) | I112: 200,000.00 | K112: SEL | L112: Not Specified | M112: SEL-451S | N112: 2008261270 | Q112: 1-5A | R112: 110V | Z112: 14,000.00 | AA112: 214,000.00
G113: Northriding 88/11kV SS Interconnector Diff Protection (Bay 17) | I113: 200,000.00 | K113: Alstom | L113: Not Specified | M113: MHOB04N115AAAAA | N113: 721121/04/03 | Q113: 1A | R113: 110V | Z113: 14,000.00 | AA113: 214,000.00
G114: Sub Total | I114: =SUM(I95:I113) -> 3,000,000.00 | Z114: 210,000.00 | AA114: 3,210,000.00
G115: Feeder Board Relays | Z115: 0 | AA115: 0
G116: Northriding 88/11kV SS Incomer 3 (3TO Bay 53) Arc Protection | I116: 200,000.00 | K116: ABB | L116: Not Specified | M116: REA101-AAA | N116: ES461778 | Q116: 1-5A | R116: 110V | Z116: 14,000.00 | AA116: 214,000.00
G117: Northriding 88/11kV SS Incomer 3 (3TO Bay 53) Arc Auxiliary | I117: 200,000.00 | K117: Matrix | L117: Not Specified | M117: 2HSM514B2 | N117: 122586/2 | Q117: Not Specified | R117: 110V | Z117: 14,000.00 | AA117: 214,000.00
G118: Northriding 88/11kV SS Incomer 2 (2TO Bay 36) Arc Protection | I118: 200,000.00 | K118: ABB | L118: Not Specified | M118: REA101-AAA | N118: ES462055 | Q118: 1-5A | R118: 110V | Z118: 14,000.00 | AA118: 214,000.00
G119: Northriding 88/11kV SS Incomer 2 (2TO Bay 36) Arc Auxiliary | I119: 200,000.00 | K119: Matrix | L119: Not Specified | M119: 2HSM514B2 | N119: 122586/4 | Q119: Not Specified | R119: 110V | Z119: 14,000.00 | AA119: 214,000.00
G120: Northriding 88/11kV SS Bus Section (3CO Bay 36) Arc Protection | I120: 200,000.00 | K120: ABB | L120: Not Specified | M120: REA101-AAA | N120: ES461780 | Q120: 1-5A | R120: 110V | Z120: 14,000.00 | AA120: 214,000.00
G121: Northriding 88/11kV SS Bus Section (3CO Bay 36) Arc Auxiliary | I121: 200,000.00 | K121: Matrix | L121: Not Specified | M121: 2HSM514B2 | N121: 122586/5 | Q121: Not Specified | R121: 110V | Z121: 14,000.00 | AA121: 214,000.00
G122: Sub Total | I122: =SUM(I116:I121) -> 1,200,000.00 | Z122: 84,000.00 | AA122: 1,284,000.00
G123: Voltage Transformers | Z123: 0 | AA123: 0
G124: Northriding 88/11kV SS Incomer no.1 VT | I124: 40,000.00 | K124: Current Electric | L124: Nameplate Inaccessible | M124: Nameplate Inaccessible | N124: Nameplate Inaccessible | Q124: Nameplate Inaccessible | R124: 11000/110V | Z124: 2,800.00 | AA124: 42,800.00
G125: Northriding 88/11kV SS Incomer no.2 VT | I125: 40,000.00 | K125: Current Electric | L125: Nameplate Inaccessible | M125: Nameplate Inaccessible | N125: Nameplate Inaccessible | Q125: Nameplate Inaccessible | R125: 11000/110V | Z125: 2,800.00 | AA125: 42,800.00
G126: Northriding 88/11kV SS Incomer no.3 VT | I126: 40,000.00 | K126: Current Electric | L126: Nameplate Inaccessible | M126: Nameplate Inaccessible | N126: Nameplate Inaccessible | Q126: Nameplate Inaccessible | R126: 11000/110V | Z126: 2,800.00 | AA126: 42,800.00
G127: Northriding 88/11kV SS Interconnector to FB 02 VT | I127: 40,000.00 | K127: Current Electric | L127: Nameplate Inaccessible | M127: Nameplate Inaccessible | N127: Nameplate Inaccessible | Q127: Nameplate Inaccessible | R127: 11000/110V | Z127: 2,800.00 | AA127: 42,800.00
G128: Sub Total | I128: =SUM(I124:I127) -> 160,000.00 | Z128: 11,200.00 | AA128: 171,200.00
G129: Stats Meters | Z129: 0 | AA129: 0
G130: Northriding 88/11kV SS Incomer no.3 Check Meter | I130: 60,000.00 | K130: Itron | L130: 2014 | M130: SL761W071 | N130: 73004263 | Q130: 1A | R130: 110V | Z130: 4,200.00 | AA130: 64,200.00
G131: Northriding 88/11kV SS Incomer no.2 Check Meter | I131: 60,000.00 | K131: Itron | L131: 2014 | M131: SL761W071 | N131: 73004258 | Q131: 1A | R131: 110V | Z131: 4,200.00 | AA131: 64,200.00
G132: Northriding 88/11kV SS 185MM Cable to MSS 01847 STD 4926 Randpark Ridge Amakoekoe Apple Str Dist. QOS Meter (Bay 38) | I132: 60,000.00 | K132: Elspec Blackbox | L132: Nameplate Inaccessible | M132: Nameplate Inaccessible | N132: Nameplate Inaccessible | Q132: 0-50A | R132: 0-1000V | Z132: 4,200.00 | AA132: 64,200.00
G133: Northriding 88/11kV SS MSS 02977 Valley Road Dist. QOS Meter (Bay 39) | I133: 60,000.00 | K133: Elspec Blackbox | L133: Nameplate Inaccessible | M133: Nameplate Inaccessible | N133: Nameplate Inaccessible | Q133: 0-50A | R133: 0-1000V | Z133: 4,200.00 | AA133: 64,200.00
G134: Northriding 88/11kV SS 185X3CU no 782 Bellairs Drive Bellairs Park 9 Dist. QOS Meter (Bay 40) | I134: 60,000.00 | K134: Elspec Blackbox | L134: Nameplate Inaccessible | M134: Nameplate Inaccessible | N134: Nameplate Inaccessible | Q134: 0-50A | R134: 0-1000V | Z134: =I134*Z$4 -> 4,200.00 | AA134: =I134+Z134 -> 64,200.00
G135: Northriding 88/11kV SS Celebration Distributor 1 185X3CU To BMK 00342 Northgate Street Dist. QOS Meter (Bay 41) | I135: 60,000.00 | K135: Elspec Blackbox | L135: Nameplate Inaccessible | M135: Nameplate Inaccessible | N135: Nameplate Inaccessible | Q135: 0-50A | R135: 0-1000V | Z135: 4,200.00 | AA135: 64,200.00
G136: Northriding 88/11kV SS Celebration Distributor 2 185X3CU To BMK 00343 Aureole Ave Dist. QOS Meter (Bay 42) | I136: 60,000.00 | K136: Elspec Blackbox | L136: Nameplate Inaccessible | M136: Nameplate Inaccessible | N136: Nameplate Inaccessible | Q136: 0-50A | R136: 0-1000V | Z136: 4,200.00 | AA136: 64,200.00
G137: Northriding 88/11kV SS No name Dist. QOS Meter (Bay 43) QOS Meter | I137: 60,000.00 | K137: Elspec Blackbox | L137: Nameplate Inaccessible | M137: Nameplate Inaccessible | N137: Nameplate Inaccessible | Q137: 0-50A | R137: 0-1000V | Z137: 4,200.00 | AA137: 64,200.00
G138: Northriding 88/11kV SS Boundary Park 11kV Standby Dist. QOS Meter (Bay 44) | I138: 60,000.00 | K138: Elspec Blackbox | L138: Nameplate Inaccessible | M138: Nameplate Inaccessible | N138: Nameplate Inaccessible | Q138: 0-50A | R138: 0-1000V | Z138: 4,200.00 | AA138: 64,200.00
G139: Northriding 88/11kV SS Precision S/S 111 Dist. QOS Meter (Bay 46) QOS Meter | I139: 60,000.00 | K139: Elspec Blackbox | L139: Nameplate Inaccessible | M139: Nameplate Inaccessible | N139: Nameplate Inaccessible | Q139: 0-50A | R139: 0-1000V | Z139: 4,200.00 | AA139: 64,200.00
G140: Northriding 88/11kV SS RMU 00768 S/S 2820 Boundary RD Dist. QOS Meter (Bay 47) | I140: 60,000.00 | K140: Elspec Blackbox | L140: Nameplate Inaccessible | M140: Nameplate Inaccessible | N140: Nameplate Inaccessible | Q140: 0-50A | R140: 0-1000V | Z140: 4,200.00 | AA140: 64,200.00
G141: Northriding 88/11kV SS Aureole 246 SWS No.1 Dist. QOS Meter (Bay 48) | I141: 60,000.00 | K141: Elspec Blackbox | L141: Nameplate Inaccessible | M141: Nameplate Inaccessible | N141: Nameplate Inaccessible | Q141: 0-50A | R141: 0-1000V | Z141: 4,200.00 | AA141: 64,200.00
G142: Northriding 88/11kV SS New Market St S/S 189 Hoogland 24 185X3Core CU Dist. QOS Meter (Bay 49) | I142: 60,000.00 | K142: Elspec Blackbox | L142: Nameplate Inaccessible | M142: Nameplate Inaccessible | N142: Nameplate Inaccessible | Q142: 0-50A | R142: 0-1000V | Z142: 4,200.00 | AA142: 64,200.00
G143: Northriding 88/11kV SS S/S 1275 Olievenhout Avenue Sundownern Extension 40 Dist. QOS Meter (Bay 50) | I143: 60,000.00 | K143: Elspec Blackbox | L143: Nameplate Inaccessible | M143: Nameplate Inaccessible | N143: Nameplate Inaccessible | Q143: 0-50A | R143: 0-1000V | Z143: 4,200.00 | AA143: 64,200.00
G144: Northriding 88/11kV SS 185X3 To T-Swicth 409 Olievenhout Dist. QOS Meter (Bay 51) | I144: 60,000.00 | K144: Elspec Blackbox | L144: Nameplate Inaccessible | M144: Nameplate Inaccessible | N144: Nameplate Inaccessible | Q144: 0-50A | R144: 0-1000V | Z144: 4,200.00 | AA144: 64,200.00
G145: Northriding 88/11kV SS TSS 288 Quorn Drive Northriding Estate Extention 1 Dist. QOS Meter (Bay 52) | I145: 60,000.00 | K145: Elspec Blackbox | L145: Nameplate Inaccessible | M145: Nameplate Inaccessible | N145: Nameplate Inaccessible | Q145: 0-50A | R145: 0-1000V | Z145: 4,200.00 | AA145: 64,200.00
G146: Northriding 88/11kV SS Quorn 302 Dist. (Bay 2) | I146: 60,000.00 | K146: Elspec Blackbox | L146: Nameplate Inaccessible | M146: Nameplate Inaccessible | N146: Nameplate Inaccessible | Q146: 0-50A | R146: 0-1000V | Z146: 4,200.00 | AA146: 64,200.00
G147: Northriding 88/11kV SS Olievenhout Ave 253 11kV Dist. (Bay 3) | I147: 60,000.00 | K147: Elspec Blackbox | L147: Nameplate Inaccessible | M147: Nameplate Inaccessible | N147: Nameplate Inaccessible | Q147: 0-50A | R147: 0-1000V | Z147: 4,200.00 | AA147: 64,200.00
G148: Northriding 88/11kV SS Bellaires Dr 197 Dist. (Bay 4) | I148: 60,000.00 | K148: Elspec Blackbox | L148: Nameplate Inaccessible | M148: Nameplate Inaccessible | N148: Nameplate Inaccessible | Q148: 0-50A | R148: 0-1000V | Z148: 4,200.00 | AA148: 64,200.00
G149: Northriding 88/11kV SS Northumberland 275 Dist. (Bay 5) | I149: 60,000.00 | K149: Elspec Blackbox | L149: Nameplate Inaccessible | M149: Nameplate Inaccessible | N149: Nameplate Inaccessible | Q149: 0-50A | R149: 0-1000V | Z149: 4,200.00 | AA149: 64,200.00
G150: Northriding 88/11kV SS Northgate 1 Dist. (Bay 6) | I150: 60,000.00 | K150: Elspec Blackbox | L150: Nameplate Inaccessible | M150: Nameplate Inaccessible | N150: Nameplate Inaccessible | Q150: 0-50A | R150: 0-1000V | Z150: 4,200.00 | AA150: 64,200.00
G151: Northriding 88/11kV SS Precision Switching Station (Bay 7) | I151: 60,000.00 | K151: Elspec Blackbox | L151: Nameplate Inaccessible | M151: Nameplate Inaccessible | N151: Nameplate Inaccessible | Q151: 0-50A | R151: 0-1000V | Z151: 4,200.00 | AA151: 64,200.00
G152: Northriding 88/11kV SS Dome 1 Dist. (Bay 8) | I152: 60,000.00 | K152: Elspec Blackbox | L152: Nameplate Inaccessible | M152: Nameplate Inaccessible | N152: Nameplate Inaccessible | Q152: 0-50A | R152: 0-1000V | Z152: 4,200.00 | AA152: 64,200.00
G153: Northriding 88/11kV SS Perm Road Dist. Bay 10 | I153: 60,000.00 | K153: Elspec Blackbox | L153: Nameplate Inaccessible | M153: Nameplate Inaccessible | N153: Nameplate Inaccessible | Q153: 0-50A | R153: 0-1000V | Z153: 4,200.00 | AA153: 64,200.00
G154: Northriding 88/11kV SS Tourmaline Dist. (Bay 11) | I154: 60,000.00 | K154: Elspec Blackbox | L154: Nameplate Inaccessible | M154: Nameplate Inaccessible | N154: Nameplate Inaccessible | Q154: 0-50A | R154: 0-1000V | Z154: 4,200.00 | AA154: 64,200.00
G155: Northriding 88/11kV SS Taurus Road Dist. (Bay 12) | I155: 60,000.00 | K155: Elspec Blackbox | L155: Nameplate Inaccessible | M155: Nameplate Inaccessible | N155: Nameplate Inaccessible | Q155: 0-50A | R155: 0-1000V | Z155: 4,200.00 | AA155: 64,200.00
G156: Northriding 88/11kV SS Aureole Switching Station 2 Dist. (Bay 13) | I156: 60,000.00 | K156: Elspec Blackbox | L156: Nameplate Inaccessible | M156: Nameplate Inaccessible | N156: Nameplate Inaccessible | Q156: 0-50A | R156: 0-1000V | Z156: 4,200.00 | AA156: 64,200.00
G157: Northriding 88/11kV SS Olievenhout 162 Dist. (Bay 14) | I157: 60,000.00 | K157: Elspec Blackbox | L157: Nameplate Inaccessible | M157: Nameplate Inaccessible | N157: Nameplate Inaccessible | Q157: 0-50A | R157: 0-1000V | Z157: 4,200.00 | AA157: 64,200.00
G158: Northriding 88/11kV SS Dome 2 Dist. (Bay 15) | I158: 60,000.00 | K158: Elspec Blackbox | L158: Nameplate Inaccessible | M158: Nameplate Inaccessible | N158: Nameplate Inaccessible | Q158: 0-50A | R158: 0-1000V | Z158: 4,200.00 | AA158: 64,200.00
G159: Northriding 88/11kV SS Northgate 2 Dist. (Bay 16) | I159: 60,000.00 | K159: Elspec Blackbox | L159: Nameplate Inaccessible | M159: Nameplate Inaccessible | N159: Nameplate Inaccessible | Q159: 0-50A | R159: 0-1000V | Z159: 4,200.00 | AA159: 64,200.00
G160: Northriding 88/11kV SS Interconnector to FB 02 (Bay 17) | I160: 60,000.00 | K160: Elspec Blackbox | L160: Nameplate Inaccessible | M160: Nameplate Inaccessible | N160: Nameplate Inaccessible | Q160: 0-50A | R160: 0-1000V | Z160: 4,200.00 | AA160: 64,200.00
G161: Sub Total | I161: =SUM(I130:I160) -> 1,860,000.00 | Z161: 130,200.00 | AA161: 1,990,200.00
G162: Telecommunication (New Control Room) | Z162: 0 | AA162: 0
G163: Northriding 88/11kV SS 12 Core Fiber Optic Panel 8F To Old Control Room | I163: 200,000.00 | Z163: 14,000.00 | AA163: 214,000.00
G164: Sub Total | I164: =SUM(I163) -> 200,000.00 | Z164: 14,000.00 | AA164: 214,000.00
G165: Telecommunication (Old Control Room) | Z165: 0 | AA165: 0
G166: Northriding 88/11kV SS 12 Core Fiber Optic Panel 8F To New Control Room | I166: 200,000.00 | Z166: 14,000.00 | AA166: 214,000.00
G167: Sub Total | I167: =SUM(I166) -> 200,000.00 | Z167: 14,000.00 | AA167: 214,000.00
G168: Scada (New Control Room) | Z168: 0 | AA168: 0
G169: Northriding 88/11kV SS RTU | I169: 250,000.00 | K169: SEL | L169: Not Specified | M169: SEL-3332 | N169: 2008252116 | Q169: Not Specified | R169: Not Specified | Z169: 17,500.00 | AA169: 267,500.00
G170: Northriding 88/11kV SS IO Box 1 | I170: 250,000.00 | K170: SEL | L170: Not Specified | M170: SEL-2411 | N170: 2008255020 | Q170: Not Specified | R170: Not Specified | Z170: 17,500.00 | AA170: 267,500.00
G171: Northriding 88/11kV SS IO Box 2 | I171: 250,000.00 | K171: SEL | L171: Not Specified | M171: SEL-2411 | N171: 2008255019 | Q171: Not Specified | R171: Not Specified | Z171: 17,500.00 | AA171: 267,500.00
G172: Northriding 88/11kV SS Ethernet Switch | I172: 100,000.00 | K172: Garretcom | L172: Not Specified | M172: Magnum6K32T | N172: 5846134 | Q172: Not Specified | R172: Not Specified | Z172: 7,000.00 | AA172: 107,000.00
G173: Northriding 88/11kV SS Ethernet Switch (Bay 45, 46 and 47) | I173: 100,000.00 | K173: Garretcom | L173: Not Specified | M173: Magnum6K32T | N173: 5843179 | Q173: Not Specified | R173: Not Specified | Z173: 7,000.00 | AA173: 107,000.00
G174: Sub Total | I174: =SUM(I169:I173) -> 950,000.00 | Z174: 66,500.00 | AA174: 1,016,500.00
G175: Scada (Old Control Room) | Z175: 0 | AA175: 0
G176: Northriding 88/11kV SS Multifunction IED | I176: 500,000.00 | K176: GE Energy Services | L176: Not Specified | M176: D25 | N176: Nameplate Inaccessible | Q176: Nameplate Inaccessible | R176: Nameplate Inaccessible | Z176: 35,000.00 | AA176: 535,000.00
G177: Northriding 88/11kV SS Communication Processor 1 | I177: 300,000.00 | K177: SEL | L177: Not Specified | M177: SEL-2030 | N177: 2003167211 | Q177: Not Specified | R177: Not Specified | Z177: 21,000.00 | AA177: 321,000.00
G178: Northriding 88/11kV SS Communication Processor 2 | I178: 300,000.00 | K178: SEL | L178: Not Specified | M178: SEL-2031 | N178: 2003167212 | Q178: Not Specified | R178: Not Specified | Z178: 21,000.00 | AA178: 321,000.00
G179: Sub Total | I179: =SUM(I176:I178) -> 1,100,000.00 | Z179: 77,000.00 | AA179: 1,177,000.00
G180: Battery Chargers (New Room) | Z180: 0 | AA180: 0
G181: Northriding 88/11kV SS Charger no.1 | I181: 400,000.00 | K181: Static Power | L181: Not Specified | M181: 6V11025A07 | N181: 07/6256/2 | Q181: 30A | R181: 110V | Z181: 28,000.00 | AA181: 428,000.00
G182: Northriding 88/11kV SS Charger no.2 | I182: 400,000.00 | K182: Static Power | L182: Not Specified | M182: 6V11025A07 | N182: 07/6256/1 | Q182: 30A | R182: 110V | Z182: 28,000.00 | AA182: 428,000.00
G183: Northriding 88/11kV SS DC DB Board | I183: 400,000.00 | K183: Static Power | L183: Not Specified | M183: 6V11025A07 | N183: 07/6256 | Q183: 30A | R183: 110V | Z183: 28,000.00 | AA183: 428,000.00
G184: Sub Total | I184: =SUM(I181:I183) -> 1,200,000.00 | Z184: 84,000.00 | AA184: 1,284,000.00
G185: Battery Chargers (New Room) | Z185: 0 | AA185: 0
G186: Northriding 88/11kV SS Charger no.1 | I186: 400,000.00 | K186: Static Power | L186: Not Specified | M186: 1V11030003 | N186: 03/0930 | Q186: 30A | R186: 110V | Z186: 28,000.00 | AA186: 428,000.00
G187: Northriding 88/11kV SS Charger no.2 | I187: 400,000.00 | K187: Static Power | L187: Not Specified | M187: S.P.1V0323 | N187: 05/0773 | Q187: 5A | R187: 50V | Z187: 28,000.00 | AA187: 428,000.00
G188: Sub Total | I188: =SUM(I186:I187) -> 800,000.00 | Z188: 56,000.00 | AA188: 856,000.00
G189: Batteries (New Building) | Z189: 0 | AA189: 0
G190: Northriding 88/11kV SS Battery Bank 1 85XAlcad Cells | I190: 200,000.00 | K190: Alcad | L190: Not Specified | M190: Ni-cad MC110P | N190: Not Specified | Z190: 14,000.00 | AA190: 214,000.00
G191: Northriding 88/11kV SS Battery Bank 2 85XAlcad Cells | I191: 200,000.00 | K191: Alcad | L191: Not Specified | M191: Ni-cad MC110P | N191: Not Specified | Z191: 14,000.00 | AA191: 214,000.00
G192: Sub Total | I192: =SUM(I190:I191) -> 400,000.00 | Z192: 28,000.00 | AA192: 428,000.00
G193: Batteries (Old Building) | Z193: 0 | AA193: 0
G194: Northriding 88/11kV SS Battery Bank 1 88XAlcad Cells | I194: 200,000.00 | K194: Alcad | L194: Not Specified | M194: Ni-cad MC110P | N194: Not Specified | Z194: 14,000.00 | AA194: 214,000.00
G195: Sub Total | I195: =SUM(I194) -> 200,000.00 | Z195: 14,000.00 | AA195: 214,000.00
G196: LV AC Board | Z196: 0 | AA196: 0
G197: Northriding 88/11kV SS 3Way Change Over Panel | I197: 400,000.00 | K197: No nameplate | L197: No nameplate | M197: No nameplate | Z197: 28,000.00 | AA197: 428,000.00
G198: Sub Total | I198: =SUM(I197) -> 400,000.00 | Z198: =I198*Z$4 -> 28,000.00 | AA198: =I198+Z198 -> 428,000.00
G199: Grand Total | I199: =SUM(I5:I197)/2 -> 40,720,000.00 | Z199: 2,850,400.00 | AA199: 43,570,400.00

Sheet Olivedale 88_11kV SS
A1: Location | G1: Accountability | J1: Acquisition | K1: Asset Identifier | P1: Technical Data | S1: Perfomance | U1: Additional Information | Y1: Comments
A2: Date of Completion | B2: Street Address | C2: Suburb | D2: GPS Coordinates | E2: GPS Coordinates | G2: Asset Description | H2: Department/ Planner Group | I2: Replacement Cost (Rands) | J2: Project ID | K2: Manufacturer | L2: Year of Manufacture | M2: Model No. | N2: Serial Number (Switchgear) | O2: Serial Number (Panels) | P2: Insulating Medium (Oil,Vacuum, SF6) | Q2: Current Ratings | R2: Voltage Rating | S2: Warranty | T2: Estimated Useful Life | U2: Supplier/Contractor | V2: Panel Control Cables Designation | W2: Length(m) | X2: Manual & Drawings (Y/N) | AA2: Replacement Cost (Rands) 2023-2024
F3: Functional Location | G3: Olivedale 88/11kV Substation
G4: 11kV Switchgear | Z4: 7%
F5: C-OLVDL-FB1A-TRFR01 | G5: Olivedale 88/11kV SS Incomer 1 (1TO Bay 1) | I5: 650,000.00 | K5: Alstom | L5: 2009 | M5: SBV3E/2500/40/SI | N5: 10606/2009 | O5: 10606/2009 | P5: Vacuum | Q5: 2500A | R5: 12kV | X5: SLD | Y5: 2X Test Blocks | Z5: =I5*Z$4 -> 45,500.00 | AA5: =I5+Z5 -> 695,500.00
F6: C-OLVDL-FB1A-JCRNDA | G6: Olivedale 88/11kV SS S/S 1006 Jacaranda Ave Olivedale 21 (Bay 2) | I6: 600,000.00 | K6: Alstom | L6: 2009 | M6: SBV3E/800/25/SI | N6: 10607/2009 | O6: 10607/2009 | P6: Vacuum | Q6: 800A | R6: 12kV | X6: SLD | Z6: =I6*Z$4 -> 42,000.00 | AA6: =I6+Z6 -> 642,000.00
G7: Olivedale 88/11kV SS S/S 387 Strijdom Park 23 (Bay 3) | I7: 600,000.00 | K7: Alstom | L7: 2009 | M7: SBV3E/800/25/SI | N7: 10610/2009 | O7: 10608/2009 | P7: Vacuum | Q7: 800A | R7: 12kV | X7: SLD | Z7: 42,000.00 | AA7: 642,000.00
G8: Olivedale 88/11kV SS 185 X 3C To BMK 2263 Lima str. (Bay 4) | I8: 600,000.00 | K8: Alstom | L8: 2009 | M8: SBV3E/800/25/SI | N8: 10609/2009 | O8: 10609/2009 | P8: Vacuum | Q8: 800A | R8: 12kV | X8: SLD | Z8: 42,000.00 | AA8: 642,000.00
F9: SparE 5 11 kV Dist | G9: Olivedale 88/11kV SS Spare (Bay 5) | I9: 600,000.00 | K9: Alstom | L9: 2009 | M9: SBV3E/800/25/SI | N9: 10608/2009 | O9: 10610/2009 | P9: Vacuum | Q9: 800A | R9: 12kV | X9: SLD | Z9: 42,000.00 | AA9: 642,000.00
F10: SparE 6 11 kV Dist | G10: Olivedale 88/11kV SS Spare (Bay 6) | I10: 600,000.00 | K10: Alstom | L10: 2009 | M10: SBV3E/800/25/SI | N10: 10611/2009 | O10: 10611/2009 | P10: Vacuum | Q10: 800A | R10: 12kV | X10: SLD | Z10: 42,000.00 | AA10: 642,000.00
F11: SparE 7 11 kV Dist | G11: Olivedale 88/11kV SS Spare (Bay 7) | I11: 600,000.00 | K11: Alstom | L11: 2009 | M11: SBV3E/800/25/SI | N11: 10612/2009 | O11: 10612/2009 | P11: Vacuum | Q11: 800A | R11: 12kV | X11: SLD | Z11: 42,000.00 | AA11: 642,000.00
F12: SparE 8 11 kV Dist | G12: Olivedale 88/11kV SS Spare (Bay 8) | I12: 600,000.00 | K12: Alstom | L12: 2009 | M12: SBV3E/800/25/SI | N12: 10613/2009 | O12: 10613/2009 | P12: Vacuum | Q12: 800A | R12: 12kV | X12: SLD | Z12: 42,000.00 | AA12: 642,000.00
F13: C-OLVDL-BS01 | G13: Olivedale 88/11kV SS Bus Section (1CO Bay 9a) | I13: 650,000.00 | K13: Alstom | L13: 2009 | M13: SBV3E/2500/40/SI | N13: 10614/2009 | O13: 10614/2009 | P13: Vacuum | Q13: 2500A | R13: 12kV | X13: SLD | Z13: 45,500.00 | AA13: 695,500.00
F14: C-OLVDL-FB1B-SPAR10 | G14: Olivedale 88/11kV SS RMU 00105 Pritchard (Bay 10) | I14: 600,000.00 | K14: Alstom | L14: 2009 | M14: SBV3E/800/25/SI | N14: 10617/2009 | O14: 10615/2009 | P14: Vacuum | Q14: 800A | R14: 12kV | X14: SLD | Z14: 42,000.00 | AA14: 642,000.00
F15: C-OLVDL-FB1B-SPAR11kV | G15: Olivedale 88/11kV SS Spare (Bay 11) | I15: 600,000.00 | K15: Alstom | L15: 2009 | M15: SBV3E/800/25/SI | N15: 10616/2009 | O15: 10616/2009 | P15: Vacuum | Q15: 800A | R15: 12kV | X15: SLD | Z15: 42,000.00 | AA15: 642,000.00
F16: C-OLVDL-FB1B-SPAR12 | G16: Olivedale 88/11kV SS Spare (Bay 12) | I16: 600,000.00 | K16: Alstom | L16: 2009 | M16: SBV3E/800/25/SI | N16: 10613/2009 | O16: 10617/2009 | P16: Vacuum | Q16: 800A | R16: 12kV | X16: SLD | Z16: 42,000.00 | AA16: 642,000.00
F17: C-OLVDL-FB1B-SPAR13 | G17: Olivedale 88/11kV SS Spare (Bay 13) | I17: 600,000.00 | K17: Alstom | L17: 2009 | M17: SBV3E/800/25/SI | N17: 10618/2009 | O17: 10618/2009 | P17: Vacuum | Q17: 800A | R17: 12kV | X17: SLD | Z17: 42,000.00 | AA17: 642,000.00
F18: C-OLVDL-FB1B-AMSTRD | G18: Olivedale 88/11kV SS Amsterdam Street SS 415 Olivedale 2 (Bay 14) | I18: 600,000.00 | K18: Alstom | L18: 2009 | M18: SBV3E/800/25/SI | N18: 10619/2009 | O18: 10619/2009 | P18: Vacuum | Q18: 800A | R18: 12kV | X18: SLD | Z18: 42,000.00 | AA18: 642,000.00
F19: C-OLVDL-FB1B-WNCLOL | G19: Olivedale 88/11kV SS Windsor Way Clinic Olivedale (Bay 15) | I19: 600,000.00 | K19: Alstom | L19: 2009 | M19: SBV3E/800/25/SI | N19: 10620/2009 | O19: 10620/2009 | P19: Vacuum | Q19: 800A | R19: 12kV | X19: SLD | Z19: 42,000.00 | AA19: 642,000.00
F20: C-OLVDL-FB1B-WND463 | G20: Olivedale 88/11kV SS Windsor Way RMU 463 (Bay 16) | I20: 600,000.00 | K20: Alstom | L20: 2009 | M20: SBV3E/800/25/SI | N20: 10621/2009 | O20: 10621/2009 | P20: Vacuum | Q20: 800A | R20: 12kV | X20: SLD | Z20: 42,000.00 | AA20: 642,000.00
F21: C-OLVDL-BS02 | G21: Olivedale 88/11kV SS Bus Section 2 (2CO Bay 17) | I21: 650,000.00 | K21: Alstom | L21: 2009 | M21: SBV3E/2500/40/SI | N21: 10622/2009 | O21: 10622/2009 | P21: Vacuum | Q21: 2500A | R21: 12kV | X21: SLD | Y21: 1X Test Block | Z21: 45,500.00 | AA21: 695,500.00
F22: C-OLVDL-FB02-TRFR02 | G22: Olivedale 88/11kV SS Incomer 2 (2TO Bay 18) | I22: 650,000.00 | K22: Alstom | L22: 2009 | M22: SBV3E/2500/40/SI | N22: 10623/2009 | O22: 10623/2009 | P22: Vacuum | Q22: 2500A | R22: 12kV | X22: SLD | Y22: 1X Test Block | Z22: 45,500.00 | AA22: 695,500.00
G23: Olivedale 88/11kV SS Future Feeder to Board 3 (Bay 19) | I23: 600,000.00 | K23: Alstom | L23: 2009 | M23: SBV3E/2500/40/SI | N23: 10624/2009 | O23: 10624/2009 | P23: Vacuum | Q23: 2500A | R23: 12kV | X23: SLD | Y23: 1X Test Block | Z23: 42,000.00 | AA23: 642,000.00
F24: C-OLVDL-BS03 | G24: Olivedale 88/11kV SS Bus Section 3 (3CO Bay 20) | I24: 650,000.00 | K24: Alstom | L24: 2009 | M24: SBV3E/2500/40/SI | N24: 10633/2009 | O24: 10625/2009 | P24: Vacuum | Q24: 2500A | R24: 12kV | X24: SLD | Y24: 1X Test Block | Z24: 45,500.00 | AA24: 695,500.00
G25: Olivedale 88/11kV SS S/S 931 Lima Str Olivedale 10 (Bay 21) | I25: 600,000.00 | K25: Alstom | L25: 2009 | M25: SBV3E/800/25/SI | N25: 10626/2009 | O25: 10626/2009 | P25: Vacuum | Q25: 800A | R25: 12kV | X25: SLD | Z25: 42,000.00 | AA25: 642,000.00
F26: C-OLVDL-FB3A-NRTG16 | G26: Olivedale 88/11kV SS S/S 16 Northgate 16 (Bay 22) | I26: 600,000.00 | K26: Alstom | L26: 2009 | M26: SBV3E/800/25/SI | N26: 10627/2009 | O26: 10627/2009 | P26: Vacuum | Q26: 800A | R26: 12kV | X26: SLD | Z26: 42,000.00 | AA26: 642,000.00
F27: C-OLVDL-FB3A-SPAR23 | G27: Olivedale 88/11kV SS Spare (Bay 23) | I27: 600,000.00 | K27: Alstom | L27: 2009 | M27: SBV3E/800/25/SI | N27: 10628/2009 | O27: 10628/2009 | P27: Vacuum | Q27: 800A | R27: 12kV | X27: SLD | Z27: 42,000.00 | AA27: 642,000.00
F28: C-OLVDL-FB3A-SPAR24 | G28: Olivedale 88/11kV SS Spare (Bay 24) | I28: 600,000.00 | K28: Alstom | L28: 2009 | M28: SBV3E/800/25/SI | N28: 10629/2009 | O28: 10629/2009 | P28: Vacuum | Q28: 800A | R28: 12kV | X28: SLD | Z28: 42,000.00 | AA28: 642,000.00
F29: C-OLVDL-FB3A-SPAR25 | G29: Olivedale 88/11kV SS Spare (Bay 25) | I29: 600,000.00 | K29: Alstom | L29: 2009 | M29: SBV3E/800/25/SI | N29: 10630/2009 | O29: 10630/2009 | P29: Vacuum | Q29: 800A | R29: 12kV | X29: SLD | Z29: 42,000.00 | AA29: 642,000.00
F30: C-OLVDL-FB3A-SPAR26 | G30: Olivedale 88/11kV SS Spare (Bay 26) | I30: 600,000.00 | K30: Alstom | L30: 2009 | M30: SBV3E/800/25/SI | N30: 10631/2009 | O30: 10631/1009 | P30: Vacuum | Q30: 800A | R30: 12kV | X30: SLD | Z30: 42,000.00 | AA30: 642,000.00
F31: C-OLVDL-FB3A-SPAR27 | G31: Olivedale 88/11kV SS Spare (Bay 27) | I31: 600,000.00 | K31: Alstom | L31: 2009 | M31: SBV3E/800/25/SI | N31: 10632/2009 | O31: 20632/2009 | P31: Vacuum | Q31: 800A | R31: 12kV | X31: SLD | Z31: 42,000.00 | AA31: 642,000.00
F32: C-OLVDL-BS04 | G32: Olivedale 88/11kV SS Bus Section 4 (4CO Bay 28) | I32: 650,000.00 | K32: Alstom | L32: 2009 | M32: SBV3E/2500/40/SI | N32: 10625/2009 | O32: 10633/2009 | P32: Vacuum | Q32: 2500A | R32: 12kV | X32: SLD | Z32: 45,500.00 | AA32: 695,500.00
F33: C-OLVDL-FB3B-SPAR29 | G33: Olivedale 88/11kV SS Spare (Bay 29) | I33: 600,000.00 | K33: Alstom | L33: 2009 | M33: SBV3E/800/25/SI | N33: 10634/2009 | O33: 10634/2009 | P33: Vacuum | Q33: 800A | R33: 12kV | X33: SLD | Z33: 42,000.00 | AA33: 642,000.00
F34: C-OLVDL-FB3B-SPAR30 | G34: Olivedale 88/11kV SS Spare (Bay 30) | I34: 600,000.00 | K34: Alstom | L34: 2009 | M34: SBV3E/800/25/SI | N34: 10635/2009 | O34: 10635/2009 | P34: Vacuum | Q34: 800A | R34: 12kV | X34: SLD | Z34: 42,000.00 | AA34: 642,000.00
F35: C-OLVDL-FB3B-NWM15D | G35: Olivedale 88/11kV SSNew Market 15 Dist. (Bay 31) | I35: 600,000.00 | K35: Alstom | L35: 2009 | M35: SBV3E/800/25/SI | N35: 10636/2009 | O35: 10636/2009 | P35: Vacuum | Q35: 800A | R35: 12kV | X35: SLD | Z35: 42,000.00 | AA35: 642,000.00
F36: C-OLVDL-FB3B-SPAR32 | G36: Olivedale 88/11kV SS Windsor Way 1003 Dist. 185 Xcu To MSS OlievDale 221 Christo Ave (Bay 32) | I36: 600,000.00 | K36: Alstom | L36: 2009 | M36: SBV3E/800/25/SI | N36: 10637/2009 | O36: 10637/2009 | P36: Vacuum | Q36: 800A | R36: 12kV | X36: SLD | Z36: 42,000.00 | AA36: 642,000.00
G37: Olivedale 88/11kV SS Spare (Bay 33) | I37: 600,000.00 | K37: Alstom | L37: 2009 | M37: SBV3E/800/25/SI | N37: 10638/2009 | O37: 10638/2009 | P37: Vacuum | Q37: 800A | R37: 12kV | X37: SLD | Z37: 42,000.00 | AA37: 642,000.00
F38: C-OLVDL-FB3B-PRSFCH | G38: Olivedale 88/11kV SS Pres Fouche Com Centre Olivedale (Bay 34) | I38: 600,000.00 | K38: Alstom | L38: 2009 | M38: SBV3E/800/25/SI | N38: 10639/2009 | O38: 10639/2009 | P38: Vacuum | Q38: 800A | R38: 12kV | X38: SLD | Z38: 42,000.00 | AA38: 642,000.00
F39: C-OLVDL-FB3B-PRTC41 | G39: Olivedale 88/11kV SS MSS 02854 Calton Pritchard Str Dist. (Bay 35) | I39: 600,000.00 | K39: Alstom | L39: 2009 | M39: SBV3E/800/25/SI | N39: 10640/2009 | O39: 10640/2009 | P39: Vacuum | Q39: 800A | R39: 12kV | X39: SLD | Z39: 42,000.00 | AA39: 642,000.00
F40: C-OLVDL-FB3B-TRFR03 | G40: Olivedale 88/11kV SS Incomer 3 (3TO Bay 36) | I40: 650,000.00 | K40: Alstom | L40: 2009 | M40: SBV3E/2500/40/SI | N40: 10641/2009 | O40: 10641/2009 | P40: Vacuum | Q40: 2500A | R40: 12kV | X40: SLD | Y40: 2X Test Blocks | Z40: 45,500.00 | AA40: 695,500.00
G41: Sub Total | I41: =SUM(I5:I40) -> 21,950,000.00 | Z41: 1,536,500.00 | AA41: 23,486,500.00
G42: Relays (Control Room) | Z42: 0 | AA42: 0
G43: Olivedale 88/11kV SS Lockout 1 Relay (Bay 1) | I43: 150,000.00 | K43: Areva | L43: Not Specified | M43: MVAJ13B1BB0754A | N43: 0801832 | Q43: Not Specified | R43: 110V | Y43: 9XTest Blocks | Z43: 10,500.00 | AA43: 160,500.00
G44: Olivedale 88/11kV SS Backup Protection Relay (Bay 1) | I44: 150,000.00 | K44: Areva | L44: Not Specified | M44: Micom P122 | N44: 3408350 | Q44: 1-5A | R44: 110V | Z44: 10,500.00 | AA44: 160,500.00
G45: Olivedale 88/11kV SS Bay Control and Main Protection Relay (Bay 1) | I45: 150,000.00 | K45: Areva | L45: Not Specified | M45: Micom P139 | N45: 3245815/09/08 | Q45: 1-5A | R45: 110V | Z45: 10,500.00 | AA45: 160,500.00
G46: Olivedale 88/11kV SS Bay Control and Backup Protection Relay (Bay 3) | I46: 150,000.00 | K46: Areva | L46: Not Specified | M46: Micom P139 | N46: 3258725/09/08 | Q46: 1-5A | R46: 110V | Z46: 10,500.00 | AA46: 160,500.00
G47: Olivedale 88/11kV SS Bay Control and Backup Protection Relay (Bay 2) | I47: 150,000.00 | K47: Areva | L47: Not Specified | M47: Micom P139 | N47: 3245799/09/08 | Q47: 1-5A | R47: 110V | Z47: 10,500.00 | AA47: 160,500.00
G48: Olivedale 88/11kV SS Bay Control and Backup Protection Relay (Bay 4) | I48: 150,000.00 | K48: Areva | L48: Not Specified | M48: Micom P139 | N48: 3245800/09/08 | Q48: 1-5A | R48: 110V | Y48: 9XTest Blocks | Z48: 10,500.00 | AA48: 160,500.00
G49: Olivedale 88/11kV SS Bay Control and Backup Protection Relay (Bay 6) | I49: 150,000.00 | K49: Areva | L49: Not Specified | M49: Micom P139 | N49: 3258728/09/08 | Q49: 1-5A | R49: 110V | Z49: 10,500.00 | AA49: 160,500.00
G50: Olivedale 88/11kV SS Bay Control and Backup Protection Relay (Bay 5) | I50: 150,000.00 | K50: Areva | L50: Not Specified | M50: Micom P139 | N50: 3258721/09/08 | Q50: 1-5A | R50: 110V | Z50: 10,500.00 | AA50: 160,500.00
G51: Olivedale 88/11kV SS Bay Control and Backup Protection Relay (Bay 7) | I51: 150,000.00 | K51: Areva | L51: Not Specified | M51: Micom P139 | N51: 3286216/11/08 | Q51: 1-5A | R51: 110V | Y51: 8XTest Blocks | Z51: 10,500.00 | AA51: 160,500.00
G52: Olivedale 88/11kV SS Bay Control and Backup Protection Relay (Bay 8) | I52: 150,000.00 | K52: Areva | L52: Not Specified | M52: Micom P139 | N52: 3245806/09/08 | Q52: 1-5A | R52: 110V | Z52: 10,500.00 | AA52: 160,500.00
G53: Olivedale 88/11kV SS Bay Control and Backup Protection Relay (Bay 9) | I53: 150,000.00 | K53: Areva | L53: Not Specified | M53: Micom P139 | N53: 3245811/09/08 | Q53: 1-5A | R53: 110V | Z53: 10,500.00 | AA53: 160,500.00
G54: Olivedale 88/11kV SS Bay Control and Backup Protection Relay (Bay 10) | I54: 150,000.00 | K54: Areva | L54: Not Specified | M54: Micom P139 | N54: 3245810/09/08 | Q54: 1-5A | R54: 110V | Y54: 9XTest Blocks | Z54: 10,500.00 | AA54: 160,500.00
G55: Olivedale 88/11kV SS Bay Control and Backup Protection Relay (Bay 11) | I55: 150,000.00 | K55: Areva | L55: Not Specified | M55: Micom P139 | N55: 3245804/11/09 | Q55: 1-5A | R55: 110V | Z55: 10,500.00 | AA55: 160,500.00
G56: Olivedale 88/11kV SS Bay Control and Backup Protection Relay (Bay 12) | I56: 150,000.00 | K56: Areva | L56: Not Specified | M56: Micom P139 | N56: 3245802/09/08 | Q56: 1-5A | R56: 110V | Z56: 10,500.00 | AA56: 160,500.00
G57: Olivedale 88/11kV SS Bay Control and Backup Protection Relay (Bay 13) | I57: 150,000.00 | K57: Areva | L57: Not Specified | M57: Micom P139 | N57: 3245816/09/08 | Q57: 1-5A | R57: 110V | Y57: 9XTest Blocks | Z57: 10,500.00 | AA57: 160,500.00
G58: Olivedale 88/11kV SS Bay Control and Backup Protection Relay (Bay 14) | I58: 150,000.00 | K58: Areva | L58: Not Specified | M58: Micom P139 | N58: 324812/09/08 | Q58: 1-5A | R58: 110V | Z58: 10,500.00 | AA58: 160,500.00
G59: Olivedale 88/11kV SS Bay Control and Backup Protection Relay (Bay 15) | I59: 150,000.00 | K59: Areva | L59: Not Specified | M59: Micom P139 | N59: 3258724/09/08 | Q59: 1-5A | R59: 110V | Z59: 10,500.00 | AA59: 160,500.00
G60: Olivedale 88/11kV SS Lockout 1 Relay (Bay 18) | I60: 150,000.00 | K60: Areva | L60: Not Specified | M60: MVAJ13B1BB0754A | N60: 0801833 | Q60: Not Specified | R60: 110V | Y60: 8XTest Blocks | Z60: 10,500.00 | AA60: 160,500.00
G61: Olivedale 88/11kV SS Backup Protection Relay (Bay 18) | I61: 150,000.00 | K61: Areva | L61: Not Specified | M61: Micom P122 | N61: 3508682 | Q61: 1-5A | R61: 110V | Z61: 10,500.00 | AA61: 160,500.00
G62: Olivedale 88/11kV SS Bay Control and Backup Protection Relay (Bay 16) | I62: 150,000.00 | K62: Areva | L62: Not Specified | M62: Micom P139 | N62: 31238910/02/10 | Q62: 1-5A | R62: 110V | Z62: 10,500.00 | AA62: 160,500.00
G63: Olivedale 88/11kV SS Bay Control and Backup Protection Relay (Bay 17) | I63: 150,000.00 | K63: Areva | L63: Not Specified | M63: Micom P139 | N63: 3245803/09/08 | Q63: 1-5A | R63: 110V | Z63: 10,500.00 | AA63: 160,500.00
G64: Olivedale 88/11kV SS Bay Control and Backup Protection Relay (Bay 18) | I64: 150,000.00 | K64: Areva | L64: Not Specified | M64: Micom P139 | N64: 3245798/09/08 | Q64: 1-5A | R64: 110V | Z64: 10,500.00 | AA64: 160,500.00
G65: Olivedale 88/11kV SS Bay Control and Backup Protection Relay (Bay 19) | I65: 150,000.00 | K65: Areva | L65: Not Specified | M65: Micom P139 | N65: 3245814/09/08 | Q65: 1-5A | R65: 110V | Y65: 8XTest Blocks | Z65: 10,500.00 | AA65: 160,500.00
G66: Olivedale 88/11kV SS Bay Control and Backup Protection Relay (Bay 20) | I66: 150,000.00 | K66: Areva | L66: Not Specified | M66: Micom P139 | N66: 3258719/09/08 | Q66: 1-5A | R66: 110V | Z66: 10,500.00 | AA66: 160,500.00
G67: Olivedale 88/11kV SS Bay Control and Backup Protection Relay (Bay 21) | I67: 150,000.00 | K67: Areva | L67: Not Specified | M67: Micom P139 | N67: 3245813/09/08 | Q67: 1-5A | R67: 110V | Z67: 10,500.00 | AA67: 160,500.00
G68: Olivedale 88/11kV SS Bay Control and Backup Protection Relay (Bay 22) | I68: 150,000.00 | K68: Areva | L68: Not Specified | M68: Micom P139 | N68: 3245807/09/08 | Q68: 1-5A | R68: 110V | Y68: 9XTest Blocks | Z68: 10,500.00 | AA68: 160,500.00
G69: Olivedale 88/11kV SS Bay Control and Backup Protection Relay (Bay 23) | I69: 150,000.00 | K69: Areva | L69: Not Specified | M69: Micom P139 | N69: 3245809/09/08 | Q69: 1-5A | R69: 110V | Z69: 10,500.00 | AA69: 160,500.00
G70: Olivedale 88/11kV SS Bay Control and Backup Protection Relay (Bay 24) | I70: 150,000.00 | K70: Areva | L70: Not Specified | M70: Micom P139 | N70: 3245805/09/08 | Q70: 1-5A | R70: 110V | Z70: =I70*Z$4 -> 10,500.00 | AA70: =I70+Z70 -> 160,500.00
G71: Olivedale 88/11kV SS Bay Control and Backup Protection Relay (Bay 25) | I71: 150,000.00 | K71: Areva | L71: Not Specified | M71: Micom P139 | N71: 3258720/09/08 | Q71: 1-5A | R71: 110V | Y71: 9XTest Blocks | Z71: 10,500.00 | AA71: 160,500.00
G72: Olivedale 88/11kV SS Bay Control and Backup Protection Relay (Bay 26) | I72: 150,000.00 | K72: Areva | L72: Not Specified | M72: Micom P139 | N72: 3258717/09/08 | Q72: 1-5A | R72: 110V | Z72: 10,500.00 | AA72: 160,500.00
G73: Olivedale 88/11kV SS Bay Control and Backup Protection Relay (Bay 27) | I73: 150,000.00 | K73: Areva | L73: Not Specified | M73: Micom P139 | N73: 3258722/09/08 | Q73: 1-5A | R73: 110V | Z73: 10,500.00 | AA73: 160,500.00
G74: Olivedale 88/11kV SS Bay Control and Backup Protection Relay (Bay 28) | I74: 150,000.00 | K74: Areva | L74: Not Specified | M74: Micom P139 | N74: 3258723/09/08 | Q74: 1-5A | R74: 110V | Y74: 8XTest Blocks | Z74: 10,500.00 | AA74: 160,500.00
G75: Olivedale 88/11kV SS Bay Control and Backup Protection Relay (Bay 29) | I75: 150,000.00 | K75: Areva | L75: Not Specified | M75: Micom P139 | N75: 3258716/09/08 | Q75: 1-5A | R75: 110V | Z75: 10,500.00 | AA75: 160,500.00
G76: Olivedale 88/11kV SS Bay Control and Backup Protection Relay (Bay 30) | I76: 150,000.00 | K76: Areva | L76: Not Specified | M76: Micom P139 | N76: 3258726/09/08 | Q76: 1-5A | R76: 110V | Z76: 10,500.00 | AA76: 160,500.00
G77: Olivedale 88/11kV SS Bay Control and Backup Protection Relay (Bay 31) | I77: 150,000.00 | K77: Areva | L77: Not Specified | M77: Micom P139 | N77: 3257814/09/08 | Q77: 1-5A | R77: 110V | Y77: 9XTest Blocks | Z77: 10,500.00 | AA77: 160,500.00
G78: Olivedale 88/11kV SS Bay Control and Backup Protection Relay (Bay 32) | I78: 150,000.00 | K78: Areva | L78: Not Specified | M78: Micom P139 | N78: 3245801/09/08 | Q78: 1-5A | R78: 110V | Z78: 10,500.00 | AA78: 160,500.00
G79: Olivedale 88/11kV SS Bay Control and Backup Protection Relay (Bay 33) | I79: 150,000.00 | K79: Areva | L79: Not Specified | M79: Micom P139 | N79: 3258715/09/08 | Q79: 1-5A | R79: 110V | Z79: 10,500.00 | AA79: 160,500.00
G80: Olivedale 88/11kV SS Lockout 1 Relay (Bay 36) | I80: 150,000.00 | K80: Areva | L80: Not Specified | M80: MVAJ13B1BB0754A | N80: 0801834 | Q80: Not Specified | R80: 110V | Y80: 9XTest Blocks | Z80: 10,500.00 | AA80: 160,500.00
G81: Olivedale 88/11kV SS Backup Protection Relay (Bay 36) | I81: 150,000.00 | K81: Areva | L81: Not Specified | M81: Micom P122 | N81: 3408351 | Q81: 1-5A | R81: 110V | Z81: 10,500.00 | AA81: 160,500.00
G82: Olivedale 88/11kV SS Bay Control and Backup Protection Relay (Bay 34) | I82: 150,000.00 | K82: Areva | L82: Not Specified | M82: Micom P139 | N82: 3258718/09/08 | Q82: 1-5A | R82: 110V | Z82: 10,500.00 | AA82: 160,500.00
G83: Olivedale 88/11kV SS Bay Control and Backup Protection Relay (Bay 35) | I83: 150,000.00 | K83: Areva | L83: Not Specified | M83: Micom P139 | N83: 3258713/07/09 | Q83: 1-5A | R83: 110V | Z83: 10,500.00 | AA83: 160,500.00
G84: Olivedale 88/11kV SS Bay Control and Backup Protection Relay (Bay 36) | I84: 150,000.00 | K84: Areva | L84: Not Specified | M84: Micom P139 | N84: 3258727/0908 | Q84: 1-5A | R84: 110V | Z84: 10,500.00 | AA84: 160,500.00
G85: Sub Total | I85: =SUM(I43:I84) -> 6,300,000.00 | Z85: 441,000.00 | AA85: 6,741,000.00
G86: Feeder Board Relays | Z86: 0 | AA86: 0
G87: Olivedale 88/11kV SS Incomer 1 (1TO Bay 1) Arc Protection | I87: 200,000.00 | K87: ABB | L87: Not Specified | M87: REA101-AAA | N87: ES463625 | Q87: 1-5A | R87: 110 V | Z87: 14,000.00 | AA87: 214,000.00
G88: Olivedale 88/11kV SS Incomer 1 (1TO Bay 1) Arc Protection | I88: 200,000.00 | K88: ABB | L88: Not Specified | M88: REA101-AAA | N88: ES464872 | Q88: 1-5A | R88: 110 V | Z88: 14,000.00 | AA88: 214,000.00
G89: Olivedale 88/11kV SS Incomer 1 (1TO Bay 1) Arc Auxilary | I89: 200,000.00 | K89: Areva | L89: Not Specified | M89: MVAJ23B1AB0753B | N89: 900191 | Q89: Not Specified | R89: 110 V | Z89: 14,000.00 | AA89: 214,000.00
G90: Olivedale 88/11kV SS S/S 1006 Jacaranda Ave Olivedale 21 (Bay 2) Arc Protection | I90: 150,000.00 | K90: ABB | L90: Not Specified | M90: REA105 | N90: ES465858 | Q90: 1-5A | R90: 110 V | Z90: 10,500.00 | AA90: 160,500.00
G91: Olivedale 88/11kV SS S/S 387 Strijdom Park 23 (Bay 3) Arc Protection | I91: 150,000.00 | K91: ABB | L91: Not Specified | M91: REA101-AAA | N91: ES465860 | Q91: 1-5A | R91: 110V | Z91: 10,500.00 | AA91: 160,500.00
G92: Olivedale 88/11kV SS 185 X 3c To BMK 2263 Lima str. (Bay 4) Arc Protection | I92: 150,000.00 | K92: ABB | L92: Not Specified | M92: REA105 | N92: Not Specified | Q92: 1-5A | R92: 110V | Z92: 10,500.00 | AA92: 160,500.00
G93: Olivedale 88/11kV SS Spare (Bay 5) Arc Protection | I93: 150,000.00 | K93: ABB | L93: Not Specified | M93: REA105 | N93: ES465856 | Q93: 1-5A | R93: 110V | Z93: 10,500.00 | AA93: 160,500.00
G94: Olivedale 88/11kV SS Spare (Bay 6) Arc Protection | I94: 150,000.00 | K94: ABB | L94: Not Specified | M94: REA105 | N94: ES465867 | Q94: 1-5A | R94: 110V | Z94: 10,500.00 | AA94: 160,500.00
G95: Olivedale 88/11kV SS Spare (Bay 7) Arc Protection | I95: 150,000.00 | K95: ABB | L95: Not Specified | M95: REA105 | N95: ES465848 | Q95: 1-5A | R95: 110V | Z95: 10,500.00 | AA95: 160,500.00
G96: Olivedale 88/11kV SS Spare (Bay 8) Arc Protection | I96: 150,000.00 | K96: ABB | L96: Not Specified | M96: REA107 | N96: ES465144 | Q96: 1-5A | R96: 110V | Z96: 10,500.00 | AA96: 160,500.00
G97: Olivedale 88/11kV SS Spare (Bay 8) Arc Protection | I97: 150,000.00 | K97: ABB | L97: Not Specified | M97: REA105 | N97: ES465080 | Q97: 1-5A | R97: 110V | Z97: 10,500.00 | AA97: 160,500.00
G98: Olivedale 88/11kV SS RMU 00105 Pritchard (Bay 10) Arc Protection | I98: 150,000.00 | K98: ABB | L98: Not Specified | M98: REA105 | N98: ES464553 | Q98: 1-5A | R98: 110V | Z98: 10,500.00 | AA98: 160,500.00
G99: Olivedale 88/11kV SS Spare (Bay 11) Arc Protection | I99: 150,000.00 | K99: ABB | L99: Not Specified | M99: REA105 | N99: ES465854 | Q99: 1-5A | R99: 110V | Z99: 10,500.00 | AA99: 160,500.00
G100: Olivedale 88/11kV SS Spare (Bay 12) Arc Protection | I100: 150,000.00 | K100: ABB | L100: Not Specified | M100: REA107 | N100: ES465146 | Q100: 1-5A | R100: 110V | Z100: 10,500.00 | AA100: 160,500.00
G101: Olivedale 88/11kV SS Spare (Bay 12) Arc Protection | I101: 150,000.00 | K101: ABB | L101: Not Specified | M101: REA105 | N101: ES465856 | Q101: 1-5A | R101: 110V | Z101: 10,500.00 | AA101: 160,500.00
G102: Olivedale 88/11kV SS Spare (Bay 13) Arc Protection | I102: 150,000.00 | K102: ABB | L102: Not Specified | M102: REA105 | N102: ES465851 | Q102: 1-5A | R102: 110V | Z102: 10,500.00 | AA102: 160,500.00
G103: Olivedale 88/11kV SS Amsterdam Street SS 415 Olivedale 2 (Bay 14) Arc Protection | I103: 150,000.00 | K103: ABB | L103: Not Specified | M103: REA105 | N103: ES465857 | Q103: 1-5A | R103: 110V | Z103: 10,500.00 | AA103: 160,500.00
G104: Olivedale 88/11kV SS Windsor Way Clinic Olivedale (Bay 15) Arc Protection | I104: 150,000.00 | K104: ABB | L104: Not Specified | M104: REA107 | N104: Not Specified | Q104: 1-5A | R104: 110V | Z104: 10,500.00 | AA104: 160,500.00
G105: Olivedale 88/11kV SS Windsor Way Clinic Olivedale (Bay 15) Arc Protection | I105: 150,000.00 | K105: ABB | L105: Not Specified | M105: REA105 | N105: ES465864 | Q105: 1-5A | R105: 110V | Z105: 10,500.00 | AA105: 160,500.00
G106: Olivedale 88/11kV SS Windsor Way RMU 463 (Bay 16) Arc Protection | I106: 150,000.00 | K106: ABB | L106: Not Specified | M106: REA105 | N106: ES465869 | Q106: 1-5A | R106: 110V | Z106: 10,500.00 | AA106: 160,500.00
G107: Olivedale 88/11kV SS Bus Section 2 (2CO Bay 17) Arc Protection | I107: 200,000.00 | K107: ABB | L107: Not Specified | M107: REA101-AAA | N107: ES464875 | Q107: 1-5A | R107: 110V | Z107: 14,000.00 | AA107: 214,000.00
G108: Olivedale 88/11kV SS Bus Section 2 (2CO Bay 17) Arc Auxilary | I108: 200,000.00 | K108: Areva | L108: Not Specified | M108: MVAJ23B1AB0753B | N108: 0900192 | Q108: 1-5A | R108: 110V | Z108: 14,000.00 | AA108: 214,000.00
G109: Olivedale 88/11kV SS Incomer 2 (2TO Bay 18) Arc Protection | I109: 200,000.00 | K109: ABB | L109: Not Specified | M109: REA101-AAA | N109: ES463709 | Q109: 1-5A | R109: 110V | Z109: 14,000.00 | AA109: 214,000.00
G110: Olivedale 88/11kV SS Incomer 2 (2TO Bay 18) Arc Auxilary | I110: 200,000.00 | K110: Areva | L110: Not Specified | M110: MVAJ23B1AB0753B | N110: 0900193 | Q110: 1-5A | R110: 110V | Z110: 14,000.00 | AA110: 214,000.00
G111: Olivedale 88/11kV SS Future Feeder to Board 3 (Bay 19) Arc Protection | I111: 150,000.00 | K111: ABB | L111: Not Specified | M111: REA101-AAA | N111: ES463707 | Q111: 1-5A | R111: 110V | Z111: 10,500.00 | AA111: 160,500.00
G112: Olivedale 88/11kV SS Future Feeder to Board 3 (Bay 19) Arc Auxilary | I112: 150,000.00 | K112: Areva | L112: Not Specified | M112: MVAJ23B1AB0753B | N112: 0900194 | Q112: 1-5A | R112: 110V | Z112: 10,500.00 | AA112: 160,500.00
G113: Olivedale 88/11kV SS Bus Section 3 (3CO Bay 20) Arc Protection | I113: 200,000.00 | K113: ABB | L113: Not Specified | M113: REA101-AAA | N113: ES463015 | Q113: 1-5A | R113: 110V | Z113: 14,000.00 | AA113: 214,000.00
G114: Olivedale 88/11kV SS Bus Section 3 (3CO Bay 20) Arc Auxilary | I114: 200,000.00 | K114: Areva | L114: Not Specified | M114: MVAJ23B1AB0753B | N114: 0900195 | Q114: 1-5A | R114: 110V | Z114: 14,000.00 | AA114: 214,000.00
G115: Olivedale 88/11kV SS S/S 931 Lima Str Olivedale 10 (Bay 21) Arc Protection | I115: 150,000.00 | K115: ABB | L115: Not Specified | M115: REA107 | N115: ES465143 | Q115: 1-5A | R115: 110V | Z115: 10,500.00 | AA115: 160,500.00
G116: Olivedale 88/11kV SS S/S 931 Lima Str Olivedale 10 (Bay 21) Arc Protection | I116: 150,000.00 | K116: ABB | L116: Not Specified | M116: REA105 | N116: ES465879 | Q116: 1-5A | R116: 110V | Z116: 10,500.00 | AA116: 160,500.00
G117: Olivedale 88/11kV SS S/S 16 Northgate 16 (Bay 22) Arc Protection | I117: 150,000.00 | K117: ABB | L117: Not Specified | M117: REA105 | N117: ES465853 | Q117: 1-5A | R117: 110V | Z117: 10,500.00 | AA117: 160,500.00
G118: Olivedale 88/11kV SS Spare (Bay 23) Arc Protection | I118: 150,000.00 | K118: ABB | L118: Not Specified | M118: REA105 | N118: ES465863 | Q118: 1-5A | R118: 110V | Z118: 10,500.00 | AA118: 160,500.00
G119: Olivedale 88/11kV SS Spare (Bay 24) Arc Protection | I119: 150,000.00 | K119: ABB | L119: Not Specified | M119: REA105 | N119: ES465852 | Q119: 1-5A | R119: 110V | Z119: 10,500.00 | AA119: 160,500.00
G120: Olivedale 88/11kV SS Spare (Bay 25) Arc Protection | I120: 150,000.00 | K120: ABB | L120: Not Specified | M120: REA105 | N120: ES465845 | Q120: 1-5A | R120: 110V | Z120: 10,500.00 | AA120: 160,500.00
G121: Olivedale 88/11kV SS Spare (Bay 26) Arc Protection | I121: 150,000.00 | K121: ABB | L121: Not Specified | M121: REA105 | N121: ES465063 | Q121: 1-5A | R121: 110V | Z121: 10,500.00 | AA121: 160,500.00
G122: Olivedale 88/11kV SS Spare (Bay 27) Arc Protection | I122: 150,000.00 | K122: ABB | L122: Not Specified | M122: REA107 | N122: Not Specified | Q122: 1-5A | R122: 110V | Z122: 10,500.00 | AA122: 160,500.00
G123: Olivedale 88/11kV SS Spare (Bay 27) Arc Protection | I123: 150,000.00 | K123: ABB | L123: Not Specified | M123: REA105 | N123: ES465870 | Q123: 1-5A | R123: 110V | Z123: 10,500.00 | AA123: 160,500.00
G124: Olivedale 88/11kV SS Spare (Bay 29) Arc Protection | I124: 150,000.00 | K124: ABB | L124: Not Specified | M124: REA105 | N124: ES465070 | Q124: 1-5A | R124: 110V | Z124: 10,500.00 | AA124: 160,500.00
G125: Olivedale 88/11kV SS Spare (Bay 30) Arc Protection | I125: 150,000.00 | K125: ABB | L125: Not Specified | M125: REA105 | N125: ES465859 | Q125: 1-5A | R125: 110V | Z125: 10,500.00 | AA125: 160,500.00
G126: Olivedale 88/11kV SSNew Market 15 Dist. (Bay 31) Arc Protection | I126: 150,000.00 | K126: ABB | L126: Not Specified | M126: REA105 | N126: Not Specified | Q126: 1-5A | R126: 110V | Z126: 10,500.00 | AA126: 160,500.00
G127: Olivedale 88/11kV SSNew Market 15 Dist. (Bay 31) Arc Protection | I127: 150,000.00 | K127: ABB | L127: Not Specified | M127: REA107 | N127: Not Specified | Q127: 1-5A | R127: 110V | Z127: 10,500.00 | AA127: 160,500.00
G128: Olivedale 88/11kV SS Windsor Way 1003 Dist. 185 Xcu To MSS OlievDale 221 Christo Ave (Bay 32) Arc Protection | I128: 150,000.00 | K128: ABB | L128: Not Specified | M128: REA105 | N128: ERS465077 | Q128: 1-5A | R128: 110V | Z128: 10,500.00 | AA128: 160,500.00
G129: Olivedale 88/11kV SS Spare (Bay 33) Arc Protection | I129: 150,000.00 | K129: ABB | L129: Not Specified | M129: REA105 | N129: ES465080 | Q129: 1-5A | R129: 110V | Z129: 10,500.00 | AA129: 160,500.00
G130: Olivedale 88/11kV SS Pres Fouche Com Centre Olivedale (Bay 34) Arc Protection | I130: 150,000.00 | K130: ABB | L130: Not Specified | M130: REA105 | N130: Not Visible | Q130: 1-5A | R130: 110V | Z130: 10,500.00 | AA130: 160,500.00
G131: Olivedale 88/11kV SS Pres Fouche Com Centre Olivedale (Bay 34) Arc Protection | I131: 150,000.00 | K131: ABB | L131: Not Specified | M131: REA105 | N131: Not Visible | Q131: 1-5A | R131: 110V | Z131: 10,500.00 | AA131: 160,500.00
G132: Olivedale 88/11kV SS MSS 02854 Calton Pritchard Str Dist. (Bay 35) Arc Protection | I132: 150,000.00 | K132: ABB | L132: Not Specified | M132: REA106 | N132: Not Visible | Z132: 10,500.00 | AA132: 160,500.00
G133: Olivedale 88/11kV SS Incomer 3 (3TO Bay 36) Arc Protection | I133: 200,000.00 | K133: ABB | L133: Not Specified | M133: REA101-AAA | N133: ES463706 | Z133: 14,000.00 | AA133: 214,000.00
G134: Olivedale 88/11kV SS Incomer 3 (3TO Bay 36) Arc Protection | I134: 200,000.00 | K134: ABB | L134: Not Specified | M134: REA101-AAA | N134: ES464276 | Z134: =I134*Z$4 -> 14,000.00 | AA134: =I134+Z134 -> 214,000.00
G135: Olivedale 88/11kV SS Incomer 3 (3TO Bay 36) Arc Auxilary | I135: 200,000.00 | K135: Areva | L135: Not Specified | M135: MVAJ23B1AB0753B | N135: 0900186 | Z135: 14,000.00 | AA135: 214,000.00
G136: Sub Total | I136: =SUM(I87:I135) -> 7,950,000.00 | Z136: 556,500.00 | AA136: 8,506,500.00
G137: Voltage Transformers | Z137: 0 | AA137: 0
G138: Olivedale 88/11kV SS Incomer 1 VT | I138: 40,000.00 | K138: Current Electric | L138: Not Specified | M138: Not Specified | N138: 65235-1 | Q138: 50VA | R138: 11000/110V | X138: SLD | Z138: 2,800.00 | AA138: 42,800.00
G139: Olivedale 88/11kV SS Incomer 2 VT | I139: 40,000.00 | K139: Current Electric | L139: Not Specified | M139: Not Specified | N139: Not Accessible | Q139: 50VA | R139: 11000/110V | Z139: 2,800.00 | AA139: 42,800.00
G140: Olivedale 88/11kV SS Incomer 3 VT | I140: 40,000.00 | K140: Current Electric | L140: Not Specified | M140: Not Specified | N140: 65235-3 | Q140: 50VA | R140: 11000/110V | Z140: 2,800.00 | AA140: 42,800.00
G141: Sub Total | I141: =SUM(I138:I140) -> 120,000.00 | Z141: 8,400.00 | AA141: 128,400.00
G142: Stats Meters | Z142: 0 | AA142: 0
G143: Olivedale 88/11kV SS S/S 1006 Jacaranda Ave Olivedale 21 (Bay 2) QOS | I143: 60,000.00 | K143: ELSPEC BLACKBOX | L143: Not Accessible | M143: Not Accessible | N143: Not Accessible | Q143: 0-50A | R143: 0-1000V | Z143: 4,200.00 | AA143: 64,200.00
G144: Olivedale 88/11kV SS S/S 387 Strijdom Park 23 (Bay 3) QOS | I144: 60,000.00 | K144: ELSPEC BLACKBOX | L144: Not Accessible | M144: Not Accessible | N144: Not Accessible | Q144: 0-50A | R144: 0-1000V | Z144: 4,200.00 | AA144: 64,200.00
G145: Olivedale 88/11kV SS Sterkbos Ave SS 202 Sharonela 7 (Bay 4) QOS | I145: 60,000.00 | K145: ELSPEC BLACKBOX | L145: Not Accessible | M145: Not Accessible | N145: Not Accessible | Q145: 0-50A | R145: 0-1000V | Z145: 4,200.00 | AA145: 64,200.00
G146: Olivedale 88/11kV SS Spare (Bay 5) QOS | I146: 60,000.00 | K146: ELSPEC BLACKBOX | L146: Not Accessible | M146: Not Accessible | N146: Not Accessible | Q146: 0-50A | R146: 0-1000V | Z146: 4,200.00 | AA146: 64,200.00
G147: Olivedale 88/11kV SS Spare (Bay 6) QOS | I147: 60,000.00 | K147: ELSPEC BLACKBOX | L147: Not Accessible | M147: Not Accessible | N147: Not Accessible | Q147: 0-50A | R147: 0-1000V | Z147: 4,200.00 | AA147: 64,200.00
G148: Olivedale 88/11kV SS Spare (Bay 7) QOS | I148: 60,000.00 | K148: ELSPEC BLACKBOX | L148: Not Accessible | M148: Not Accessible | N148: Not Accessible | Q148: 0-50A | R148: 0-1000V | Z148: 4,200.00 | AA148: 64,200.00
G149: Olivedale 88/11kV SS Spare (Bay 8) QOS | I149: 60,000.00 | K149: ELSPEC BLACKBOX | L149: Not Accessible | M149: Not Accessible | N149: Not Accessible | Q149: 0-50A | R149: 0-1000V | Z149: 4,200.00 | AA149: 64,200.00
G150: Olivedale 88/11kV SS RMU 00105 Pritchard (Bay 10) QOS | I150: 60,000.00 | K150: ELSPEC BLACKBOX | L150: Not Accessible | M150: Not Accessible | N150: Not Accessible | Q150: 0-50A | R150: 0-1000V | Z150: 4,200.00 | AA150: 64,200.00
G151: Olivedale 88/11kV SS Spare (Bay 11) QOS | I151: 60,000.00 | K151: ELSPEC BLACKBOX | L151: Not Accessible | M151: Not Accessible | N151: Not Accessible | Q151: 0-50A | R151: 0-1000V | Z151: 4,200.00 | AA151: 64,200.00
G152: Olivedale 88/11kV SS Spare (Bay 12) QOS | I152: 60,000.00 | K152: ELSPEC BLACKBOX | L152: Not Accessible | M152: Not Accessible | N152: Not Accessible | Q152: 0-50A | R152: 0-1000V | Z152: 4,200.00 | AA152: 64,200.00
G153: Olivedale 88/11kV SS Spare (Bay 13) QOS | I153: 60,000.00 | K153: ELSPEC BLACKBOX | L153: Not Accessible | M153: Not Accessible | N153: Not Accessible | Q153: 0-50A | R153: 0-1000V | Z153: 4,200.00 | AA153: 64,200.00
G154: Olivedale 88/11kV SS Amsterdam Street SS 415 Olivedale 2 (Bay 14) QOS | I154: 60,000.00 | K154: ELSPEC BLACKBOX | L154: Not Accessible | M154: Not Accessible | N154: Not Accessible | Q154: 0-50A | R154: 0-1000V | Z154: 4,200.00 | AA154: 64,200.00
G155: Olivedale 88/11kV SS Windsor Way Clinic Olivedale (Bay 15) QOS | I155: 60,000.00 | K155: ELSPEC BLACKBOX | L155: Not Accessible | M155: Not Accessible | N155: Not Accessible | Q155: 0-50A | R155: 0-1000V | Z155: 4,200.00 | AA155: 64,200.00
G156: Olivedale 88/11kV SS Windsor Way RMU 463 (Bay 16) QOS | I156: 60,000.00 | K156: ELSPEC BLACKBOX | L156: Not Accessible | M156: Not Accessible | N156: Not Accessible | Q156: 0-50A | R156: 0-1000V | Z156: 4,200.00 | AA156: 64,200.00
G157: Olivedale 88/11kV SS S/S 931 Lima Str Olivedale 10 (Bay 21) QOS | I157: 60,000.00 | K157: ELSPEC BLACKBOX | L157: Not Accessible | M157: Not Accessible | N157: Not Accessible | Q157: 0-50A | R157: 0-1000V | Z157: 4,200.00 | AA157: 64,200.00
G158: Olivedale 88/11kV SS S/S 16 Northgate 16 (Bay 22)QOS | I158: 60,000.00 | K158: ELSPEC BLACKBOX | L158: Not Accessible | M158: Not Accessible | N158: Not Accessible | Q158: 0-50A | R158: 0-1000V | Z158: 4,200.00 | AA158: 64,200.00
G159: Olivedale 88/11kV SS Spare (Bay 23) QOS | I159: 60,000.00 | K159: ELSPEC BLACKBOX | L159: Not Accessible | M159: Not Accessible | N159: Not Accessible | Q159: 0-50A | R159: 0-1000V | Z159: 4,200.00 | AA159: 64,200.00
G160: Olivedale 88/11kV SS Spare (Bay 24) QOS | I160: 60,000.00 | K160: ELSPEC BLACKBOX | L160: Not Accessible | M160: Not Accessible | N160: Not Accessible | Q160: 0-50A | R160: 0-1000V | Z160: 4,200.00 | AA160: 64,200.00
G161: Olivedale 88/11kV SS Spare (Bay 25) QOS | I161: 60,000.00 | K161: ELSPEC BLACKBOX | L161: Not Accessible | M161: Not Accessible | N161: Not Accessible | Q161: 0-50A | R161: 0-1000V | Z161: 4,200.00 | AA161: 64,200.00
G162: Olivedale 88/11kV SS Spare (Bay 26) QOS | I162: 60,000.00 | K162: ELSPEC BLACKBOX | L162: Not Accessible | M162: Not Accessible | N162: Not Accessible | Q162: 0-50A | R162: 0-1000V | Z162: 4,200.00 | AA162: 64,200.00
G163: Olivedale 88/11kV SS Spare (Bay 27) QOS | I163: 60,000.00 | K163: ELSPEC BLACKBOX | L163: Not Accessible | M163: Not Accessible | N163: Not Accessible | Q163: 0-50A | R163: 0-1000V | Z163: 4,200.00 | AA163: 64,200.00
G164: Olivedale 88/11kV SS Spare (Bay 29) QOS | I164: 60,000.00 | K164: ELSPEC BLACKBOX | L164: Not Accessible | M164: Not Accessible | N164: Not Accessible | Q164: 0-50A | R164: 0-1000V | Z164: 4,200.00 | AA164: 64,200.00
G165: Olivedale 88/11kV SS Spare (Bay 30) QOS | I165: 60,000.00 | K165: ELSPEC BLACKBOX | L165: Not Accessible | M165: Not Accessible | N165: Not Accessible | Q165: 0-50A | R165: 0-1000V | Z165: 4,200.00 | AA165: 64,200.00
G166: Olivedale 88/11kV SSNew Market 15 Dist. (Bay 31) QOS | I166: 60,000.00 | K166: ELSPEC BLACKBOX | L166: Not Accessible | M166: Not Accessible | N166: Not Accessible | Q166: 0-50A | R166: 0-1000V | Z166: 4,200.00 | AA166: 64,200.00
G167: Olivedale 88/11kV SS Windsor Way 1003 Dist. 185 Xcu To MSS OlievDale 221 Christo Ave (Bay 32) QOS | I167: 60,000.00 | K167: ELSPEC BLACKBOX | L167: Not Accessible | M167: Not Accessible | N167: Not Accessible | Q167: 0-50A | R167: 0-1000V | Z167: 4,200.00 | AA167: 64,200.00
G168: Olivedale 88/11kV SS Spare (Bay 33) QOS | I168: 60,000.00 | K168: ELSPEC BLACKBOX | L168: Not Accessible | M168: Not Accessible | N168: Not Accessible | Q168: 0-50A | R168: 0-1000V | Z168: 4,200.00 | AA168: 64,200.00
G169: Olivedale 88/11kV SS Pres Fouche Com Centre Olivedale (Bay 34) QOS | I169: 60,000.00 | K169: ELSPEC BLACKBOX | L169: Not Accessible | M169: Not Accessible | N169: Not Accessible | Q169: 0-50A | R169: 0-1000V | Z169: 4,200.00 | AA169: 64,200.00
G170: Olivedale 88/11kV SS MSS 02854 Calton Pritchard Str Dist. (Bay 35) QOS | I170: 60,000.00 | K170: ELSPEC BLACKBOX | L170: Not Accessible | M170: Not Accessible | N170: Not Accessible | Q170: 0-50A | R170: 0-1000V | Z170: 4,200.00 | AA170: 64,200.00
G171: Olivedale 88/11kV SS Incomer 1 Energy Meter | I171: 60,000.00 | K171: Itron | L171: 2014 | M171: SL761W071 | N171: 73004281 | Q171: 1A | R171: 110V | Y171: 1XCT and 1XVT Test Block | Z171: 4,200.00 | AA171: 64,200.00
G172: Olivedale 88/11kV SS Incomer 2 Energy Meter | I172: 60,000.00 | K172: Itron | L172: 2014 | M172: SL761W071 | N172: 73004284 | Q172: 1A | R172: 110V | Y172: 1XCT and 1XVT Test Block | Z172: 4,200.00 | AA172: 64,200.00
G173: Olivedale 88/11kV SS Incomer 3 Energy Meter | I173: 60,000.00 | K173: Itron | L173: 2014 | M173: SL761W071 | N173: 73004257 | Q173: 1A | R173: 110V | Y173: 1XCT and 1XVT Test Block | Z173: 4,200.00 | AA173: 64,200.00
G174: Olivedale 88/11kV SS Incomer 3 Energy Meter | I174: 60,000.00 | Z174: 4,200.00 | AA174: 64,200.00
G175: Sub Total | I175: =SUM(I143:I174) -> 1,920,000.00 | Z175: 134,400.00 | AA175: 2,054,400.00
G176: ICT Network Panel | Z176: 0 | AA176: 0
G177: Houtkoppen 88/11kV SS PowerEdge R320 | H177: Dell | I177: 200,000.00 | J177: Nameplate Inaccessible | K177: Nameplate Inaccessible | L177: Nameplate Inaccessible | Z177: 14,000.00 | AA177: 214,000.00
G178: Houtkoppen 88/11kV SS Ruggedcom | H178: Siemens | I178: 200,000.00 | J178: Nameplate Inaccessible | K178: RSG2100 | L178: Nameplate Inaccessible | Z178: 14,000.00 | AA178: 214,000.00
G179: Houtkoppen 88/11kV SS Ruggedcom | H179: Siemens | I179: 200,000.00 | J179: Nameplate Inaccessible | K179: RSG2101 | L179: Nameplate Inaccessible | Z179: 14,000.00 | AA179: 214,000.00
G180: Houtkoppen 88/11kV SS Industrial Cellular Router | H180: Inhand | I180: 200,000.00 | J180: Nameplate Inaccessible | K180: IR794PH09 | L180: RP7941404221887 | Z180: 14,000.00 | AA180: 214,000.00
G181: Houtkoppen 88/11kV SS Power Supply | H181: Eaton Electrical Seervices and Systems | I181: 200,000.00 | J181: Not Specified | K181: Not Specified | L181: G095E02053 | Z181: 14,000.00 | AA181: 214,000.00
G182: Sub Total | I182: =SUM(I177:I181) -> 1,000,000.00 | Z182: 70,000.00 | AA182: 1,070,000.00
G183: Scada | Z183: 0 | AA183: 0
G184: Olivedale 88/11kV SS Scada I/O Module | H184: Areva | I184: 250,000.00 | J184: Not Specified | K184: Micom C264 | L184: 150617 | Q184: N/A | R184: 110V | Z184: 17,500.00 | AA184: 267,500.00
G185: Olivedale 88/11kV SS Satelite Synchronized Clock | H185: SEL | I185: 10,000.00 | J185: Not Specified | K185: SEL-2407 | L185: 2009078020 | R185: 110V | Z185: 700.00 | AA185: 10,700.00
G186: Olivedale 88/11kV SS Ethernet Switch (Bay 7-9) | H186: Mokza | I186: 100,000.00 | J186: Not Specified | K186: PT-7828-SF-8V-8V | L186: Not Visible | Z186: 7,000.00 | AA186: 107,000.00
G187: Olivedale 88/11kV SS Ethernet Switch (Bay 28-30) | H187: Mokza | I187: 100,000.00 | J187: Not Specified | K187: PT-7828-SF-8V-8V | L187: Not Visible | Z187: 7,000.00 | AA187: 107,000.00
G188: Sub Total | I188: =SUM(I184:I187) -> 460,000.00 | Z188: 32,200.00 | AA188: 492,200.00
G189: Battery Chargers | Z189: 0 | AA189: 0
G190: Olivedale 88/11kV SS Charger 1 | H190: Static Power | I190: 400,000.00 | J190: Not Specified | K190: 1V11025B08 | L190: 08/1013/1 | Q190: 25A | R190: 110V | Z190: 28,000.00 | AA190: 428,000.00
G191: Olivedale 88/11kV SS Charger 2 | H191: Static Power | I191: 400,000.00 | J191: Not Specified | K191: 1V11025B08 | L191: 08/1013/2 | Q191: 25A | R191: 110V | Z191: 28,000.00 | AA191: 428,000.00
G192: Olivedale 88/11kV SS 110 DC DB Board | H192: No nameplate | I192: 400,000.00 | J192: No nameplate | K192: No nameplate | L192: No nameplate | Q192: 25A | R192: 110V | Z192: 28,000.00 | AA192: 428,000.00
G193: Sub Total | I193: =SUM(I190:I192) -> 1,200,000.00 | Z193: 84,000.00 | AA193: 1,284,000.00
G194: Batteries | Z194: 0 | AA194: 0
G195: Olivedale 88/11kV SS 88XAlcad Cells Battery Bank 1 | H195: Alcad | I195: 200,000.00 | J195: Not Specified | K195: MC110P | L195: Not Specified | Q195: Not Specified | R195: 1.2V/Cell | Z195: 14,000.00 | AA195: 214,000.00
G196: Olivedale 88/11kV SS 88XAlcad Cells Battery Bank 2 | H196: Alcad | I196: 200,000.00 | J196: Not Specified | K196: MC110P | L196: Not Specified | Q196: Not Specified | R196: 1.2V/Cell | Z196: 14,000.00 | AA196: 214,000.00
G197: Sub Total | I197: =SUM(I195:I196) -> 400,000.00 | Z197: 28,000.00 | AA197: 428,000.00
G198: LV AC Board | J198: Not Bpecified | Z198: =I198*Z$4 -> 0 | AA198: =I198+Z198 -> 0
G199: Olivedale 88/11kV SS 380V AC DB Board | I199: 400,000.00 | J199: Not Specified | Z199: 28,000.00 | AA199: 428,000.00
G200: Sub Total | I200: =SUM(I199) -> 400,000.00 | Z200: 28,000.00 | AA200: 428,000.00
... 1 more rows

Sheet Houtkoppen 88_11kV SS
A1: Location | G1: Accountability | J1: Acquisition | K1: Asset Identifier | P1: Technical Data | S1: Perfomance | U1: Additional Information | Y1: Comments
A2: Date of Completion | B2: Street Address | C2: Suburb | D2: GPS Coordinates | E2: GPS Coordinates | F2: Functional Location | G2: Asset Description | H2: Department/ Planner Group | I2: Replacement Cost (Rands) | J2: Project ID | K2: Manufacturer | L2: Year of Manufacture | M2: Model No. | N2: Serial Number (Switchgear) | O2: Serial Number (Panels) | P2: Insulating Medium (Oil,Vacuum, SF6) | Q2: Current Ratings | R2: Voltage Rating | S2: Warranty | T2: Estimated Useful Life | U2: Supplier/Contractor | V2: Panel Control Cables Designation | W2: Length(m) | X2: Manual & Drawings (Y/N) | AA2: Replacement Cost (Rands) 2023-2024
G3: Houtkoppen 88/11kV Substation
G4: 11kV Switchgear | Z4: 7%
F5: C-HTKPN-FB01-TRFR01 | G5: Houtkoppen 88/11kV SS Incomer 1 (1TO Bay 1) | I5: 650,000.00 | K5: Alstom | L5: 2004 | M5: SBV3/2000/40-SI | N5: 7610/2004 | O5: 7610/2004 | P5: Vacuum | Q5: 2000A | R5: 12 kV | X5: SLD | Y5: 1X Test Block | Z5: =I5*Z$4 -> 45,500.00 | AA5: =I5+Z5 -> 695,500.00
F6: C-HTKPN-FB01-BELLAN | G6: Houtkoppen 88/11kV SS Bellairs North Dist. (Bay 2) | I6: 600,000.00 | K6: Alstom | L6: 2004 | M6: SBV3/800/25-SI | N6: 7611/2004 | O6: 7611/2004 | P6: Vacuum | Q6: 800A | R6: 12 kV | X6: SLD | Z6: =I6*Z$4 -> 42,000.00 | AA6: =I6+Z6 -> 642,000.00
F7: C-HTKPN-FB01-PRITCN | G7: Houtkoppen 88/11kV SS 185 X 3 Cu RMU 00114 Cedar Creek Needwood Ext 5 & 8 Pritchard North Dist. (Bay 3) | I7: 600,000.00 | K7: Alstom | L7: 2004 | M7: SBV3/800/25-SI | N7: 7622/2004 | O7: 7612/2004 | P7: Vacuum | Q7: 800A | R7: 12 kV | X7: SLD | Z7: 42,000.00 | AA7: 642,000.00
F8: C-HTKPN-FB01-PRI153 | G8: Houtkoppen 88/11kV SS Pritchard 153 Dist. (Bay 4) | I8: 600,000.00 | K8: Alstom | L8: 2004 | M8: SBV3/800/25-SI | N8: 7617/2004 | O8: 7613/2004 | P8: Vacuum | Q8: 800A | R8: 12 kV | X8: SLD | Z8: 42,000.00 | AA8: 642,000.00
F9: C-HTKPN-FB01-WTRFES | G9: Houtkoppen 88/11kV SS RMU 00639 Waterford Estate Dist. (Bay 5) | I9: 600,000.00 | K9: Alstom | L9: 2004 | M9: SBV3/800/25-SI | N9: 7620/2004 | O9: 7614/2004 | P9: Vacuum | Q9: 800A | R9: 12 kV | X9: SLD | Z9: 42,000.00 | AA9: 642,000.00
F10: C-HTKPN-FB01-OOSTRD | G10: Houtkoppen 88/11kV SS Oosterrand Dist. (Bay 6) | I10: 600,000.00 | K10: Alstom | L10: 2004 | M10: SBV3/800/25-SI | N10: 7615/2004 | O10: 7615/2004 | P10: Vacuum | Q10: 800A | R10: 12 kV | X10: SLD | Z10: 42,000.00 | AA10: 642,000.00
F11: C-HTKPN-FB01-MARD01 | G11: Houtkoppen 88/11kV SS Maroeladal 1 Dist. (Bay 7) | I11: 600,000.00 | K11: Alstom | L11: 2004 | M11: SBV3/800/25-SI | N11: 7616/2004 | O11: 7616/2004 | P11: Vacuum | Q11: 800A | R11: 12 kV | X11: SLD | Z11: 42,000.00 | AA11: 642,000.00
F12: C-HTKPN-FB01-KYA108 | G12: Houtkoppen 88/11kV SS185 X3Cu To MSS 02066 ERF54 Oraleans Road Kya Sand Dist. (Bay 8) | I12: 600,000.00 | K12: Alstom | L12: 2004 | M12: SBV3/800/25-SI | N12: 7621/2004 | O12: 7617/2004 | P12: Vacuum | Q12: 800A | R12: 12 kV | X12: SLD | Z12: 42,000.00 | AA12: 642,000.00
F13: C-HTKPN-BS01 | G13: Houtkoppen 88/11kV SS Bus Section (9CO Bay 9) | I13: 650,000.00 | K13: Alstom | L13: 2004 | M13: SBV3/2000/40-SI | N13: 7618/2004 | O13: 7618/2004 | P13: Vacuum | Q13: 2000A | R13: 12 kV | X13: SLD | Z13: 45,500.00 | AA13: 695,500.00
F14: C-HTKPN-FB02-BELSBY | G14: Houtkoppen 88/11kV SS Bellairs Standby Dist. (Bay 10) | I14: 600,000.00 | K14: Alstom | L14: 2004 | M14: SBV3/800/25-SI | N14: 7619/2004 | O14: 7619/2004 | P14: Vacuum | Q14: 800A | R14: 12 kV | X14: SLD | Z14: 42,000.00 | AA14: 642,000.00
F15: C-HTKPN-FB02-INADAN | G15: Houtkoppen 88/11kV SS 185X3Core CU To MSS 02007 Main Road Kya Sent Estate Inadan Dist. (Bay 11) | I15: 600,000.00 | K15: Alstom | L15: 2004 | M15: SBV3/800/25-SI | N15: 7614/2004 | O15: 7620/2004 | P15: Vacuum | Q15: 800A | R15: 12 kV | X15: SLD | Z15: 42,000.00 | AA15: 642,000.00
F16: C-HTKPN-FB02-BERNIE | G16: Houtkoppen 88/11kV SS Bernie Street Dist. (Bay 12) | I16: 600,000.00 | K16: Alstom | L16: 2004 | M16: SBV3/800/25-SI | N16: 7625/2004 | O16: 7621/2004 | P16: Vacuum | Q16: 800A | R16: 12 kV | X16: SLD | Z16: 42,000.00 | AA16: 642,000.00
F17: C-HTKPN-FB02-HOLD06 | G17: Houtkoppen 88/11kV SS Holding 6 Dist. (Bay 13) | I17: 600,000.00 | K17: Alstom | L17: 2004 | M17: SBV3/800/25-SI | N17: 7613/2004 | O17: 7622/2004 | P17: Vacuum | Q17: 800A | R17: 12 kV | X17: SLD | Z17: 42,000.00 | AA17: 642,000.00
F18: C-HTKPN-FB02-CONDUT | G18: Houtkoppen 88/11kV SS Conduit Dist. (Bay 14) | I18: 600,000.00 | K18: Alstom | L18: 2004 | M18: SBV3/800/25-SI | N18: 7623/2004 | O18: 7623/2004 | P18: Vacuum | Q18: 800A | R18: 12 kV | X18: SLD | Z18: 42,000.00 | AA18: 642,000.00
F19: C-HTKPN-FB02-BLBOSR | G19: Houtkoppen 88/11kV SS Bloubos Rand Dist. (Bay 15) | I19: 600,000.00 | K19: Alstom | L19: 2004 | M19: SBV3/800/25-SI | N19: 7624/2004 | O19: 7624/2004 | P19: Vacuum | Q19: 800A | R19: 12 kV | X19: SLD | Z19: 42,000.00 | AA19: 642,000.00
F20: C-HTKPN-FB02-MARD02 | G20: Houtkoppen 88/11kV SS Maroeladal 2 S/S 637 Dist. (Bay 16) | I20: 600,000.00 | K20: Alstom | L20: 2004 | M20: SBV3/800/25-SI | N20: 7612/2004 | O20: 7625/2004 | P20: Vacuum | Q20: 800A | R20: 12 kV | X20: SLD | Z20: 42,000.00 | AA20: 642,000.00
F21: C-HTKPN-FB02-TRFR02 | G21: Houtkoppen 88/11kV SS Incomer 2 (2TO Bay 17) | I21: 650,000.00 | K21: Alstom | L21: 2007 | M21: SBV3/2000/40-SI | N21: 8859/2007 | O21: 8859/2007 | P21: Vacuum | Q21: 2000A | R21: 12 kV | X21: SLD | Y21: 1X Test Block | Z21: 45,500.00 | AA21: 695,500.00
G22: Sub Total | I22: =SUM(I5:I21) -> 10,350,000.00 | Z22: 724,500.00 | AA22: 11,074,500.00
G23: Relays (Control Room) | Z23: 0 | AA23: 0
G24: Houtkoppen 88/11kV SS Incomer 1 Main Protection (Bay 1) | I24: 200,000.00 | K24: SEL | L24: Not Specified | M24: SEL-351S | N24: 2004125042 | Q24: 1-5A | R24: 110V | Y24: 6XTest Blocks | Z24: 14,000.00 | AA24: 214,000.00
G25: Houtkoppen 88/11kV SS Incomer 1 Backup Protection (Bay 1) | I25: 200,000.00 | K25: SEL | L25: Not Specified | M25: SEL-551 | N25: 2004156153 | Q25: 1-5A | R25: 110V | Z25: 14,000.00 | AA25: 214,000.00
G26: Houtkoppen 88/11kV SS Feeder Protection and Control (Bay 2) | I26: 150,000.00 | K26: SEL | L26: Not Specified | M26: SEL-351S | N26: 2004125037 | Q26: 1-5A | R26: 110V | Z26: 10,500.00 | AA26: 160,500.00
G27: Houtkoppen 88/11kV SS Incomer 1 Auxiliary Relay (Bay 1) | I27: 200,000.00 | K27: GEC Alsthom | L27: Not Specified | M27: VAJ/SPEC11ZG482A | N27: 035582M | Q27: Not Specified | R27: 110V | Z27: 14,000.00 | AA27: 214,000.00
G28: Houtkoppen 88/11kV SS Feeder Protection and Control (Bay 3) | I28: 150,000.00 | K28: SEL | L28: Not Specified | M28: SEL-351S | N28: 2004125045 | Q28: 1-5A | R28: 110V | Y28: 9XTest Blocks | Z28: 10,500.00 | AA28: 160,500.00
G29: Houtkoppen 88/11kV SS Feeder Protection and Control (Bay 4) | I29: 150,000.00 | K29: SEL | L29: Not Specified | M29: SEL-351S | N29: 2004125040 | Q29: 1-5A | R29: 110V | Z29: 10,500.00 | AA29: 160,500.00
G30: Houtkoppen 88/11kV SS Feeder Protection and Control (Bay 5) | I30: 150,000.00 | K30: SEL | L30: Not Specified | M30: SEL-351S | N30: 2004125054 | Q30: 1-5A | R30: 110V | Z30: 10,500.00 | AA30: 160,500.00
G31: Houtkoppen 88/11kV SS Feeder Protection and Control (Bay 6) | I31: 150,000.00 | K31: SEL | L31: Not Specified | M31: SEL-351S | N31: 2004125036 | Q31: 1-5A | R31: 110V | Y31: 9XTest Blocks | Z31: 10,500.00 | AA31: 160,500.00
G32: Houtkoppen 88/11kV SS Feeder Protection and Control (Bay 7) | I32: 150,000.00 | K32: SEL | L32: Not Specified | M32: SEL-351S | N32: 2004125048 | Q32: 1-5A | R32: 110V | Z32: 10,500.00 | AA32: 160,500.00
G33: Houtkoppen 88/11kV SS Feeder Protection and Control (Bay 8) | I33: 150,000.00 | K33: SEL | L33: Not Specified | M33: SEL-351S | N33: 2004125044 | Q33: 1-5A | R33: 110V | Z33: 10,500.00 | AA33: 160,500.00
G34: Houtkoppen 88/11kV SS Pilot Wire Protection (Bay 6, 7 and 8) | I34: 150,000.00 | K34: Reyrolle | L34: Not Specified | M34: Solkor RF | N34: 08319501/005 | Q34: 1A | R34: 110V | Z34: 10,500.00 | AA34: 160,500.00
G35: Houtkoppen 88/11kV SS Pilot Wire Protection(Bay 6, 7and 8) | I35: 150,000.00 | K35: Reyrolle | L35: Not Specified | M35: Solkor RF | N35: A02799/14 | Q35: 5A | R35: 110V | Z35: 10,500.00 | AA35: 160,500.00
G36: Houtkoppen 88/11kV SS Bus Section Protection and Control (Bay 9) | I36: 200,000.00 | K36: SEL | L36: Not Specified | M36: SEL-351S | N36: 2004125047 | Q36: 1-5A | R36: 110V | Y36: 8XTest Blocks | Z36: 14,000.00 | AA36: 214,000.00
G37: Houtkoppen 88/11kV SS Feeder Protection and Control (Bay 10) | I37: 150,000.00 | K37: SEL | L37: Not Specified | M37: SEL-351S | N37: 2004125038 | Q37: 1-5A | R37: 110V | Z37: 10,500.00 | AA37: 160,500.00
G38: Houtkoppen 88/11kV SS Feeder Protection and Control (Bay 11) | I38: 150,000.00 | K38: SEL | L38: Not Specified | M38: SEL-351S | N38: 2004125043 | Q38: 1-5A | R38: 110V | Z38: 10,500.00 | AA38: 160,500.00
G39: Houtkoppen 88/11kV SS Bus Section Protection and Control (Bay 12) | I39: 200,000.00 | K39: SEL | L39: Not Specified | M39: SEL-351S | N39: 2004125039 | Q39: 1-5A | R39: 110V | Y39: 9XTest Blocks | Z39: 14,000.00 | AA39: 214,000.00
G40: Houtkoppen 88/11kV SS Feeder Protection and Control (Bay 13) | I40: 150,000.00 | K40: SEL | L40: Not Specified | M40: SEL-351S | N40: 2004125041 | Q40: 1-5A | R40: 110V | Z40: 10,500.00 | AA40: 160,500.00
G41: Houtkoppen 88/11kV SS Feeder Protection and Control (Bay 14) | I41: 150,000.00 | K41: SEL | L41: Not Specified | M41: SEL-351S | N41: 2004125035 | Q41: 1-5A | R41: 110V | Z41: 10,500.00 | AA41: 160,500.00
G42: Houtkoppen 88/11kV SS Pilot Wire Protection (Bay 12, 13 and 14) | I42: 150,000.00 | K42: Reyrolle | L42: Not Specified | M42: Solkor RF | N42: A02799/4 | Q42: 5A | R42: 110V | Z42: 10,500.00 | AA42: 160,500.00
G43: Houtkoppen 88/11kV SS Feeder Protection and Control (Bay 15) | I43: 150,000.00 | K43: SEL | L43: Not Specified | M43: SEL-351S | N43: 2004125050 | Q43: 1-5A | R43: 110V | Y43: 9XTest Blocks | Z43: 10,500.00 | AA43: 160,500.00
G44: Houtkoppen 88/11kV SS Feeder Protection and Control (Bay 16) | I44: 150,000.00 | K44: SEL | L44: Not Specified | M44: SEL-351S | N44: 2004125049 | Q44: 1-5A | R44: 110V | Z44: 10,500.00 | AA44: 160,500.00
G45: Houtkoppen 88/11kV SS Incomer 1 Main Protection (Bay 17) | I45: 200,000.00 | K45: SEL | L45: Not Specified | M45: SEL-351S | N45: 2002352064 | Q45: 1-5A | R45: 110V | Z45: 14,000.00 | AA45: 214,000.00
G46: Houtkoppen 88/11kV SS Incomer 1 Backup Protection (Bay 17) | I46: 200,000.00 | K46: SEL | L46: Not Specified | M46: SEL-551 | N46: 2004156154 | Q46: 1-5A | R46: 110V | Z46: 14,000.00 | AA46: 214,000.00
G47: Houtkoppen 88/11kV SS Pilot Wire Protection(Bay 15, 16 and 17) | I47: 150,000.00 | K47: Reyrolle | L47: Not Specified | M47: Solkor RF | N47: 08340505/009 | Q47: 1A | R47: 110V | Z47: 10,500.00 | AA47: 160,500.00
G48: Houtkoppen 88/11kV SS AC Supply Fail Aux Relay (LV AC Board) | I48: 150,000.00 | K48: GEC Alsthom | L48: Not Specified | M48: VAA21 | N48: QR11652 | Q48: Not Specified | R48: 110V | Z48: 10,500.00 | AA48: 160,500.00
G49: Sub Total | I49: =SUM(I24:I48) -> 4,100,000.00 | Z49: 287,000.00 | AA49: 4,387,000.00
G50: Feeder Board Relays | Z50: 0 | AA50: 0
G51: Houtkoppen 88/11kV SS Incomer 1 (1TO Bay 1) Arc Protection | I51: 200,000.00 | K51: ABB | L51: Not Specified | M51: REA101 | N51: ES453550 | Q51: 1-5A | R51: 110VDC | Z51: 14,000.00 | AA51: 214,000.00
G52: Houtkoppen 88/11kV SS Pritchard 153 Dist. (Bay 4) Arc Protection | I52: 150,000.00 | K52: ABB | L52: Not Specified | M52: REA107 | N52: ES453903 | Q52: 1-5A | R52: 110VDC | Z52: 10,500.00 | AA52: 160,500.00
G53: Houtkoppen 88/11kV SS Oosterrand Dist. (Bay 6) Arc Protection | I53: 150,000.00 | K53: ABB | L53: Not Specified | M53: REA107 | N53: ES433904 | Q53: 1-5A | R53: 110VDC | Z53: 10,500.00 | AA53: 160,500.00
G54: Houtkoppen 88/11kV SS185 X3Cu To MSS 02066 ERF54 Oraleans Road Kya Sand Dist. (Bay 8) Arc Protection | I54: 150,000.00 | K54: ABB | L54: Not Specified | M54: REA107 | N54: ES453906 | Q54: 1-5A | R54: 110VDC | Z54: 10,500.00 | AA54: 160,500.00
G55: Houtkoppen 88/11kV SS Bellairs Standby Dist. (Bay 10) Arc Protection | I55: 150,000.00 | K55: ABB | L55: Not Specified | M55: REA107 | N55: ES453907 | Q55: 1-5A | R55: 110VDC | Z55: 10,500.00 | AA55: 160,500.00
G56: Houtkoppen 88/11kV SS Bernie Street Dist. (Bay 12) Arc Protection | I56: 150,000.00 | K56: ABB | L56: Not Specified | M56: REA107 | N56: ES453908 | Q56: 1-5A | R56: 110VDC | Z56: 10,500.00 | AA56: 160,500.00
G57: Houtkoppen 88/11kV SS Bloubos Rand Dist. (Bay 15) Arc Protection | I57: 150,000.00 | K57: ABB | L57: Not Specified | M57: REA107 | N57: ES453905 | Q57: 1-5A | R57: 110VDC | Z57: 10,500.00 | AA57: 160,500.00
G58: Houtkoppen 88/11kV SS Incomer 2 (2TO Bay 17) Arc Protection | I58: 200,000.00 | K58: ABB | L58: Not Specified | M58: REA107 | N58: ES453551 | Q58: 1-5A | R58: 110VDC | Z58: 14,000.00 | AA58: 214,000.00
G59: Sub Total | I59: =SUM(I51:I58) -> 1,300,000.00 | Z59: 91,000.00 | AA59: 1,391,000.00
G60: Voltage Transformers | Z60: 0 | AA60: 0
G61: Houtkoppen 88/11kV SS Incomer no.1 VT | I61: 40,000.00 | K61: Nameplate Inaccessible | L61: Nameplate Inaccessible | M61: Nameplate Inaccessible | N61: Nameplate Inaccessible | R61: 11000/110V | X61: SLD | Z61: 2,800.00 | AA61: 42,800.00
G62: Houtkoppen 88/11kV SS Incomer no.2 VT | I62: 40,000.00 | K62: Nameplate Inaccessible | L62: Nameplate Inaccessible | M62: Nameplate Inaccessible | N62: Nameplate Inaccessible | R62: 11000/110V | X62: SLD | Z62: 2,800.00 | AA62: 42,800.00
G63: Sub Total | I63: =SUM(I61:I62) -> 80,000.00 | Z63: 5,600.00 | AA63: 85,600.00
G64: Stats Meters | Z64: 0 | AA64: 0
G65: Houtkoppen 88/11kV SS Bellairs North Dist. (Bay 2) QOS Recorder | I65: 60,000.00 | K65: ESPEC BLACKBOX | L65: 2014 | M65: ELSPECG4430 | N65: 00-60-35-1A-9B-8C | Z65: 4,200.00 | AA65: 64,200.00
G66: Houtkoppen 88/11kV SS 185 X 3 Cu RMU 00114 Cedar Creek Needwood Ext 5 & 8 Pritchard North Dist. (Bay 3) QOS Recorder | I66: 60,000.00 | K66: ESPEC BLACKBOX | L66: 2014 | M66: ELSPECG4430 | N66: 00-60-35-1B-05-D2 | Z66: 4,200.00 | AA66: 64,200.00
G67: Houtkoppen 88/11kV SS Pritchard 153 Dist. (Bay 4) QOS Recorder | I67: 60,000.00 | K67: ESPEC BLACKBOX | L67: 2014 | M67: ELSPECG4430 | N67: 00-60-35-1A-9B-64 | Z67: 4,200.00 | AA67: 64,200.00
G68: Houtkoppen 88/11kV SS RMU 00639 Waterford Estate Dist. (Bay 5) QOS Recorder | I68: 60,000.00 | K68: ESPEC BLACKBOX | L68: 2014 | M68: ELSPECG4430 | N68: 00-60-35-1A-9B-3E | Z68: 4,200.00 | AA68: 64,200.00
G69: Houtkoppen 88/11kV SS Oosterrand Dist. (Bay 6) QOS Recorder | I69: 60,000.00 | K69: ESPEC BLACKBOX | L69: 2014 | M69: ELSPECG4430 | N69: 00-60-35-1A-A0-B9 | Z69: 4,200.00 | AA69: 64,200.00
G70: Houtkoppen 88/11kV SS Maroeladal Dist. (Bay 7) QOS Recorder | I70: 60,000.00 | K70: ESPEC BLACKBOX | L70: 2014 | M70: ELSPECG4430 | N70: 00-60-35-1A-9B-2F | Z70: =I70*Z$4 -> 4,200.00 | AA70: =I70+Z70 -> 64,200.00
G71: Houtkoppen 88/11kV SS185 X3Cu To MSS 02066 ERF54 Oraleans Road Kya Sand Dist. (Bay 8) QOS Recorder | I71: 60,000.00 | K71: ESPEC BLACKBOX | L71: 2014 | M71: ELSPECG4430 | N71: 00-60-35-1A-9B-43 | Z71: 4,200.00 | AA71: 64,200.00
G72: Houtkoppen 88/11kV SS Bellairs Standby Dist. (Bay 10) QOS Recorder | I72: 60,000.00 | K72: ESPEC BLACKBOX | L72: 2014 | M72: ELSPECG4430 | N72: 00-60-35-1A-A0-73 | Z72: 4,200.00 | AA72: 64,200.00
G73: Houtkoppen 88/11kV SS 185X3Core CU To MSS 02007 Main Road Kya Sent Estate Inadan Dist. (Bay 11) QOS Recorder | I73: 60,000.00 | K73: ESPEC BLACKBOX | L73: 2014 | M73: ELSPECG4430 | N73: 00-60-35-1B-06-7D | Z73: 4,200.00 | AA73: 64,200.00
G74: Houtkoppen 88/11kV SS Bernie Street Dist. (Bay 12) QOS Recorder | I74: 60,000.00 | K74: ESPEC BLACKBOX | L74: 2014 | M74: ELSPECG4430 | N74: 00-60-35-1A-A0-94 | Z74: 4,200.00 | AA74: 64,200.00
G75: QOS RecorderHoutkoppen 88/11kV SS Holding 6 Dist. (Bay 13) QOS Recorder | I75: 60,000.00 | K75: ESPEC BLACKBOX | L75: 2014 | M75: ELSPECG4430 | N75: 00-60-35-1A-9D-9C | Z75: 4,200.00 | AA75: 64,200.00
G76: Houtkoppen 88/11kV SS Conduit Dist. (Bay 14) QOS Recorder | I76: 60,000.00 | K76: ESPEC BLACKBOX | L76: 2014 | M76: ELSPECG4430 | N76: 00-60-35-1A-9B-3C | Z76: 4,200.00 | AA76: 64,200.00
G77: Houtkoppen 88/11kV SS Bloubos Rand Dist. (Bay 15) QOS Recorder | I77: 60,000.00 | K77: ESPEC BLACKBOX | L77: 2014 | M77: ELSPECG4430 | N77: 00-60-35-1A-9B-9B | Z77: 4,200.00 | AA77: 64,200.00
G78: Houtkoppen 88/11kV SS Maroeladal 2 S/S 637 Dist. (Bay 16) QOS Recorder | I78: 60,000.00 | K78: ESPEC BLACKBOX | L78: 2014 | M78: ELSPECG4430 | N78: 00-60-35-1A-9B-83 | Z78: 4,200.00 | AA78: 64,200.00
G79: Houtkoppen 88/11kV SS Incomer 1 Energy Meter | I79: 60,000.00 | K79: Itron | L79: 2014 | M79: SL761W071 | N79: 73004278 | Y79: 2XTest Blocks | Z79: 4,200.00 | AA79: 64,200.00
G80: Houtkoppen 88/11kV SS Incomer 2 Energy Meter | I80: 60,000.00 | K80: Itron | L80: 2015 | M80: SL761W072 | N80: 73004283 | Y80: 2XTest Blocks | Z80: 4,200.00 | AA80: 64,200.00
G81: Sub Total | I81: =SUM(I65:I80) -> 960,000.00 | Z81: 67,200.00 | AA81: 1,027,200.00
G82: Telecommunication | Z82: 0 | AA82: 0
G83: Houtkoppen 88/11kV SS Pilot Wire Board | I83: 200,000.00 | Z83: 14,000.00 | AA83: 214,000.00
G84: Sub Total | I84: =SUM(I83) -> 200,000.00 | Z84: 14,000.00 | AA84: 214,000.00
G85: ICT Network Panel | Z85: 0 | AA85: 0
G86: Houtkoppen 88/11kV SS PowerEdge R320 | I86: 200,000.00 | K86: Dell | L86: Nameplate Inaccessible | M86: Nameplate Inaccessible | N86: Nameplate Inaccessible | Z86: 14,000.00 | AA86: 214,000.00
G87: Houtkoppen 88/11kV SS Ruggedcom | I87: 200,000.00 | K87: Siemens | L87: Nameplate Inaccessible | M87: RSG2100 | N87: Nameplate Inaccessible | Z87: 14,000.00 | AA87: 214,000.00
G88: Houtkoppen 88/11kV SS Industrial Cellular Router | I88: 200,000.00 | K88: Inhand | L88: Nameplate Inaccessible | M88: IR794PH09 | N88: RP7941404221897 | Z88: 14,000.00 | AA88: 214,000.00
G89: Houtkoppen 88/11kV SS Power Supply | I89: 200,000.00 | K89: Eaton Electrical Seervices and Systems | L89: Not Specified | M89: Not Specified | N89: G095E02053 | Z89: 14,000.00 | AA89: 214,000.00
G90: Sub Total | I90: =SUM(I86:I89) -> 800,000.00 | Z90: 56,000.00 | AA90: 856,000.00
G91: Scada | Z91: 0 | AA91: 0
G92: Houtkoppen 88/11kV SS Communication Processor 1 | I92: 300,000.00 | K92: SEL | L92: Not Specified | M92: SEL-2030 | N92: 2004125052 | Z92: 21,000.00 | AA92: 321,000.00
G93: Houtkoppen 88/11kV SS Communication Processor 2 | I93: 300,000.00 | K93: SEL | L93: Not Specified | M93: SEL-2031 | N93: 2004125051 | Z93: 21,000.00 | AA93: 321,000.00
G94: Houtkoppen 88/11kV SS Multifunction IED | I94: 500,000.00 | K94: GE Energy Services | L94: Not Specified | M94: D25 | N94: 032399-2392-01A | Z94: 35,000.00 | AA94: 535,000.00
G95: Houtkoppen 88/11kV SS Tetra Modem | I95: 300,000.00 | K95: Piciorgros | L95: Not Specified | M95: TMO-100/DA1 | N95: Not Specified | Z95: 21,000.00 | AA95: 321,000.00
G96: Sub Total | I96: =SUM(I92:I95) -> 1,400,000.00 | Z96: 98,000.00 | AA96: 1,498,000.00
G97: Battery Chargers | Z97: 0 | AA97: 0
G98: Houtkoppen 88/11kV SS Main Battery Charger | I98: 400,000.00 | K98: Static Power | L98: Not Specified | M98: 6V11060A04 | N98: 04/0182 | Q98: 60A | R98: 110V | Z98: 28,000.00 | AA98: 428,000.00
G99: Sub Total | I99: =SUM(I98) -> 400,000.00 | Z99: 28,000.00 | AA99: 428,000.00
G100: Batteries | Z100: 0 | AA100: 0
G101: Houtkoppen 88/11kV SS 88XAlcad Cells | I101: 200,000.00 | K101: Alcad | L101: Not Specified | M101: Nicad | N101: Not Specified | Q101: Not Specified | R101: Not Specified | Z101: 14,000.00 | AA101: 214,000.00
G102: Sub Total | I102: =SUM(I101) -> 200,000.00 | Z102: 14,000.00 | AA102: 214,000.00
G103: LV AC Board | Z103: 0 | AA103: 0
G104: Houtkoppen 88/11kV SS 380V 3Way Change Over Panel | I104: 400,000.00 | K104: No Nameplate | L104: No Nameplate | M104: No Nameplate | N104: No Nameplate | Q104: Not Specified | R104: 380V | Z104: 28,000.00 | AA104: 428,000.00
G105: Sub Total | I105: =SUM(I104) -> 400,000.00 | Z105: 28,000.00 | AA105: 428,000.00
G106: Grand Total | I106: =SUM(I5:I105)/2 -> 20,190,000.00 | Z106: 1,413,300.00 | AA106: 21,603,300.00

Sheet Dainfern 22_11kV SS
A1: Location | G1: Accountability | J1: Acquisition | K1: Asset Identifier | P1: Technical Data | S1: Perfomance | U1: Additional Information | Y1: Comments
A2: Date of Completion | B2: Street Address | C2: Suburb | D2: GPS Coordinates | E2: GPS Coordinates | F2: Functional Location | G2: Asset Description | H2: Department/ Planner Group | I2: Replacement Cost (Rands) | J2: Project ID | K2: Manufacturer | L2: Year of Manufacture | M2: Model No. | N2: Serial Number (Switchgear) | O2: Serial Number (Panels) | P2: Insulating Medium (Oil,Vacuum, SF6) | Q2: Current Ratings | R2: Voltage Rating | S2: Warranty | T2: Estimated Useful Life | U2: Supplier/Contractor | V2: Panel Control Cables Designation | W2: Length(m) | X2: Manual & Drawings (Y/N) | AA2: Replacement Cost (Rands) 2023-2024
G3: Dainfern 22/11kV Substation
G4: 11kV Switchgear | Z4: 7%
B5: Gateside Avenue | C5: Dainfern | D5: 27°59'58.8" E | E5: 25°59'27.0" S | F5: C-DAINF-FB1A-GATSID | G5: Dainfern 22/11kV SS SS MS 758 Gateside Ave dist. (Bay 1) | I5: 600,000.00 | K5: Reyrolle | L5: Not Specified | M5: Not Specified | P5: Oil | Q5: 200A | R5: 12kV | X5: SLD | Y5: 1XTest block | Z5: =I5*Z$4 -> 42,000.00 | AA5: =I5+Z5 -> 642,000.00
G6: Dainfern 22/11kV SS 120/3 Core ALU To MSS Stand 938 (Bay 2) | I6: 600,000.00 | K6: Reyrolle | L6: Not Specified | M6: Not Specified | N6: 3WALM860 | P6: Oil | Q6: 200A | R6: 12kV | X6: SLD | Y6: 1XTest block | Z6: =I6*Z$4 -> 42,000.00 | AA6: =I6+Z6 -> 642,000.00
F7: C-DAINF-FB1A-TRFI01 | G7: Dainfern 22/11kV SS Transformer 1 Incomer (Bay 3) | I7: 650,000.00 | K7: Reyrolle | L7: Not Specified | M7: Not Specified | N7: 3WALM857 | P7: Oil | Q7: 300A | R7: 12kV | X7: SLD | Z7: 45,500.00 | AA7: 695,500.00
F8: C-DAINF-BS01 | G8: Dainfern 22/11kV SS Bus Section 1 (Bay 4) | I8: 650,000.00 | K8: Reyrolle | L8: Not Specified | M8: Not Specified | N8: 3WALM858 | P8: Oil | Q8: 1200A | R8: 12kV | X8: SLD | Z8: 45,500.00 | AA8: 695,500.00
F9: C-DAINF-FB1B-TRFI02 | G9: Dainfern 22/11kV SS Transformer 2 Incomer (Bay 5) | I9: 650,000.00 | K9: Reyrolle | L9: Not Specified | M9: Not Specified | N9: 3WALM859 | P9: Oil | Q9: 300A | R9: 12kV | X9: SLD | Z9: 45,500.00 | AA9: 695,500.00
F10: C-DAINF-FB1B-WEXFDR | G10: Dainfern 22/11kV SS 120 AL 185 CU To RMU 00351 Wexford Drive (Bay 6) | I10: 600,000.00 | K10: Reyrolle | L10: Not Specified | M10: Not Specified | N10: 3WALM856 | P10: Oil | Q10: 200A | R10: 12kV | X10: SLD | Y10: 1XTest block | Z10: 42,000.00 | AA10: 642,000.00
G11: Dainfern 22/11kV SS S/S 1143 Gateside RMU (Bay 7) | I11: 600,000.00 | K11: Reyrolle | L11: Not Specified | M11: Not Specified | N11: 3WALM861 | P11: Oil | Q11: 200A | R11: 12kV | X11: SLD | Y11: 1XTest block | Z11: 42,000.00 | AA11: 642,000.00 | AB11: h
F12: C-DAINF-BS02 | G12: Dainfern 22/11kV SS Bus Section 2( Bay 8) | I12: 650,000.00 | K12: Reyrolle | L12: Not Specified | M12: Not Specified | N12: 3WALM862 | P12: Oil | Q12: 1200A | R12: 12kV | X12: SLD | Z12: 45,500.00 | AA12: 695,500.00
F13: C-DAINF-FB1C-BRDFLD | G13: Dainfern 22/11kV SS 120/3C ALU S.S 1094 Brandfield (Bay 9) | I13: 600,000.00 | K13: Reyrolle | L13: Not Specified | M13: Not Specified | N13: 4CALM-196 | P13: Oil | Q13: 200A | R13: 12kV | X13: SLD | Y13: 1XTest block | Z13: 42,000.00 | AA13: 642,000.00
F14: C-DAINF-FB1C-TRFI03 | G14: Dainfern 22/11kV SS Transformer 3 Incomer (Bay 1 0) | I14: 650,000.00 | K14: Reyrolle | L14: Not Specified | M14: Not Specified | N14: RES561P | P14: Oil | Q14: 300A | R14: 12kV | X14: SLD | Z14: 45,500.00 | AA14: 695,500.00
F15: C-DAINF-FB1C-SPAR11kV | G15: Dainfern 22/11kV SS Spare dist. (Bay 1 1) | I15: 600,000.00 | K15: Reyrolle | L15: Not Specified | M15: Not Specified | N15: RES562P | P15: Oil | Q15: 300A | R15: 12kV | X15: SLD | Y15: 1XTest block | Z15: 42,000.00 | AA15: 642,000.00
G16: Sub Total | I16: =SUM(I5:I15) -> 6,850,000.00 | Z16: 479,500.00 | AA16: 7,329,500.00
G17: 22KV Switchgear (Indoor) | Z17: 0 | AA17: 0
F18: C-DAINF-BS03 | G18: Dainfern 22/11kV SS Bus-Section, Circuit Breaker | I18: 650,000.00 | K18: Siemens | L18: 2001 | M18: 8DH10 | N18: 715497/+J02 | P18: SF6 | Q18: 630A | R18: 24kV | X18: SLD | Z18: 45,500.00 | AA18: 695,500.00
F19: C-DAINF-22F3-TRFR03 | G19: Dainfern 22/11kV SS Incomer No. 3, Circuit Breaker | I19: 650,000.00 | K19: Siemens | L19: 2001 | M19: 8DH10 | N19: 715497/+J01 | P19: SF6 | Q19: 630A | R19: 24kV | X19: SLD | Z19: 45,500.00 | AA19: 695,500.00
G20: Dainfern 22/11kV SS Transformer Feeder No. 3, Circuit Breaker | I20: 650,000.00 | K20: Siemens | L20: 2001 | M20: 8DH10 | N20: 715497/+J03 | P20: SF6 | Q20: 630A | R20: 24kV | X20: SLD | Z20: 45,500.00 | AA20: 695,500.00
F21: C-DAINF-22F1-FTRF01 | G21: Dainfern 22/11kV SS 22/11kV Transformer 1 | I21: 650,000.00 | K21: Delle Alsthom | L21: Not Specified | M21: FP61B | N21: Not Specified | P21: Vacuum | Q21: 630A | R21: 22kV | X21: SLD | Z21: 45,500.00 | AA21: 695,500.00
G22: Dainfern 22/11kV SS 22kV Escom 1 Fdr | I22: 650,000.00 | K22: Delle Alsthom | L22: Not Specified | M22: FP61B | N22: Not Specified | P22: Vacuum | Q22: 630A | R22: 22kV | X22: SLD | Z22: 45,500.00 | AA22: 695,500.00
G23: Dainfern 22/11kV SS 22kVBus Section | I23: 650,000.00 | K23: Delle Alsthom | L23: Not Specified | M23: FP61B | N23: Not Specified | P23: Vacuum | Q23: 630A | R23: 22kV | X23: SLD | Z23: 45,500.00 | AA23: 695,500.00
F24: C-DAINF-22F2-TRFR02 | G24: Dainfern 22/11kV SS Transformer 2 | I24: 650,000.00 | K24: Delle Alsthom | L24: Not Specified | M24: FP61B | N24: Not Specified | P24: Vacuum | Q24: 630A | R24: 22kV | X24: SLD | Z24: 45,500.00 | AA24: 695,500.00
G25: Dainfern 22/11kV SS 22kV Escom 2 Fdr | I25: 650,000.00 | K25: Delle Alsthom | L25: Not Specified | M25: FP61B | N25: Not Specified | P25: Vacuum | Q25: 630A | R25: 22kV | X25: SLD | Z25: 45,500.00 | AA25: 695,500.00
G26: Sub Total | I26: =SUM(I18:I25) -> 5,200,000.00 | Z26: 364,000.00 | AA26: 5,564,000.00
G27: Surge Arrestors | Z27: 0 | AA27: 0
G28: Dainfern 22/11kV SS 22kV Transformer 1 Srg Arr X3 | I28: 40,000.00 | X28: SLD | Z28: 2,800.00 | AA28: 42,800.00
G29: Dainfern 22/11kV SS 22kV Transformer 2 Srg Arr X3 | I29: 40,000.00 | X29: SLD | Z29: 2,800.00 | AA29: 42,800.00
G30: Dainfern 22/11kV SS 22kV Transformer 3 Srg Arr X3 | I30: 40,000.00 | X30: SLD | Z30: 2,800.00 | AA30: 42,800.00
G31: Sub Total | I31: =SUM(I28:I30) -> 120,000.00 | Z31: 8,400.00 | AA31: 128,400.00
G32: Insulators | Z32: 0 | AA32: 0
G33: Dainfern 22/11kV SS 22kV Transformer 1 Busbar insulator X3 | I33: 30,000.00 | Z33: 2,100.00 | AA33: 32,100.00
G34: Dainfern 22/11kV SS 22kV Transformer 1 Srg Arr insulator X3 | I34: 30,000.00 | Z34: 2,100.00 | AA34: 32,100.00
G35: Dainfern 22/11kV SS 11kV Transformer 1 insulator X4 | I35: 40,000.00 | Z35: 2,800.00 | AA35: 42,800.00
G36: Dainfern 22/11kV SS 22kV Transformer 2 Busbar insulator X3 | I36: 30,000.00 | Z36: 2,100.00 | AA36: 32,100.00
G37: Dainfern 22/11kV SS 22kV Transformer 2 Srg Arr insulator X3 | I37: 30,000.00 | Z37: 2,100.00 | AA37: 32,100.00
G38: Dainfern 22/11kV SS 11kV Transformer 2 insulator X4 | I38: 40,000.00 | Z38: 2,800.00 | AA38: 42,800.00
G39: Dainfern 22/11kV SS 22kV Transformer 3 Busbar insulator X3 | I39: 30,000.00 | Z39: 2,100.00 | AA39: 32,100.00
G40: Dainfern 22/11kV SS 22kV Transformer 3 Srg Arr insulator X3 | I40: 30,000.00 | Z40: 2,100.00 | AA40: 32,100.00
G41: Sub Total | I41: =SUM(I33:I40) -> 260,000.00 | Z41: 18,200.00 | AA41: 278,200.00
G42: Power Transformers | Z42: 0 | AA42: 0
G43: Dainfern 22/11kV, 5MVA, TRF Bay 1 | I43: 20,000,000.00 | K43: Desta | L43: 2002 | M43: SABS-780 | N43: T-1895/2 | Z43: 1,400,000.00 | AA43: 21,400,000.00
G44: Dainfern 22/6.6kV, 5MVA, TRF Bay 2 | I44: 20,000,000.00 | K44: Desta | L44: 2002 | M44: SABS-780 | N44: T-1895/1 | Z44: 1,400,000.00 | AA44: 21,400,000.00
G45: Dainfern 22/6.6kV, 5MVA, TRF Bay 3 | I45: 20,000,000.00 | K45: Desta | L45: 2002 | N45: T2920/1 | Z45: 1,400,000.00 | AA45: 21,400,000.00
G46: Sub Total | I46: =SUM(I43:I45) -> 60,000,000.00 | Z46: 4,200,000.00 | AA46: 64,200,000.00
G47: Auxiliary Transformers | Z47: 0 | AA47: 0
G48: Not Found | Z48: 0 | AA48: 0
G49: Tap Changers | Z49: 0 | AA49: 0
G50: Not Found | Z50: 0 | AA50: 0
G51: Voltage Transformers | Z51: 0 | AA51: 0
G52: Dainfern 22/11kV SS Incomer TRFR 1 | I52: 40,000.00 | K52: Reyrolle | L52: Not Specified | M52: 15TJCC | N52: 395J434Y | P52: N/A | Q52: 200VA | R52: 11/0.11kV | Z52: 2,800.00 | AA52: 42,800.00
G53: Dainfern 22/11kV SS Incomer TRFR 2 | I53: 40,000.00 | K53: Reyrolle | L53: Not Specified | M53: 15TJCC | N53: 395J434Y | P53: N/A | Q53: 200VA | R53: 11/0.11kV | Z53: 2,800.00 | AA53: 42,800.00
G54: Sub Total | I54: =SUM(I52:I53) -> 80,000.00 | Z54: 5,600.00 | AA54: 85,600.00
G55: Dissolved Gas Analyzers | Z55: 0 | AA55: 0
G56: Not Found | Z56: 0 | AA56: 0
G57: 22KV Switchgear Relays | Z57: 0 | AA57: 0
G58: Dainfern 22/11kV SS TRFR1 OC&EF | I58: 150,000.00 | K58: Reyrolle | L58: Not Specified | M58: 2433J101A | N58: Not Specified | Q58: 5A | R58: 110V | Z58: 10,500.00 | AA58: 160,500.00
G59: Dainfern 22/11kV SS TRFR1 Standby EF | I59: 150,000.00 | K59: Reyrolle | L59: Not Specified | M59: TJM10 | N59: A31109/3 | Q59: 5A | R59: 110V | Z59: 10,500.00 | AA59: 160,500.00
G60: Dainfern 22/11kV SS TRFR 1 REF | I60: 150,000.00 | K60: Reyrolle | L60: Not Specified | M60: 5B3 | N60: A62067/2 | Q60: 5A | R60: 110V | Z60: 10,500.00 | AA60: 160,500.00
G61: Dainfern 22/11kV SS TRFR 1 Trips | I61: 150,000.00 | K61: Reyrolle | L61: Not Specified | M61: 408J84 | N61: 90E1262 | Q61: 5A | R61: 110V | Z61: 10,500.00 | AA61: 160,500.00
G62: Dainfern 22/11kV SS TRFR 1 Buccholz Alarm | I62: 150,000.00 | K62: Reyrolle | L62: Not Specified | M62: 408J84 | N62: 90E1259 | Q62: 5A | R62: 110V | Z62: 10,500.00 | AA62: 160,500.00
G63: Dainfern 22/11kV SS TRFR 1 Timer | I63: 150,000.00 | K63: Reyrolle | L63: Not Specified | M63: 406J34 | N63: 90E1091 | Q63: 5A | R63: 110V | Z63: 10,500.00 | AA63: 160,500.00
G64: Dainfern 22/11kV SS TRFR 1 Master Trip | I64: 150,000.00 | K64: Reyrolle | L64: Not Specified | M64: S04-05-05 | N64: 101284201/003 | Q64: 5A | R64: 110V | Z64: 10,500.00 | AA64: 160,500.00
G65: Dainfern 22/11kV SS 22kV Escom Fdr 1 OC&EF | I65: 150,000.00 | K65: Reyrolle | L65: Not Specified | M65: 2433J101A | N65: 5A502112 | Q65: 5A | R65: 110V | Z65: 10,500.00 | AA65: 160,500.00
G66: Dainfern 22/11kV SS TRFR 2 OC&EF | I66: 150,000.00 | K66: Reyrolle | L66: Not Specified | M66: 2433J101A | N66: 5A502123 | Q66: 5A | R66: 110V | Z66: 10,500.00 | AA66: 160,500.00
G67: Dainfern 22/11kV SS TRFR 2 Standby EF | I67: 150,000.00 | K67: Reyrolle | L67: Not Specified | M67: TJM10 | N67: Not Visible | Q67: 5A | R67: 110V | Z67: 10,500.00 | AA67: 160,500.00
G68: Dainfern 22/11kV SS TRFR 2 REF | I68: 150,000.00 | K68: Reyrolle | L68: Not Specified | M68: 5B3 | N68: A62067/1 | Q68: 5A | R68: 110V | Z68: 10,500.00 | AA68: 160,500.00
G69: Dainfern 22/11kV SS TRFR 2 Trips | I69: 150,000.00 | K69: Reyrolle | L69: Not Specified | M69: 408J84 | N69: 90E1205 | Q69: 5A | R69: 110V | Z69: 10,500.00 | AA69: 160,500.00
G70: Dainfern 22/11kV SS TRFR 2 Buccholz Alarm | I70: 150,000.00 | K70: Reyrolle | L70: Not Specified | M70: 408J84 | N70: 90E1232 | Q70: 5A | R70: 110V | Z70: =I70*Z$4 -> 10,500.00 | AA70: =I70+Z70 -> 160,500.00
G71: Dainfern 22/11kV SS TRFR 2 Timer | I71: 150,000.00 | K71: Reyrolle | L71: Not Specified | M71: 406J34 | N71: 90E1090 | Q71: 5A | R71: 110V | Z71: 10,500.00 | AA71: 160,500.00
G72: Dainfern 22/11kV SS TRFR 2 Master Trip | I72: 150,000.00 | K72: Reyrolle | L72: Not Specified | M72: S04-05-05 | N72: A64218/6 | Q72: 5A | R72: 110V | Z72: 10,500.00 | AA72: 160,500.00
G73: Dainfern 22/11kV SS 22kV Escom 2 Fdr OC&EF | I73: 150,000.00 | K73: Reyrolle | L73: Not Specified | M73: 2433J101A | N73: 5A502111 | Q73: 5A | R73: 110V | Z73: 10,500.00 | AA73: 160,500.00
G74: Sub Total | I74: =SUM(I58:I73) -> 2,400,000.00 | Z74: 168,000.00 | AA74: 2,568,000.00
G75: 11kV Switchgear Relays | Z75: 0 | AA75: 0
G76: Dainfern 22/11kV Control Room, 22kV control Panel, Common Alarm | I76: 150,000.00 | K76: Reyrolle (NEI) | M76: AR112 | N76: 90E2001 | R76: 30/110/220V | Z76: 10,500.00 | AA76: 160,500.00
G77: Dainfern 22/11kV SS Control Room, 11kV Control Panel, Common Alarm | I77: 150,000.00 | K77: Reyrolle (NEI) | M77: AR112 | N77: 90E1745 | R77: 30/110/220V | Z77: 10,500.00 | AA77: 160,500.00
G78: Dainfern 11kV SS Switch Board Room, O/C & E/F Relay, Bay 1 | I78: 150,000.00 | K78: Titronic | M78: NA10#1A2MD000 | N78: 182658 | Q78: 1-5A | R78: 110-230V | Z78: 10,500.00 | AA78: 160,500.00
G79: Dainfern 11kV SS Switch Board Room, O/C & E/F Relay, Bay 2 | I79: 150,000.00 | K79: Titronic | M79: NA10#1A2MD000 | N79: 182641 | Q79: 1-5A | R79: 110-230V | Z79: 10,500.00 | AA79: 160,500.00
G80: Dainfern 11kV SS Switch Board Room, Inst. Overcurrent High Sets, Bay 4 | I80: 150,000.00 | K80: Reyrolle (NEI) | M80: MCAA1 | N80: A76245/2 | Z80: 10,500.00 | AA80: 160,500.00
G81: Dainfern 11kV SS Switch Board Room, O/C & E/F Relay, Bay 6 | I81: 150,000.00 | K81: Titronic | M81: NA10#1A2MD000 | N81: 182638 | Q81: 1-5A | R81: 110-230V | Z81: 10,500.00 | AA81: 160,500.00
G82: Dainfern 11kV SS Switch Board Room, O/C & E/F Relay, Bay 7 | I82: 150,000.00 | K82: Titronic | M82: NA10#1A2MD000 | N82: 182685 | Q82: 1-5A | R82: 110-230V | Z82: 10,500.00 | AA82: 160,500.00
G83: Dainfern 11kV SS Switch Board Room,Inst. Overcurrent High Sets, Bay 8 | I83: 150,000.00 | K83: Reyrolle (NEI) | M83: MCAA1 | N83: A76245/1 | Z83: 10,500.00 | AA83: 160,500.00
G84: Dainfern 11kV SS Switch Board Room, O/C & E/F Relay, Bay 9 | I84: 150,000.00 | K84: Titronic | M84: NA10#1A2MD000 | N84: 182670 | Q84: 1-5A | R84: 110-230V | Z84: 10,500.00 | AA84: 160,500.00
G85: Dainfern 11kV SS Switch Board Room, O/C & E/F Relay, Bay 11 | I85: 150,000.00 | K85: Titronic | M85: NA10#1A2MD000 | N85: 182652 | Q85: 1-5A | R85: 110-230V | Z85: 10,500.00 | AA85: 160,500.00
G86: Dainfern 11kV SS Switch Board Room, Bus-Section, O/C & E/F Relay | I86: 150,000.00 | K86: ABB | M86: SPAJ140C | N86: 272177 | Q86: 1-5A | R86: 80-265V | Z86: 10,500.00 | AA86: 160,500.00
G87: Dainfern 11kV SS Switch Board Room, Incomer No. 3, O/C & E/F Relay | I87: 150,000.00 | K87: ABB | M87: SPAJ140C | N87: 268817 | Q87: 1-5A | R87: 80-265V | Z87: 10,500.00 | AA87: 160,500.00
G88: Dainfern 11kV SS Switch Board Room, Transformer Feeder No. 3, Restricted E/F Relay | I88: 150,000.00 | K88: Reyrolle (NEI) | M88: MCAG | Z88: 10,500.00 | AA88: 160,500.00
G89: Dainfern 11kV SS Switch Board Room, Transformer Feeder No. 3, Master Trip Relay | I89: 150,000.00 | K89: Reyrolle (NEI) | M89: MVAA | Z89: 10,500.00 | AA89: 160,500.00
G90: Dainfern 22/11kV SS Switch Board Room, Transformer Feeder No. 3, O/C & E/F Relay | I90: 150,000.00 | K90: ABB | M90: SPAJ140C | N90: 2.72E+05 | Q90: 1-5A | R90: 80-265V | Z90: 10,500.00 | AA90: 160,500.00
G91: Dainfern 22/11kV SS Switch Board Room, Transformer Feeder No. 3, Standby E/F Relay | I91: 150,000.00 | K91: ABB | M91: SPAJ140C | N91: 268858 | Q91: 1-5A | R91: 80-265V | Z91: 10,500.00 | AA91: 160,500.00
G92: Dainfern 22/11kV SS Control Room, Test Terminals X 6 | I92: 150,000.00 | Z92: 10,500.00 | AA92: 160,500.00
G93: Sub Total | I93: =SUM(I76:I92) -> 2,550,000.00 | Z93: 178,500.00 | AA93: 2,728,500.00
G94: Security System Panel | Z94: 0 | AA94: 0
G95: Not Found | Z95: 0 | AA95: 0
G96: Ripple Control | Z96: 0 | AA96: 0
G97: Not Found | Z97: 0 | AA97: 0
G98: Stats Meters | Z98: 0 | AA98: 0
G99: Dainfern 22/11kV Control Room, 11kV Control Panel, Meter | I99: 60,000.00 | K99: GEC Meters | M99: E42F-D/M | N99: 8514405 | Q99: 1A X3 | R99: 110V | Z99: 4,200.00 | AA99: 64,200.00
G100: Dainfern 22/11kV Control Room, 11kV Control Panel, Meter | I100: 60,000.00 | K100: Minicomp SK | Z100: 4,200.00 | AA100: 64,200.00
G101: Dainfern 22/11kV Control Room, Metering Panel Incomer 1 Energy Meter | I101: 60,000.00 | K101: Itron | M101: SL7000 | N101: 73014729 | Q101: 2A | R101: 240/415V X3 | Z101: 4,200.00 | AA101: 64,200.00
G102: Dainfern 22/11kV Control Room, Metering Panel Incomer 2 Energy Meter | I102: 60,000.00 | K102: Itron | M102: SL7000 | N102: 73014717 | Q102: 2A | R102: 240/415V X3 | Z102: 4,200.00 | AA102: 64,200.00
G103: Dainfern 22/11kV Control Room, Metering Panel Incomer 3 Energy Meter | I103: 60,000.00 | K103: Itron | M103: SL7000 | N103: 73014745 | Q103: 2A | R103: 240/415V X3 | Z103: 4,200.00 | AA103: 64,200.00
G104: Sub Total | I104: =SUM(I99:I103) -> 300,000.00 | Z104: 21,000.00 | AA104: 321,000.00
G105: Scada/Ethernet Panel | Z105: 0 | AA105: 0
G106: Not Found | Z106: 0 | AA106: 0
G107: Chargers | Z107: 0 | AA107: 0
G108: Dainfern 22/11kV SS Control Room, Charger | I108: 400,000.00 | K108: Static Power | M108: 1V11010J90 | N108: 90/501 | Q108: 9A | R108: 220V | Z108: 28,000.00 | AA108: 428,000.00
G109: Sub Total | I109: =SUM(I108) -> 400,000.00 | Z109: 28,000.00 | AA109: 428,000.00
G110: Batteries | Z110: 0 | AA110: 0
G111: Dainfern 22/11kV SS Battery RoomX9 Cells | I111: 200,000.00 | K111: Bae | L111: 12 V 1 Ogi 25 LA | Q111: 38Ah | R111: 2.23V/Z | Z111: 14,000.00 | AA111: 214,000.00
G112: Sub Total | I112: =SUM(I111) -> 200,000.00 | Z112: 14,000.00 | AA112: 214,000.00
G113: Grand total | I113: =SUM(I5:I112)/2 -> 78,360,000.00 | Z113: 5,485,200.00 | AA113: 83,845,200.00

Sheet Harley St 88_11kV SS
A1: Location | G1: Accountability | J1: Acquisition | K1: Asset Identifier | P1: Technical Data | S1: Perfomance | U1: Additional Information | Y1: Comments
A2: Date of Completion | B2: Street Address | C2: Suburb | D2: GPS Coordinates | E2: GPS Coordinates | F2: Functional Location | G2: Asset Description | H2: Department/ Planner Group | I2: Replacement Cost (Rands) | J2: Project ID | K2: Manufacturer | L2: Year of Manufacture | M2: Model No. | N2: Serial Number (Switchgear) | O2: Serial Number (Panels) | P2: Insulating Medium (Oil,Vacuum, SF6) | Q2: Current Ratings | R2: Voltage Rating | S2: Warranty | T2: Estimated Useful Life | U2: Supplier/Contractor | V2: Panel Control Cables Designation | W2: Length(m) | X2: Manual & Drawings (Y/N) | AA2: Replacement Cost (Rands) 2023-2024
B3: 26 Harley Street | C3: Ferndale | D3: 27°59'57.194" E | E3: 26°5'47.230" S | G3: Harley Street 88/11kV Substation
G4: 11kV Switchgear | Z4: 7%
F5: C-HARLE-FB1A-TRFR01 | G5: Harley Street 88/11kV SS Incomer 1 (1TO Bay 1) | I5: 650,000.00 | K5: Alstom | L5: 2008 | M5: SBV3E/2500-25-SI | N5: 9267/2008 | O5: 9267/2008 | P5: Vacuum | Q5: 2500A | R5: 12 kV | X5: SLD | Y5: 5XTest Blocks | Z5: =I5*Z$4 -> 45,500.00 | AA5: =I5+Z5 -> 695,500.00
F6: C-HARLE-FB1A-SNLM01 | G6: Harley Street 88/11kV SS Sanlam no.1 Dist. (Bay 2) | I6: 600,000.00 | K6: Alstom | L6: 2008 | M6: SBV3E/2500-25-SI | N6: 92560/2008 | O6: 9260/2008 | P6: Vacuum | Q6: 800A | R6: 12 kV | X6: SLD | Y6: 3X Test Blocks | Z6: =I6*Z$4 -> 42,000.00 | AA6: =I6+Z6 -> 642,000.00
F7: C-HARLE-FB1A-KENTAV | G7: Harley Street 88/11kV SS Kent Ave Dist. (Bay 3) | I7: 600,000.00 | K7: Alstom | L7: 2008 | M7: SBV3E/2500-25-SI | N7: 9269/2008 | O7: 9269/2008 | P7: Vacuum | Q7: 800A | R7: 12 kV | X7: SLD | Y7: 3X Test Blocks | Z7: 42,000.00 | AA7: 642,000.00
F8: C-HARLE-FB1A-FNBK02 | G8: Harley Street 88/11kV SS First National no.2 Dist. (Bay 4) | I8: 600,000.00 | K8: Alstom | L8: 2008 | M8: SBV3E/2500-25-SI | N8: 9270/2008 | O8: 9270/2008 | P8: Vacuum | Q8: 800A | R8: 12 kV | X8: SLD | Y8: 3X Test Blocks | Z8: 42,000.00 | AA8: 642,000.00
F9: C-HARLE-FB1A-SURREY | G9: Harley Street 88/11kV SS Surrey Ave Dist. (Bay 5) | I9: 600,000.00 | K9: Alstom | L9: 2008 | M9: SBV3E/2500-25-SI | N9: 9271/2008 | O9: 9271/2008 | P9: Vacuum | Q9: 800A | R9: 12 kV | X9: SLD | Y9: 3X Test Blocks | Z9: 42,000.00 | AA9: 642,000.00
F10: C-HARLE-FB1A-OAKADS | G10: Harley Street 88/11kV SS Oak Ave Dist. (Bay 6) | I10: 600,000.00 | K10: Alstom | L10: 2008 | M10: SBV3E/2500-25-SI | N10: 9274/2008 | O10: 9272/2008 | P10: Vacuum | Q10: 800A | R10: 12 kV | X10: SLD | Y10: 3X Test Blocks | Z10: 42,000.00 | AA10: 642,000.00
F11: C-HARLE-FB1A-HILLST | G11: Harley Street 88/11kV SS Hill Str Dist. (Bay 7) | I11: 600,000.00 | K11: Alstom | L11: 2008 | M11: SBV3E/2500-25-SI | N11: 9273/2008 | O11: 9273/2008 | P11: Vacuum | Q11: 800A | R11: 12 kV | X11: SLD | Y11: 3X Test Blocks | Z11: 42,000.00 | AA11: 642,000.00
F12: C-HARLE-FB1A-RMU303 | G12: Harley Street 88/11kV SS 185X 3 core Cu to RMU 00303 Surrey Ave (Standby Feeder) (Bay 8) | I12: 600,000.00 | K12: Alstom | L12: 2008 | M12: SBV3E/2500-25-SI | N12: 9274/2008 | O12: 9272/2008 | P12: Vacuum | Q12: 800A | R12: 12 kV | X12: SLD | Y12: 3X Test Blocks | Z12: 42,000.00 | AA12: 642,000.00
F13: C-HARLE-BS01 | G13: Harley Street 88/11kV SS Bus Section (1CO Bay 9) | I13: 650,000.00 | K13: Alstom | L13: 2008 | M13: SBV3E/2500-25-SI | N13: 9286/2008 | O13: 9275/2008 | P13: Vacuum | Q13: 2500A | R13: 12 kV | X13: SLD | Y13: 2X Test Blocks | Z13: 45,500.00 | AA13: 695,500.00
F14: C-HARLE-FB1B-HARLST | G14: Harley Street 88/11kV SS Harley Street Dist. (Bay 10) | I14: 600,000.00 | K14: Alstom | L14: 2008 | M14: SBV3E/2500-25-SI | N14: 9276/2008 | O14: 9276/2008 | P14: Vacuum | Q14: 800A | R14: 12 kV | X14: SLD | Y14: 3X Test Blocks | Z14: 42,000.00 | AA14: 642,000.00
F15: C-HARLE-FB1B-PRTRIA | G15: Harley Street 88/11kV SS Pretoria Street Dist. (Bay 11) | I15: 600,000.00 | K15: Alstom | L15: 2008 | M15: SBV3E/2500-25-SI | N15: 9277/2008 | O15: 9277/2008 | P15: Vacuum | Q15: 800A | R15: 12 kV | X15: SLD | Y15: 3X Test Blocks | Z15: 42,000.00 | AA15: 642,000.00
F16: C-HARLE-FB1B-SNLM02 | G16: Harley Street 88/11kV SS Sanlam no.2 Dist. (Bay 12) | I16: 600,000.00 | K16: Alstom | L16: 2008 | M16: SBV3E/2500-25-SI | N16: 9278/2008 | O16: 9278/2008 | P16: Vacuum | Q16: 800A | R16: 12 kV | X16: SLD | Y16: 3X Test Blocks | Z16: 42,000.00 | AA16: 642,000.00
F17: C-HARLE-FB1B-LAPASD | G17: Harley Street 88/11kV SS Lapas Dist. (Bay 13) | I17: 600,000.00 | K17: Alstom | L17: 2008 | M17: SBV3E/2500-25-SI | N17: 9279/2008 | O17: 9279/2008 | P17: Vacuum | Q17: 800A | R17: 12 kV | X17: SLD | Y17: 3X Test Blocks | Z17: 42,000.00 | AA17: 642,000.00
F18: C-HARLE-FB1B-FNBK01 | G18: Harley Street 88/11kV SS First National no.1 (Bay 14) | I18: 600,000.00 | K18: Alstom | L18: 2008 | M18: SBV3E/2500-25-SI | N18: 9280/2008 | O18: 9280/2008 | P18: Vacuum | Q18: 800A | R18: 12 kV | X18: SLD | Y18: 3X Test Blocks | Z18: 42,000.00 | AA18: 642,000.00
F19: C-HARLE-FB1B-MAINAV | G19: Harley Street 88/11kV SS 185X 3 core Cu to TSS 945 Main Ave ( Bay 15) | I19: 600,000.00 | K19: Alstom | L19: 2008 | M19: SBV3E/2500-25-SI | N19: 9281/2008 | O19: 9281/2008 | P19: Vacuum | Q19: 800A | R19: 12 kV | X19: SLD | Y19: 3X Test Blocks | Z19: 42,000.00 | AA19: 642,000.00
F20: C-HARLE-FB1B-OXFORD | G20: Harley Street 88/11kV SS Oxford Dist. (Bay 16) | I20: 600,000.00 | K20: Alstom | L20: 2008 | M20: SBV3E/2500-25-SI | N20: 9282/2008 | O20: 9282/2008 | P20: Vacuum | Q20: 800A | R20: 12 kV | X20: SLD | Y20: 3X Test Blocks | Z20: 42,000.00 | AA20: 642,000.00
G21: Harley Street 88/11kV SS Bus Section (1SO Bay 17) | I21: 650,000.00 | K21: Alstom | L21: 2008 | M21: SBV3E/2500-25-SI | N21: 9283/2008 | O21: 9283/2008 | P21: Vacuum | Q21: 2500A | R21: 12 kV | X21: SLD | Y21: 2X Test Blocks | Z21: 45,500.00 | AA21: 695,500.00
F22: C-HARLE-FB1C-SPAR18 | G22: Harley Street 88/11kV SS Spare (2XO Bay 18) | I22: 600,000.00 | K22: Alstom | L22: 2008 | M22: SBV3E/2500-25-SI | N22: No Breaker | O22: 9284/2008 | P22: Vacuum | Q22: 2500A | R22: 12 kV | X22: SLD | Y22: 3X Test Blocks | Z22: 42,000.00 | AA22: 642,000.00
F23: C-HARLE-FB1C-TRFR02 | G23: Harley Street 88/11kV SS Incomer 2 (2TO Bay 19) | I23: 650,000.00 | K23: Alstom | L23: 2008 | M23: SBV3E/2500-25-SI | N23: 9997/2008 | O23: 9285/2008 | P23: Vacuum | Q23: 2500A | R23: 12 kV | X23: SLD | Y23: 5X Test Blocks | Z23: 45,500.00 | AA23: 695,500.00
F24: C-HARLE-BS03 | G24: Harley Street 88/11kV Bus Section (3SO Bay 20) | I24: 650,000.00 | K24: Alstom | L24: 2008 | M24: SBV3E/2500-25-SI | N24: 9275/2008 | O24: 9286/2008 | P24: Vacuum | Q24: 2500A | R24: 12 kV | X24: SLD | Y24: 2X Test Blocks | Z24: 45,500.00 | AA24: 695,500.00
F25: C-HARLE-FB1D-LEVY01 | G25: Harley Street 88/11kV SS Levy Dist. 300X 3 core Alu to MSS 02343 Bordeux Dr (Bay 21) | I25: 600,000.00 | K25: Alstom | L25: 2008 | M25: SBV3E/2500-25-SI | N25: 9287/2008 | O25: 9287/2008 | P25: Vacuum | Q25: 800A | R25: 12 kV | X25: SLD | Y25: 3X Test Blocks | Z25: 42,000.00 | AA25: 642,000.00
F26: C-HARLE-FB1D-SPAR22 | G26: Harley Street 88/11kV SS Spare Dist. (1TO Bay 22) | I26: 600,000.00 | K26: Alstom | L26: 2008 | M26: SBV3E/2500-25-SI | N26: 9288/2008 | O26: 9288/2008 | P26: Vacuum | Q26: 800A | R26: 12 kV | X26: SLD | Y26: 3X Test Blocks | Z26: 42,000.00 | AA26: 642,000.00
F27: C-HARLE-FB1D-SPAR23 | G27: Harley Street 88/11kV SS Spare Dist. (Bay 23) | I27: 600,000.00 | K27: Alstom | L27: 2008 | M27: SBV3E/2500-25-SI | N27: 9289/2008 | O27: 9289/2008 | P27: Vacuum | Q27: 800A | R27: 12 kV | X27: SLD | Y27: 3X Test Blocks | Z27: 42,000.00 | AA27: 642,000.00
F28: C-HARLE-FB1D-SPAR24 | G28: Harley Street 88/11kV SS Spare Dist. (Bay 24) | I28: 600,000.00 | K28: Alstom | L28: 2008 | M28: SBV3E/2500-25-SI | N28: 9290/2008 | O28: 9290/2008 | P28: Vacuum | Q28: 800A | R28: 12 kV | X28: SLD | Y28: 3X Test Blocks | Z28: 42,000.00 | AA28: 642,000.00
F29: C-HARLE-FB1D-SPAR25 | G29: Harley Street 88/11kV SS Spare Dist. (Bay 25) | I29: 600,000.00 | K29: Alstom | L29: 2008 | M29: SBV3E/2500-25-SI | N29: 9291/2008 | O29: 9291/2008 | P29: Vacuum | Q29: 800A | R29: 12 kV | X29: SLD | Y29: 3X Test Blocks | Z29: 42,000.00 | AA29: 642,000.00
G30: Harley Street 88/11kV SS 300X 3 core Al to MVC 00102 Minerva Sandton Gate 1 Dist. (Bay 26) | I30: 600,000.00 | K30: Alstom | L30: 2008 | M30: SBV3E/2500-25-SI | N30: 9292/2008 | O30: 9292/2008 | P30: Vacuum | Q30: 800A | R30: 12 kV | X30: SLD | Y30: 3X Test Blocks | Z30: 42,000.00 | AA30: 642,000.00
F31: C-HARLE-FB1D-DSTV01 | G31: Harley Street 88/11kV SS 185 3 core Cu to MVC 00076 Republic Road DSTV Feeder 1 Dist. (Bay 27) | I31: 600,000.00 | K31: Alstom | L31: 2008 | M31: SBV3E/2500-25-SI | N31: 9293/2008 | O31: 9293/2008 | P31: Vacuum | Q31: 800A | R31: 12 kV | X31: SLD | Y31: 3X Test Blocks | Z31: 42,000.00 | AA31: 642,000.00
G32: Harley Street 88/11kV SS Bus Section (Bay 28) | I32: 650,000.00 | K32: Alstom | L32: 2008 | M32: SBV3E/2500-25-SI | N32: 9294/2008 | O32: 9294/2008 | P32: Vacuum | Q32: 2500A | R32: 12 kV | X32: SLD | Y32: 2X Test Blocks | Z32: 45,500.00 | AA32: 695,500.00
F33: C-HARLE-FB1E-DSTV02 | G33: Harley Street 88/11kV SS 185 3 core Cu to MVC 00076 Republic Road DSTV Feeder 2 Dist. (Bay 29) | I33: 600,000.00 | K33: Alstom | L33: 2008 | M33: SBV3E/2500-25-SI | N33: 9295/2008 | O33: 9295/2008 | P33: Vacuum | Q33: 800A | R33: 12 kV | X33: SLD | Y33: 3X Test Blocks | Z33: 42,000.00 | AA33: 642,000.00
F34: C-HARLE-FB1E-SPAR30 | G34: Harley Street 88/11kV SS Spare Dist. (Bay 30) | I34: 600,000.00 | K34: Alstom | L34: 2008 | M34: SBV3E/2500-25-SI | N34: 9296/2008 | O34: 9296/2008 | P34: Vacuum | Q34: 800A | R34: 12 kV | X34: SLD | Y34: 3X Test Blocks | Z34: 42,000.00 | AA34: 642,000.00
F35: C-HARLE-FB1E-SPAR31 | G35: Harley Street 88/11kV SS Spare Dist. (Bay 31) | I35: 600,000.00 | K35: Alstom | L35: 2008 | M35: SBV3E/2500-25-SI | N35: 9297/2008 | O35: 9297/2008 | P35: Vacuum | Q35: 800A | R35: 12 kV | X35: SLD | Y35: 3X Test Blocks | Z35: 42,000.00 | AA35: 642,000.00
F36: C-HARLE-FB1E-SPAR32 | G36: Harley Street 88/11kV SS 300 X3 core Al to MSS 02924 Minerva Ave Sandton Gate 2 Dist. (Bay 32) Previously a spare | I36: 600,000.00 | K36: Alstom | L36: 2008 | M36: SBV3E/2500-25-SI | N36: 9298/2008 | O36: 9298/2008 | P36: Vacuum | Q36: 800A | R36: 12 kV | X36: SLD | Y36: 3X Test Blocks | Z36: 42,000.00 | AA36: 642,000.00
F37: C-HARLE-FB1E-SPAR33 | G37: Harley Street 88/11kV SS Spare Dist. (Bay 33) | I37: 600,000.00 | K37: Alstom | L37: 2008 | M37: SBV3E/2500-25-SI | N37: 9299/2008 | O37: 9299/2008 | P37: Vacuum | Q37: 800A | R37: 12 kV | X37: SLD | Y37: 3X Test Blocks | Z37: 42,000.00 | AA37: 642,000.00
F38: C-HARLE-FB1E-SPAR34 | G38: Harley Street 88/11kV SS Spare Dist. (Bay 34) | I38: 600,000.00 | K38: Alstom | L38: 2008 | M38: SBV3E/2500-25-SI | N38: 9300/2008 | O38: 9300/2008 | P38: Vacuum | Q38: 800A | R38: 12 kV | X38: SLD | Y38: 3X Test Blocks | Z38: 42,000.00 | AA38: 642,000.00
F39: C-HARLE-FB1E-SPAR35 | G39: Harley Street 88/11kV SS Spare Dist. (Bay 35) | I39: 600,000.00 | K39: Alstom | L39: 2008 | M39: SBV3E/2500-25-SI | N39: 9301/2008 | O39: 9301/2008 | P39: Vacuum | Q39: 800A | R39: 12 kV | X39: SLD | Y39: 3X Test Blocks | Z39: 42,000.00 | AA39: 642,000.00
F40: C-HARLE-FB1E-TRFR03 | G40: Harley Street 88/11kV SS Incomer 3 (3TO Bay 36) | I40: 650,000.00 | K40: Alstom | L40: 2008 | M40: SBV3E/2500-25-SI | N40: 9302/2008 | O40: 9302/2008 | P40: Vacuum | Q40: 2500A | R40: 12 kV | X40: SLD | Y40: 5X Test Blocks | Z40: 45,500.00 | AA40: 695,500.00
G41: Sub Total | I41: =SUM(I5:I40) -> 21,950,000.00 | Z41: 1,536,500.00 | AA41: 23,486,500.00
G42: Feeder Board Relays | Z42: 0 | AA42: 0
G43: Harley Street 88/11kV SS Incomer 1 (1TO Bay 1) Backup O/C&E/F Protection | I43: 200,000.00 | K43: SEL | L43: Not Specified | M43: SEL-351A | N43: 2006300196 | Q43: 1-5A | R43: 110V | Z43: 14,000.00 | AA43: 214,000.00
G44: Harley Street 88/11kV SS Incomer 1 (1TO Bay 1) Main O/C&E/F Protection | I44: 200,000.00 | K44: SEL | L44: Not Specified | M44: SEL-451A | N44: 2006290268 | Q44: 1-5A | R44: 110V | Z44: 14,000.00 | AA44: 214,000.00
G45: Harley Street 88/11kV SS Incomer 1 (1TO Bay 1) Low DC Monitoring | I45: 200,000.00 | K45: Matrix | L45: Not Specified | M45: 2HSM514B2 | N45: 118072/111 | Q45: Not Specified | R45: 110V | Z45: 14,000.00 | AA45: 214,000.00
G46: Harley Street 88/11kV SS Sanlam no.1 Dist. (Bay 2) O/C & E/F Protection | I46: 150,000.00 | K46: SEL | L46: Not Specified | M46: SEL-451 | N46: 2006290272 | Q46: 1-5A | R46: 110V | Z46: 10,500.00 | AA46: 160,500.00
G47: Harley Street 88/11kV SS Kent Ave Dist. (Bay 3) O/C & E/F Protection | I47: 150,000.00 | K47: SEL | L47: Not Specified | M47: SEL-451 | N47: 2006292326 | Q47: 1-5A | R47: 110V | Z47: 10,500.00 | AA47: 160,500.00
G48: Harley Street 88/11kV SS First National no.2 Dist. (Bay 4) O/C & E/F Protection | I48: 150,000.00 | K48: SEL | L48: Not Specified | M48: SEL-451 | N48: 2006292318 | Q48: 1-5A | R48: 110V | Z48: 10,500.00 | AA48: 160,500.00
G49: Harley Street 88/11kV SS Surrey Ave Dist. (Bay 5) O/C & E/F Protection | I49: 150,000.00 | K49: SEL | L49: Not Specified | M49: SEL-451 | N49: 2006292322 | Q49: 1-5A | R49: 110V | Z49: 10,500.00 | AA49: 160,500.00
G50: Harley Street 88/11kV SS Oak Ave Dist. (Bay 6) O/ & E/F Protection | I50: 150,000.00 | K50: SEL | L50: Not Specified | M50: SEL-451 | N50: 2006290266 | Q50: 1-5A | R50: 110V | Z50: 10,500.00 | AA50: 160,500.00
G51: Harley Street 88/11kV SS Hill Str Dist. (Bay 7) O/C & E/F Protection | I51: 150,000.00 | K51: SEL | L51: Not Specified | M51: SEL-451 | N51: 2006292323 | Q51: 1-5A | R51: 110V | Z51: 10,500.00 | AA51: 160,500.00
G52: Harley Street 88/11kV SS 185X 3 core Cu to RMU 00303 Surrey Ave (Standby Feeder) (Bay 8) O/C & E/F Protection | I52: 150,000.00 | K52: SEL | L52: Not Specified | M52: SEL-451 | N52: 2006292327 | Q52: 1-5A | R52: 110V | Z52: 10,500.00 | AA52: 160,500.00
G53: Harley Street 88/11kV SS Bus Section (1CO Bay 9) O/C & E/F Protection | I53: 150,000.00 | K53: SEL | L53: Not Specified | M53: SEL-451 | N53: 2006292316 | Q53: 1-5A | R53: 110V | Z53: 10,500.00 | AA53: 160,500.00
G54: Harley Street 88/11kV SS Harley Street Dist. (Bay 10) O/C & E/F Protection | I54: 150,000.00 | K54: SEL | L54: Not Specified | M54: SEL-451 | N54: 2006292308 | Q54: 1-5A | R54: 110V | Z54: 10,500.00 | AA54: 160,500.00
G55: Harley Street 88/11kV SS Pretoria Street Dist. (Bay 11) O/C & E/F Protection | I55: 150,000.00 | K55: SEL | L55: Not Specified | M55: SEL-451 | N55: 2006292320 | Q55: 1-5A | R55: 110V | Z55: 10,500.00 | AA55: 160,500.00
G56: Harley Street 88/11kV SS Sanlam no.2 Dist. (Bay 12) O/C & E/F Protection | I56: 150,000.00 | K56: SEL | L56: Not Specified | M56: SEL-451 | N56: 2006292317 | Q56: 1-5A | R56: 110V | Z56: 10,500.00 | AA56: 160,500.00
G57: Harley Street 88/11kV SS Lapas Dist. (Bay 13) O/C & E/F Protection | I57: 150,000.00 | K57: SEL | L57: Not Specified | M57: SEL-451 | N57: 2006290274 | Q57: 1-5A | R57: 110V | Z57: 10,500.00 | AA57: 160,500.00
G58: Harley Street 88/11kV SS First National no.1 (Bay 14) O/C & E/F Protection | I58: 150,000.00 | K58: SEL | L58: Not Specified | M58: SEL-451 | N58: 2006292309 | Q58: 1-5A | R58: 110V | Z58: 10,500.00 | AA58: 160,500.00
G59: Harley Street 88/11kV SS 185X 3 core Cu to TSS 945 Main Ave ( Bay 15) O/C & E/F Protection | I59: 150,000.00 | K59: SEL | L59: Not Specified | M59: SEL-451 | N59: 2006292315 | Q59: 1-5A | R59: 110V | Z59: 10,500.00 | AA59: 160,500.00
G60: Harley Street 88/11kV SS Oxford Dist. (Bay 16) O/ & E/F Protection | I60: 150,000.00 | K60: SEL | L60: Not Specified | M60: SEL-451 | N60: 2006292310 | Q60: 1-5A | R60: 110V | Z60: 10,500.00 | AA60: 160,500.00
G61: Harley Street 88/11kV SS Bus Section (1SO Bay 17) O/C & E/F Protection | I61: 200,000.00 | K61: SEL | L61: Not Specified | M61: SEL-451 | N61: 2006292319 | Q61: 1-5A | R61: 110V | Z61: 14,000.00 | AA61: 214,000.00
G62: Harley Street 88/11kV SS Spare (2XO Bay 18) O/ & E/F Protection | I62: 150,000.00 | K62: SEL | L62: Not Specified | M62: SEL-451 | N62: Not Accessible | Q62: 1-5A | R62: 110V | Z62: 10,500.00 | AA62: 160,500.00
G63: Harley Street 88/11kV SS Spare (2XO Bay 18) Arc Protection | I63: 150,000.00 | K63: Not Accessible | L63: Not Specified | M63: VAMP221 | N63: Not Accessible | Q63: Not Accessible | R63: Not Accessible | Z63: 10,500.00 | AA63: 160,500.00
G64: Harley Street 88/11kV SS Incomer 2 (2TO Bay 19) O/C & E/F Protection | I64: 200,000.00 | K64: SEL | L64: Not Specified | M64: SEL-351 | N64: Not Accessible | Q64: Not Accessible | R64: Not Accessible | Z64: 14,000.00 | AA64: 214,000.00
G65: Harley Street 88/11kV SS Incomer 2 (2TO Bay 19) Backup O/C & E/F Protection | I65: 200,000.00 | K65: SEL | L65: Not Specified | M65: SEL-451 | N65: Not Accessible | Q65: Not Accessible | R65: Not Accessible | Z65: 14,000.00 | AA65: 214,000.00
G66: Harley Street 88/11kV SS Incomer 2 (2TO Bay 19) Arc Protection | I66: 200,000.00 | K66: Not Accessible | L66: Not Specified | M66: VAMP221 | N66: Not Accessible | Q66: Not Accessible | R66: Not Accessible | Z66: 14,000.00 | AA66: 214,000.00
G67: Harley Street 88/11kV SS Incomer 2 (2TO Bay 19)Intertrip Receiver | I67: 200,000.00 | K67: Matrix | L67: Not Specified | M67: 2HSM514B2 | N67: 118072/47 | Q67: Not Specified | R67: Not Specified | Z67: 14,000.00 | AA67: 214,000.00
G68: Harley Street 88/11kV Bus Section (3SO Bay 20) O/C & E/F Protection | I68: 200,000.00 | K68: SEL | L68: Not Specified | M68: SEL-451 | N68: 2006292324 | Q68: 1-5A | R68: 110V | Z68: 14,000.00 | AA68: 214,000.00
G69: Harley Street 88/11kV SS Levy Dist. 300X 3 core Alu to MSS 02343 Bordeux Dr (Bay 21) O/C & E/F Protection | I69: 150,000.00 | K69: SEL | L69: Not Specified | M69: SEL-451 | N69: 2006292263 | Q69: 1-5A | R69: 110V | Z69: 10,500.00 | AA69: 160,500.00
G70: Harley Street 88/11kV SS Spare Dist. (1TO Bay 22) O/C & E/F Protection | I70: 150,000.00 | K70: SEL | L70: Not Specified | M70: SEL-451 | N70: 2006292313 | Q70: 1-5A | R70: 110V | Z70: =I70*Z$4 -> 10,500.00 | AA70: =I70+Z70 -> 160,500.00
G71: Harley Street 88/11kV SS Spare Dist. (Bay 23) O/C & E/F Protection | I71: 150,000.00 | K71: SEL | L71: Not Specified | M71: SEL-451 | N71: 2006290269 | Q71: 1-5A | R71: 110V | Z71: 10,500.00 | AA71: 160,500.00
G72: Harley Street 88/11kV SS Spare Dist. (Bay 24) O/C & E/F Protection | I72: 150,000.00 | K72: SEL | L72: Not Specified | M72: SEL-451 | N72: 2006292314 | Q72: 1-5A | R72: 110V | Z72: 10,500.00 | AA72: 160,500.00
G73: Harley Street 88/11kV SS Spare Dist. (Bay 25) O/C & E/F Protection | I73: 150,000.00 | K73: SEL | L73: Not Specified | M73: SEL-451 | N73: 2006290270 | Q73: 1-5A | R73: 110V | Z73: 10,500.00 | AA73: 160,500.00
G74: Harley Street 88/11kV SS 300X 3 core Al to MVC 00102 Minerva Sandton Gate 1 Dist. (Bay 26) O/C & E/F Protection | I74: 150,000.00 | K74: SEL | L74: Not Specified | M74: SEL-451 | N74: 2006290273 | Q74: 1-5A | R74: 110V | Z74: 10,500.00 | AA74: 160,500.00
G75: Harley Street 88/11kV SS 185 3 core Cu to MVC 00076 Republic Road DSTV Feeder 1 Dist. (Bay 27) | I75: 150,000.00 | K75: SEL | L75: Not Specified | M75: SEL-451 | N75: 2006292328 | Q75: 1-5A | R75: 110V | Z75: 10,500.00 | AA75: 160,500.00
G76: Harley Street 88/11kV SS Bus Section (Bay 28) O/C & E/F Protection | I76: 200,000.00 | K76: SEL | L76: Not Specified | M76: SEL-451 | N76: 2006290267 | Q76: 1-5A | R76: 110V | Z76: 14,000.00 | AA76: 214,000.00
G77: Harley Street 88/11kV SS 185 3 core Cu to MVC 00076 Republic Road DSTV Feeder 2 Dist. (Bay 29) O/C & E/F Protection | I77: 150,000.00 | K77: SEL | L77: Not Specified | M77: SEL-451 | N77: 2006290265 | Q77: 1-5A | R77: 110V | Z77: 10,500.00 | AA77: 160,500.00
G78: Harley Street 88/11kV SS Spare Dist. (Bay 30) O/C & E/F Protection | I78: 150,000.00 | K78: SEL | L78: Not Specified | M78: SEL-451 | N78: 2006292305 | Q78: 1-5A | R78: 110V | Z78: 10,500.00 | AA78: 160,500.00
G79: Harley Street 88/11kV SS Spare Dist. (Bay 31) O/C & E/F Protection | I79: 150,000.00 | K79: SEL | L79: Not Specified | M79: SEL-451 | N79: 2006292321 | Q79: 1-5A | R79: 110V | Z79: 10,500.00 | AA79: 160,500.00
G80: Harley Street 88/11kV SS 300 X3 core Al to MSS 02924 Minerva Ave Sandton Gate 2 Dist. (Bay 32) O/C & E/F Protection | I80: 150,000.00 | K80: SEL | L80: Not Specified | M80: SEL-451 | N80: 2006292306 | Q80: 1-5A | R80: 110V | Z80: 10,500.00 | AA80: 160,500.00
G81: Harley Street 88/11kV SS Spare Dist. (Bay 33) O/C & E/F Protection | I81: 150,000.00 | K81: SEL | L81: Not Specified | M81: SEL-451 | N81: 2006292311 | Q81: 1-5A | R81: 110V | Z81: 10,500.00 | AA81: 160,500.00
G82: Harley Street 88/11kV SS Spare Dist. (Bay 34) O/C & E/F Protection | I82: 150,000.00 | K82: SEL | L82: Not Specified | M82: SEL-451 | N82: 2006290264 | Q82: 1-5A | R82: 110V | Z82: 10,500.00 | AA82: 160,500.00
G83: Harley Street 88/11kV SS Spare Dist. (Bay 35) O/C & E/F Protection | I83: 150,000.00 | K83: SEL | L83: Not Specified | M83: SEL-451 | N83: 2006290271 | Q83: 1-5A | R83: 110V | Z83: 10,500.00 | AA83: 160,500.00
G84: Harley Street 88/11kV SS Incomer 3 (3TO Bay 36) Main O/C & E/F Protection | I84: 200,000.00 | K84: SEL | L84: Not Specified | M84: SEL-451 | N84: 2006292307 | Q84: 1-5A | R84: 110V | Z84: 14,000.00 | AA84: 214,000.00
G85: Harley Street 88/11kV SS Incomer 3 (3TO Bay 36) Backup O/C & E/F Protection | I85: 200,000.00 | K85: SEL | L85: Not Specified | M85: SEL-351 | N85: 2006300198 | Q85: 1-5A | R85: 110V | Z85: 14,000.00 | AA85: 214,000.00
G86: Harley Street 88/11kV SS Incomer 3 (3TO Bay 36) Intertrip Receiver | I86: 200,000.00 | K86: Matrix | L86: Not Specified | M86: 2HSM514B2 | N86: 118072/81 | Q86: 1-5A | R86: 110V | Z86: 14,000.00 | AA86: 214,000.00
G87: Sub Total | I87: =SUM(I43:I86) -> 7,250,000.00 | Z87: 507,500.00 | AA87: 7,757,500.00
G88: Voltage Transformers | Z88: 0 | AA88: 0
G89: Harley Street 88/11kV SS Incomer 1 (1TO Bay 1) | I89: 40,000.00 | K89: Current Electric | L89: Not Specified | M89: Not Visible | N89: 59286-1 | Q89: 50VA | R89: 11000/110V | Z89: 2,800.00 | AA89: 42,800.00
G90: Harley Street 88/11kV SS Incomer 2 (2TO Bay 19) | I90: 40,000.00 | K90: Not Accessible | L90: Not Accessible | M90: Not Accessible | N90: Not Accessible | Q90: Not Accessible | R90: 11000/110V | Z90: 2,800.00 | AA90: 42,800.00
G91: Harley Street 88/11kV SS Incomer 3 (3TO Bay 36) | I91: 40,000.00 | K91: No Nameplate | L91: No Nameplate | M91: No Nameplate | N91: No Nameplate | Q91: No Nameplate | R91: 11000/110V | Z91: 2,800.00 | AA91: 42,800.00
G92: Sub Total | I92: =SUM(I89:I91) -> 120,000.00 | Z92: 8,400.00 | AA92: 128,400.00
G93: Stats Meters | Z93: 0 | AA93: 0
G94: Harley Street 88/11kV SS Sanlam no.1 Dist. (Bay 2) QOS Recorder | I94: 60,000.00 | K94: ELSPEC BLACK BOX | L94: 2014 | M94: G4430SPG-4430-0090 | N94: 00-60-35-06-EB-21 | Q94: 0-50A | R94: 0-1000V | Z94: 4,200.00 | AA94: 64,200.00
G95: Harley Street 88/11kV SS Kent Ave Dist. (Bay 3) QOS Recorder | I95: 60,000.00 | K95: ELSPEC BLACK BOX | L95: 2014 | M95: G4430SPG-4430-0090 | N95: 00-60-35-1B-26-35 | Q95: 0-50A | R95: 0-1000V | Z95: 4,200.00 | AA95: 64,200.00
G96: Harley Street 88/11kV SS First National no.2 Dist. (Bay 4) QOS Recorder | I96: 60,000.00 | K96: ELSPEC BLACK BOX | L96: 2014 | M96: G4430SPG-4430-0090 | N96: 00-60-35-1B-26-88 | Q96: 0-50A | R96: 0-1000V | Z96: 4,200.00 | AA96: 64,200.00
G97: Harley Street 88/11kV SS Surrey Ave Dist. (Bay 5) QOS Recorder | I97: 60,000.00 | K97: ELSPEC BLACK BOX | L97: 2014 | M97: G4430SPG-4430-0090 | N97: 00-60-35-1A-96-12 | Q97: 0-50A | R97: 0-1000V | Z97: 4,200.00 | AA97: 64,200.00
G98: Harley Street 88/11kV SS Oak Ave Dist. (Bay 6) QOS Recorder | I98: 60,000.00 | K98: ELSPEC BLACK BOX | L98: 2014 | M98: G4430SPG-4430-0090 | N98: 00-60-35-1B-26-4E | Q98: 0-50A | R98: 0-1000V | Z98: 4,200.00 | AA98: 64,200.00
G99: Harley Street 88/11kV SS Hill Str Dist. (Bay 7) QOS Recorder | I99: 60,000.00 | K99: ELSPEC BLACK BOX | L99: 2014 | M99: G4430SPG-4430-0090 | N99: 00-60-35-1B-26-93 | Q99: 0-50A | R99: 0-1000V | Z99: 4,200.00 | AA99: 64,200.00
G100: Harley Street 88/11kV SS 185X 3 core Cu to RMU 00303 Surrey Ave (Standby Feeder) (Bay 8)QOS Recorder | I100: 60,000.00 | K100: ELSPEC BLACK BOX | L100: 2014 | M100: G4430SPG-4430-0090 | N100: 00-60-35-1A-96-1F | Q100: 0-50A | R100: 0-1000V | Z100: 4,200.00 | AA100: 64,200.00
G101: Harley Street 88/11kV SS Harley Street Dist. (Bay 10) QOS Recorder | I101: 60,000.00 | K101: ELSPEC BLACK BOX | L101: 2014 | M101: G4430SPG-4430-0090 | N101: 00-60-35-1B-26-61 | Q101: 0-50A | R101: 0-1000V | Z101: 4,200.00 | AA101: 64,200.00
G102: Harley Street 88/11kV SS Pretoria Street Dist. (Bay 11) QOS Recorder | I102: 60,000.00 | K102: ELSPEC BLACK BOX | L102: 2014 | M102: G4430SPG-4430-0090 | N102: 00-60-35-1A-96-86 | Q102: 0-50A | R102: 0-1000V | Z102: 4,200.00 | AA102: 64,200.00
G103: Harley Street 88/11kV SS Sanlam no.2 Dist. (Bay 12) QOS Recorder | I103: 60,000.00 | K103: ELSPEC BLACK BOX | L103: 2014 | M103: G4430SPG-4430-0090 | N103: 00-60-35-1A-96-2A | Q103: 0-50A | R103: 0-1000V | Z103: 4,200.00 | AA103: 64,200.00
G104: Harley Street 88/11kV SS Lapas Dist. (Bay 13) QOS Recorder | I104: 60,000.00 | K104: ELSPEC BLACK BOX | L104: 2014 | M104: G4430SPG-4430-0090 | N104: 00-60-35-1A-96-22 | Q104: 0-50A | R104: 0-1000V | Z104: 4,200.00 | AA104: 64,200.00
G105: Harley Street 88/11kV SS First National no.1 (Bay 14)QOS Recorder | I105: 60,000.00 | K105: ELSPEC BLACK BOX | L105: 2014 | M105: G4430SPG-4430-0090 | N105: 00-60-35-1B-26-8E | Q105: 0-50A | R105: 0-1000V | Z105: 4,200.00 | AA105: 64,200.00
G106: Harley Street 88/11kV SS 185X 3 core Cu to TSS 945 Main Ave ( Bay 15) QOS Recorder | I106: 60,000.00 | K106: ELSPEC BLACK BOX | L106: 2014 | M106: G4430SPG-4430-0090 | N106: 00-60-35-06-C4-BE | Q106: 0-50A | R106: 0-1000V | Z106: 4,200.00 | AA106: 64,200.00
G107: Harley Street 88/11kV SS Oxford Dist. (Bay 16) QOS Recorder | I107: 60,000.00 | K107: ELSPEC BLACK BOX | L107: 2014 | M107: G4430SPG-4430-0090 | N107: 00-60-35-1B-26-3C | Q107: 0-50A | R107: 0-1000V | Z107: 4,200.00 | AA107: 64,200.00
G108: Harley Street 88/11kV SS Levy Dist. 300X 3 core Alu to MSS 02343 Bordeux Dr (Bay 21) QOS Recorder | I108: 60,000.00 | K108: ELSPEC BLACK BOX | L108: 2014 | M108: G4430SPG-4430-0090 | N108: 00-60-35-1B-26-98 | Q108: 0-50A | R108: 0-1000V | Z108: 4,200.00 | AA108: 64,200.00
G109: Harley Street 88/11kV SS Spare Dist. (1TO Bay 22) QOS Recorder | I109: 60,000.00 | K109: ELSPEC BLACK BOX | L109: 2014 | M109: G4430SPG-4430-0090 | N109: 00-60-35-1B-26-96 | Q109: 0-50A | R109: 0-1000V | Z109: 4,200.00 | AA109: 64,200.00
G110: Harley Street 88/11kV SS Spare Dist. (Bay 23) QOS Recorder | I110: 60,000.00 | K110: ELSPEC BLACK BOX | L110: 2014 | M110: G4430SPG-4430-0090 | N110: 00-60-35-12-84-E9 | Q110: 0-50A | R110: 0-1000V | Z110: 4,200.00 | AA110: 64,200.00
G111: Harley Street 88/11kV SS Spare Dist. (Bay 24) QOS Recorder | I111: 60,000.00 | K111: ELSPEC BLACK BOX | L111: 2014 | M111: G4430SPG-4430-0090 | N111: 00-60-35-1A-96-47 | Q111: 0-50A | R111: 0-1000V | Z111: 4,200.00 | AA111: 64,200.00
G112: Harley Street 88/11kV SS Spare Dist. (Bay 25) QOS Recorder | I112: 60,000.00 | K112: ELSPEC BLACK BOX | L112: 2014 | M112: G4430SPG-4430-0090 | N112: 00-60-35-1B-26-8A | Q112: 0-50A | R112: 0-1000V | Z112: 4,200.00 | AA112: 64,200.00
G113: Harley Street 88/11kV SS 300X 3 core Al to MVC 00102 Minerva Sandton Gate 1 Dist. (Bay 26) QOS Recorder | I113: 60,000.00 | K113: ELSPEC BLACK BOX | L113: 2014 | M113: G4430SPG-4430-0090 | N113: 00-60-35-1B-26-92 | Q113: 0-50A | R113: 0-1000V | Z113: 4,200.00 | AA113: 64,200.00
G114: Harley Street 88/11kV SS 185 3 core Cu to MVC 00076 Republic Road DSTV Feeder 1 Dist. (Bay 27) | I114: 60,000.00 | K114: ELSPEC BLACK BOX | L114: 2014 | M114: G4430SPG-4430-0090 | N114: 00-60-35-1B-26-94 | Q114: 0-50A | R114: 0-1000V | Z114: 4,200.00 | AA114: 64,200.00
G115: Harley Street 88/11kV SS 185 3 core Cu to MVC 00076 Republic Road DSTV Feeder 2 Dist. (Bay 29) QOS Recorder | I115: 60,000.00 | K115: ELSPEC BLACK BOX | L115: 2014 | M115: G4430SPG-4430-0090 | N115: 00-60-35-1B-26-52 | Q115: 0-50A | R115: 0-1000V | Z115: 4,200.00 | AA115: 64,200.00
G116: Harley Street 88/11kV SS Spare Dist. (Bay 30)QOS Recorder | I116: 60,000.00 | K116: ELSPEC BLACK BOX | L116: 2014 | M116: G4430SPG-4430-0090 | N116: 00-60-35-12-84-D9 | Z116: 4,200.00 | AA116: 64,200.00
G117: Harley Street 88/11kV SS Spare Dist. (Bay 31) QOS Recorder | I117: 60,000.00 | K117: ELSPEC BLACK BOX | L117: 2014 | M117: G4430SPG-4430-0090 | N117: 00-60-35-12-84-D8 | Z117: 4,200.00 | AA117: 64,200.00
G118: Harley Street 88/11kV SS 300 X3 core Al to MSS 02924 Minerva Ave Sandton Gate 2 Dist. (Bay 32) QOS Recorder | I118: 60,000.00 | K118: ELSPEC BLACK BOX | L118: 2014 | M118: G4430SPG-4430-0090 | N118: 00-60-35-06-EA-36 | Z118: 4,200.00 | AA118: 64,200.00
G119: Harley Street 88/11kV SS Spare Dist. (Bay 33) QOS Recorder | I119: 60,000.00 | K119: ELSPEC BLACK BOX | L119: 2014 | M119: G4430SPG-4430-0090 | N119: 00-60-35-1A-96-40 | Z119: 4,200.00 | AA119: 64,200.00
G120: Harley Street 88/11kV SS Spare Dist. (Bay 34) QOS Recorder | I120: 60,000.00 | K120: ELSPEC BLACK BOX | L120: 2014 | M120: G4430SPG-4430-0090 | N120: 00-60-35-12-7A-E1 | Z120: 4,200.00 | AA120: 64,200.00
G121: Harley Street 88/11kV SS Spare Dist. (Bay 35)QOS Recorder | I121: 60,000.00 | K121: ELSPEC BLACK BOX | L121: 2014 | M121: G4430SPG-4430-0090 | N121: 00-60-35-1B-26-A1 | Z121: 4,200.00 | AA121: 64,200.00
G122: Harley Street 88/11kV SS Oxford Energy Meter | I122: 60,000.00 | K122: GEC | L122: Not Specified | M122: E42B-D/M | N122: 7749241 | Y122: 1XTest Blocks (Inactive) | Z122: 4,200.00 | AA122: 64,200.00
G123: Harley Street 88/11kV SS Sanlam no.2 Energy Meter | I123: 60,000.00 | K123: GEC | L123: Not Specified | M123: E42B-D/M | N123: 7749240 | Y123: 1XTest Blocks (Inactive) | Z123: 4,200.00 | AA123: 64,200.00
G124: Harley Street 88/11kV SS Feeder 9 Energy Meter | I124: 60,000.00 | K124: GEC | L124: Not Specified | M124: E42B-D/M | N124: 7749257 | Y124: 1XTest Blocks (Inactive) | Z124: 4,200.00 | AA124: 64,200.00
G125: Harley Street 88/11kV SS Feeder 10 Energy Meter | I125: 60,000.00 | K125: GEC | L125: Not Specified | M125: E42B-D/M | N125: 7749263 | Y125: 1XTest Blocks (Inactive) | Z125: 4,200.00 | AA125: 64,200.00
G126: Harley Street 88/11kV SS Sanlam no.1 Energy Meter | I126: 60,000.00 | K126: GEC | L126: Not Specified | M126: E42B-D/M | N126: 7749266 | Y126: 1XTest Blocks (Inactive) | Z126: 4,200.00 | AA126: 64,200.00
G127: Harley Street 88/11kV SS Feeder 12 Energy Meter | I127: 60,000.00 | K127: GEC | L127: Not Specified | M127: E42B-D/M | N127: 7749254 | Y127: 1XTest Blocks (Inactive) | Z127: 4,200.00 | AA127: 64,200.00
G128: Harley Street 88/11kV SS No name Energy Meter | I128: 60,000.00 | K128: Schlumberger | L128: Not Specified | M128: ST-Q220-IEC | N128: Not Specified | Y128: 9XTest Blocks (Inactive) | Z128: 4,200.00 | AA128: 64,200.00
G129: Harley Street 88/11kV SS No name Energy Meter | I129: 60,000.00 | K129: Landis+Gyer | L129: Not Specified | M129: ZMD405CT44.2407S2 | N129: 93551467 | Z129: 4,200.00 | AA129: 64,200.00
G130: Harley Street 88/11kV SS No name Energy Meter | I130: 60,000.00 | K130: Landis+Gyer | L130: Not Specified | M130: ZMD405CT44.2407S3 | N130: 93551474 | Z130: 4,200.00 | AA130: 64,200.00
G131: Sub Total | I131: =SUM(I94:I130) -> 2,220,000.00 | Z131: 155,400.00 | AA131: 2,375,400.00
G132: Scada | Z132: 0 | AA132: 0
G133: Harley Street 88/11kV SS Bus Section (1CO Bay 9) Ethernet Switch | I133: 100,000.00 | K133: GarrethCom | L133: Not Accessible | M133: Magnum6k25 Fiber Switch | N133: Not Accessible | Q133: Not Specified | R133: Not Specified | Z133: 7,000.00 | AA133: 107,000.00
G134: Harley Street 88/11kV SS Bus Section (Bay 28) Ethernet Switch | I134: 100,000.00 | K134: GarrethCom | L134: Not Accessible | M134: Magnum6k25 Fiber Switch | N134: Not Accessible | Q134: Not Specified | R134: Not Specified | Z134: =I134*Z$4 -> 7,000.00 | AA134: =I134+Z134 -> 107,000.00
G135: Sub Total | I135: =SUM(I133:I134) -> 200,000.00 | Z135: 14,000.00 | AA135: 214,000.00
G136: Battery Chargers | Z136: 0 | AA136: 0
G137: Harley Street 88/11kV SS C/P 1 | I137: 400,000.00 | K137: Static Power | L137: Not Specified | M137: 6V11030A06 | N137: 06/0914/1 | Q137: 30A | R137: 110V | Z137: 28,000.00 | AA137: 428,000.00
G138: Harley Street 88/11kV SS C/P 2 | I138: 400,000.00 | K138: Static Power | L138: Not Specified | M138: 6V11030A07 | N138: 06/0914/2 | Q138: 30A | R138: 110V | Z138: 28,000.00 | AA138: 428,000.00
G139: Sub Total | I139: =SUM(I137:I138) -> 800,000.00 | Z139: 56,000.00 | AA139: 856,000.00
G140: Batteries | Z140: 0 | AA140: 0
G141: Harley Street 88/11kV SS C/P 1 85XH2L Cells | I141: 200,000.00 | Z141: 14,000.00 | AA141: 214,000.00
G142: Harley Street 88/11kV SS C/P 2 85XAlcad Cells | I142: 200,000.00 | Z142: 14,000.00 | AA142: 214,000.00
G143: Sub Total | I143: =SUM(I141:I142) -> 400,000.00 | Z143: 28,000.00 | AA143: 428,000.00
G144: Grand Total | I144: =SUM(I5:I143)/2 -> 32,940,000.00 | Z144: 2,305,800.00 | AA144: 35,245,800.00

Sheet Fountainbleau 88_11kV SS
A1: Location | F1: Accountability | I1: Acquisition | J1: Asset Identifier | O1: Technical Data | R1: Perfomance | T1: Additional Information | X1: Comments
A2: Date of Completion | B2: Street Address | C2: Suburb | D2: GPS Coordinates | E2: GPS Coordinates | F2: Asset Description | G2: Department/ Planner Group | H2: Replacement Cost (Rands) | I2: Project ID | J2: Manufacturer | K2: Year of Manufacture | L2: Model No. | M2: Serial Number (Switchgear) | N2: Serial Number (Panels) | O2: Insulating Medium (Oil,Vacuum, SF6) | P2: Current Ratings | Q2: Voltage Rating | R2: Warranty | S2: Estimated Useful Life | T2: Supplier/Contractor | U2: Panel Control Cables Designation | V2: Length(m) | W2: Manual & Drawings (Y/N) | Z2: Replacement Cost (Rands) 2023-2024
F3: Fountainbleau 88/6.6kV Substation
F4: 6.6kV Switchgear | Y4: 7%
F5: Fountainbleau 88/6.6kV SS Water front 6.6kV distributor Cable to S/S 169 Cross Street President Ridge 7 (Bay 1) | H5: 600,000.00 | J5: ReyRolle Parsons | K5: Not Specified | L5: LMS/X2/QMRO | M5: 4ALMS-510 | O5: Vaccum | P5: 630 A | Q5: 12 kV | W5: SLD | Y5: =H5*Y$4 -> 42,000.00 | Z5: =H5+Y5 -> 642,000.00
F6: Fountainbleau 88/6.6kV SS Maria 6.6kV distributor Maria Feeder (Bay 2) | H6: 600,000.00 | J6: ReyRolle Parsons | K6: Not Specified | L6: LMT2/X31/QM | M6: 3NSALMT2-581 | O6: Vaccum | P6: 630 A | Q6: 12 kV | W6: SLD | Y6: =H6*Y$4 -> 42,000.00 | Z6: =H6+Y6 -> 642,000.00
F7: Fountainbleau 88/6.6kV SS Pormen Ave 6.6kV distributor Substation 5733 Robindale Ext 1 (Bay 3) | H7: 600,000.00 | J7: ReyRolle Parsons | K7: Not Specified | L7: LMT2/X31/QM | M7: 3NSALMT2-583 | O7: Vaccum | P7: 630 A | Q7: 12 kV | W7: SLD | Y7: 42,000.00 | Z7: 642,000.00
F8: Fountainbleau 88/6.6kV SS George Str 6.6kV distributor Substation 1344 Ferndale (Bay 4) | H8: 600,000.00 | J8: ReyRolle Parsons | K8: Not Specified | L8: LMT2/X31/QM | M8: 3RSALMT2-40 | O8: Vaccum | P8: 630 A | Q8: 12 kV | W8: SLD | Y8: 42,000.00 | Z8: 642,000.00
F9: Fountainbleau 88/6.6kV SS Transformer 1 6.6kV Incomer (Bay 5) | H9: 650,000.00 | J9: ReyRolle Parsons | K9: Not Specified | L9: LMT2/X2/QM | M9: 3MSLMT2533 | O9: Vaccum | P9: 2000 A | Q9: 12 kV | W9: SLD | Y9: 45,500.00 | Z9: 695,500.00
F10: Fountainbleau 88/6.6kV SS 6.6kV Bus Section (Bay 6) | H10: 650,000.00 | J10: ReyRolle Parsons | K10: Not Specified | L10: LMT2/X2/QM | M10: 3MSLMT2538 | O10: Vaccum | P10: 630 A | Q10: 12 kV | W10: SLD | Y10: 45,500.00 | Z10: 695,500.00
F11: Fountainbleau 88/6.6kV SS Transformer 2 6.6kV Incomer (Bay 7) | H11: 650,000.00 | J11: ReyRolle Parsons | K11: Not Specified | L11: LMT2/X2/QM | M11: 3MSLMT2535 | O11: Vaccum | P11: 630 A | Q11: 12 kV | W11: SLD | Y11: 45,500.00 | Z11: 695,500.00
F12: Fountainbleau 88/6.6kV SS Mouret Bau Ave 6.6kV distributor (Bay 8) | H12: 600,000.00 | J12: ReyRolle Parsons | K12: Not Specified | L12: LMT2/X31/QM | M12: 3NSALMT2-584 | O12: Vaccum | P12: 630 A | Q12: 12 kV | W12: SLD | Y12: 42,000.00 | Z12: 642,000.00
F13: Fountainbleau 88/6.6kV SS Martha 6.6kV distributor(Bay 9) | H13: 600,000.00 | J13: ReyRolle Parsons | K13: Not Specified | L13: LMT2/X31/QM | M13: 3NSALMT2-585 | O13: Vaccum | P13: 630 A | Q13: 12 kV | W13: SLD | Y13: 42,000.00 | Z13: 642,000.00
F14: Fountainbleau 88/6.6kV SS Kings 6.6kV distributor (Bay 10) | H14: 600,000.00 | J14: ReyRolle Parsons | K14: Not Specified | L14: LMT2/X31/QM | M14: 3NSALMT2-582 | O14: Vaccum | P14: 630 A | Q14: 12 kV | W14: SLD | Y14: 42,000.00 | Z14: 642,000.00
F15: Fountainbleau 88/6.6kV SS Linden Ext. 6.6kV distributoer (Bay 11) | H15: 600,000.00 | J15: ReyRolle Parsons | K15: Not Specified | L15: LMS/X2/QMRO | M15: 4ALMS-509 | O15: Vaccum | P15: 630 A | Q15: 12 kV | W15: SLD | Y15: 42,000.00 | Z15: 642,000.00
F16: Fountainbleau 88/6.6kV SS Linden Ext. 2 6.6kV distributor (Bay 12) | H16: 600,000.00 | J16: ABB | K16: Not Specified | L16: VD4/LMT | M16: 1V/ZA/R02/08/0514/AL00012450 | O16: Vaccum | P16: 630 A | Q16: 12 kV | W16: SLD | Y16: 42,000.00 | Z16: 642,000.00
F17: Fountainbleau 88/6.6kV SS 6.6kV spare distributor (Bay 13) | H17: 600,000.00 | J17: ABB | K17: Not Specified | L17: VD4/LMT | M17: 1V/ZA/R02/011/0840/BA00048181 | O17: Vaccum | P17: 630 A | Q17: 12 kV | W17: SLD | Y17: 42,000.00 | Z17: 642,000.00
F18: Sub Total | H18: =SUM(H5:H17) -> 7,950,000.00 | Y18: 556,500.00 | Z18: 8,506,500.00
F19: Relays | Y19: 0 | Z19: 0
F20: Fountainbleau 88/6.6kV SS Water front 6.6kV distributor Cable to S/S 169 Cross Street President Ridge 7 (Bay 1) IDMTL OC&EF | H20: 150,000.00 | J20: SEL | K20: Not Specified | L20: SEL-351 | M20: 2004303161 | O20: N/A | P20: 5A | Q20: 110V | W20: SLD | Y20: 10,500.00 | Z20: 160,500.00
F21: Fountainbleau 88/6.6kV SS Water front 6.6kV distributor Cable to S/S 169 Cross Street President Ridge 7 (Bay 1) Differential | H21: 150,000.00 | J21: Solkor Rf Pilot Wire Protection | K21: Not Specified | L21: Not specified | M21: 8312H10256 | O21: N/A | P21: 5A | Q21: 110V | Y21: 10,500.00 | Z21: 160,500.00
F22: Fountainbleau 88/6.6kV SS Water front 6.6kV distributor Cable to S/S 169 Cross Street President Ridge 7 (Bay 1) Gas Pressure AUX | H22: 150,000.00 | J22: Reyrolle | K22: Not Specified | L22: 408J79 | M22: 94E-1155 | O22: N/A | P22: 5A | Q22: 110V | Y22: 10,500.00 | Z22: 160,500.00
F23: Fountainbleau 88/6.6kV SS Maria 6.6kV distributor Maria Feeder (Bay 2) OC&EF | H23: 150,000.00 | J23: Reyrolle | K23: Not Specified | L23: 405A4426 | M23: 190520 | O23: N/A | P23: 5A | Q23: 110V | X23: 1XTest Block | Y23: 10,500.00 | Z23: 160,500.00
F24: Fountainbleau 88/6.6kV SS Pormen Ave 6.6kV distributor Substation 5733 Robindale Ext 1 (Bay 3) OC&EF | H24: 150,000.00 | J24: Reyrolle | K24: Not Specified | L24: 2TJM10 | M24: 8283405/01 | O24: N/A | P24: 5A | Q24: 110V | X24: 1XTest Block | Y24: 10,500.00 | Z24: 160,500.00
F25: Fountainbleau 88/6.6kV SS George Str 6.6kV distributor Substation 1344 Ferndale (Bay 4) OC&EF | H25: 150,000.00 | J25: Reyrolle | K25: Not Specified | L25: TJM10 | M25: 136843 | O25: N/A | P25: 5A | Q25: 110V | X25: 1XTest Block | Y25: 10,500.00 | Z25: 160,500.00
F26: Fountainbleau 88/6.6kV SS Transformer 1 6.6kV Incomer (Bay 5) OC&EF | H26: 200,000.00 | J26: Reyrolle | K26: Not Specified | L26: TJM10 | M26: 136833 | O26: N/A | P26: 5A | Q26: 110V | X26: 1XTest Block | Y26: 14,000.00 | Z26: 214,000.00
F27: Fountainbleau 88/6.6kV SS Transformer 1 6.6kV Incomer (Bay 5) Intertrip Receive | H27: 200,000.00 | J27: Reyrolle | K27: Not Specified | L27: 408J49 | M27: 82E0660 | O27: N/A | P27: 0.35A | Q27: 110V | Y27: 14,000.00 | Z27: 214,000.00
F28: Fountainbleau 88/6.6kV SS 6.6kV Bus Section (Bay 6) Voltage Selection | H28: 200,000.00 | J28: Reyrolle | K28: Not Specified | L28: 408A11052 | M28: 190650 | O28: N/A | P28: 5A | Q28: 110V | Y28: 14,000.00 | Z28: 214,000.00
F29: Fountainbleau 88/6.6kV SS Transformer 2 6.6kV Incomer (Bay 7) OC&EF | H29: 200,000.00 | J29: Reyrolle | K29: Not Specified | L29: TJM10 | M29: 136837 | O29: N/A | P29: 5A | Q29: 110V | X29: 1XTest Block | Y29: 14,000.00 | Z29: 214,000.00
F30: Fountainbleau 88/6.6kV SS Transformer 2 6.6kV Incomer (Bay 7) Intertrip Receive | H30: 200,000.00 | J30: Reyrolle | K30: Not Specified | L30: 408J49 | M30: 82E0661 | O30: N/A | P30: 5A | Q30: 110V | Y30: 14,000.00 | Z30: 214,000.00
F31: Fountainbleau 88/6.6kV SS Mouret Bau Ave 6.6kV distributor (Bay 8) OC&EF | H31: 150,000.00 | J31: Reyrolle | K31: Not Specified | L31: TJM10 | M31: 136834 | O31: N/A | P31: 5A | Q31: 110V | X31: 1XTest Block | Y31: 10,500.00 | Z31: 160,500.00
F32: Fountainbleau 88/6.6kV SS Martha 6.6kV distributor(Bay 9) OC&EF | H32: 150,000.00 | J32: Reyrolle | K32: Not Specified | L32: TJM10 | M32: Not visible | O32: N/A | P32: 5A | Q32: 110V | X32: 1XTest Block | Y32: 10,500.00 | Z32: 160,500.00
F33: Fountainbleau 88/6.6kV SS Kings 6.6kV distributor (Bay 10) OC&EF | H33: 150,000.00 | J33: Reyrolle | K33: Not Specified | L33: 2TJM10 | M33: 8283407/14 | O33: N/A | P33: 5A | Q33: 110V | Y33: 10,500.00 | Z33: 160,500.00
F34: Fountainbleau 88/6.6kV SS Linden Ext. 6.6kV distributoer (Bay 11) IDMTL OC&EF | H34: 150,000.00 | J34: Reyrolle | K34: Not Specified | L34: 2DCCIDMTL | M34: 08313703-2 | O34: N/A | P34: 5A | Q34: 110V | Y34: 10,500.00 | Z34: 160,500.00
F35: Fountainbleau 88/6.6kV SS Linden Ext. 6.6kV distributoer (Bay 11) Differential | H35: 150,000.00 | J35: Solkor Rf Pilot Wire Protection | K35: Not Specified | L35: Not specified | M35: 8312003/1 | O35: N/A | P35: 5A | Q35: 110V | Y35: 10,500.00 | Z35: 160,500.00
F36: Fountainbleau 88/6.6kV SS Linden Ext. 6.6kV distributoer (Bay 11) Gas Pressure AUX | H36: 150,000.00 | J36: Reyrolle | K36: Not Specified | L36: 408J79 | M36: 94E-1148 | O36: N/A | P36: 5A | Q36: 110V | Y36: 10,500.00 | Z36: 160,500.00
F37: Fountainbleau 88/6.6kV SS Linden Ext. 2 6.6kV distributor (Bay 12) OC&EF | H37: 150,000.00 | J37: ABB | K37: Not Specified | L37: REF 610 | M37: Not Specified | O37: N/A | P37: 5A | Q37: 110V | X37: 2XTest Blocks | Y37: 10,500.00 | Z37: 160,500.00
F38: Fountainbleau 88/6.6kV SS Linden Ext. 2 6.6kV distributor (Bay 12) Differential | H38: 150,000.00 | J38: Solkor R/Rf | K38: Not Specified | L38: 2651H50012 | M38: 101929901/001 | O38: N/A | P38: 1A | Q38: 110V | Y38: 10,500.00 | Z38: 160,500.00
F39: Fountainbleau 88/6.6kV SS 6.6kV spare distributor (Bay 13) OC&EF | H39: 150,000.00 | J39: ABB | K39: Not Specified | L39: REF 610 | M39: Not Specified | O39: N/A | P39: 5A | Q39: 110V | X39: 2XTest Blocks | Y39: 10,500.00 | Z39: 160,500.00
F40: Fountainbleau 88/6.6kV SS 6.6kV spare distributor (Bay 13) Differential | H40: 150,000.00 | J40: Solkor R/Rf | K40: Not Specified | L40: 2651H50012 | M40: 102784001/002 | O40: N/A | P40: 1A | Q40: 110V | Y40: 10,500.00 | Z40: 160,500.00
F41: Sub Total | H41: =SUM(H20:H40) -> 3,400,000.00 | Y41: 238,000.00 | Z41: 3,638,000.00
F42: Voltage Transformers | Y42: 0 | Z42: 0
F43: Fountainbleau 88/6.6kV SS Transformer no.1 Incomer | H43: 35,000,000.00 | Y43: 2,450,000.00 | Z43: 37,450,000.00
F44: Fountainbleau 88/6.6kV SS Transformer no.3 Incomer | H44: 35,000,000.00 | Y44: 2,450,000.00 | Z44: 37,450,000.00
F45: Sub Total | H45: =SUM(H43:H44) -> 70,000,000.00 | Y45: 4,900,000.00 | Z45: 74,900,000.00
F46: Stats Meters | Y46: 0 | Z46: 0
F47: Fountainbleau 88/6.6kV SS Incomer 1 Energy meter | H47: 60,000.00 | J47: Itron | K47: 2014 | L47: SL761W071 | M47: 73014713 | X47: 1XCT Test block 1xVT Test block | Y47: 4,200.00 | Z47: 64,200.00
F48: Fountainbleau 88/6.6kV SS Incomer 2 Energy meter | H48: 60,000.00 | J48: Itron | K48: 2014 | L48: SL761W072 | M48: 73014725 | X48: 1XCT Test block 1xVT Test block | Y48: 4,200.00 | Z48: 64,200.00
F49: Sub Total | H49: =SUM(H47:H48) -> 120,000.00 | Y49: 8,400.00 | Z49: 128,400.00
F50: Telecommunication | Y50: 0 | Z50: 0
F51: Fountainbleau 88/6.6kV SS Pilot Wire Cubicle | H51: 200,000.00 | Y51: 14,000.00 | Z51: 214,000.00
F52: Sub Total | H52: =SUM(H51) -> 200,000.00 | Y52: 14,000.00 | Z52: 214,000.00
F53: Scada | Y53: 0 | Z53: 0
F54: Fountainbleau 88/6.6kV SS ABB ACL Cabling Board | H54: 850,000.00 | Y54: 59,500.00 | Z54: 909,500.00
F55: Sub Total | H55: =SUM(H54) -> 850,000.00 | Y55: 59,500.00 | Z55: 909,500.00
F56: Battery Chargers | Y56: 0 | Z56: 0
F57: Fountainbleau 88/6.6kV SS Battery Charger | H57: 400,000.00 | J57: Penbro Kelnick | K57: 2014 | L57: 2458-124 | M57: 2014 04 61766/4 | P57: 7.5A | Q57: 220-240VAC - 110VDC | Y57: 28,000.00 | Z57: 428,000.00
F58: Sub Total | H58: =SUM(H57) -> 400,000.00 | W58: SLD | Y58: 28,000.00 | Z58: 428,000.00
F59: Grand Total | H59: =SUM(H5:H58)/2 -> 82,920,000.00 | Y59: 5,804,400.00 | Z59: 88,724,400.00

Sheet Morningside 44_6.6kV SS
A1: Location | F1: Accountability | J1: Acquisition | K1: Asset Identifier | P1: Technical Data | S1: Perfomance | U1: Additional Information | Y1: Comments
A2: Date of Completion | B2: Street Address | C2: Suburb | D2: GPS Coordinates | E2: GPS Coordinates | F2: Asset Description | G2: Functional Location | H2: Department/ Planner Group | I2: Replacement Cost (Rands) | J2: Project ID | K2: Manufacturer | L2: Year of Manufacture | M2: Model No. | N2: Serial Number (Switchgear) | O2: Serial Number (Panels) | P2: Insulating Medium (Oil,Vacuum, SF6) | Q2: Current Ratings | R2: Voltage Rating | S2: Warranty | T2: Estimated Useful Life | U2: Supplier/Contractor | V2: Panel Control Cables Designation | W2: Length(m) | X2: Manual & Drawings (Y/N) | AA2: Replacement Cost (Rands) 2023-2024
F3: Randburg 88/11kV Substation
F4: 6.6kV Switchgear | Z4: 7%
F5: Morning Side 44/6.6kV SS Incomer 1A Eskom Meter Panel (Bay 1) | I5: 650,000.00 | K5: ABB | L5: Not Specified | M5: LMR/X2/QMRO | N5: 4KLMR-435 | O5: Not Specified | P5: Oil | Q5: 1250A | R5: 12kV | X5: SLD | Z5: =I5*Z$4 -> 45,500.00 | AA5: =I5+Z5 -> 695,500.00
F6: Morning Side 44/6.6kV SS Brook 2188 Dist. (Bay 2) | I6: 600,000.00 | K6: Reyrolle | L6: Not Specified | M6: LMT2/X31/QM | N6: 3NSALMT2-257 | O6: Not Specified | P6: Oil | Q6: 630A | R6: 12kV | X6: SLD | Z6: =I6*Z$4 -> 42,000.00 | AA6: =I6+Z6 -> 642,000.00
F7: Morning Side 44/6.6kV Sycamore Feeder S/S 181 Borrwodale Road Dist. (Bay 3) | I7: 600,000.00 | K7: Reyrolle | L7: Not Specified | M7: LMT2/X31/QM | N7: 3QSALMT2-647 | O7: Not Specified | P7: Oil | Q7: 630A | R7: 12kV | X7: SLD | Z7: 42,000.00 | AA7: 642,000.00
F8: Morning Side 44/6.6kV Bus Section (Bay 4) | I8: 650,000.00 | K8: ABB | L8: Not Specified | M8: LMR/X2/QMRO | N8: 4KLMR-512 | O8: Not Specified | P8: Oil | Q8: 1250A | R8: 12kV | X8: SLD | Z8: 45,500.00 | AA8: 695,500.00
F9: Morning Side 44/6.6kV Parkmore S/S 101 Oak Ave Dist. (Bay 5) | I9: 600,000.00 | K9: Reyrolle | L9: Not Specified | M9: LMT2/X31/QM | N9: 3NSALMT2-258 | O9: Not Specified | P9: Oil | Q9: 630A | R9: 12kV | X9: SLD | Z9: 42,000.00 | AA9: 642,000.00
F10: Morning Side 44/6.6kV Incomer 3A Eskom Meter Panel 3A (Bay 6) | I10: 650,000.00 | K10: Reyrolle | L10: Not Specified | M10: LMS/X1/QMRO | N10: 3VLMS-1 | O10: Not Specified | P10: Oil | Q10: 1250A | R10: 12kV | X10: SLD | Z10: 45,500.00 | AA10: 695,500.00
F11: Morning Side 44/6.6kV Bus Section 2 (Bay 7) | I11: 650,000.00 | K11: Reyrolle | L11: Not Specified | M11: LMS/X1/QMRO | N11: 3VLMS-2 | O11: Not Specified | P11: Oil | Q11: 1250A | R11: 12kV | X11: SLD | Z11: 45,500.00 | AA11: 695,500.00
F12: Morning Side 44/6.6kV Incomer 4A Eskom Meter Panel 4A (Bay 8) | I12: 650,000.00 | K12: Reyrolle | L12: Not Specified | M12: LMS/X1/QMRO | N12: 3VLMS-3 | O12: Not Specified | P12: Oil | Q12: 1250A | R12: 12kV | X12: SLD | Z12: 45,500.00 | AA12: 695,500.00
F13: Morning Side 44/6.6kV East Point S/S 2174 Davis Rd Dist. (Bay 9) | I13: 600,000.00 | K13: Reyrolle | L13: Not Specified | M13: LMT2/X31/QM | N13: 3PSALMT2-515 | O13: Not Specified | P13: Oil | Q13: 630A | R13: 12kV | X13: SLD | Z13: 42,000.00 | AA13: 642,000.00
F14: Morning Side 44/6.6kV No Name Dist. (Bay 10) | I14: 600,000.00 | K14: No Breaker | L14: No Breaker | M14: No Breaker | N14: No Breaker | O14: Not Specified | P14: No Breaker | Q14: No Breaker | R14: No Breaker | X14: SLD | Z14: 42,000.00 | AA14: 642,000.00
F15: Morning Side 44/6.6kV River Club S/S 58 Aberfeldy Dist. (Bay 11) | I15: 600,000.00 | K15: Reyrolle | L15: Not Specified | M15: LMT2/X31/QM | N15: 3QSALMT2-650 | O15: Not Specified | P15: Oil | Q15: 630A | R15: 12kV | X15: SLD | Z15: 42,000.00 | AA15: 642,000.00
F16: Morning Side 44/6.6kV Standard Bank South Sub Dist. (Bay 12) | I16: 600,000.00 | K16: Reyrolle | L16: Not Specified | N16: 3QSALMT2-648 | O16: Not Specified | P16: Oil | Q16: 630A | R16: 12kV | X16: SLD | Z16: 42,000.00 | AA16: 642,000.00
F17: Sub Total | I17: =SUM(I5:I16) -> 7,450,000.00 | Z17: 521,500.00 | AA17: 7,971,500.00
F18: Relays (Control Room) | Z18: 0 | AA18: 0
F19: Morning Side 44/6.6kV SS Incomer Panel OC&EF | I19: 200,000.00 | K19: SEL | L19: Nameplate Inaccessible | M19: SEL-351 | N19: 2004322163 | Q19: 1-5A | R19: 35Vdc | Y19: 4XTest Blocks | Z19: 14,000.00 | AA19: 214,000.00
F20: Morning Side 44/6.6kV SS Bus Section Panel OC&EF | I20: 200,000.00 | K20: SEL | L20: Nameplate Inaccessible | M20: SEL-352 | N20: 2004322162 | Q20: 1-5A | R20: 35Vdc | Z20: 14,000.00 | AA20: 214,000.00
F21: Sub Total | I21: =SUM(I19:I20) -> 400,000.00 | Z21: 28,000.00 | AA21: 428,000.00
F22: Feeder Board Relays | Z22: 0 | AA22: 0
F23: Morning Side 44/6.6kV SS Incomer 1A Eskom Meter Panel Trip&Lockout Gas Pressure Aux Relay | I23: 200,000.00 | K23: Reyrolle | L23: Not Specified | M23: 408J64 | N23: 90E1375 | Q23: Not Specified | R23: 30Vdc | Z23: 14,000.00 | AA23: 214,000.00
F24: Morning Side 44/6.6kV SS Incomer 1A Eskom Meter Panel No name | I24: 200,000.00 | K24: Alstom | L24: Not Specified | M24: VAJY13YF5043FB | N24: 501430 | Q24: Not Specified | R24: 30Vdc | Z24: 14,000.00 | AA24: 214,000.00
F25: Morning Side 44/6.6kV SS Incomer 1A Eskom Meter Panel No name | I25: 200,000.00 | K25: GEC Alsthom | L25: Not Specified | M25: VAA21SPEC2YF20SA | N25: 9101456 | Q25: Not Specified | R25: 30Vdc | Z25: 14,000.00 | AA25: 214,000.00
F26: Morning Side 44/6.6kV SS Brook 2188 Dist. (Bay 2) OC&EF | I26: 150,000.00 | K26: Reyrolle | L26: Not Specified | M26: TJM10 | N26: Not Specified | Q26: Not Specified | R26: 30Vdc | Z26: 10,500.00 | AA26: 160,500.00
F27: Morning Side 44/6.6kV Sycamore Feeder S/S 181 Borrwodale Road Dist. (Bay 3) OC&EF | I27: 150,000.00 | K27: Reyrolle | L27: Not Specified | M27: TJM10 | N27: Not Specified | Q27: Not Specified | R27: 30Vdc | Z27: 10,500.00 | AA27: 160,500.00
F28: Morning Side 44/6.6kV Bus Section (Bay 4) Trip&Lockout Gas Pressure Aux Relay | I28: 200,000.00 | K28: Reyrolle | L28: Not Specified | M28: 408J64 | N28: 90E1366 | Q28: Not Specified | R28: 30Vdc | Z28: 14,000.00 | AA28: 214,000.00
F29: Morning Side 44/6.6kV Parkmore S/S 101 Oak Ave Dist. (Bay 5) OC&EF | I29: 150,000.00 | K29: Reyrolle | L29: Not Specified | M29: TJM10 | N29: Not Specified | Q29: Not Specified | R29: 30Vdc | Z29: 10,500.00 | AA29: 160,500.00
F30: Morning Side 44/6.6kV Incomer 3A Eskom Meter Panel 3A (Bay 6) OC&EF | I30: 200,000.00 | K30: Reyrolle | L30: Not Specified | M30: TJM10 | N30: Not Specified | Q30: Not Specified | R30: 30Vdc | Z30: 14,000.00 | AA30: 214,000.00
F31: Morning Side 44/6.6kV Incomer 3A Eskom Meter Panel 3A (Bay 6) Intertrip | I31: 200,000.00 | K31: Reyrolle | L31: Not Specified | M31: 408J32R | N31: 89E0023 | Q31: Not Specified | R31: 30Vdc | Z31: 14,000.00 | AA31: 214,000.00
F32: Morning Side 44/6.6kV Incomer 3A Eskom Meter Panel 3A (Bay 6) Gas Pressure Aux | I32: 200,000.00 | K32: Reyrolle | L32: Not Specified | M32: 408J64 | N32: 88E01042 | Q32: Not Specified | R32: 30Vdc | Z32: 14,000.00 | AA32: 214,000.00
F33: Morning Side 44/6.6kV Incomer 3A Bus Section 2 (Bay 7) OC&EF | I33: 200,000.00 | K33: Reyrolle | L33: Not Specified | M33: TJM10 | N33: Not Specified | Q33: Not Specified | R33: 30Vdc | Z33: 14,000.00 | AA33: 214,000.00
F34: Morning Side 44/6.6kV Incomer 3A Bus Section 2 (Bay 7) Gas Pressure Aux | I34: 200,000.00 | K34: Reyrolle | L34: Not Specified | M34: 408J64 | N34: 88E01054 | Q34: Not Specified | R34: 30Vdc | Z34: 14,000.00 | AA34: 214,000.00
F35: Morning Side 44/6.6kV Incomer 4A Eskom Meter Panel 4A (Bay 8) OC&EF | I35: 200,000.00 | K35: Reyrolle | L35: Not Specified | M35: TJM10 | N35: Not Specified | Q35: Not Specified | R35: 30Vdc | Z35: 14,000.00 | AA35: 214,000.00
F36: Morning Side 44/6.6kV Incomer 4A Eskom Meter Panel 4A (Bay 8) Intertrip | I36: 200,000.00 | K36: Reyrolle | L36: Not Specified | M36: 408J32R | N36: 89E0026 | Q36: Not Specified | R36: 30Vdc | Z36: 14,000.00 | AA36: 214,000.00
F37: Morning Side 44/6.6kV Incomer 4A Eskom Meter Panel 4A (Bay 8) Gas Pressure Aux | I37: 200,000.00 | K37: Reyrolle | L37: Not Specified | M37: 408J64 | N37: 88E01045 | Q37: Not Specified | R37: 30Vdc | Z37: 14,000.00 | AA37: 214,000.00
F38: Morning Side 44/6.6kV East Point S/S 2174 Davis Rd Dist. (Bay 9) OC&EF | I38: 150,000.00 | K38: Reyrolle | L38: Not Specified | M38: TJM10 | N38: Not Specified | Q38: Not Specified | R38: 30Vdc | Z38: 10,500.00 | AA38: 160,500.00
F39: Morning Side 44/6.6kV No Name Dist. (Bay 10) OC&EF | I39: 150,000.00 | K39: Reyrolle | L39: Not Specified | M39: TJM11 | N39: Not Specified | Q39: Not Specified | R39: 30Vdc | Z39: 10,500.00 | AA39: 160,500.00
F40: Morning Side 44/6.6kV River Club S/S 58 Aberfeldy Dist. (Bay 11) OC&EF | I40: 150,000.00 | K40: Reyrolle | L40: Not Specified | M40: TJM12 | N40: Not Specified | Q40: Not Specified | R40: 30Vdc | Z40: 10,500.00 | AA40: 160,500.00
F41: Morning Side 44/6.6kV Standard Bank South Sub Dist. (Bay 12) OC&EF | I41: 150,000.00 | K41: Reyrolle | L41: Not Specified | M41: TJM13 | N41: Not Specified | Q41: Not Specified | R41: 30Vdc | Z41: 10,500.00 | AA41: 160,500.00
F42: Sub Total | I42: =SUM(I23:I41) -> 3,450,000.00 | Z42: 241,500.00 | AA42: 3,691,500.00
F43: Voltage Transformers | Z43: 0 | AA43: 0
F44: Morning Side 44/6.6kV SS Incomer 1A Eskom Meter Panel (Bay 1) VT | I44: 40,000.00 | K44: Instruform | L44: Not Specified | M44: V164S4A4 | N44: 0504/5 | Q44: Not Specified | R44: 6600/110V | X44: SLD | Z44: 2,800.00 | AA44: 42,800.00
F45: Morning Side 44/6.6kV Incomer 3A Eskom Meter Panel 3A (Bay 6) VT | I45: 40,000.00 | K45: Nameplate Inaccessible | L45: Nameplate Inaccessible | M45: Nameplate Inaccessible | N45: Nameplate Inaccessible | Q45: Nameplate Inaccessible | R45: 6600/110V | X45: SLD | Z45: 2,800.00 | AA45: 42,800.00
F46: Morning Side 44/6.6kV Incomer 3A Eskom Meter Panel 4A (Bay 6) VT | I46: 40,000.00 | K46: Nameplate Inaccessible | L46: Nameplate Inaccessible | M46: Nameplate Inaccessible | N46: Nameplate Inaccessible | Q46: Nameplate Inaccessible | R46: 6600/110V | X46: SLD | Z46: 2,800.00 | AA46: 42,800.00
F47: Sub Total | I47: =SUM(I44:I46) -> 120,000.00 | Z47: 8,400.00 | AA47: 128,400.00
F48: Stats Meters | Z48: 0 | AA48: 0
F49: Morning Side 44/6.6kV SS Incomer 1 Energy Meter | I49: 60,000.00 | K49: Itron | L49: 2014 | M49: SL761W071 | N49: 73014714 | Q49: 1A | R49: 110V | Y49: 1XCT&VT Test Block | Z49: 4,200.00 | AA49: 64,200.00
F50: Morning Side 44/6.6kV SS Incomer 2 Energy Meter | I50: 60,000.00 | K50: Itron | L50: 2014 | M50: SL761W071 | N50: 73004245 | Q50: 1A | R50: 110V | Y50: 1XCT&VT Test Block | Z50: 4,200.00 | AA50: 64,200.00
F51: Morning Side 44/6.6kV SS Incomer 3 Energy Meter | I51: 60,000.00 | K51: Itron | L51: 2014 | M51: SL761W071 | N51: 73014702 | Q51: 1A | R51: 110V | Y51: 1XCT&VT Test Block | Z51: 4,200.00 | AA51: 64,200.00
F52: Morning Side 44/6.6kV SS Maximum Demand Energy Meter | I52: 60,000.00 | K52: GEC | L52: Not Specified | M52: E42F3C-D | N52: Not Specified | Q52: Not Specified | R52: Not Specified | Z52: 4,200.00 | AA52: 64,200.00
F53: Sub Total | I53: =SUM(I49:I52) -> 240,000.00 | Z53: 16,800.00 | AA53: 256,800.00
F54: Telecommunication | Z54: 0 | AA54: 0
F55: Morning Side 44/6.6kV SS Pilot Wire Board | I55: 200,000.00 | K55: No nameplate | L55: No nameplate | M55: No nameplate | N55: No nameplate | Z55: 14,000.00 | AA55: 214,000.00
F56: Sub Total | I56: =SUM(I55) -> 200,000.00 | Z56: 14,000.00 | AA56: 214,000.00
F57: Battery Chargers | Z57: 0 | AA57: 0
F58: Morning Side 44/6.6kV SS Battery Charger | I58: 400,000.00 | K58: Static Power | L58: Not Specified | M58: LV03010B88 | N58: 88/564 | Q58: 10A | R58: 30V | Z58: 28,000.00 | AA58: 428,000.00
F59: Sub Total | I59: =SUM(I58) -> 400,000.00 | Z59: 28,000.00 | AA59: 428,000.00
F60: Grand Total | I60: =SUM(I5:I59)/2 -> 12,260,000.00 | Z60: 858,200.00 | AA60: 13,118,200.00

Sheet Bordeaux 88_6.6kV SS
A1: Location | F1: Accountability | I1: Acquisition | J1: Asset Identifier | O1: Technical Data | R1: Perfomance | T1: Additional Information | W1: Comments
A2: Date of Completion | B2: Street Address | C2: Suburb | D2: GPS Coordinates Decimal Degrees | E2: Functional Location | F2: Asset Description | G2: Department/ Planner Group | H2: Replacement Cost (Rands) | I2: Project ID | J2: Manufacturer | K2: YOM | L2: Model No. | M2: Serial Number (Switchgear) | N2: Serial Number (Panels) | O2: Insulating Medium (Oil,Vacuum, SF6) | P2: Current Ratings | Q2: Voltage Rating | R2: Warranty | S2: Estimated Useful Life | T2: Supplier/Contractor | U2: Panel Control Cables | V2: Manual & Drawings (Y/N) | Y2: Replacement Cost (Rands) 2023-2024
F3: Bordeaux 88/6.6kV Substation
F4: Switchgear | X4: 7%
F5: Bordeaux 88/6.6kV SS Geneva Rd 2881 Blairgowrie 6.6kV Dist. (Bay 1) | H5: 600,000.00 | J5: Actom | K5: 2007 | L5: SBV4/1250/31.5/S | M5: 14128/07 | N5: N/A | O5: Vacuum | P5: 1250 | Q5: 12 | T5: 9H2116/1 | V5: SLD | W5: 1X Test Block | X5: =H5*X$4 -> 42,000.00 | Y5: =H5+X5 -> 642,000.00
E6: C-BRDUX-FB1A-SPAR02 | F6: Bordeaux 88/6.6kV SS Spare 66kV Dist. Bay 2 | H6: 600,000.00 | J6: Breaker Missing | K6: Breaker Missing | L6: Breaker Missing | M6: Breaker Missing | N6: N/A | O6: Vacuum | P6: Breaker Missing | Q6: Breaker Missing | T6: Breaker Missing | V6: SLD | W6: 2X Test Blocks | X6: =H6*X$4 -> 42,000.00 | Y6: =H6+X6 -> 642,000.00
E7: C-BRDUX-FB1A-TRFR01 | F7: Bordeaux 88/6.6kV SS Transformer 1 6.6kV Inc (Bay 3) | H7: 650,000.00 | J7: GEC Alsthom | K7: Not Specified | L7: SBV4/2000/31.5-SI | M7: 1071 | N7: N/A | O7: Vacuum | P7: 2000 | Q7: 12 | T7: N/A | U7: 5X Control Cables | V7: SLD | W7: 4X Test blocks and VT's | X7: 45,500.00 | Y7: 695,500.00
F8: Bordeaux 88/6.6kV SS Maxwell Ave 817 Bordeaux 6.6kV Dist. (Bay 4) | H8: 600,000.00 | J8: GEC Alsthom | K8: Not Specified | L8: SBV4E/800/31.5-SI | M8: 1070 | N8: N/A | O8: Vacuum | P8: 800 | Q8: 12 | T8: N/A | V8: SLD | W8: 1X Test Block | X8: 42,000.00 | Y8: 642,000.00
E9: C-BRDUX-FB1A-SPAR05 | F9: Bordeaux 88/6.6kV SS Spare 6.6kV Dist. (Bay 5) | H9: 600,000.00 | J9: Breaker Missing | K9: Breaker Missing | L9: Breaker Missing | M9: Breaker Missing | N9: N/A | O9: Vacuum | P9: Breaker Missing | Q9: Breaker Missing | T9: Breaker Missing | V9: SLD | W9: 1X Test Block | X9: 42,000.00 | Y9: 642,000.00
E10: C-BRDUX-FB1A-SPAR06 | F10: Bordeaux 88/6.6kV SS Spare 6.6kV Dist. (Bay 6) | H10: 600,000.00 | J10: Breaker Missing | K10: Breaker Missing | L10: Breaker Missing | M10: Breaker Missing | N10: N/A | O10: Vacuum | P10: Breaker Missing | Q10: Breaker Missing | T10: Breaker Missing | V10: SLD | W10: 1X Test Block | X10: 42,000.00 | Y10: 642,000.00
E11: C-BRDUX-BS01 | F11: Bordeaux 88/6.6kV SS 6.6kV Bus Section 1 (Bay 7) | H11: 650,000.00 | J11: GEC Alsthom | K11: Not Specified | L11: SBV4/2000/31.5-SI | M11: 1065 | N11: N/A | O11: Vacuum | P11: 2000 | Q11: 12 | T11: N/A | V11: SLD | W11: VT's | X11: 45,500.00 | Y11: 695,500.00
F12: Bordeaux 88/6.6kV Republic Rd 1/191 Blairgowrie 6.6kV Dist. (Bay 8) | H12: 600,000.00 | J12: GEC Alsthom | K12: Not Specified | L12: SBV4/800/31.5-SI | M12: 1066 | N12: N/A | O12: Vacuum | P12: 800 | Q12: 12 | T12: N/A | V12: SLD | W12: 1X Test Block | X12: 42,000.00 | Y12: 642,000.00
E13: C-BRDUX-FB1B-TRFR03 | F13: Bordeaux 88/6.6kV SS Transformer 3 6.6kV Inc (Bay 9) | H13: 650,000.00 | J13: GEC Alsthom | K13: Not Specified | L13: SBV4/2000/31.5-S | M13: 1068 | N13: N/A | O13: Vacuum | P13: 2000 | Q13: 12 | T13: N/A | U13: 4X Control Cables | V13: SLD | W13: 4X Test blocks and VT's | X13: 45,500.00 | Y13: 695,500.00
F14: Bordeaux 88/6.6kV View Rd PTN 39 D'Fontein 6.6kV SS Dist. (Bay 10) | H14: 600,000.00 | J14: GEC Alsthom | K14: Not Specified | L14: SB4/1250/31.5-S | M14: 10738 | N14: N/A | O14: Vacuum | P14: 1250 | Q14: 12 | T14: N/A | V14: SLD | W14: 2X Test Blocks | X14: 42,000.00 | Y14: 642,000.00
F15: Bordeaux 88/6.6kV SS Main Street 840 Bordeaux 6.6kV Dist. (Bay 11) | H15: 600,000.00 | J15: Breaker Missing | K15: Breaker Missing | L15: Breaker Missing | M15: Breaker Missing | N15: N/A | O15: Vacuum | P15: Breaker Missing | Q15: Breaker Missing | T15: Breaker Missing | V15: SLD | W15: 1X Test Block | X15: 42,000.00 | Y15: 642,000.00
E16: C-BRDUX-BS02 | F16: Bordeaux 88/6.6kV 6.6kV Bus Section 2 (Bay 12) | H16: 650,000.00 | J16: Actom | K16: 2007 | L16: SBVE/1250/25/S | M16: 14126/07 | N16: N/A | O16: Vacuum | P16: 1250 | Q16: 12 | T16: 9H2116/1 | V16: SLD | W16: VT's | X16: 45,500.00 | Y16: 695,500.00
F17: Sub Total | H17: =SUM(H5:H16) -> 7,400,000.00 | X17: 518,000.00 | Y17: 7,918,000.00
F18: Power Transformers | X18: 0 | Y18: 0
F19: N/A | J19: N/A | K19: N/A | M19: N/A | P19: N/A | Q19: N/A | V19: SLD | X19: 0 | Y19: 0
F20: N/A | J20: N/A | K20: N/A | M20: N/A | P20: N/A | Q20: N/A | V20: SLD | X20: 0 | Y20: 0
F21: Auxilliary Transformers | X21: 0 | Y21: 0
F22: N/A | J22: N/A | K22: N/A | M22: N/A | Q22: N/A | X22: 0 | Y22: 0
F23: N/A | J23: N/A | K23: N/A | M23: N/A | Q23: N/A | X23: 0 | Y23: 0
F24: Tap Changers | X24: 0 | Y24: 0
F25: N/A | J25: N/A | K25: N/A | M25: N/A | X25: 0 | Y25: 0
F26: N/A | J26: N/A | K26: N/A | M26: N/A | X26: 0 | Y26: 0
F27: Dissolved Gas Analyzers | X27: 0 | Y27: 0
F28: N/A | J28: N/A | K28: N/A | M28: N/A | X28: 0 | Y28: 0
F29: N/A | J29: N/A | K29: N/A | M29: N/A | X29: 0 | Y29: 0
F30: Feeder Board Relays | X30: 0 | Y30: 0
F31: Bordeaux 88/6.6kV SS Main Street 840 Bordeaux Overcurrent&Earth Fault Protecion(Bay 11) | H31: 150,000.00 | J31: GEC Alsthom | K31: Not Specified | L31: MCGG53H1CB0753C | M31: 600157F | X31: 10,500.00 | Y31: 160,500.00
F32: Bordeaux 88/6.6kV SS View Rd PTN 39 D'Fontein Overcurrent &Earth Fault Protection (Bay 10) | H32: 150,000.00 | J32: GEC Alsthom | K32: Not Specified | L32: MCGG53H1CB0753C | M32: 600165F | X32: 10,500.00 | Y32: 160,500.00
F33: Bordeaux 88/6.6kV SS View Rd PTN 39 D'Fontein Pilot Wire (Bay 10) | H33: 150,000.00 | J33: Reyrolle | K33: Not Specified | L33: Not Specified | M33: 8301904-9 | X33: 10,500.00 | Y33: 160,500.00
F34: Bordeaux 88/6.6kV SS Transformer 3 6.6kV Inc. Overcurrent&Earth Fault Protection (Bay 9 ) | H34: 200,000.00 | J34: GEC Alsthom | K34: Not Specified | L34: MCGG82H1CB0753C | M34: 600171F | X34: 14,000.00 | Y34: 214,000.00
F35: Bordeaux 88/6.6kV SS Transformer 3 6.6kV Inc. Eskom Intertrip (Bay 9 ) | H35: 200,000.00 | J35: GEC Alsthom | K35: Not Specified | L35: VAJY13YF5243FB | M35: 9501169 | X35: 14,000.00 | Y35: 214,000.00
F36: Bordaux 88/6.6kV SS Republic Rd Overcurrent&Earth Fault Protection (Bay 8) | H36: 150,000.00 | J36: GEC Alsthom | K36: Not Specified | L36: MCGG53H1CB0753C | M36: 600166F | X36: 10,500.00 | Y36: 160,500.00
F37: Bordaux 88/6.6kV SS 6.6kV Bus Section 1 Voltage Selection (Bay 7) | H37: 200,000.00 | J37: GEC Alsthom | K37: Not Specified | L37: MVAP22D1AA0001B | M37: 687449F | X37: 14,000.00 | Y37: 214,000.00
F38: Bordaux 88/6.6kV SS 6.6kV Bus Section 1 Voltage Selection (Bay 7) | H38: 200,000.00 | J38: GEC Alsthom | K38: Not Specified | L38: MVAP22D1AA0001B | M38: 559532C | X38: 14,000.00 | Y38: 214,000.00
F39: Bordeaux 88/6.6kV SS Spare Dist. Overcurrent&Earth Fault Protection (Bay 6) | H39: 150,000.00 | J39: GEC Alsthom | K39: Not Specified | L39: MCGG53H1CB0753C | M39: 600161F | X39: 10,500.00 | Y39: 160,500.00
F40: Bordeaux 88/6.6kV SS Spare Dist. Overcurrent&Earth Fault Protection (Bay 5) | H40: 150,000.00 | J40: GEC Alsthom | K40: Not Specified | L40: MCGG53H1CB0753C | M40: 600154F | X40: 10,500.00 | Y40: 160,500.00
F41: Bordeaux 88/6.6kV SS Maxwell Ave 817 Bordeaux (Bay 4) | H41: 150,000.00 | J41: GEC Alsthom | K41: Not Specified | L41: MCGG53H1CB0753C | M41: 233006A | X41: 10,500.00 | Y41: 160,500.00
F42: Bordeaux 88/6.6kV SS Transformer 1 6.6kV Inc. Eskom Intertrip (Bay 3) | H42: 200,000.00 | J42: GEC Alsthom | K42: Not Specified | L42: VAJY13YF5243FB | M42: 9501159 | X42: 14,000.00 | Y42: 214,000.00
F43: Bordeaux 88/6.6kV SS Transformer 1 6.6kV Inc. Overcurrent&Earth Fault Protection (Bay 3) | H43: 200,000.00 | J43: GEC Alsthom | K43: Not Specified | L43: MCGG82H1CB0753C | M43: 603006F | X43: 14,000.00 | Y43: 214,000.00
F44: Bordeaux 88/6.6kV Spare Dist. Overcurrent&Earth Fault Protection (Bay 2 ) | H44: 150,000.00 | J44: GEC Alsthom | K44: Not Specified | L44: MCGG53H1CB0753C | M44: 600158F | X44: 10,500.00 | Y44: 160,500.00
F45: Bordeaux 88/6.6kV Spare Dist. Pilot Wire (Bay 2 ) | H45: 150,000.00 | J45: Reyrolle | K45: Not Specified | L45: Not Specified | M45: 8301904-7 | X45: 10,500.00 | Y45: 160,500.00
F46: Bordeaux 88/6.6kV SS Geneva Rd 2881 Blairgowrie Overcurrent&Earth Fault Protection Bay 1) | H46: 150,000.00 | J46: GEC Alsthom | K46: Not Specified | L46: MCGG53H1CB0753C | M46: 600160F | X46: 10,500.00 | Y46: 160,500.00
F47: Sub Total | H47: =SUM(H31:H46) -> 2,700,000.00 | X47: 189,000.00 | Y47: 2,889,000.00
F48: Security System Panel | X48: 0 | Y48: 0
F49: N/A | X49: 0 | Y49: 0
F50: Stats Meters | X50: 0 | Y50: 0
F51: Bordeaux 88/6.6kV SS 6.6kV Incomer 1 | H51: 60,000.00 | J51: Itron | K51: 2014 | L51: SL761W071 | M51: 73014738 | W51: 1XCT and 1XVT Test Block | X51: 4,200.00 | Y51: 64,200.00
F52: Bordeaux 88/6.6kV SS 6.6kV Incomer 2 | H52: 60,000.00 | J52: Itron | K52: 2014 | L52: SL761W071 | M52: 73014708 | W52: 1XCT and 1XVT Test Block | X52: 4,200.00 | Y52: 64,200.00
F53: Sub Total | H53: =SUM(H51:H52) -> 120,000.00 | X53: 8,400.00 | Y53: 128,400.00
F54: Scada/Ethernet Panel | X54: 0 | Y54: 0
F55: Bordeaux 88/6.6kV SS Ingeteam IC3 | H55: 250,000.00 | J55: Ingeteam | K55: Not Specified | L55: IC0723 | M55: A7475000003 | X55: 17,500.00 | Y55: 267,500.00
F56: Bordeaux 88/6.6kV SS Ingeteam EF1 | H56: 250,000.00 | J56: Ingeteam | K56: 2014 | L56: FC3292 | M56: A7465000016 | X56: 17,500.00 | Y56: 267,500.00
F57: Bordeaux 88/6.6kV SS Ingeteam EF2 | H57: 250,000.00 | J57: Ingeteam | K57: 2014 | L57: FC3292 | M57: A7465000014 | X57: 17,500.00 | Y57: 267,500.00
F58: Bordeaux 88/6.6kV SS Metacom MC402 Remote Router | H58: 500,000.00 | J58: Metacom | K58: 2015 | L58: Not Specified | M58: 40233527 | X58: 35,000.00 | Y58: 535,000.00
F59: Sub Total | H59: =SUM(H55:H58) -> 1,250,000.00 | X59: 87,500.00 | Y59: 1,337,500.00
F60: Telecommunication | X60: 0 | Y60: 0
F61: Bordeaux 88/6.6kV Harley Street Fiber Optic Patch Panel | H61: 100,000.00 | X61: 7,000.00 | Y61: 107,000.00
F62: Bordeaux 88/6.6kV Bordeaux to Old Bond 1.24 Fiber Optic Patch Panel | H62: 100,000.00 | X62: 7,000.00 | Y62: 107,000.00
F63: Bordeaux 88/6.6kV Bordeaux to Delta 1.12 Fiber Optic Patch Panel | H63: 100,000.00 | X63: 7,000.00 | Y63: 107,000.00
F64: Sub Total | H64: =SUM(H61:H63) -> 300,000.00 | X64: 21,000.00 | Y64: 321,000.00
F65: Battery Chargers | X65: 0 | Y65: 0
F66: Bordeaux 88/6.6kV Battery Charger 1 | H66: 400,000.00 | J66: Blue Ginger | K66: Not Specified | L66: 51-30-9605 | M66: 6475 | X66: 28,000.00 | Y66: 428,000.00
F67: Bordeaux 88/6.6kV Battery Charger 2 | H67: 400,000.00 | J67: Blue Ginger | K67: Not Specified | L67: 22.4502/15 | M67: 22621/1 | X67: 28,000.00 | Y67: 428,000.00
F68: Bordeaux 88/6.6kV 220AC- 30VDC Power Supply | H68: 400,000.00 | J68: Silicon Engineering | K68: Not Specified | L68: IBC165 | M68: J3096/7 | X68: 28,000.00 | Y68: 428,000.00
F69: Sub Total | H69: =SUM(H66:H68) -> 1,200,000.00 | X69: 84,000.00 | Y69: 1,284,000.00
F70: Batteries | X70: =H70*X$4 -> 0 | Y70: =H70+X70 -> 0
F71: Bordeaux 88/6.6kV SS Battety Room x 85 cells | H71: 200,000.00 | J71: SAFT | K71: Not Specied | L71: Not Specified | M71: Not Specified | X71: 14,000.00 | Y71: 214,000.00
F72: Sub Total | H72: =SUM(H71) -> 200,000.00 | X72: 14,000.00 | Y72: 214,000.00
F73: Grand Total | H73: =SUM(H5:H72)/2 -> 13,170,000.00 | X73: 921,900.00 | Y73: 14,091,900.00

Sheet Windsor 88_6.6kV SS
A1: Location | F1: Accountability | I1: Acquisition | J1: Asset Identifier | O1: Technical Data | R1: Perfomance | T1: Additional Information | X1: Comments
A2: Date of Completion | B2: Street Address | C2: Suburb | D2: GPS Coordinates | E2: GPS Coordinates | F2: Asset Description | G2: Department/ Planner Group | H2: Replacement Costs (Rands) | I2: Project ID | J2: Manufacturer | K2: Year of Manufacture | L2: Model No. | M2: Serial Number (Switchgear) | N2: Serial Number (Panels) | O2: Insulating Medium (Oil,Vacuum, SF6) | P2: Current Ratings | Q2: Voltage Rating | R2: Warranty | S2: Estimated Useful Life | T2: Supplier/Contractor | U2: Panel Control Cables Designation | V2: Length(m) | W2: Manual & Drawings (Y/N) | Z2: Replacement Cost (Rands) 2023-2024
F3: Windsor 88/6.6kV Substation
F4: 6.6kV Switchgear | Y4: 7%
F5: Windsor 88/6.6kV SS Afned no. 3 Cresta Shopping Centre Feeder no. 3 Dist. | H5: 600,000.00 | J5: Merlin Gerin | K5: Not Specified | L5: FG1 | M5: 9204040492 | N5: Not Specified | O5: Oil | P5: 630A | Q5: 11kV | X5: 3XTest Blocks | Y5: =H5*Y$4 -> 42,000.00 | Z5: =H5+Y5 -> 642,000.00
F6: Windsor 88/6.6kV SS Incomer 1A | H6: 650,000.00 | J6: Merlin Gerin | K6: Not Specified | L6: FG2 | M6: 108554 | N6: Not Specified | O6: Oil | P6: 2500A | Q6: 11kV | X6: 3XTest Blocks | Y6: =H6*Y$4 -> 45,500.00 | Z6: =H6+Y6 -> 695,500.00
F7: Windsor 88/6.6kV SS Royale Dist. | H7: 600,000.00 | J7: Merlin Gerin | P7: 630A | Q7: 11kV | Y7: 42,000.00 | Z7: 642,000.00
F8: Windsor 88/6.6kV SS Afned no. 1 Cresta Shopping Centre Feeder no. 1 Dist. | H8: 600,000.00 | J8: Merlin Gerin | K8: Not Specified | L8: FG1 | M8: 9204130492 | N8: Not Specified | O8: Oil | P8: 630A | Q8: 11kV | X8: 4XTest Blocks | Y8: 42,000.00 | Z8: 642,000.00
F9: Windsor 88/6.6kV SS Bankor 1 Dist. | H9: 600,000.00 | J9: Merlin Gerin | K9: No breaker | L9: FG1 | M9: No breaker | N9: No breaker | O9: No breaker | P9: 630A | Q9: 11kV | X9: 4XTest Blocks | Y9: 42,000.00 | Z9: 642,000.00
F10: Windsor 88/6.6kV SS Spare Dist. | H10: 600,000.00 | J10: Merlin Gerin | K10: No breaker | L10: No breaker | M10: No breaker | N10: No breaker | O10: No breaker | P10: 630A | Q10: 11kV | X10: 3XTest Blocks | Y10: 42,000.00 | Z10: 642,000.00
F11: Windsor 88/6.6kV SS Spare Dist. | H11: 600,000.00 | J11: Merlin Gerin | K11: No breaker | L11: No breaker | M11: No breaker | N11: No breaker | O11: No breaker | P11: 630A | Q11: 11kV | X11: 3XTest Blocks | Y11: 42,000.00 | Z11: 642,000.00
F12: Windsor 88/6.6kV SS Bus Section | H12: 650,000.00 | J12: Merlin Gerin | K12: Not Specified | L12: FG2 | M12: 108255592/02 | N12: Not Specified | O12: Oil | P12: 2500A | Q12: 11kV | Y12: 45,500.00 | Z12: 695,500.00
F13: Windsor 88/6.6kV SS No name Dist. | H13: 600,000.00 | J13: Merlin Gerin | K13: Not Specified | L13: FG1 | M13: 9204070492 | N13: Not Specified | O13: Oil | P13: 630A | Q13: 11kV | X13: 4XTest Blocks | Y13: 42,000.00 | Z13: 642,000.00
F14: Windsor 88/6.6kV SS Bankor 2 Dist. | H14: 600,000.00 | J14: Merlin Gerin | K14: Not Specified | L14: FG1 | M14: 9204080492 | N14: Not Specified | O14: Oil | P14: 630A | Q14: 11kV | X14: 4XTest Blocks | Y14: 42,000.00 | Z14: 642,000.00
F15: Windsor 88/6.6kV SS Afned no. 2 Cresta Shopping Centre Feeder no. 2 Dist. | H15: 600,000.00 | J15: Merlin Gerin | K15: Not Specified | L15: Not Specified | M15: 9204110492 | N15: Not Specified | O15: Oil | P15: 630A | Q15: 11kV | X15: 3XTest Blocks | Y15: 42,000.00 | Z15: 642,000.00
F16: Windsor 88/6.6kV SS Incomer 2A | H16: 650,000.00 | J16: Merlin Gerin | K16: Not Specified | L16: FG2 | M16: 1085569202 | N16: Not Specified | O16: Oil | P16: 2500A | Q16: 11kV | X16: 3XTest Blocks | Y16: 45,500.00 | Z16: 695,500.00
F17: Windsor 88/6.6kV SS To RMU 00104 C/R Jacaranda and Central Linden Ext. | H17: 600,000.00 | J17: Merlin Gerin | K17: Not Specified | L17: FG1 | M17: 9205212005 | N17: Not Specified | O17: Oil | P17: 630A | Q17: 11kV | X17: 3XTest Blocks | Y17: 42,000.00 | Z17: 642,000.00
F18: Windsor 88/6.6kV SS May Dist. | H18: 600,000.00 | J18: Merlin Gerin | K18: Not Specified | L18: FG1 | M18: 9204060492 | N18: Not Specified | O18: Oil | P18: 630A | Q18: 11kV | X18: 3XTest Blocks | Y18: 42,000.00 | Z18: 642,000.00
F19: Windsor 88/6.6kV SS Substation B | H19: 600,000.00 | J19: Merlin Gerin | K19: Unknown | L19: Not Specified | M19: V2679/2 | N19: Not Specified | O19: Vacuum | P19: 630A | Q19: 11kV | X19: 1XTest Block | Y19: 42,000.00 | Z19: 642,000.00
F20: Windsor 88/6.6kV SS Lords Dist. | H20: 600,000.00 | J20: Merlin Gerin | K20: No breaker | L20: No breaker | M20: No breaker | N20: No breaker | O20: No breaker | P20: 630A | Q20: 11kV | X20: 3XTest Blocks | Y20: 42,000.00 | Z20: 642,000.00
F21: Windsor 88/6.6kV SS Leopold Dist. | H21: 600,000.00 | J21: Merlin Gerin | K21: Not Specified | L21: FG1 | M21: 9204020492 | N21: Not Specified | O21: Oil | P21: 630A | Q21: 11kV | X21: 3XTest Blocks | Y21: 42,000.00 | Z21: 642,000.00
F22: Windsor 88/6.6kV SS Afned no. 4 Cresta Shopping Centre Feeder no. 4 Dist. | H22: 600,000.00 | J22: Merlin Gerin | K22: Not Specified | L22: Not Specified | M22: 9204030492 | N22: Not Specified | O22: Oil | P22: 630A | Q22: 11kV | X22: 3XTest Blocks | Y22: 42,000.00 | Z22: 642,000.00
F23: Sub Total | H23: =SUM(H5:H22) -> 10,950,000.00 | Y23: 766,500.00 | Z23: 11,716,500.00
F24: Feeder Board Relays | Y24: 0 | Z24: 0
F25: Windsor 88/6.6kV SS Afned no. 2 Cresta Shopping Centre Feeder no. 2 Dist. OC&EF | H25: 150,000.00 | J25: SEL | K25: Not Specified | L25: SEL-751 | M25: 3132660059 | P25: 1-5A | Q25: 110V | Y25: 10,500.00 | Z25: 160,500.00
F26: Windsor 88/6.6kV SS Afned no. 2 Cresta Shopping Centre Feeder no. 2 Dist. Differential Protection | H26: 150,000.00 | J26: Schneider | K26: Not Specified | L26: Micom P521 | M26: 2150182 | P26: 1-5A | Q26: 110V | Y26: 10,500.00 | Z26: 160,500.00
F27: Windsor 88/6.6kV SS Afned no. 3 Cresta Shopping Centre Feeder no. 3 Dist. OC&EF | H27: 150,000.00 | J27: SEL | K27: Not Specified | L27: SEL-751 | M27: 1121310588 | P27: 1-5A | Q27: 110V | Y27: 10,500.00 | Z27: 160,500.00
F28: Windsor 88/6.6kV SS Afned no. 3 Cresta Shopping Centre Feeder no. 3 Dist. Differential Protection | H28: 150,000.00 | J28: Schneider | K28: Not Specified | L28: Micom P521 | M28: 2150175 | P28: 1-5A | Q28: 110V | Y28: 10,500.00 | Z28: 160,500.00
F29: Windsor 88/6.6kV SS Afned no. 4 Cresta Shopping Centre Feeder no. 4 Dist. OC&EF | H29: 150,000.00 | J29: SEL | K29: Not Specified | L29: SEL-751 | M29: 313266061 | P29: 1-5A | Q29: 110V | Y29: 10,500.00 | Z29: 160,500.00
F30: Windsor 88/6.6kV SS Afned no. 4 Cresta Shopping Centre Feeder no. 4 Dist. Differential Protection | H30: 150,000.00 | J30: Schneider | K30: Not Specified | L30: Micom P521 | M30: 2150173 | P30: 1-5A | Q30: 110V | Y30: 10,500.00 | Z30: 160,500.00
F31: Windsor 88/6.6kV SS Incomer 1A OC&EF | H31: 200,000.00 | J31: SEL | K31: Not Specified | L31: SEL-751 | M31: Nameplate not Accessible | P31: 1-5A | Q31: 110V | Y31: 14,000.00 | Z31: 214,000.00
F32: Windsor 88/6.6kV SS Incomer 1A Eskom Intertrip | H32: 200,000.00 | J32: Nameplate not Accessible | K32: Nameplate not Accessible | L32: Nameplate not Accessible | M32: Nameplate not Accessible | P32: Nameplate not Accessible | Q32: 110V | Y32: 14,000.00 | Z32: 214,000.00
F33: Windsor 88/6.6kV SS Afned no. 1 Cresta Shopping Centre Feeder no. 1 Dist. OC&EF | H33: 150,000.00 | J33: SEL | K33: Not Specified | L33: SEL-751 | M33: 3132660067 | P33: 1-5A | Q33: 110V | Y33: 10,500.00 | Z33: 160,500.00
F34: Windsor 88/6.6kV SS Afned no. 1 Cresta Shopping Centre Feeder no. 1 Dist. Differential Protection | H34: 150,000.00 | J34: Schneider | K34: Not Specified | L34: Micom P521 | M34: 2150180 | P34: 1-5A | Q34: 110V | Y34: 10,500.00 | Z34: 160,500.00
F35: Windsor 88/6.6kV SS Bankor 1 Dist. OC&EF | H35: 150,000.00 | J35: SEL | K35: Not Specified | L35: SEL-751 | M35: 3132660064 | P35: 1-5A | Q35: 110V | Y35: 10,500.00 | Z35: 160,500.00
F36: Windsor 88/6.6kV SS Bankor 1 Dist. Pilot Wire Protection | H36: 150,000.00 | J36: Reyrolle | K36: Not Specified | L36: Solkor RF | M36: B02398-3 | P36: 1-5A | Q36: 110V | Y36: 10,500.00 | Z36: 160,500.00
F37: Windsor 88/6.6kV SS Bankor 2 Dist. OC&EF | H37: 150,000.00 | J37: SEL | K37: Not Specified | L37: SEL-751 | M37: 3132660065 | P37: 1-5A | Q37: 110V | Y37: 10,500.00 | Z37: 160,500.00
F38: Windsor 88/6.6kV SS Bankor 2 Dist. Pilot Wire Protection | H38: 150,000.00 | J38: Reyrolle | K38: Not Specified | L38: Solkor RF | M38: B02398-6 | P38: 1-5A | Q38: 110V | Y38: 10,500.00 | Z38: 160,500.00
F39: Windsor 88/6.6kV SS No name Dist. OC&EF | H39: 150,000.00 | J39: SEL | K39: Not Specified | L39: SEL-751 | M39: 3132660070 | P39: 1-5A | Q39: 110V | Y39: 10,500.00 | Z39: 160,500.00
F40: Windsor 88/6.6kV SS No name Dist. Pilot Wire Protection | H40: 150,000.00 | J40: Reyrolle | K40: Not Specified | L40: Solkor RF | M40: B02398-5 | P40: 1-5A | Q40: 110V | X40: Relay taken out, only casing remains | Y40: 10,500.00 | Z40: 160,500.00
F41: Windsor 88/6.6kV SS To RMU 00104 C/R Jacaranda and Central Linden Ext. OC&EF | H41: 150,000.00 | J41: SEL | K41: Not Specified | L41: SEL-751 | M41: 3132660072 | P41: 1-5A | Q41: 110V | Y41: 10,500.00 | Z41: 160,500.00
F42: Windsor 88/6.6kV SS Incomer 2A OC&EF | H42: 200,000.00 | J42: SEL | K42: Not Specified | L42: SEL-752 | M42: 3132660066 | P42: 1-5A | Q42: 110V | Y42: 14,000.00 | Z42: 214,000.00
F43: Windsor 88/6.6kV SS Incomer 2A Eskom Intertrip | H43: 200,000.00 | J43: GEC Alsthom | K43: Not Specified | L43: VAJY13SPEC11ZG532A | M43: Not Specified | P43: Not Specified | Q43: 110V | Y43: 14,000.00 | Z43: 214,000.00
F44: Windsor 88/6.6kV SS May Dist. OC&EF | H44: 150,000.00 | J44: SEL | K44: Not Specified | L44: SEL-751 | M44: 3132660068 | P44: 1-5A | Q44: 110V | Y44: 10,500.00 | Z44: 160,500.00
F45: Windsor 88/6.6kV SS Spare Dist. OC&EF | H45: 150,000.00 | J45: SEL | K45: Not Specified | L45: SEL-751 | M45: 3132660063 | P45: 1-5A | Q45: 110V | Y45: 10,500.00 | Z45: 160,500.00
F46: Windsor 88/6.6kV SS Lords Dist. OC&EF | H46: 150,000.00 | J46: SEL | K46: Not Specified | L46: SEL-752 | M46: 3132660062 | P46: 1-5A | Q46: 110V | Y46: 10,500.00 | Z46: 160,500.00
F47: Windsor 88/6.6kV SS Leopold Dist. OC&EF | H47: 150,000.00 | J47: SEL | K47: Not Specified | L47: SEL-753 | M47: 3132660073 | P47: 1-5A | Q47: 110V | Y47: 10,500.00 | Z47: 160,500.00
F48: Windsor 88/6.6kV SS Substation B Cable Protection | H48: 150,000.00 | J48: Reyrolle NEI | K48: Not Specified | L48: Solkor RF | M48: B02398-4 | P48: 1-5A | Q48: 110V | X48: Relay taken out, only casing remains | Y48: 10,500.00 | Z48: 160,500.00
F49: Windsor 88/6.6kV SS Substation B OC&EF | H49: 150,000.00 | J49: Strike Technologies | K49: Not Specified | L49: FP2001-2 | M49: G4447016 | P49: 1-5A | Q49: 110V | Y49: 10,500.00 | Z49: 160,500.00
F50: Sub Total | H50: =SUM(H25:H49) -> 3,950,000.00 | Y50: 276,500.00 | Z50: 4,226,500.00
F51: Voltage Transformers | Y51: 0 | Z51: 0
F52: Windsor 88/6.6kV SS VT Panel | G52: Nameplate not Accessible | H52: 40,000.00 | I52: Nameplate not Accessible | J52: Nameplate not Accessible | K52: Nameplate not Accessible | L52: Nameplate not Accessible | M52: Nameplate not Accessible | Q52: 6600/110V | Y52: 2,800.00 | Z52: 42,800.00
F53: Windsor 88/6.6kV SS VT Panel | G53: Nameplate not Accessible | H53: 40,000.00 | I53: Nameplate not Accessible | J53: Nameplate not Accessible | K53: Nameplate not Accessible | L53: Nameplate not Accessible | M53: Nameplate not Accessible | Q53: 6600/110V | Y53: 2,800.00 | Z53: 42,800.00
F54: Sub Total | H54: =SUM(H52:H53) -> 80,000.00 | Y54: 5,600.00 | Z54: 85,600.00
F55: Stats Meters | Y55: 0 | Z55: 0
F56: Windsor 88/6.6kV SS Leopold Dist. | H56: 60,000.00 | J56: ELSPEC | K56: 2014 | L56: G4430SPG-4430-0090 | M56: 00-60-35-1B-26-39 | P56: 1-50A | Q56: 0-1000V | Y56: 4,200.00 | Z56: 64,200.00
F57: Windsor 88/6.6kV SS Lords Dist. | H57: 60,000.00 | J57: ELSPEC | K57: 2014 | L57: G4430SPG-4430-0090 | M57: 00-60-35-1A-96-26 | P57: 1-50A | Q57: 0-1000V | Y57: 4,200.00 | Z57: 64,200.00
F58: Windsor 88/6.6kV SS Spare Dist. | H58: 60,000.00 | J58: ELSPEC | K58: 2014 | L58: G4430SPG-4430-0090 | M58: 00-60-35-1B-26-6A | P58: 1-50A | Q58: 0-1000V | Y58: 4,200.00 | Z58: 64,200.00
F59: Windsor 88/6.6kV SS May Dist. | H59: 60,000.00 | J59: ELSPEC | K59: 2014 | L59: G4430SPG-4430-0090 | M59: 00-60-35-1B-26-9C | P59: 1-50A | Q59: 0-1000V | Y59: 4,200.00 | Z59: 64,200.00
F60: Windsor 88/6.6kV SS To RMU 00104 C/R Jacaranda and Central Linden Ext. | H60: 60,000.00 | J60: ELSPEC | K60: 2014 | L60: G4430SPG-4430-0090 | M60: 00-60-35-1B-26-6E | P60: 1-50A | Q60: 0-1000V | Y60: 4,200.00 | Z60: 64,200.00
F61: Windsor 88/6.6kV SS No name Dist. | H61: 60,000.00 | J61: ELSPEC | K61: 2014 | L61: G4430SPG-4430-0090 | M61: 00-60-35-1B-26-99 | P61: 1-50A | Q61: 0-1000V | Y61: 4,200.00 | Z61: 64,200.00
F62: Windsor 88/6.6kV SS Bankor 2 Dist. | H62: 60,000.00 | J62: ELSPEC | K62: 2014 | L62: G4430SPG-4430-0090 | M62: 00-60-35-1A-96-20 | P62: 1-50A | Q62: 0-1000V | Y62: 4,200.00 | Z62: 64,200.00
F63: Windsor 88/6.6kV SS Bankor 1 Dist. | H63: 60,000.00 | J63: ELSPEC | K63: 2014 | L63: G4430SPG-4430-0090 | M63: 00-60-35-1A-96-5E | P63: 1-50A | Q63: 0-1000V | Y63: 4,200.00 | Z63: 64,200.00
F64: Windsor 88/6.6kV SS Afned no. 1 Cresta Shopping Centre Feeder no. 1 Dist. | H64: 60,000.00 | J64: ELSPEC | K64: 2014 | L64: G4430SPG-4430-0090 | M64: 00-60-35-1A-90-DD | P64: 1-50A | Q64: 0-1000V | Y64: 4,200.00 | Z64: 64,200.00
F65: Windsor 88/6.6kV SS Spare Dist. | H65: 60,000.00 | J65: ELSPEC | K65: 2014 | L65: G4430SPG-4430-0090 | M65: 00-60-35-1B-26-55 | P65: 1-50A | Q65: 0-1000V | Y65: 4,200.00 | Z65: 64,200.00
F66: Windsor 88/6.6kV SS Incomer 1A Eskom Energy Meter | H66: 60,000.00 | J66: Schlumberger | K66: Not Specified | L66: ST-Q220-IEC | M66: 84859148 | P66: 1-50A | Q66: 0-1000V | Y66: 4,200.00 | Z66: 64,200.00
F67: Windsor 88/6.6kV SS Afned no. 4 Cresta Shopping Centre Feeder no. 4 Dist. | H67: 60,000.00 | J67: ELSPEC | K67: 2014 | L67: G4430SPG-4430-0090 | M67: 00-60-35-12-7A-D9 | P67: 1-50A | Q67: 0-1000V | Y67: 4,200.00 | Z67: 64,200.00
F68: Windsor 88/6.6kV SS Afned no. 3 Cresta Shopping Centre Feeder no. 3 Dist. | H68: 60,000.00 | J68: ELSPEC | K68: 2014 | L68: G4430SPG-4430-0090 | M68: 00-60-35-1A-96-54 | P68: 1-50A | Q68: 0-1000V | Y68: 4,200.00 | Z68: 64,200.00
F69: Windsor 88/6.6kV SS Afned no. 2 Cresta Shopping Centre Feeder no. 2 Dist. | H69: 60,000.00 | J69: ELSPEC | K69: 2014 | L69: G4430SPG-4430-0090 | M69: 00-60-35-1A-90-FC | P69: 1-50A | Q69: 0-1000V | Y69: 4,200.00 | Z69: 64,200.00
F70: Windsor 88/6.6kV SS Incomer 1 Energy Meter | H70: 60,000.00 | J70: Itron | K70: 2014 | L70: SL761W071 | M70: 73004236 | P70: 1A | Q70: 110V | Y70: =H70*Y$4 -> 4,200.00 | Z70: =H70+Y70 -> 64,200.00
F71: Windsor 88/6.6kV SS Incomer 2 Energy Meter | H71: 60,000.00 | J71: Itron | K71: 2014 | L71: SL761W072 | M71: 73004227 | P71: 1A | Q71: 110V | Y71: 4,200.00 | Z71: 64,200.00
F72: Sub Total | H72: =SUM(H56:H71) -> 960,000.00 | Y72: 67,200.00 | Z72: 1,027,200.00
F73: Telecommunication | Y73: 0 | Z73: 0
F74: Panel | H74: 200,000.00 | Y74: 14,000.00 | Z74: 214,000.00
F75: Sub Total | H75: =SUM(H74) -> 200,000.00 | Y75: 14,000.00 | Z75: 214,000.00
F76: ICT Network Panel | Y76: 0 | Z76: 0
F77: Panel | H77: 200,000.00 | Y77: 14,000.00 | Z77: 214,000.00
F78: Sub Total | H78: =SUM(H77) -> 200,000.00 | Y78: 14,000.00 | Z78: 214,000.00
F79: Scada | Y79: 0 | Z79: 0
F80: Windsor 88/6.6kV SS RTU | H80: 250,000.00 | J80: Ingepac | K80: Not Specified | L80: IC0723 | M80: A7475000001 | P80: Not Specified | Q80: 37-72VDC | X80: Vandalized | Y80: 17,500.00 | Z80: 267,500.00
F81: Windsor 88/6.6kV SS RTU | H81: 250,000.00 | J81: Ingepac | K81: Not Specified | L81: FC3293 | M81: A7465000034 | P81: Not Specified | Q81: 37-72VDC | X81: Vandalized | Y81: 17,500.00 | Z81: 267,500.00
F82: Windsor 88/6.6kV SS RTU | H82: 250,000.00 | J82: Ingepac | K82: Not Specified | L82: FC3294 | M82: A7465000029 | P82: Not Specified | Q82: 37-72VDC | X82: Vandalized | Y82: 17,500.00 | Z82: 267,500.00
F83: Windsor 88/6.6kV SS RTU | H83: 250,000.00 | J83: Ingepac | K83: Not Specified | L83: FC3295 | M83: A7465000021 | P83: Not Specified | Q83: 37-72VDC | X83: Vandalized | Y83: 17,500.00 | Z83: 267,500.00
F84: Sub Total | H84: =SUM(H80:H83) -> 1,000,000.00 | Y84: 70,000.00 | Z84: 1,070,000.00
F85: Battery Chargers | Y85: 0 | Z85: 0
F86: Windsor 88/6.6kV SS Charger | H86: 400,000.00 | J86: Blueginger | K86: Not Specified | L86: 22.45 05/15 | M86: 22761/6 | P86: 5A | Q86: 75V | Y86: 28,000.00 | Z86: 428,000.00
F87: Windsor 88/6.6kV SS Charger | H87: 400,000.00 | J87: Power Management Instruments | K87: Not Specified | L87: Not Specified | M87: Not Specified | P87: 5A | Q87: 120V | Y87: 28,000.00 | Z87: 428,000.00
F88: Sub Total | H88: =SUM(H86:H87) -> 800,000.00 | Y88: 56,000.00 | Z88: 856,000.00
F89: Batteries | Y89: 0 | Z89: 0
F90: Windsor 88/6.6kV SS 39XGN110 Battery Cells | H90: 200,000.00 | J90: Not Specified | K90: Not Specified | L90: Ni-cad | M90: Not Specified | P90: Not Specified | Q90: 1.2V | Y90: 14,000.00 | Z90: 214,000.00
F91: Sub Total | H91: =SUM(H90) -> 200,000.00 | Y91: 14,000.00 | Z91: 214,000.00
F92: Grand Total | H92: =SUM(H5:H91)/2 -> 18,340,000.00 | Y92: 1,283,800.00 | Z92: 19,623,800.00

Sheet Hurlingham 88_11kV SS
A1: Location | G1: Accountability | J1: Asset Identifier | O1: Technical Data | R1: Perfomance | T1: Additional Information | X1: Comments
A2: Date of Completion | B2: Street Address | C2: Suburb | D2: GPS Coordinates | E2: GPS Coordinates | F2: Functional Location | G2: Asset Description | H2: Department/ Planner Group | I2: Replacement Cost (Rands) | J2: Manufacturer | K2: Year of Manufacture | L2: Model No. | M2: Serial Number (Switchgear) | N2: Serial Number (Panels) | O2: Insulating Medium (Oil,Vacuum, SF6) | P2: Current Ratings | Q2: Voltage Rating | R2: Warranty | S2: Estimated Useful Life | T2: Supplier/Contractor | U2: Panel Control Cables Designation | V2: Length(m) | W2: Manual & Drawings (Y/N) | Z2: Replacement Cost (Rands) 2023-2024
G3: Hurlingham 88/11kV Substation
G4: 11kV Switchgear | Y4: 7%
F5: C-HURLH-FB1A-CULEMB | G5: Hurlingham 88/11kV SS Culemborg Feeder MSS 553 Boschendal Crescent (Vin Rouge Crescent) | I5: 600,000.00 | J5: Reyrolle | K5: Not Specified | L5: LMS/X1/QMRO | M5: 3SLMS-138 | P5: 630A | Q5: 12kV | W5: SLD | X5: 1XTest Block | Y5: =I5*Y$4 -> 42,000.00 | Z5: =I5+Y5 -> 642,000.00
G6: Hurlingham 88/11kV SS MSS 02567 S/S 972 Republic Rd | I6: 600,000.00 | J6: Reyrolle | K6: Not Specified | L6: LMT2/X31/QM | M6: 3QSALMT2-646 | P6: 630A | Q6: 12kV | W6: SLD | X6: 1XTest Block | Y6: =I6*Y$4 -> 42,000.00 | Z6: 642,000.00
F7: C-HURLH-FB1A-TRFR01 | G7: Hurlingham 88/11kV SS Escom 1 Incomer | I7: 650,000.00 | J7: Reyrolle | K7: Not Specified | L7: LMS/X1/QMRO | M7: 3SLMS-134 | P7: 1250A | Q7: 12kV | W7: SLD | Y7: 45,500.00 | Z7: 695,500.00
F8: C-HURLH-BS01 | G8: Hurlingham 88/11kV SS Bus Section | I8: 650,000.00 | J8: Reyrolle | K8: Not Specified | L8: LMS/X1/QMRO | M8: 3SLMS-135 | P8: 1250A | Q8: 12kV | W8: SLD | X8: 1XTest Block | Y8: 45,500.00 | Z8: 695,500.00
F9: C-HURLH-FB1B-TRFR02 | G9: Hurlingham 88/11kV SS Escom 2 Incomer | I9: 650,000.00 | J9: Reyrolle | K9: Not Specified | L9: LMS/X1/QMRO | M9: 3SLMS-136 | P9: 1250A | Q9: 12kV | W9: SLD | X9: 1XTest Block | Y9: 45,500.00 | Z9: 695,500.00
F10: C-HURLH-FB1B-WODLND | G10: Hurlingham 88/11kV SS Woodlands Feeder M/S 17 Dewetshof PL | I10: 600,000.00 | J10: Reyrolle | K10: Not Specified | L10: LMS/X1/QMRO | M10: 3SLMS-137 | P10: 630A | Q10: 12kV | W10: SLD | X10: 1XTest Block | Y10: 42,000.00 | Z10: 642,000.00
F11: C-HURLH-FB1B-GODHOP | G11: Hurlingham 88/11kV SS Goedehoop Feeder M/S 14 Cabernet Cresc | I11: 600,000.00 | J11: Reyrolle | K11: Not Specified | L11: LMS/X1/QMRO | M11: 3SLMS-132 | P11: 630A | Q11: 12kV | W11: SLD | X11: 1XTest Block | Y11: 42,000.00 | Z11: 642,000.00
G12: Sub-Total | I12: =SUM(I5:I11) -> 4,350,000.00 | Y12: 304,500.00 | Z12: 4,654,500.00
G13: Switchgear (Outdoor) | Y13: 0 | Z13: 0
G14: Hurlingham 88/11kV SS Transformer 1 11kV Metering Panel Isolator | I14: 100,000.00 | Y14: 7,000.00 | Z14: 107,000.00
G15: Hurlingham 88/11kV SS Transformer 2 11kV Metering Panel Isolator | I15: 100,000.00 | Y15: 7,000.00 | Z15: 107,000.00
G16: Sub-Total | I16: =SUM(I14:I15) -> 200,000.00 | Y16: 14,000.00 | Z16: 214,000.00
G17: Surge Arrestors | Y17: 0 | Z17: 0
G18: Hurlingham 88/11kV SS 88kV Delta 1 Srg Arr X3 | I18: 30,000.00 | Y18: 2,100.00 | Z18: 32,100.00
G19: Hurlingham 88/11kV SS 88kV Transformer 1 Srg Arr X3 | I19: 30,000.00 | Y19: 2,100.00 | Z19: 32,100.00
G20: Hurlingham 88/11kV SS 11kV Transformer 1 Srg Arr X4 | I20: 40,000.00 | Y20: 2,800.00 | Z20: 42,800.00
G21: Hurlingham 88/11kV SS 88kV Delta 2 Srg Arr X3 | I21: 30,000.00 | Y21: 2,100.00 | Z21: 32,100.00
G22: Hurlingham 88/11kV SS 88kV Transformer 2 Srg Arr X3 | I22: 30,000.00 | Y22: 2,100.00 | Z22: 32,100.00
G23: Hurlingham 88/11kV SS 11kV Transformer 2 Srg Arr X4 | I23: 40,000.00 | Y23: 2,800.00 | Z23: 42,800.00
G24: Sub-Total | I24: =SUM(I18:I23) -> 200,000.00 | Y24: 14,000.00 | Z24: 214,000.00
G25: Insulators | Y25: 0 | Z25: 0
G26: Hurlingham 88/11kV SS 88kV Delta 1 Cable sealing end insulatorX15 | I26: 150,000.00 | Y26: 10,500.00 | Z26: 160,500.00
G27: Hurlingham 88/11kV SS 88kV Transformer 1 CTs insulator X3 | I27: 30,000.00 | Y27: 2,100.00 | Z27: 32,100.00
G28: Hurlingham 88/11kV SS 88kV Transformer 1 88kV Bushing insulator X3 | I28: 30,000.00 | Y28: 2,100.00 | Z28: 32,100.00
G29: Hurlingham 88/11kV SS 88kV Transformer 1 11kV Bushing insulator X4 | I29: 40,000.00 | Y29: 2,800.00 | Z29: 42,800.00
G30: Hurlingham 88/11kV SS 11kV Incomer 1 Structural support X3 | I30: 30,000.00 | Y30: 2,100.00 | Z30: 32,100.00
G31: Hurlingham 88/11kV SS 11kV Incomer 1 VTs X3 | I31: 30,000.00 | Y31: 2,100.00 | Z31: 32,100.00
G32: Hurlingham 88/11kV SS 11kV Incomer 1 CTs X3 | I32: 30,000.00 | Y32: 2,100.00 | Z32: 32,100.00
G33: Hurlingham 88/11kV SS 11kV Transformer 1 Metering Panel Isolator X9 | I33: 90,000.00 | Y33: 6,300.00 | Z33: 96,300.00
G34: Hurlingham 88/11kV SS 11kV Incomer 1 Cable Sealing end X9 | I34: 90,000.00 | Y34: 6,300.00 | Z34: 96,300.00
G35: Hurlingham 88/11kV SS Auxiliary Transformer 1 insulators X5 | I35: 50,000.00 | Y35: 3,500.00 | Z35: 53,500.00
G36: Hurlingham 88/11kV SS 88kV Delta 2 Cable sealing end insulatorX15 | I36: 150,000.00 | Y36: 10,500.00 | Z36: 160,500.00
G37: Hurlingham 88/11kV SS 88kV Transformer 2 CTs insulator X3 | I37: 30,000.00 | Y37: 2,100.00 | Z37: =I37+Y37 -> 32,100.00
G38: Hurlingham 88/11kV SS 88kV Transformer 2 88kV Bushing insulator X3 | I38: 30,000.00 | Y38: 2,100.00 | Z38: 32,100.00
G39: Hurlingham 88/11kV SS 88kV Transformer 2 11kV Bushing insulator X4 | I39: 40,000.00 | Y39: 2,800.00 | Z39: 42,800.00
G40: Hurlingham 88/11kV SS 11kV Incomer 2 Structural support X3 | I40: 30,000.00 | Y40: 2,100.00 | Z40: 32,100.00
G41: Hurlingham 88/11kV SS 11kV Incomer 2 VTs X3 | I41: 30,000.00 | Y41: 2,100.00 | Z41: 32,100.00
G42: Hurlingham 88/11kV SS 11kV Incomer 2 CTs X3 | I42: 30,000.00 | Y42: 2,100.00 | Z42: 32,100.00
G43: Hurlingham 88/11kV SS 11kV Transformer 2 Metering Panel Isolator X9 | I43: 90,000.00 | Y43: 6,300.00 | Z43: 96,300.00
G44: Hurlingham 88/11kV SS 11kV Incomer 1 Cable Sealing end X9 | I44: 90,000.00 | Y44: 6,300.00 | Z44: 96,300.00
G45: Hurlingham 88/11kV SS Auxiliary Transformer 2 insulators X5 | I45: 50,000.00 | Y45: 3,500.00 | Z45: 53,500.00
G46: Sub-Total | I46: =SUM(I26:I45) -> 1,140,000.00 | Y46: 79,800.00 | Z46: 1,219,800.00
G47: Power Transformers | Y47: 0 | Z47: 0
F48: C-HURLH-TRFR01 | G48: Hurlingham 88/11kV SS 10MVA Dyn1 Transformer 1 | I48: 36,500,000.00 | J48: Asea | K48: 1985 | L48: TAA23 | M48: 28540 | Y48: 2,555,000.00 | Z48: 39,055,000.00
F49: C-HURLH-TRFR02 | G49: Hurlingham 88/11kV SS 10MVA Dyn1 Transformer 2 | I49: 36,500,000.00 | J49: Asea | K49: 1985 | L49: TAA23 | M49: 28541 | Y49: 2,555,000.00 | Z49: 39,055,000.00
G50: Sub-Total | I50: =SUM(I48:I49) -> 73,000,000.00 | Y50: 5,110,000.00 | Z50: 78,110,000.00
G51: Auxiliary Transformers | Y51: 0 | Z51: 0
G52: Hurlingham 88/11kV SS 100kVA Dyn11 Auxiliary Transformer 1 | I52: 3,000,000.00 | J52: Powertech | K52: 2014 | M52: T-3569/152 | Y52: 210,000.00 | Z52: 3,210,000.00
G53: Hurlingham 88/11kV SS 100kVA Dyn11 Auxiliary Transformer 2 | I53: 3,000,000.00 | J53: Powertech | K53: 2014 | M53: T-3569/153 | Y53: 210,000.00 | Z53: 3,210,000.00
G54: Sub-Total | I54: =SUM(I52:I53) -> 6,000,000.00 | Y54: 420,000.00 | Z54: 6,420,000.00
G55: Voltage Transformers | Y55: 0 | Z55: 0
G56: Hurlingham 88/11kV SS Transformer 1 Metering Panel 11kV Red Phase VT | I56: 13,500.00 | J56: Desta | K56: Not Visible | L56: Not Visible | M56: Not Visible | Y56: 945.00 | Z56: 14,445.00
G57: Hurlingham 88/11kV SS Transformer 1 Metering Panel 11kV White Phase VT | I57: 13,500.00 | J57: Desta | K57: Not Visible | L57: Not Visible | M57: Not Visible | Y57: 945.00 | Z57: 14,445.00
G58: Hurlingham 88/11kV SS Transformer 1 Metering Panel 11kV Blue Phase VT | I58: 13,500.00 | J58: Desta | K58: Not Visible | L58: Not Visible | M58: Not Visible | Y58: 945.00 | Z58: 14,445.00
G59: Hurlingham 88/11kV SS Transformer 2 Metering Panel 11kV Red Phase VT | I59: 13,500.00 | J59: Instrument Transformer Technologies | K59: Not Visible | L59: Not Visible | M59: Not Visible | Y59: 945.00 | Z59: 14,445.00
G60: Hurlingham 88/11kV SS Transformer 2 Metering Panel 11kV White Phase VT | I60: 13,500.00 | J60: Instrument Transformer Technologies | K60: Not Visible | L60: Not Visible | M60: Not Visible | Y60: 945.00 | Z60: 14,445.00
G61: Hurlingham 88/11kV SS Transformer 2 Metering Panel 11kV Blue Phase VT | I61: 13,500.00 | J61: Instrument Transformer Technologies | K61: Not Visible | L61: Not Visible | M61: Not Visible | Y61: 945.00 | Z61: 14,445.00
G62: Hurling 88/11kV SS Escom 1 Incomer VT | I62: 30,000.00 | J62: Nameplate Inaccessible | K62: Nameplate Inaccessible | L62: Nameplate Inaccessible | M62: Nameplate Inaccessible | Y62: 2,100.00 | Z62: 32,100.00
G63: Hurling 88/11kV SS Escom 2 Incomer VT | I63: 30,000.00 | J63: Nameplate Inaccessible | K63: Nameplate Inaccessible | L63: Nameplate Inaccessible | M63: Nameplate Inaccessible | Y63: 2,100.00 | Z63: 32,100.00
G64: Sub-Total | I64: =SUM(I56:I63) -> 141,000.00 | Y64: 9,870.00 | Z64: 150,870.00
G65: Current Transformers | Y65: 0 | Z65: 0
G66: Hurlingham 88/11kV SS 88kV Delta 1 Red Phase CT | I66: 20,000.00 | J66: Asea | K66: Not Visible | L66: Not Visible | M66: Not Visible | Y66: 1,400.00 | Z66: 21,400.00
G67: Hurlingham 88/11kV SS 88kV Delta 1 White Phase CT | I67: 20,000.00 | J67: Asea | K67: Not Visible | L67: Not Visible | M67: Not Visible | Y67: 1,400.00 | Z67: 21,400.00
G68: Hurlingham 88/11kV SS 88kV Delta 1 Blue Phase CT | I68: 20,000.00 | J68: Asea | K68: Not Visible | L68: Not Visible | M68: Not Visible | Y68: 1,400.00 | Z68: 21,400.00
G69: Hurlingham 88/11kV SS 11kV Transformer 1 Red Phase Metering Panel CT | I69: 20,000.00 | J69: Conelectric | K69: Not Visible | L69: Not Visible | M69: Not Visible | Y69: 1,400.00 | Z69: =I69+Y69 -> 21,400.00
G70: Hurlingham 88/11kV SS 11kV Transformer 1 White Phase Metering Panel CT | I70: 20,000.00 | J70: Conelectric | K70: Not Visible | L70: Not Visible | M70: Not Visible | Y70: =I70*Y$4 -> 1,400.00 | Z70: 21,400.00
G71: Hurlingham 88/11kV SS 11kV Transformer 1 Blue Phase Metering Panel CT | I71: 20,000.00 | J71: Conelectric | K71: Not Visible | L71: Not Visible | M71: Not Visible | Y71: 1,400.00 | Z71: 21,400.00
G72: Hurlingham 88/11kV SS 88kV Delta 2 Red Phase CT | I72: 20,000.00 | J72: Asea | K72: Not Visible | L72: Not Visible | M72: Not Visible | Y72: 1,400.00 | Z72: 21,400.00
G73: Hurlingham 88/11kV SS 88kV Delta 2 White Phase CT | I73: 20,000.00 | J73: Asea | K73: Not Visible | L73: Not Visible | M73: Not Visible | Y73: 1,400.00 | Z73: 21,400.00
G74: Hurlingham 88/11kV SS 88kV Delta 2 Blue Phase CT | I74: 20,000.00 | J74: Asea | K74: Not Visible | L74: Not Visible | M74: Not Visible | Y74: 1,400.00 | Z74: 21,400.00
G75: Hurlingham 88/11kV SS 11kV Transformer 2 Red Phase Metering Panel CT | I75: 20,000.00 | J75: Instrument Transformer Technologies | K75: Not Visible | L75: Not Visible | M75: Not Visible | Y75: 1,400.00 | Z75: 21,400.00
G76: Hurlingham 88/11kV SS 11kV Transformer 2 White Phase Metering Panel CT | I76: 20,000.00 | J76: Instrument Transformer Technologies | K76: Not Visible | L76: Not Visible | M76: Not Visible | Y76: 1,400.00 | Z76: 21,400.00
G77: Hurlingham 88/11kV SS 11kV Transformer 2 Blue Phase Metering Panel CT | I77: 20,000.00 | J77: Instrument Transformer Technologies | K77: Not Visible | L77: Not Visible | M77: Not Visible | Y77: 1,400.00 | Z77: 21,400.00
G78: Sub-Total | I78: =SUM(I66:I77) -> 240,000.00 | Y78: 16,800.00 | Z78: 256,800.00
G79: Control Panel | Y79: 0 | Z79: 0
G80: Hurlingham 88/11kV SS Transformer 1 11kV VT Junction Box | I80: 70,000.00 | Y80: 4,900.00 | Z80: 74,900.00
G81: Hurlingham 88/11kV SS Transformer 1 11kV Metering Panel CT Junction Box | I81: 60,000.00 | Y81: 4,200.00 | Z81: 64,200.00
G82: Hurlingham 88/11kV SS Transformer 2 11kV VT Junction Box | I82: 70,000.00 | Y82: 4,900.00 | Z82: 74,900.00
G83: Hurlingham 88/11kV SS Transformer 2 11kV Metering Panel CT Junction Box | I83: 60,000.00 | Y83: 4,200.00 | Z83: 64,200.00
G84: Sub-Total | I84: =SUM(I80:I83) -> 260,000.00 | Y84: 18,200.00 | Z84: 278,200.00
G85: 11kV Feeder Board Relays | Y85: 0 | Z85: 0
G86: Hurlingham 88/11kV SS Culemborg Feeder MSS 553 Boschendal Crescent (Vin Rouge Crescent) IDMTL O/C & EF Protection | I86: 150,000.00 | J86: SEL | K86: Not Specified | L86: SEL-751 | M86: 3132940157 | P86: 1-5A | Q86: 110V | Y86: 10,500.00 | Z86: 160,500.00
G87: Hurlingham 88/11kV SS Culemborg Feeder MSS 553 Boschendal Crescent (Vin Rouge Crescent) Frame Leakage Trip | I87: 150,000.00 | J87: Reyrolle | K87: Not Specified | L87: 408J43B | M87: B5E1380 | Y87: 10,500.00 | Z87: 160,500.00
G88: Hurlingham 88/11kV SS Culemborg Feeder MSS 553 Boschendal Crescent (Vin Rouge Crescent) Gas Pressure | I88: 150,000.00 | J88: Reyrolle | K88: Not Specified | L88: 408J43B | M88: B5E1381 | Y88: 10,500.00 | Z88: 160,500.00
G89: Hurlingham 88/11kV SS Culemborg Feeder MSS 553 Boschendal Crescent (Vin Rouge Crescent) High Set OC | I89: 150,000.00 | J89: Reyrolle | K89: Not Specified | L89: Not Specified | M89: 61586/1 | Y89: 10,500.00 | Z89: 160,500.00
G90: Hurlingham 88/11kV SS MSS 02567 S/S 972 Republic Rd IDMTL O/C & EF Protection | I90: 150,000.00 | J90: SEL | K90: Not Specified | L90: SEL-751 | M90: 3132940155 | Y90: 10,500.00 | Z90: 160,500.00
G91: Hurlingham 88/11kV SS MSS 02567 S/S 972 Republic Rd Frame Leakage Trip | I91: 150,000.00 | J91: Reyrolle | K91: Not Specified | L91: 408J43B | M91: 85E1387 | Y91: 10,500.00 | Z91: 160,500.00
G92: Hurlingham 88/11kV SS MSS 02567 S/S 972 Republic Rd Gas Pressure | I92: 150,000.00 | J92: Reyrolle | K92: Not Specified | L92: 408J43B | M92: 85E1386 | Y92: 10,500.00 | Z92: 160,500.00
G93: Hurlingham 88/11kV SS MSS 02567 S/S 972 Republic Rd High Set OC | I93: 150,000.00 | J93: Reyrolle | K93: Not Specified | L93: Not Specified | M93: 61586/4 | Y93: 10,500.00 | Z93: 160,500.00
G94: Hurlingham 88/11kV SS Escom 1 Incomer Intertrip Relay | I94: 200,000.00 | J94: Reyrolle | K94: Not Specified | L94: VAJY13SPC11YF3SA | M94: 8601139 | Y94: 14,000.00 | Z94: 214,000.00
G95: Hurlingham 88/11kV SS Escom 1 Incomer Master Trip Relay | I95: 200,000.00 | J95: Reyrolle | K95: Not Specified | L95: F8H | M95: 59137/5 | Y95: 14,000.00 | Z95: 214,000.00
G96: Hurlingham 88/11kV SS Escom 1 Incomer Frame Leakage Trip | I96: 200,000.00 | J96: Reyrolle | K96: Not Specified | L96: 408J43B | M96: 86E0222 | Y96: 14,000.00 | Z96: 214,000.00
